Workbook

Sheet Emisní_faktory
A1: Výběr roku: | B1: 2015
A2: Pořadové číslo sloupce v energetické bilanci | B2: =IFERROR(MATCH(TEXT(Rok,"0000"),EB[#Headers],0),0) -> 40
A3: Posun v NIR | B3: =(IF(Rok>Last_NIR,Last_NIR,Rok)-1990)*3 -> 75
A5: Výběr sektoru | B5: Doprava celkem | R5: =INDEX(TBL_KS_sektory[Kód],MATCH($B$5,TBL_KS_sektory[Sektor],0)) -> transport | T5: =IFERROR(MATCH($B$5,INDIRECT(KS_seznam!$M$1),0),0) -> 2
A7: Sada EF pro elektřinu a teplo | B7: Emisní faktory za všechny zdroje
A9: Zahrnutí dané kombinace nositele energie a účelu užití energie do výpočtu (1 = ano, 0 nebo prázdné = ne)
B11: Tuhá paliva | C11: Kapalná paliva | D11: Plynná paliva | E11: Biomasa | F11: Ostatní paliva | G11: Elektřina | H11: Teplo | I11: OZE mimo biomasu | J11: Letecký benzín | K11: Benzín | L11: Diesel | M11: Letecký petrolej | N11: LPG
A12: Zahrnout do výpočtu (0/1) | B12: =MAX(B13:B19) -> 1 | C12: =MAX(C13:C19) -> 1 | D12: =MAX(D13:D19) -> 1 | E12: =MAX(E13:E19) -> 1 | F12: =MAX(F13:F19) -> 1 | G12: =MAX(G13:G19) -> 1 | H12: =MAX(H13:H19) -> 1 | I12: =MAX(I13:I19) -> 1 | J12: =MAX(J13:J19) -> 1 | K12: =MAX(K13:K19) -> 1 | L12: =MAX(L13:L19) -> 1 | M12: =MAX(M13:M19) -> 1 | N12: =MAX(N13:N19) -> 1
A13: Klimatizace | B13: 1 | C13: 1 | D13: 1 | E13: 1 | F13: 1 | G13: 1 | H13: 1 | I13: 1 | J13: 1 | K13: 1 | L13: 1 | M13: 1 | N13: 1
A14: Ohřev vody | B14: 1 | C14: 1 | D14: 1 | E14: 1 | F14: 1 | G14: 1 | H14: 1 | I14: 1 | J14: 1 | K14: 1 | L14: 1 | M14: 1 | N14: 1
A15: Ostatní užití | B15: 1 | C15: 1 | D15: 1 | E15: 1 | F15: 1 | G15: 1 | H15: 1 | I15: 1 | J15: 1 | K15: 1 | L15: 1 | M15: 1 | N15: 1
A16: Osvětlení a spotřebiče | B16: 1 | C16: 1 | D16: 1 | E16: 1 | F16: 1 | G16: 1 | H16: 1 | I16: 1 | J16: 1 | K16: 1 | L16: 1 | M16: 1 | N16: 1
A17: Technologie | B17: 1 | C17: 1 | D17: 1 | E17: 1 | F17: 1 | G17: 1 | H17: 1 | I17: 1 | J17: 1 | K17: 1 | L17: 1 | M17: 1 | N17: 1
A18: Vaření | B18: 1 | C18: 1 | D18: 1 | E18: 1 | F18: 1 | G18: 1 | H18: 1 | I18: 1 | J18: 1 | K18: 1 | L18: 1 | M18: 1 | N18: 1
A19: Vytápění | B19: 1 | C19: 1 | D19: 1 | E19: 1 | F19: 1 | G19: 1 | H19: 1 | I19: 1 | J19: 1 | K19: 1 | L19: 1 | M19: 1 | N19: 1
A22: Konečná spotřeba energie
A24: Je doprava | B24: solid | C24: liquid | D24: gas | E24: biomass | F24: other | G24: electricity | H24: heat | I24: RES | J24: aviationgasoline | K24: gasoline | L24: diesel | M24: jetkerosene | N24: LPG
A25: =VLOOKUP(B5,TBL_KS_sektory[[Sektor]:[Je_doprava]],3,FALSE) -> FALSE | B25: =TRANSPOSE(Výsledek_projekce!BN4:BN16) -> 38 | C25: 250650 | D25: 2779 | E25: 12414 | F25: 0 | G25: 5792 | H25: 0 | I25: 0 | J25: 0 | K25: 0 | L25: 0 | M25: 0 | N25: 0
B26: =IF($A$25,IF(Rok<=Last_Bil,SUMIFS(KS_DB[KS],KS_DB[Nositel_doprava],B24,KS_DB[Sektor],"<>energy"),B25),IF(Rok<=Last_Bil,SUMIFS(KS_DB[KS],KS_DB[Nositel],B24,KS_DB[Sektor],"<>energy"),B25)) -> 38 | C26: =IF($A$25,IF(Rok<=Last_Bil,SUMIFS(KS_DB[KS],KS_DB[Nositel_doprava],C24,KS_DB[Sektor],"<>energy"),C25),IF(Rok<=Last_Bil,SUMIFS(KS_DB[KS],KS_DB[Nositel],C24,KS_DB[Sektor],"<>energy"),C25)) -> 250650 | D26: =IF($A$25,IF(Rok<=Last_Bil,SUMIFS(KS_DB[KS],KS_DB[Nositel_doprava],D24,KS_DB[Sektor],"<>energy"),D25),IF(Rok<=Last_Bil,SUMIFS(KS_DB[KS],KS_DB[Nositel],D24,KS_DB[Sektor],"<>energy"),D25)) -> 2779 | E26: =IF($A$25,IF(Rok<=Last_Bil,SUMIFS(KS_DB[KS],KS_DB[Nositel_doprava],E24,KS_DB[Sektor],"<>energy"),E25),IF(Rok<=Last_Bil,SUMIFS(KS_DB[KS],KS_DB[Nositel],E24,KS_DB[Sektor],"<>energy"),E25)) -> 12414 | F26: =IF($A$25,IF(Rok<=Last_Bil,SUMIFS(KS_DB[KS],KS_DB[Nositel_doprava],F24,KS_DB[Sektor],"<>energy"),F25),IF(Rok<=Last_Bil,SUMIFS(KS_DB[KS],KS_DB[Nositel],F24,KS_DB[Sektor],"<>energy"),F25)) -> 0 | G26: =IF($A$25,IF(Rok<=Last_Bil,SUMIFS(KS_DB[KS],KS_DB[Nositel_doprava],G24,KS_DB[Sektor],"<>energy"),G25),IF(Rok<=Last_Bil,SUMIFS(KS_DB[KS],KS_DB[Nositel],G24,KS_DB[Sektor],"<>energy"),G25)) -> 5792 | H26: =IF($A$25,IF(Rok<=Last_Bil,SUMIFS(KS_DB[KS],KS_DB[Nositel_doprava],H24,KS_DB[Sektor],"<>energy"),H25),IF(Rok<=Last_Bil,SUMIFS(KS_DB[KS],KS_DB[Nositel],H24,KS_DB[Sektor],"<>energy"),H25)) -> 0 | I26: =IF($A$25,IF(Rok<=Last_Bil,SUMIFS(KS_DB[KS],KS_DB[Nositel_doprava],I24,KS_DB[Sektor],"<>energy"),I25),IF(Rok<=Last_Bil,SUMIFS(KS_DB[KS],KS_DB[Nositel],I24,KS_DB[Sektor],"<>energy"),I25)) -> 0 | J26: =IF($A$25,IF(Rok<=Last_Bil,SUMIFS(KS_DB[KS],KS_DB[Nositel_doprava],J24,KS_DB[Sektor],"<>energy"),J25),IF(Rok<=Last_Bil,SUMIFS(KS_DB[KS],KS_DB[Nositel],J24,KS_DB[Sektor],"<>energy"),J25)) -> 0 | K26: =IF($A$25,IF(Rok<=Last_Bil,SUMIFS(KS_DB[KS],KS_DB[Nositel_doprava],K24,KS_DB[Sektor],"<>energy"),K25),IF(Rok<=Last_Bil,SUMIFS(KS_DB[KS],KS_DB[Nositel],K24,KS_DB[Sektor],"<>energy"),K25)) -> 0 | L26: =IF($A$25,IF(Rok<=Last_Bil,SUMIFS(KS_DB[KS],KS_DB[Nositel_doprava],L24,KS_DB[Sektor],"<>energy"),L25),IF(Rok<=Last_Bil,SUMIFS(KS_DB[KS],KS_DB[Nositel],L24,KS_DB[Sektor],"<>energy"),L25)) -> 0 | M26: =IF($A$25,IF(Rok<=Last_Bil,SUMIFS(KS_DB[KS],KS_DB[Nositel_doprava],M24,KS_DB[Sektor],"<>energy"),M25),IF(Rok<=Last_Bil,SUMIFS(KS_DB[KS],KS_DB[Nositel],M24,KS_DB[Sektor],"<>energy"),M25)) -> 0 | N26: =IF($A$25,IF(Rok<=Last_Bil,SUMIFS(KS_DB[KS],KS_DB[Nositel_doprava],N24,KS_DB[Sektor],"<>energy"),N25),IF(Rok<=Last_Bil,SUMIFS(KS_DB[KS],KS_DB[Nositel],N24,KS_DB[Sektor],"<>energy"),N25)) -> 0
B27: Tuhá paliva | C27: Kapalná paliva | D27: Plynná paliva | E27: Biomasa | F27: Ostatní paliva | G27: Elektřina | H27: Teplo | I27: OZE mimo biomasu | J27: Letecký benzín | K27: Benzín | L27: Diesel | M27: Letecký petrolej | N27: LPG | O27: Celkem | R27: Je doprava | S27: Klíč | T27: Index
A28: Konečná spotřeba energie celkem [TJ] | B28: =IF(INDEX(Podíly_KS!C:C,$T28)=0,B26*B12,SUM(B29:B35)) -> 38 | C28: =IF(INDEX(Podíly_KS!D:D,$T28)=0,C26*C12,SUM(C29:C35)) -> 250650 | D28: =IF(INDEX(Podíly_KS!E:E,$T28)=0,D26*D12,SUM(D29:D35)) -> 2779 | E28: =IF(INDEX(Podíly_KS!F:F,$T28)=0,E26*E12,SUM(E29:E35)) -> 12414 | F28: =IF(INDEX(Podíly_KS!G:G,$T28)=0,F26*F12,SUM(F29:F35)) -> 0 | G28: =IF(INDEX(Podíly_KS!H:H,$T28)=0,G26*G12,SUM(G29:G35)) -> 5792 | H28: =IF(INDEX(Podíly_KS!I:I,$T28)=0,H26*H12,SUM(H29:H35)) -> 0 | I28: =IF(INDEX(Podíly_KS!J:J,$T28)=0,I26*I12,SUM(I29:I35)) -> 0 | J28: =IF(INDEX(Podíly_KS!K:K,$T28)=0,J26*J12,SUM(J29:J35)) -> 0 | K28: =IF(INDEX(Podíly_KS!L:L,$T28)=0,K26*K12,SUM(K29:K35)) -> 0 | L28: =IF(INDEX(Podíly_KS!M:M,$T28)=0,L26*L12,SUM(L29:L35)) -> 0 | M28: =IF(INDEX(Podíly_KS!N:N,$T28)=0,M26*M12,SUM(M29:M35)) -> 0 | N28: =IF(INDEX(Podíly_KS!O:O,$T28)=0,N26*N12,SUM(N29:N35)) -> 0 | O28: =SUM(B28:N28) -> 271673 | R28: =INDEX(TBL_KS_sektory[Je_doprava],MATCH($B$5,TBL_KS_sektory[Sektor],0)) -> FALSE | S28: =$B$5 & "#Celkem" -> Doprava celkem#Celkem | T28: =MATCH(S28,Podíly_KS!$R:$R,0) -> 20
A29: Klimatizace | B29: =B$26*INDEX(Podíly_KS!C:C,$T29)*B13 -> 0 | C29: =C$26*INDEX(Podíly_KS!D:D,$T29)*C13 -> 0 | D29: =D$26*INDEX(Podíly_KS!E:E,$T29)*D13 -> 0 | E29: =E$26*INDEX(Podíly_KS!F:F,$T29)*E13 -> 0 | F29: =F$26*INDEX(Podíly_KS!G:G,$T29)*F13 -> 0 | G29: =G$26*INDEX(Podíly_KS!H:H,$T29)*G13 -> 0 | H29: =H$26*INDEX(Podíly_KS!I:I,$T29)*H13 -> 0 | I29: =I$26*INDEX(Podíly_KS!J:J,$T29)*I13 -> 0 | J29: =J$26*INDEX(Podíly_KS!K:K,$T29)*J13 -> 0 | K29: =K$26*INDEX(Podíly_KS!L:L,$T29)*K13 -> 0 | L29: =L$26*INDEX(Podíly_KS!M:M,$T29)*L13 -> 0 | M29: =M$26*INDEX(Podíly_KS!N:N,$T29)*M13 -> 0 | N29: =N$26*INDEX(Podíly_KS!O:O,$T29)*N13 -> 0 | O29: =SUM(B29:N29) -> 0 | S29: =$B$5 & "#" & $A29 -> Doprava celkem#Klimatizace | T29: =MATCH(S29,Podíly_KS!$R:$R,0) -> 13
A30: Ohřev vody | B30: =B$26*INDEX(Podíly_KS!C:C,$T30)*B14 -> 0 | C30: =C$26*INDEX(Podíly_KS!D:D,$T30)*C14 -> 0 | D30: =D$26*INDEX(Podíly_KS!E:E,$T30)*D14 -> 0 | E30: =E$26*INDEX(Podíly_KS!F:F,$T30)*E14 -> 0 | F30: =F$26*INDEX(Podíly_KS!G:G,$T30)*F14 -> 0 | G30: =G$26*INDEX(Podíly_KS!H:H,$T30)*G14 -> 0 | H30: =H$26*INDEX(Podíly_KS!I:I,$T30)*H14 -> 0 | I30: =I$26*INDEX(Podíly_KS!J:J,$T30)*I14 -> 0 | J30: =J$26*INDEX(Podíly_KS!K:K,$T30)*J14 -> 0 | K30: =K$26*INDEX(Podíly_KS!L:L,$T30)*K14 -> 0 | L30: =L$26*INDEX(Podíly_KS!M:M,$T30)*L14 -> 0 | M30: =M$26*INDEX(Podíly_KS!N:N,$T30)*M14 -> 0 | N30: =N$26*INDEX(Podíly_KS!O:O,$T30)*N14 -> 0 | O30: 0 | S30: Doprava celkem#Ohřev vody | T30: =MATCH(S30,Podíly_KS!$R:$R,0) -> 14
A31: Ostatní užití | B31: =B$26*INDEX(Podíly_KS!C:C,$T31)*B15 -> 0 | C31: =C$26*INDEX(Podíly_KS!D:D,$T31)*C15 -> 0 | D31: =D$26*INDEX(Podíly_KS!E:E,$T31)*D15 -> 0 | E31: =E$26*INDEX(Podíly_KS!F:F,$T31)*E15 -> 0 | F31: =F$26*INDEX(Podíly_KS!G:G,$T31)*F15 -> 0 | G31: =G$26*INDEX(Podíly_KS!H:H,$T31)*G15 -> 0 | H31: =H$26*INDEX(Podíly_KS!I:I,$T31)*H15 -> 0 | I31: =I$26*INDEX(Podíly_KS!J:J,$T31)*I15 -> 0 | J31: =J$26*INDEX(Podíly_KS!K:K,$T31)*J15 -> 0 | K31: =K$26*INDEX(Podíly_KS!L:L,$T31)*K15 -> 0 | L31: =L$26*INDEX(Podíly_KS!M:M,$T31)*L15 -> 0 | M31: =M$26*INDEX(Podíly_KS!N:N,$T31)*M15 -> 0 | N31: =N$26*INDEX(Podíly_KS!O:O,$T31)*N15 -> 0 | O31: 0 | S31: Doprava celkem#Ostatní užití | T31: =MATCH(S31,Podíly_KS!$R:$R,0) -> 15
A32: Osvětlení a spotřebiče | B32: =B$26*INDEX(Podíly_KS!C:C,$T32)*B16 -> 0 | C32: =C$26*INDEX(Podíly_KS!D:D,$T32)*C16 -> 0 | D32: =D$26*INDEX(Podíly_KS!E:E,$T32)*D16 -> 0 | E32: =E$26*INDEX(Podíly_KS!F:F,$T32)*E16 -> 0 | F32: =F$26*INDEX(Podíly_KS!G:G,$T32)*F16 -> 0 | G32: =G$26*INDEX(Podíly_KS!H:H,$T32)*G16 -> 0 | H32: =H$26*INDEX(Podíly_KS!I:I,$T32)*H16 -> 0 | I32: =I$26*INDEX(Podíly_KS!J:J,$T32)*I16 -> 0 | J32: =J$26*INDEX(Podíly_KS!K:K,$T32)*J16 -> 0 | K32: =K$26*INDEX(Podíly_KS!L:L,$T32)*K16 -> 0 | L32: =L$26*INDEX(Podíly_KS!M:M,$T32)*L16 -> 0 | M32: =M$26*INDEX(Podíly_KS!N:N,$T32)*M16 -> 0 | N32: =N$26*INDEX(Podíly_KS!O:O,$T32)*N16 -> 0 | O32: 0 | S32: Doprava celkem#Osvětlení a spotřebiče | T32: =MATCH(S32,Podíly_KS!$R:$R,0) -> 16
A33: Technologie | B33: =B$26*INDEX(Podíly_KS!C:C,$T33)*B17 -> 0 | C33: =C$26*INDEX(Podíly_KS!D:D,$T33)*C17 -> 0 | D33: =D$26*INDEX(Podíly_KS!E:E,$T33)*D17 -> 0 | E33: =E$26*INDEX(Podíly_KS!F:F,$T33)*E17 -> 0 | F33: =F$26*INDEX(Podíly_KS!G:G,$T33)*F17 -> 0 | G33: =G$26*INDEX(Podíly_KS!H:H,$T33)*G17 -> 0 | H33: =H$26*INDEX(Podíly_KS!I:I,$T33)*H17 -> 0 | I33: =I$26*INDEX(Podíly_KS!J:J,$T33)*I17 -> 0 | J33: =J$26*INDEX(Podíly_KS!K:K,$T33)*J17 -> 0 | K33: =K$26*INDEX(Podíly_KS!L:L,$T33)*K17 -> 0 | L33: =L$26*INDEX(Podíly_KS!M:M,$T33)*L17 -> 0 | M33: =M$26*INDEX(Podíly_KS!N:N,$T33)*M17 -> 0 | N33: =N$26*INDEX(Podíly_KS!O:O,$T33)*N17 -> 0 | O33: 0 | S33: Doprava celkem#Technologie | T33: =MATCH(S33,Podíly_KS!$R:$R,0) -> 17
A34: Vaření | B34: =B$26*INDEX(Podíly_KS!C:C,$T34)*B18 -> 0 | C34: =C$26*INDEX(Podíly_KS!D:D,$T34)*C18 -> 0 | D34: =D$26*INDEX(Podíly_KS!E:E,$T34)*D18 -> 0 | E34: =E$26*INDEX(Podíly_KS!F:F,$T34)*E18 -> 0 | F34: =F$26*INDEX(Podíly_KS!G:G,$T34)*F18 -> 0 | G34: =G$26*INDEX(Podíly_KS!H:H,$T34)*G18 -> 0 | H34: =H$26*INDEX(Podíly_KS!I:I,$T34)*H18 -> 0 | I34: =I$26*INDEX(Podíly_KS!J:J,$T34)*I18 -> 0 | J34: =J$26*INDEX(Podíly_KS!K:K,$T34)*J18 -> 0 | K34: =K$26*INDEX(Podíly_KS!L:L,$T34)*K18 -> 0 | L34: =L$26*INDEX(Podíly_KS!M:M,$T34)*L18 -> 0 | M34: =M$26*INDEX(Podíly_KS!N:N,$T34)*M18 -> 0 | N34: =N$26*INDEX(Podíly_KS!O:O,$T34)*N18 -> 0 | O34: 0 | S34: Doprava celkem#Vaření | T34: =MATCH(S34,Podíly_KS!$R:$R,0) -> 18
A35: Vytápění | B35: =B$26*INDEX(Podíly_KS!C:C,$T35)*B19 -> 0 | C35: =C$26*INDEX(Podíly_KS!D:D,$T35)*C19 -> 0 | D35: =D$26*INDEX(Podíly_KS!E:E,$T35)*D19 -> 0 | E35: =E$26*INDEX(Podíly_KS!F:F,$T35)*E19 -> 0 | F35: =F$26*INDEX(Podíly_KS!G:G,$T35)*F19 -> 0 | G35: =G$26*INDEX(Podíly_KS!H:H,$T35)*G19 -> 0 | H35: =H$26*INDEX(Podíly_KS!I:I,$T35)*H19 -> 0 | I35: =I$26*INDEX(Podíly_KS!J:J,$T35)*I19 -> 0 | J35: =J$26*INDEX(Podíly_KS!K:K,$T35)*J19 -> 0 | K35: =K$26*INDEX(Podíly_KS!L:L,$T35)*K19 -> 0 | L35: =L$26*INDEX(Podíly_KS!M:M,$T35)*L19 -> 0 | M35: =M$26*INDEX(Podíly_KS!N:N,$T35)*M19 -> 0 | N35: =N$26*INDEX(Podíly_KS!O:O,$T35)*N19 -> 0 | O35: 0 | S35: Doprava celkem#Vytápění | T35: =MATCH(S35,Podíly_KS!$R:$R,0) -> 19
A38: Emisní faktory z NIR
B40: Tuhá paliva | C40: Kapalná paliva | D40: Plynná paliva | E40: Biomasa | F40: Ostatní paliva | G40: Elektřina | H40: Teplo | I40: OZE mimo biomasu | J40: Letecký benzín | K40: Benzín | L40: Diesel | M40: Letecký petrolej | N40: LPG | R40: GWP
A41: CO2 [t/TJ] | B41: =VLOOKUP($R$5,Emis_Fakt_NIR!$A$7:$P$25,COLUMN()+2,FALSE) -> 0 | C41: =VLOOKUP($R$5,Emis_Fakt_NIR!$A$7:$P$25,COLUMN()+2,FALSE) -> 72.62001345 | D41: =VLOOKUP($R$5,Emis_Fakt_NIR!$A$7:$P$25,COLUMN()+2,FALSE) -> 52.43203384 | E41: =VLOOKUP($R$5,Emis_Fakt_NIR!$A$7:$P$25,COLUMN()+2,FALSE) -> 0 | F41: =VLOOKUP($R$5,Emis_Fakt_NIR!$A$7:$P$25,COLUMN()+2,FALSE) -> 0 | G41: =VLOOKUP($R$5,Emis_Fakt_NIR!$A$7:$P$25,COLUMN()+2,FALSE) -> 175.2955253 | H41: =VLOOKUP($R$5,Emis_Fakt_NIR!$A$7:$P$25,COLUMN()+2,FALSE) -> 0 | I41: =VLOOKUP($R$5,Emis_Fakt_NIR!$A$7:$P$25,COLUMN()+2,FALSE) -> 0 | J41: =VLOOKUP($R$5,Emis_Fakt_NIR!$A$7:$P$25,COLUMN()+2,FALSE) -> 0 | K41: =VLOOKUP($R$5,Emis_Fakt_NIR!$A$7:$P$25,COLUMN()+2,FALSE) -> 0 | L41: =VLOOKUP($R$5,Emis_Fakt_NIR!$A$7:$P$25,COLUMN()+2,FALSE) -> 0 | M41: =VLOOKUP($R$5,Emis_Fakt_NIR!$A$7:$P$25,COLUMN()+2,FALSE) -> 0 | N41: =VLOOKUP($R$5,Emis_Fakt_NIR!$A$7:$P$25,COLUMN()+2,FALSE) -> 0 | R41: 1
A42: CH4 [t/TJ] | B42: =(VLOOKUP($R$5,Emis_Fakt_NIR!$A$28:$P$46,COLUMN()+2,FALSE))/1000 -> 0 | C42: =(VLOOKUP($R$5,Emis_Fakt_NIR!$A$28:$P$46,COLUMN()+2,FALSE))/1000 -> 0.00364695989 | D42: =(VLOOKUP($R$5,Emis_Fakt_NIR!$A$28:$P$46,COLUMN()+2,FALSE))/1000 -> 0.0481553589 | E42: =(VLOOKUP($R$5,Emis_Fakt_NIR!$A$28:$P$46,COLUMN()+2,FALSE))/1000 -> 0.001915418076 | F42: =(VLOOKUP($R$5,Emis_Fakt_NIR!$A$28:$P$46,COLUMN()+2,FALSE))/1000 -> 0 | G42: =(VLOOKUP($R$5,Emis_Fakt_NIR!$A$28:$P$46,COLUMN()+2,FALSE))/1000 -> 2.632473189e-05 | H42: =(VLOOKUP($R$5,Emis_Fakt_NIR!$A$28:$P$46,COLUMN()+2,FALSE))/1000 -> 0 | I42: =(VLOOKUP($R$5,Emis_Fakt_NIR!$A$28:$P$46,COLUMN()+2,FALSE))/1000 -> 0 | J42: =(VLOOKUP($R$5,Emis_Fakt_NIR!$A$28:$P$46,COLUMN()+2,FALSE))/1000 -> 0 | K42: =(VLOOKUP($R$5,Emis_Fakt_NIR!$A$28:$P$46,COLUMN()+2,FALSE))/1000 -> 0 | L42: =(VLOOKUP($R$5,Emis_Fakt_NIR!$A$28:$P$46,COLUMN()+2,FALSE))/1000 -> 0 | M42: =(VLOOKUP($R$5,Emis_Fakt_NIR!$A$28:$P$46,COLUMN()+2,FALSE))/1000 -> 0 | N42: =(VLOOKUP($R$5,Emis_Fakt_NIR!$A$28:$P$46,COLUMN()+2,FALSE))/1000 -> 0 | R42: 25
A43: N2O [t/TJ] | B43: =(VLOOKUP($R$5,Emis_Fakt_NIR!$A$49:$P$67,COLUMN()+2,FALSE))/1000 -> 0 | C43: =(VLOOKUP($R$5,Emis_Fakt_NIR!$A$49:$P$67,COLUMN()+2,FALSE))/1000 -> 0.005309549439 | D43: =(VLOOKUP($R$5,Emis_Fakt_NIR!$A$49:$P$67,COLUMN()+2,FALSE))/1000 -> 0.001602753196 | E43: =(VLOOKUP($R$5,Emis_Fakt_NIR!$A$49:$P$67,COLUMN()+2,FALSE))/1000 -> 0.0006 | F43: =(VLOOKUP($R$5,Emis_Fakt_NIR!$A$49:$P$67,COLUMN()+2,FALSE))/1000 -> 0 | G43: =(VLOOKUP($R$5,Emis_Fakt_NIR!$A$49:$P$67,COLUMN()+2,FALSE))/1000 -> 2.973548483e-06 | H43: =(VLOOKUP($R$5,Emis_Fakt_NIR!$A$49:$P$67,COLUMN()+2,FALSE))/1000 -> 0 | I43: =(VLOOKUP($R$5,Emis_Fakt_NIR!$A$49:$P$67,COLUMN()+2,FALSE))/1000 -> 0 | J43: =(VLOOKUP($R$5,Emis_Fakt_NIR!$A$49:$P$67,COLUMN()+2,FALSE))/1000 -> 0 | K43: =(VLOOKUP($R$5,Emis_Fakt_NIR!$A$49:$P$67,COLUMN()+2,FALSE))/1000 -> 0 | L43: =(VLOOKUP($R$5,Emis_Fakt_NIR!$A$49:$P$67,COLUMN()+2,FALSE))/1000 -> 0 | M43: =(VLOOKUP($R$5,Emis_Fakt_NIR!$A$49:$P$67,COLUMN()+2,FALSE))/1000 -> 0 | N43: =(VLOOKUP($R$5,Emis_Fakt_NIR!$A$49:$P$67,COLUMN()+2,FALSE))/1000 -> 0 | R43: 298
A46: Výpočet průměrných emisních faktorů
A48: CO2 | B48: Tuhá paliva | C48: Kapalná paliva | D48: Plynná paliva | E48: Biomasa | F48: Ostatní paliva | G48: Elektřina | H48: Teplo | I48: OZE mimo biomasu | J48: Letecký benzín | K48: Benzín | L48: Diesel | M48: Letecký petrolej | N48: LPG | O48: Celkem | P48: Průměrný emisní koeficient [t/TJ]
A49: Emise celkem [t] | B49: =B28*B$41*B12 -> 0 | C49: =C28*C$41*C12 -> 18202206.37 | D49: 145708.6221 | E49: 0 | F49: 0 | G49: 1015311.683 | H49: 0 | I49: 0 | J49: 0 | K49: 0 | L49: 0 | M49: 0 | N49: 0 | O49: =SUM(B49:N49) -> 19363226.68 | P49: =IFERROR(O49/O28,0) -> 71.27401942
A50: Klimatizace | B50: =B29*B$41*B13 -> 0 | C50: =C29*C$41*C13 -> 0 | D50: 0 | E50: 0 | F50: 0 | G50: 0 | H50: 0 | I50: 0 | J50: 0 | K50: 0 | L50: 0 | M50: 0 | N50: 0 | O50: =SUM(B50:N50) -> 0 | P50: =IFERROR(O50/SUM(B29:I29*B13:I13),0) -> 0
A51: Ohřev vody | B51: =B30*B$41*B14 -> 0 | C51: =C30*C$41*C14 -> 0 | D51: 0 | E51: 0 | F51: 0 | G51: 0 | H51: 0 | I51: 0 | J51: 0 | K51: 0 | L51: 0 | M51: 0 | N51: 0 | O51: 0 | P51: =IFERROR(O51/SUM(B30:I30*B14:I14),0) -> 0
A52: Ostatní užití | B52: =B31*B$41*B15 -> 0 | C52: =C31*C$41*C15 -> 0 | D52: 0 | E52: 0 | F52: 0 | G52: 0 | H52: 0 | I52: 0 | J52: 0 | K52: 0 | L52: 0 | M52: 0 | N52: 0 | O52: 0 | P52: =IFERROR(O52/SUM(B31:I31*B15:I15),0) -> 0
A53: Osvětlení a spotřebiče | B53: =B32*B$41*B16 -> 0 | C53: =C32*C$41*C16 -> 0 | D53: 0 | E53: 0 | F53: 0 | G53: 0 | H53: 0 | I53: 0 | J53: 0 | K53: 0 | L53: 0 | M53: 0 | N53: 0 | O53: 0 | P53: =IFERROR(O53/SUM(B32:I32*B16:I16),0) -> 0
A54: Technologie | B54: =B33*B$41*B17 -> 0 | C54: =C33*C$41*C17 -> 0 | D54: 0 | E54: 0 | F54: 0 | G54: 0 | H54: 0 | I54: 0 | J54: 0 | K54: 0 | L54: 0 | M54: 0 | N54: 0 | O54: 0 | P54: =IFERROR(O54/SUM(B33:I33*B17:I17),0) -> 0
A55: Vaření | B55: =B34*B$41*B18 -> 0 | C55: =C34*C$41*C18 -> 0 | D55: 0 | E55: 0 | F55: 0 | G55: 0 | H55: 0 | I55: 0 | J55: 0 | K55: 0 | L55: 0 | M55: 0 | N55: 0 | O55: 0 | P55: =IFERROR(O55/SUM(B34:I34*B18:I18),0) -> 0
A56: Vytápění | B56: =B35*B$41*B19 -> 0 | C56: =C35*C$41*C19 -> 0 | D56: 0 | E56: 0 | F56: 0 | G56: 0 | H56: 0 | I56: 0 | J56: 0 | K56: 0 | L56: 0 | M56: 0 | N56: 0 | O56: 0 | P56: =IFERROR(O56/SUM(B35:I35*B19:I19),0) -> 0
A58: CH4 | B58: Tuhá paliva | C58: Kapalná paliva | D58: Plynná paliva | E58: Biomasa | F58: Ostatní paliva | G58: Elektřina | H58: Teplo | I58: OZE mimo biomasu | J58: Letecký benzín | K58: Benzín | L58: Diesel | M58: Letecký petrolej | N58: LPG | O58: Celkem | P58: Průměrný emisní koeficient [t/TJ]
A59: Emise celkem [t] | B59: =B28*B$42*B12 -> 0 | C59: =C28*C$42*C12 -> 914.1104965 | D59: 133.8237424 | E59: 23.778 | F59: 0 | G59: 0.1524728471 | H59: 0 | I59: 0 | J59: 0 | K59: 0 | L59: 0 | M59: 0 | N59: 0 | O59: =SUM(B59:N59) -> 1071.864712 | P59: =IFERROR(O59/O28,0) -> 0.003945422297
A60: Klimatizace | B60: =B29*B$42*B13 -> 0 | C60: =C29*C$42*C13 -> 0 | D60: 0 | E60: 0 | F60: 0 | G60: 0 | H60: 0 | I60: 0 | J60: 0 | K60: 0 | L60: 0 | M60: 0 | N60: 0 | O60: 0 | P60: =IFERROR(O60/SUM(B29:I29*B13:I13),0) -> 0
A61: Ohřev vody | B61: =B30*B$42*B14 -> 0 | C61: =C30*C$42*C14 -> 0 | D61: 0 | E61: 0 | F61: 0 | G61: 0 | H61: 0 | I61: 0 | J61: 0 | K61: 0 | L61: 0 | M61: 0 | N61: 0 | O61: 0 | P61: =IFERROR(O61/SUM(B30:I30*B14:I14),0) -> 0
A62: Ostatní užití | B62: =B31*B$42*B15 -> 0 | C62: =C31*C$42*C15 -> 0 | D62: 0 | E62: 0 | F62: 0 | G62: 0 | H62: 0 | I62: 0 | J62: 0 | K62: 0 | L62: 0 | M62: 0 | N62: 0 | O62: 0 | P62: =IFERROR(O62/SUM(B31:I31*B15:I15),0) -> 0
A63: Osvětlení a spotřebiče | B63: =B32*B$42*B16 -> 0 | C63: =C32*C$42*C16 -> 0 | D63: 0 | E63: 0 | F63: 0 | G63: 0 | H63: 0 | I63: 0 | J63: 0 | K63: 0 | L63: 0 | M63: 0 | N63: 0 | O63: 0 | P63: =IFERROR(O63/SUM(B32:I32*B16:I16),0) -> 0
A64: Technologie | B64: =B33*B$42*B17 -> 0 | C64: =C33*C$42*C17 -> 0 | D64: 0 | E64: 0 | F64: 0 | G64: 0 | H64: 0 | I64: 0 | J64: 0 | K64: 0 | L64: 0 | M64: 0 | N64: 0 | O64: 0 | P64: =IFERROR(O64/SUM(B33:I33*B17:I17),0) -> 0
A65: Vaření | B65: =B34*B$42*B18 -> 0 | C65: =C34*C$42*C18 -> 0 | D65: 0 | E65: 0 | F65: 0 | G65: 0 | H65: 0 | I65: 0 | J65: 0 | K65: 0 | L65: 0 | M65: 0 | N65: 0 | O65: 0 | P65: =IFERROR(O65/SUM(B34:I34*B18:I18),0) -> 0
A66: Vytápění | B66: =B35*B$42*B19 -> 0 | C66: =C35*C$42*C19 -> 0 | D66: 0 | E66: 0 | F66: 0 | G66: 0 | H66: 0 | I66: 0 | J66: 0 | K66: 0 | L66: 0 | M66: 0 | N66: 0 | O66: 0 | P66: =IFERROR(O66/SUM(B35:I35*B19:I19),0) -> 0
A68: N2O | B68: Tuhá paliva | C68: Kapalná paliva | D68: Plynná paliva | E68: Biomasa | F68: Ostatní paliva | G68: Elektřina | H68: Teplo | I68: OZE mimo biomasu | J68: Letecký benzín | K68: Benzín | L68: Diesel | M68: Letecký petrolej | N68: LPG | O68: Celkem | P68: Průměrný emisní koeficient [t/TJ]
A69: Emise celkem [t] | B69: =B28*B$43*B12 -> 0 | C69: =C28*C$43*C12 -> 1330.838567 | D69: 4.454051131 | E69: 7.4484 | F69: 0 | G69: 0.01722279281 | H69: 0 | I69: 0 | J69: 0 | K69: 0 | L69: 0 | M69: 0 | N69: 0 | O69: =SUM(B69:N69) -> 1342.758241 | P69: =IFERROR(O69/O28,0) -> 0.004942553146
A70: Klimatizace | B70: =B29*B$43*B13 -> 0 | C70: =C29*C$43*C13 -> 0 | D70: 0 | E70: 0 | F70: 0 | G70: 0 | H70: 0 | I70: 0 | J70: 0 | K70: 0 | L70: 0 | M70: 0 | N70: 0 | O70: 0 | P70: =IFERROR(O70/SUM(B29:I29*B13:I13),0) -> 0
A71: Ohřev vody | B71: =B30*B$43*B14 -> 0 | C71: =C30*C$43*C14 -> 0 | D71: 0 | E71: 0 | F71: 0 | G71: 0 | H71: 0 | I71: 0 | J71: 0 | K71: 0 | L71: 0 | M71: 0 | N71: 0 | O71: 0 | P71: =IFERROR(O71/SUM(B30:I30*B14:I14),0) -> 0
A72: Ostatní užití | B72: =B31*B$43*B15 -> 0 | C72: =C31*C$43*C15 -> 0 | D72: 0 | E72: 0 | F72: 0 | G72: 0 | H72: 0 | I72: 0 | J72: 0 | K72: 0 | L72: 0 | M72: 0 | N72: 0 | O72: 0 | P72: =IFERROR(O72/SUM(B31:I31*B15:I15),0) -> 0
A73: Osvětlení a spotřebiče | B73: =B32*B$43*B16 -> 0 | C73: =C32*C$43*C16 -> 0 | D73: 0 | E73: 0 | F73: 0 | G73: 0 | H73: 0 | I73: 0 | J73: 0 | K73: 0 | L73: 0 | M73: 0 | N73: 0 | O73: 0 | P73: =IFERROR(O73/SUM(B32:I32*B16:I16),0) -> 0
A74: Technologie | B74: =B33*B$43*B17 -> 0 | C74: =C33*C$43*C17 -> 0 | D74: 0 | E74: 0 | F74: 0 | G74: 0 | H74: 0 | I74: 0 | J74: 0 | K74: 0 | L74: 0 | M74: 0 | N74: 0 | O74: 0 | P74: =IFERROR(O74/SUM(B33:I33*B17:I17),0) -> 0
A75: Vaření | B75: =B34*B$43*B18 -> 0 | C75: =C34*C$43*C18 -> 0 | D75: 0 | E75: 0 | F75: 0 | G75: 0 | H75: 0 | I75: 0 | J75: 0 | K75: 0 | L75: 0 | M75: 0 | N75: 0 | O75: 0 | P75: =IFERROR(O75/SUM(B34:I34*B18:I18),0) -> 0
A76: Vytápění | B76: =B35*B$43*B19 -> 0 | C76: =C35*C$43*C19 -> 0 | D76: 0 | E76: 0 | F76: 0 | G76: 0 | H76: 0 | I76: 0 | J76: 0 | K76: 0 | L76: 0 | M76: 0 | N76: 0 | O76: 0 | P76: =IFERROR(O76/SUM(B35:I35*B19:I19),0) -> 0
A78: CO2 ekvivalent | B78: Tuhá paliva | C78: Kapalná paliva | D78: Plynná paliva | E78: Biomasa | F78: Ostatní paliva | G78: Elektřina | H78: Teplo | I78: OZE mimo biomasu | J78: Letecký benzín | K78: Benzín | L78: Diesel | M78: Letecký petrolej | N78: LPG | O78: Celkem | P78: Průměrný emisní koeficient [t/TJ]
A79: Emise celkem [t] | B79: =B49*$R$41+B59*$R$42+B69*$R$43 -> 0 | C79: =C49*$R$41+C59*$R$42+C69*$R$43 -> 18621649.03 | D79: 150381.5228 | E79: 2814.0732 | F79: 0 | G79: 1015320.627 | H79: 0 | I79: 0 | J79: 0 | K79: 0 | L79: 0 | M79: 0 | N79: 0 | O79: =O49*$R$41+O59*$R$42+O69*$R$43 -> 19790165.25 | P79: =P49*$R$41+P59*$R$42+P69*$R$43 -> 72.84553581
A80: Klimatizace | B80: 0 | C80: =C50*$R$41+C60*$R$42+C70*$R$43 -> 0 | D80: 0 | E80: 0 | F80: 0 | G80: 0 | H80: 0 | I80: 0 | J80: 0 | K80: 0 | L80: 0 | M80: 0 | N80: 0 | O80: =O50*$R$41+O60*$R$42+O70*$R$43 -> 0 | P80: 0
A81: Ohřev vody | B81: 0 | C81: =C51*$R$41+C61*$R$42+C71*$R$43 -> 0 | D81: 0 | E81: 0 | F81: 0 | G81: 0 | H81: 0 | I81: 0 | J81: 0 | K81: 0 | L81: 0 | M81: 0 | N81: 0 | O81: =O51*$R$41+O61*$R$42+O71*$R$43 -> 0 | P81: 0
A82: Ostatní užití | B82: 0 | C82: =C52*$R$41+C62*$R$42+C72*$R$43 -> 0 | D82: 0 | E82: 0 | F82: 0 | G82: 0 | H82: 0 | I82: 0 | J82: 0 | K82: 0 | L82: 0 | M82: 0 | N82: 0 | O82: =O52*$R$41+O62*$R$42+O72*$R$43 -> 0 | P82: 0
A83: Osvětlení a spotřebiče | B83: 0 | C83: =C53*$R$41+C63*$R$42+C73*$R$43 -> 0 | D83: 0 | E83: 0 | F83: 0 | G83: 0 | H83: 0 | I83: 0 | J83: 0 | K83: 0 | L83: 0 | M83: 0 | N83: 0 | O83: =O53*$R$41+O63*$R$42+O73*$R$43 -> 0 | P83: 0
A84: Technologie | B84: 0 | C84: =C54*$R$41+C64*$R$42+C74*$R$43 -> 0 | D84: 0 | E84: 0 | F84: 0 | G84: 0 | H84: 0 | I84: 0 | J84: 0 | K84: 0 | L84: 0 | M84: 0 | N84: 0 | O84: =O54*$R$41+O64*$R$42+O74*$R$43 -> 0 | P84: 0
A85: Vaření | B85: 0 | C85: =C55*$R$41+C65*$R$42+C75*$R$43 -> 0 | D85: 0 | E85: 0 | F85: 0 | G85: 0 | H85: 0 | I85: 0 | J85: 0 | K85: 0 | L85: 0 | M85: 0 | N85: 0 | O85: =O55*$R$41+O65*$R$42+O75*$R$43 -> 0 | P85: 0
A86: Vytápění | B86: 0 | C86: =C56*$R$41+C66*$R$42+C76*$R$43 -> 0 | D86: 0 | E86: 0 | F86: 0 | G86: 0 | H86: 0 | I86: 0 | J86: 0 | K86: 0 | L86: 0 | M86: 0 | N86: 0 | O86: =O56*$R$41+O66*$R$42+O76*$R$43 -> 0 | P86: 0

Sheet Podíly_KS
A1: Sektor | B1: Účel užití | C1: Tuhá paliva | D1: Kapalná paliva | E1: Plynná paliva | F1: Biomasa | G1: Ostatní paliva | H1: Elektřina | I1: Teplo | J1: OZE mimo biomasu | K1: Letecký benzín | L1: Benzín | M1: Diesel | N1: Letecký petrolej | O1: LPG | R1: Klíč
A2: =VLOOKUP("B_102010",TBL_KS_sektory[],2,FALSE) -> Domácnosti | B2: Klimatizace | H2: 0.004 | R2: =$A$2 & "#" & B2 -> Domácnosti#Klimatizace
B3: Ohřev vody | C3: 0.033 | D3: 0.007 | E3: 0.244 | F3: 0.035 | H3: 0.204 | I3: 0.379 | J3: 0.75 | R3: Domácnosti#Ohřev vody
B4: Ostatní užití | D4: 0.005 | F4: 0.005 | H4: 0.078 | R4: Domácnosti#Ostatní užití
B5: Osvětlení a spotřebiče | H5: 0.406 | R5: Domácnosti#Osvětlení a spotřebiče
B6: Technologie | R6: Domácnosti#Technologie
B7: Vaření | C7: 0.001 | D7: 0.297 | E7: 0.121 | F7: 0.005 | H7: 0.165 | R7: Domácnosti#Vaření
B8: Vytápění | C8: 0.966 | D8: 0.691 | E8: 0.635 | F8: 0.955 | H8: 0.143 | I8: 0.621 | J8: 0.25 | R8: Domácnosti#Vytápění
B9: Celkem | C9: =SUM(C2:C8) -> 1 | D9: 1 | E9: =SUM(E2:E8) -> 1 | F9: 1 | G9: 0 | H9: 1 | I9: 1 | J9: 1 | K9: 0 | L9: 0 | M9: 0 | N9: 0 | O9: 0 | R9: Domácnosti#Celkem
A12: Sektor | B12: Účel užití | C12: Tuhá paliva | D12: Kapalná paliva | E12: Plynná paliva | F12: Biomasa | G12: Ostatní paliva | H12: Elektřina | I12: Teplo | J12: OZE mimo biomasu | K12: Letecký benzín | L12: Benzín | M12: Diesel | N12: Letecký petrolej | O12: LPG
A13: =VLOOKUP("B_101900",TBL_KS_sektory[],2,FALSE) -> Doprava celkem | B13: Klimatizace | R13: =$A$13 & "#" & B13 -> Doprava celkem#Klimatizace
A14: =VLOOKUP("B_101900",TBL_KS_sektory[],2,FALSE) -> Doprava celkem | B14: Ohřev vody | R14: Doprava celkem#Ohřev vody
A15: =VLOOKUP("B_101900",TBL_KS_sektory[],2,FALSE) -> Doprava celkem | B15: Ostatní užití | R15: Doprava celkem#Ostatní užití
A16: =VLOOKUP("B_101900",TBL_KS_sektory[],2,FALSE) -> Doprava celkem | B16: Osvětlení a spotřebiče | R16: Doprava celkem#Osvětlení a spotřebiče
A17: =VLOOKUP("B_101900",TBL_KS_sektory[],2,FALSE) -> Doprava celkem | B17: Technologie | R17: Doprava celkem#Technologie
A18: =VLOOKUP("B_101900",TBL_KS_sektory[],2,FALSE) -> Doprava celkem | B18: Vaření | R18: Doprava celkem#Vaření
A19: =VLOOKUP("B_101900",TBL_KS_sektory[],2,FALSE) -> Doprava celkem | B19: Vytápění | R19: Doprava celkem#Vytápění
B20: Celkem | C20: =SUM(C13:C19) -> 0 | D20: 0 | E20: =SUM(E13:E19) -> 0 | F20: 0 | G20: 0 | H20: 0 | I20: 0 | J20: 0 | K20: 0 | L20: 0 | M20: 0 | N20: 0 | O20: 0 | R20: Doprava celkem#Celkem
A23: Sektor | B23: Účel užití | C23: Tuhá paliva | D23: Kapalná paliva | E23: Plynná paliva | F23: Biomasa | G23: Ostatní paliva | H23: Elektřina | I23: Teplo | J23: OZE mimo biomasu | K23: Letecký benzín | L23: Benzín | M23: Diesel | N23: Letecký petrolej | O23: LPG
A24: =VLOOKUP("B_101931",TBL_KS_sektory[],2,FALSE) -> Mezinárodní letecká doprava | B24: Klimatizace | R24: =$A$24 & "#" & B24 -> Mezinárodní letecká doprava#Klimatizace
A25: =VLOOKUP("B_101931",TBL_KS_sektory[],2,FALSE) -> Mezinárodní letecká doprava | B25: Ohřev vody | R25: Mezinárodní letecká doprava#Ohřev vody
A26: =VLOOKUP("B_101931",TBL_KS_sektory[],2,FALSE) -> Mezinárodní letecká doprava | B26: Ostatní užití | R26: Mezinárodní letecká doprava#Ostatní užití
A27: =VLOOKUP("B_101931",TBL_KS_sektory[],2,FALSE) -> Mezinárodní letecká doprava | B27: Osvětlení a spotřebiče | R27: Mezinárodní letecká doprava#Osvětlení a spotřebiče
A28: =VLOOKUP("B_101931",TBL_KS_sektory[],2,FALSE) -> Mezinárodní letecká doprava | B28: Technologie | R28: Mezinárodní letecká doprava#Technologie
A29: =VLOOKUP("B_101931",TBL_KS_sektory[],2,FALSE) -> Mezinárodní letecká doprava | B29: Vaření | R29: Mezinárodní letecká doprava#Vaření
A30: =VLOOKUP("B_101931",TBL_KS_sektory[],2,FALSE) -> Mezinárodní letecká doprava | B30: Vytápění | R30: Mezinárodní letecká doprava#Vytápění
B31: Celkem | C31: =SUM(C24:C30) -> 0 | D31: 0 | E31: =SUM(E24:E30) -> 0 | F31: 0 | G31: 0 | H31: 0 | I31: 0 | J31: 0 | K31: 0 | L31: 0 | M31: 0 | N31: 0 | O31: 0 | R31: Mezinárodní letecká doprava#Celkem
A34: Sektor | B34: Účel užití | C34: Tuhá paliva | D34: Kapalná paliva | E34: Plynná paliva | F34: Biomasa | G34: Ostatní paliva | H34: Elektřina | I34: Teplo | J34: OZE mimo biomasu | K34: Letecký benzín | L34: Benzín | M34: Diesel | N34: Letecký petrolej | O34: LPG
A35: =VLOOKUP("B_101945",TBL_KS_sektory[],2,FALSE) -> Potrubní doprava | B35: Klimatizace | R35: =$A$35 & "#" & B35 -> Potrubní doprava#Klimatizace
A36: =VLOOKUP("B_101945",TBL_KS_sektory[],2,FALSE) -> Potrubní doprava | B36: Ohřev vody | R36: Potrubní doprava#Ohřev vody
A37: =VLOOKUP("B_101945",TBL_KS_sektory[],2,FALSE) -> Potrubní doprava | B37: Ostatní užití | R37: Potrubní doprava#Ostatní užití
A38: =VLOOKUP("B_101945",TBL_KS_sektory[],2,FALSE) -> Potrubní doprava | B38: Osvětlení a spotřebiče | R38: Potrubní doprava#Osvětlení a spotřebiče
A39: =VLOOKUP("B_101945",TBL_KS_sektory[],2,FALSE) -> Potrubní doprava | B39: Technologie | R39: Potrubní doprava#Technologie
A40: =VLOOKUP("B_101945",TBL_KS_sektory[],2,FALSE) -> Potrubní doprava | B40: Vaření | R40: Potrubní doprava#Vaření
A41: =VLOOKUP("B_101945",TBL_KS_sektory[],2,FALSE) -> Potrubní doprava | B41: Vytápění | R41: Potrubní doprava#Vytápění
B42: Celkem | C42: =SUM(C35:C41) -> 0 | D42: 0 | E42: =SUM(E35:E41) -> 0 | F42: 0 | G42: 0 | H42: 0 | I42: 0 | J42: 0 | K42: 0 | L42: 0 | M42: 0 | N42: 0 | O42: 0 | R42: Potrubní doprava#Celkem
A45: Sektor | B45: Účel užití | C45: Tuhá paliva | D45: Kapalná paliva | E45: Plynná paliva | F45: Biomasa | G45: Ostatní paliva | H45: Elektřina | I45: Teplo | J45: OZE mimo biomasu | K45: Letecký benzín | L45: Benzín | M45: Diesel | N45: Letecký petrolej | O45: LPG
A46: =VLOOKUP("B_101920",TBL_KS_sektory[],2,FALSE) -> Silniční doprava | B46: Klimatizace | R46: =$A$46 & "#" & B46 -> Silniční doprava#Klimatizace
A47: =VLOOKUP("B_101920",TBL_KS_sektory[],2,FALSE) -> Silniční doprava | B47: Ohřev vody | R47: Silniční doprava#Ohřev vody
A48: =VLOOKUP("B_101920",TBL_KS_sektory[],2,FALSE) -> Silniční doprava | B48: Ostatní užití | R48: Silniční doprava#Ostatní užití
A49: =VLOOKUP("B_101920",TBL_KS_sektory[],2,FALSE) -> Silniční doprava | B49: Osvětlení a spotřebiče | R49: Silniční doprava#Osvětlení a spotřebiče
A50: =VLOOKUP("B_101920",TBL_KS_sektory[],2,FALSE) -> Silniční doprava | B50: Technologie | R50: Silniční doprava#Technologie
A51: =VLOOKUP("B_101920",TBL_KS_sektory[],2,FALSE) -> Silniční doprava | B51: Vaření | R51: Silniční doprava#Vaření
A52: =VLOOKUP("B_101920",TBL_KS_sektory[],2,FALSE) -> Silniční doprava | B52: Vytápění | R52: Silniční doprava#Vytápění
B53: Celkem | C53: =SUM(C46:C52) -> 0 | D53: 0 | E53: =SUM(E46:E52) -> 0 | F53: 0 | G53: 0 | H53: 0 | I53: 0 | J53: 0 | K53: 0 | L53: 0 | M53: 0 | N53: 0 | O53: 0 | R53: Silniční doprava#Celkem
A56: Sektor | B56: Účel užití | C56: Tuhá paliva | D56: Kapalná paliva | E56: Plynná paliva | F56: Biomasa | G56: Ostatní paliva | H56: Elektřina | I56: Teplo | J56: OZE mimo biomasu | K56: Letecký benzín | L56: Benzín | M56: Diesel | N56: Letecký petrolej | O56: LPG
A57: =VLOOKUP("B_101932",TBL_KS_sektory[],2,FALSE) -> Vnitrostátní letecká doprava | B57: Klimatizace | R57: =$A$57 & "#" & B57 -> Vnitrostátní letecká doprava#Klimatizace
A58: =VLOOKUP("B_101932",TBL_KS_sektory[],2,FALSE) -> Vnitrostátní letecká doprava | B58: Ohřev vody | R58: Vnitrostátní letecká doprava#Ohřev vody
A59: =VLOOKUP("B_101932",TBL_KS_sektory[],2,FALSE) -> Vnitrostátní letecká doprava | B59: Ostatní užití | R59: Vnitrostátní letecká doprava#Ostatní užití
A60: =VLOOKUP("B_101932",TBL_KS_sektory[],2,FALSE) -> Vnitrostátní letecká doprava | B60: Osvětlení a spotřebiče | R60: Vnitrostátní letecká doprava#Osvětlení a spotřebiče
A61: =VLOOKUP("B_101932",TBL_KS_sektory[],2,FALSE) -> Vnitrostátní letecká doprava | B61: Technologie | R61: Vnitrostátní letecká doprava#Technologie
A62: =VLOOKUP("B_101932",TBL_KS_sektory[],2,FALSE) -> Vnitrostátní letecká doprava | B62: Vaření | R62: Vnitrostátní letecká doprava#Vaření
A63: =VLOOKUP("B_101932",TBL_KS_sektory[],2,FALSE) -> Vnitrostátní letecká doprava | B63: Vytápění | R63: Vnitrostátní letecká doprava#Vytápění
B64: Celkem | C64: =SUM(C57:C63) -> 0 | D64: 0 | E64: =SUM(E57:E63) -> 0 | F64: 0 | G64: 0 | H64: 0 | I64: 0 | J64: 0 | K64: 0 | L64: 0 | M64: 0 | N64: 0 | O64: 0 | R64: Vnitrostátní letecká doprava#Celkem
A67: Sektor | B67: Účel užití | C67: Tuhá paliva | D67: Kapalná paliva | E67: Plynná paliva | F67: Biomasa | G67: Ostatní paliva | H67: Elektřina | I67: Teplo | J67: OZE mimo biomasu | K67: Letecký benzín | L67: Benzín | M67: Diesel | N67: Letecký petrolej | O67: LPG
A68: =VLOOKUP("B_101940",TBL_KS_sektory[],2,FALSE) -> Vnitrostátní lodní doprava | B68: Klimatizace | R68: =$A$68 & "#" & B68 -> Vnitrostátní lodní doprava#Klimatizace
A69: =VLOOKUP("B_101940",TBL_KS_sektory[],2,FALSE) -> Vnitrostátní lodní doprava | B69: Ohřev vody | R69: Vnitrostátní lodní doprava#Ohřev vody
A70: =VLOOKUP("B_101940",TBL_KS_sektory[],2,FALSE) -> Vnitrostátní lodní doprava | B70: Ostatní užití | R70: Vnitrostátní lodní doprava#Ostatní užití
A71: =VLOOKUP("B_101940",TBL_KS_sektory[],2,FALSE) -> Vnitrostátní lodní doprava | B71: Osvětlení a spotřebiče | R71: Vnitrostátní lodní doprava#Osvětlení a spotřebiče
A72: =VLOOKUP("B_101940",TBL_KS_sektory[],2,FALSE) -> Vnitrostátní lodní doprava | B72: Technologie | R72: Vnitrostátní lodní doprava#Technologie
A73: =VLOOKUP("B_101940",TBL_KS_sektory[],2,FALSE) -> Vnitrostátní lodní doprava | B73: Vaření | R73: Vnitrostátní lodní doprava#Vaření
A74: =VLOOKUP("B_101940",TBL_KS_sektory[],2,FALSE) -> Vnitrostátní lodní doprava | B74: Vytápění | R74: Vnitrostátní lodní doprava#Vytápění
B75: Celkem | C75: =SUM(C68:C74) -> 0 | D75: 0 | E75: =SUM(E68:E74) -> 0 | F75: 0 | G75: 0 | H75: 0 | I75: 0 | J75: 0 | K75: 0 | L75: 0 | M75: 0 | N75: 0 | O75: 0 | R75: Vnitrostátní lodní doprava#Celkem
A78: Sektor | B78: Účel užití | C78: Tuhá paliva | D78: Kapalná paliva | E78: Plynná paliva | F78: Biomasa | G78: Ostatní paliva | H78: Elektřina | I78: Teplo | J78: OZE mimo biomasu | K78: Letecký benzín | L78: Benzín | M78: Diesel | N78: Letecký petrolej | O78: LPG
A79: =VLOOKUP("B_101910",TBL_KS_sektory[],2,FALSE) -> Železniční doprava | B79: Klimatizace | R79: =$A$79 & "#" & B79 -> Železniční doprava#Klimatizace
A80: =VLOOKUP("B_101910",TBL_KS_sektory[],2,FALSE) -> Železniční doprava | B80: Ohřev vody | R80: Železniční doprava#Ohřev vody
A81: =VLOOKUP("B_101910",TBL_KS_sektory[],2,FALSE) -> Železniční doprava | B81: Ostatní užití | R81: Železniční doprava#Ostatní užití
A82: =VLOOKUP("B_101910",TBL_KS_sektory[],2,FALSE) -> Železniční doprava | B82: Osvětlení a spotřebiče | R82: Železniční doprava#Osvětlení a spotřebiče
A83: =VLOOKUP("B_101910",TBL_KS_sektory[],2,FALSE) -> Železniční doprava | B83: Technologie | R83: Železniční doprava#Technologie
A84: =VLOOKUP("B_101910",TBL_KS_sektory[],2,FALSE) -> Železniční doprava | B84: Vaření | R84: Železniční doprava#Vaření
A85: =VLOOKUP("B_101910",TBL_KS_sektory[],2,FALSE) -> Železniční doprava | B85: Vytápění | R85: Železniční doprava#Vytápění
B86: Celkem | C86: =SUM(C79:C85) -> 0 | D86: 0 | E86: =SUM(E79:E85) -> 0 | F86: 0 | G86: 0 | H86: 0 | I86: 0 | J86: 0 | K86: 0 | L86: 0 | M86: 0 | N86: 0 | O86: 0 | R86: Železniční doprava#Celkem
A89: Sektor | B89: Účel užití | C89: Tuhá paliva | D89: Kapalná paliva | E89: Plynná paliva | F89: Biomasa | G89: Ostatní paliva | H89: Elektřina | I89: Teplo | J89: OZE mimo biomasu | K89: Letecký benzín | L89: Benzín | M89: Diesel | N89: Letecký petrolej | O89: LPG
A90: =VLOOKUP("B_101800",TBL_KS_sektory[],2,FALSE) -> Průmysl celkem | B90: Klimatizace | R90: =$A$90 & "#" & B90 -> Průmysl celkem#Klimatizace
A91: =VLOOKUP("B_101800",TBL_KS_sektory[],2,FALSE) -> Průmysl celkem | B91: Ohřev vody | R91: Průmysl celkem#Ohřev vody
A92: =VLOOKUP("B_101800",TBL_KS_sektory[],2,FALSE) -> Průmysl celkem | B92: Ostatní užití | R92: Průmysl celkem#Ostatní užití
A93: =VLOOKUP("B_101800",TBL_KS_sektory[],2,FALSE) -> Průmysl celkem | B93: Osvětlení a spotřebiče | R93: Průmysl celkem#Osvětlení a spotřebiče
A94: =VLOOKUP("B_101800",TBL_KS_sektory[],2,FALSE) -> Průmysl celkem | B94: Technologie | R94: Průmysl celkem#Technologie
A95: =VLOOKUP("B_101800",TBL_KS_sektory[],2,FALSE) -> Průmysl celkem | B95: Vaření | R95: Průmysl celkem#Vaření
A96: =VLOOKUP("B_101800",TBL_KS_sektory[],2,FALSE) -> Průmysl celkem | B96: Vytápění | R96: Průmysl celkem#Vytápění
B97: Celkem | C97: =SUM(C90:C96) -> 0 | D97: 0 | E97: =SUM(E90:E96) -> 0 | F97: 0 | G97: 0 | H97: 0 | I97: 0 | J97: 0 | K97: 0 | L97: 0 | M97: 0 | N97: 0 | O97: 0 | R97: Průmysl celkem#Celkem
A100: Sektor | B100: Účel užití | C100: Tuhá paliva | D100: Kapalná paliva | E100: Plynná paliva | F100: Biomasa | G100: Ostatní paliva | H100: Elektřina | I100: Teplo | J100: OZE mimo biomasu | K100: Letecký benzín | L100: Benzín | M100: Diesel | N100: Letecký petrolej | O100: LPG
A101: =VLOOKUP("B_101846",TBL_KS_sektory[],2,FALSE) -> Dopravní prostředky | B101: Klimatizace | R101: =$A$101 & "#" & B101 -> Dopravní prostředky#Klimatizace
A102: =VLOOKUP("B_101846",TBL_KS_sektory[],2,FALSE) -> Dopravní prostředky | B102: Ohřev vody | R102: Dopravní prostředky#Ohřev vody
A103: =VLOOKUP("B_101846",TBL_KS_sektory[],2,FALSE) -> Dopravní prostředky | B103: Ostatní užití | R103: Dopravní prostředky#Ostatní užití
A104: =VLOOKUP("B_101846",TBL_KS_sektory[],2,FALSE) -> Dopravní prostředky | B104: Osvětlení a spotřebiče | R104: Dopravní prostředky#Osvětlení a spotřebiče
A105: =VLOOKUP("B_101846",TBL_KS_sektory[],2,FALSE) -> Dopravní prostředky | B105: Technologie | R105: Dopravní prostředky#Technologie
A106: =VLOOKUP("B_101846",TBL_KS_sektory[],2,FALSE) -> Dopravní prostředky | B106: Vaření | R106: Dopravní prostředky#Vaření
A107: =VLOOKUP("B_101846",TBL_KS_sektory[],2,FALSE) -> Dopravní prostředky | B107: Vytápění | R107: Dopravní prostředky#Vytápění
B108: Celkem | C108: =SUM(C101:C107) -> 0 | D108: 0 | E108: =SUM(E101:E107) -> 0 | F108: 0 | G108: 0 | H108: 0 | I108: 0 | J108: 0 | K108: 0 | L108: 0 | M108: 0 | N108: 0 | O108: 0 | R108: Dopravní prostředky#Celkem
A111: Sektor | B111: Účel užití | C111: Tuhá paliva | D111: Kapalná paliva | E111: Plynná paliva | F111: Biomasa | G111: Ostatní paliva | H111: Elektřina | I111: Teplo | J111: OZE mimo biomasu | K111: Letecký benzín | L111: Benzín | M111: Diesel | N111: Letecký petrolej | O111: LPG
A112: =VLOOKUP("B_101851",TBL_KS_sektory[],2,FALSE) -> Dřevařský průmysl | B112: Klimatizace | R112: =$A$112 & "#" & B112 -> Dřevařský průmysl#Klimatizace
A113: =VLOOKUP("B_101851",TBL_KS_sektory[],2,FALSE) -> Dřevařský průmysl | B113: Ohřev vody | R113: Dřevařský průmysl#Ohřev vody
A114: =VLOOKUP("B_101851",TBL_KS_sektory[],2,FALSE) -> Dřevařský průmysl | B114: Ostatní užití | R114: Dřevařský průmysl#Ostatní užití
A115: =VLOOKUP("B_101851",TBL_KS_sektory[],2,FALSE) -> Dřevařský průmysl | B115: Osvětlení a spotřebiče | R115: Dřevařský průmysl#Osvětlení a spotřebiče
A116: =VLOOKUP("B_101851",TBL_KS_sektory[],2,FALSE) -> Dřevařský průmysl | B116: Technologie | R116: Dřevařský průmysl#Technologie
A117: =VLOOKUP("B_101851",TBL_KS_sektory[],2,FALSE) -> Dřevařský průmysl | B117: Vaření | R117: Dřevařský průmysl#Vaření
A118: =VLOOKUP("B_101851",TBL_KS_sektory[],2,FALSE) -> Dřevařský průmysl | B118: Vytápění | R118: Dřevařský průmysl#Vytápění
B119: Celkem | C119: =SUM(C112:C118) -> 0 | D119: 0 | E119: =SUM(E112:E118) -> 0 | F119: 0 | G119: 0 | H119: 0 | I119: 0 | J119: 0 | K119: 0 | L119: 0 | M119: 0 | N119: 0 | O119: 0 | R119: Dřevařský průmysl#Celkem
A122: Sektor | B122: Účel užití | C122: Tuhá paliva | D122: Kapalná paliva | E122: Plynná paliva | F122: Biomasa | G122: Ostatní paliva | H122: Elektřina | I122: Teplo | J122: OZE mimo biomasu | K122: Letecký benzín | L122: Benzín | M122: Diesel | N122: Letecký petrolej | O122: LPG
A123: =VLOOKUP("B_101815",TBL_KS_sektory[],2,FALSE) -> Chemický a petrochemický průmysl | B123: Klimatizace | R123: =$A$123 & "#" & B123 -> Chemický a petrochemický průmysl#Klimatizace
A124: =VLOOKUP("B_101815",TBL_KS_sektory[],2,FALSE) -> Chemický a petrochemický průmysl | B124: Ohřev vody | R124: Chemický a petrochemický průmysl#Ohřev vody
A125: =VLOOKUP("B_101815",TBL_KS_sektory[],2,FALSE) -> Chemický a petrochemický průmysl | B125: Ostatní užití | R125: Chemický a petrochemický průmysl#Ostatní užití
A126: =VLOOKUP("B_101815",TBL_KS_sektory[],2,FALSE) -> Chemický a petrochemický průmysl | B126: Osvětlení a spotřebiče | R126: Chemický a petrochemický průmysl#Osvětlení a spotřebiče
A127: =VLOOKUP("B_101815",TBL_KS_sektory[],2,FALSE) -> Chemický a petrochemický průmysl | B127: Technologie | R127: Chemický a petrochemický průmysl#Technologie
A128: =VLOOKUP("B_101815",TBL_KS_sektory[],2,FALSE) -> Chemický a petrochemický průmysl | B128: Vaření | R128: Chemický a petrochemický průmysl#Vaření
A129: =VLOOKUP("B_101815",TBL_KS_sektory[],2,FALSE) -> Chemický a petrochemický průmysl | B129: Vytápění | R129: Chemický a petrochemický průmysl#Vytápění
B130: Celkem | C130: =SUM(C123:C129) -> 0 | D130: 0 | E130: =SUM(E123:E129) -> 0 | F130: 0 | G130: 0 | H130: 0 | I130: 0 | J130: 0 | K130: 0 | L130: 0 | M130: 0 | N130: 0 | O130: 0 | R130: Chemický a petrochemický průmysl#Celkem
A133: Sektor | B133: Účel užití | C133: Tuhá paliva | D133: Kapalná paliva | E133: Plynná paliva | F133: Biomasa | G133: Ostatní paliva | H133: Elektřina | I133: Teplo | J133: OZE mimo biomasu | K133: Letecký benzín | L133: Benzín | M133: Diesel | N133: Letecký petrolej | O133: LPG
A134: =VLOOKUP("B_101810",TBL_KS_sektory[],2,FALSE) -> Metalurgie neželezných kovů | B134: Klimatizace | R134: =$A$134 & "#" & B134 -> Metalurgie neželezných kovů#Klimatizace
A135: =VLOOKUP("B_101810",TBL_KS_sektory[],2,FALSE) -> Metalurgie neželezných kovů | B135: Ohřev vody | R135: Metalurgie neželezných kovů#Ohřev vody
A136: =VLOOKUP("B_101810",TBL_KS_sektory[],2,FALSE) -> Metalurgie neželezných kovů | B136: Ostatní užití | R136: Metalurgie neželezných kovů#Ostatní užití
A137: =VLOOKUP("B_101810",TBL_KS_sektory[],2,FALSE) -> Metalurgie neželezných kovů | B137: Osvětlení a spotřebiče | R137: Metalurgie neželezných kovů#Osvětlení a spotřebiče
A138: =VLOOKUP("B_101810",TBL_KS_sektory[],2,FALSE) -> Metalurgie neželezných kovů | B138: Technologie | R138: Metalurgie neželezných kovů#Technologie
A139: =VLOOKUP("B_101810",TBL_KS_sektory[],2,FALSE) -> Metalurgie neželezných kovů | B139: Vaření | R139: Metalurgie neželezných kovů#Vaření
A140: =VLOOKUP("B_101810",TBL_KS_sektory[],2,FALSE) -> Metalurgie neželezných kovů | B140: Vytápění | R140: Metalurgie neželezných kovů#Vytápění
B141: Celkem | C141: =SUM(C134:C140) -> 0 | D141: 0 | E141: =SUM(E134:E140) -> 0 | F141: 0 | G141: 0 | H141: 0 | I141: 0 | J141: 0 | K141: 0 | L141: 0 | M141: 0 | N141: 0 | O141: 0 | R141: Metalurgie neželezných kovů#Celkem
A144: Sektor | B144: Účel užití | C144: Tuhá paliva | D144: Kapalná paliva | E144: Plynná paliva | F144: Biomasa | G144: Ostatní paliva | H144: Elektřina | I144: Teplo | J144: OZE mimo biomasu | K144: Letecký benzín | L144: Benzín | M144: Diesel | N144: Letecký petrolej | O144: LPG
A145: =VLOOKUP("B_101805",TBL_KS_sektory[],2,FALSE) -> Metalurgie železných kovů | B145: Klimatizace | R145: =$A$145 & "#" & B145 -> Metalurgie železných kovů#Klimatizace
A146: =VLOOKUP("B_101805",TBL_KS_sektory[],2,FALSE) -> Metalurgie železných kovů | B146: Ohřev vody | C146: 0.02 | E146: 0.02 | H146: 0.02 | I146: 0.3 | R146: Metalurgie železných kovů#Ohřev vody
A147: =VLOOKUP("B_101805",TBL_KS_sektory[],2,FALSE) -> Metalurgie železných kovů | B147: Ostatní užití | R147: Metalurgie železných kovů#Ostatní užití
A148: =VLOOKUP("B_101805",TBL_KS_sektory[],2,FALSE) -> Metalurgie železných kovů | B148: Osvětlení a spotřebiče | H148: 0.05 | R148: Metalurgie železných kovů#Osvětlení a spotřebiče
A149: =VLOOKUP("B_101805",TBL_KS_sektory[],2,FALSE) -> Metalurgie železných kovů | B149: Technologie | C149: 0.95 | E149: 0.95 | H149: 0.9 | I149: 0.2 | R149: Metalurgie železných kovů#Technologie
A150: =VLOOKUP("B_101805",TBL_KS_sektory[],2,FALSE) -> Metalurgie železných kovů | B150: Vaření | R150: Metalurgie železných kovů#Vaření
A151: =VLOOKUP("B_101805",TBL_KS_sektory[],2,FALSE) -> Metalurgie železných kovů | B151: Vytápění | C151: 0.03 | E151: 0.03 | H151: 0.03 | I151: 0.5 | R151: Metalurgie železných kovů#Vytápění
B152: Celkem | C152: =SUM(C145:C151) -> 1 | D152: 0 | E152: =SUM(E145:E151) -> 1 | F152: 0 | G152: 0 | H152: 1 | I152: 1 | J152: 0 | K152: 0 | L152: 0 | M152: 0 | N152: 0 | O152: 0 | R152: Metalurgie železných kovů#Celkem
A155: Sektor | B155: Účel užití | C155: Tuhá paliva | D155: Kapalná paliva | E155: Plynná paliva | F155: Biomasa | G155: Ostatní paliva | H155: Elektřina | I155: Teplo | J155: OZE mimo biomasu | K155: Letecký benzín | L155: Benzín | M155: Diesel | N155: Letecký petrolej | O155: LPG
A156: =VLOOKUP("B_101820",TBL_KS_sektory[],2,FALSE) -> Nekové materiály | B156: Klimatizace | R156: =$A$156 & "#" & B156 -> Nekové materiály#Klimatizace
A157: =VLOOKUP("B_101820",TBL_KS_sektory[],2,FALSE) -> Nekové materiály | B157: Ohřev vody | R157: Nekové materiály#Ohřev vody
A158: =VLOOKUP("B_101820",TBL_KS_sektory[],2,FALSE) -> Nekové materiály | B158: Ostatní užití | R158: Nekové materiály#Ostatní užití
A159: =VLOOKUP("B_101820",TBL_KS_sektory[],2,FALSE) -> Nekové materiály | B159: Osvětlení a spotřebiče | R159: Nekové materiály#Osvětlení a spotřebiče
A160: =VLOOKUP("B_101820",TBL_KS_sektory[],2,FALSE) -> Nekové materiály | B160: Technologie | R160: Nekové materiály#Technologie
A161: =VLOOKUP("B_101820",TBL_KS_sektory[],2,FALSE) -> Nekové materiály | B161: Vaření | R161: Nekové materiály#Vaření
A162: =VLOOKUP("B_101820",TBL_KS_sektory[],2,FALSE) -> Nekové materiály | B162: Vytápění | R162: Nekové materiály#Vytápění
B163: Celkem | C163: =SUM(C156:C162) -> 0 | D163: 0 | E163: =SUM(E156:E162) -> 0 | F163: 0 | G163: 0 | H163: 0 | I163: 0 | J163: 0 | K163: 0 | L163: 0 | M163: 0 | N163: 0 | O163: 0 | R163: Nekové materiály#Celkem
A166: Sektor | B166: Účel užití | C166: Tuhá paliva | D166: Kapalná paliva | E166: Plynná paliva | F166: Biomasa | G166: Ostatní paliva | H166: Elektřina | I166: Teplo | J166: OZE mimo biomasu | K166: Letecký benzín | L166: Benzín | M166: Diesel | N166: Letecký petrolej | O166: LPG
A167: =VLOOKUP("B_101853",TBL_KS_sektory[],2,FALSE) -> Ostatní průmysl | B167: Klimatizace | R167: =$A$167 & "#" & B167 -> Ostatní průmysl#Klimatizace
A168: =VLOOKUP("B_101853",TBL_KS_sektory[],2,FALSE) -> Ostatní průmysl | B168: Ohřev vody | R168: Ostatní průmysl#Ohřev vody
A169: =VLOOKUP("B_101853",TBL_KS_sektory[],2,FALSE) -> Ostatní průmysl | B169: Ostatní užití | R169: Ostatní průmysl#Ostatní užití
A170: =VLOOKUP("B_101853",TBL_KS_sektory[],2,FALSE) -> Ostatní průmysl | B170: Osvětlení a spotřebiče | R170: Ostatní průmysl#Osvětlení a spotřebiče
A171: =VLOOKUP("B_101853",TBL_KS_sektory[],2,FALSE) -> Ostatní průmysl | B171: Technologie | R171: Ostatní průmysl#Technologie
A172: =VLOOKUP("B_101853",TBL_KS_sektory[],2,FALSE) -> Ostatní průmysl | B172: Vaření | R172: Ostatní průmysl#Vaření
A173: =VLOOKUP("B_101853",TBL_KS_sektory[],2,FALSE) -> Ostatní průmysl | B173: Vytápění | R173: Ostatní průmysl#Vytápění
B174: Celkem | C174: =SUM(C167:C173) -> 0 | D174: 0 | E174: =SUM(E167:E173) -> 0 | F174: 0 | G174: 0 | H174: 0 | I174: 0 | J174: 0 | K174: 0 | L174: 0 | M174: 0 | N174: 0 | O174: 0 | R174: Ostatní průmysl#Celkem
A177: Sektor | B177: Účel užití | C177: Tuhá paliva | D177: Kapalná paliva | E177: Plynná paliva | F177: Biomasa | G177: Ostatní paliva | H177: Elektřina | I177: Teplo | J177: OZE mimo biomasu | K177: Letecký benzín | L177: Benzín | M177: Diesel | N177: Letecký petrolej | O177: LPG
A178: =VLOOKUP("B_101840",TBL_KS_sektory[],2,FALSE) -> Papír a celulóza | B178: Klimatizace | R178: =$A$178 & "#" & B178 -> Papír a celulóza#Klimatizace
A179: =VLOOKUP("B_101840",TBL_KS_sektory[],2,FALSE) -> Papír a celulóza | B179: Ohřev vody | R179: Papír a celulóza#Ohřev vody
A180: =VLOOKUP("B_101840",TBL_KS_sektory[],2,FALSE) -> Papír a celulóza | B180: Ostatní užití | R180: Papír a celulóza#Ostatní užití
A181: =VLOOKUP("B_101840",TBL_KS_sektory[],2,FALSE) -> Papír a celulóza | B181: Osvětlení a spotřebiče | R181: Papír a celulóza#Osvětlení a spotřebiče
A182: =VLOOKUP("B_101840",TBL_KS_sektory[],2,FALSE) -> Papír a celulóza | B182: Technologie | R182: Papír a celulóza#Technologie
A183: =VLOOKUP("B_101840",TBL_KS_sektory[],2,FALSE) -> Papír a celulóza | B183: Vaření | R183: Papír a celulóza#Vaření
A184: =VLOOKUP("B_101840",TBL_KS_sektory[],2,FALSE) -> Papír a celulóza | B184: Vytápění | R184: Papír a celulóza#Vytápění
B185: Celkem | C185: =SUM(C178:C184) -> 0 | D185: 0 | E185: =SUM(E178:E184) -> 0 | F185: 0 | G185: 0 | H185: 0 | I185: 0 | J185: 0 | K185: 0 | L185: 0 | M185: 0 | N185: 0 | O185: 0 | R185: Papír a celulóza#Celkem
A188: Sektor | B188: Účel užití | C188: Tuhá paliva | D188: Kapalná paliva | E188: Plynná paliva | F188: Biomasa | G188: Ostatní paliva | H188: Elektřina | I188: Teplo | J188: OZE mimo biomasu | K188: Letecký benzín | L188: Benzín | M188: Diesel | N188: Letecký petrolej | O188: LPG
A189: =VLOOKUP("B_101830",TBL_KS_sektory[],2,FALSE) -> Potraviny a tabák | B189: Klimatizace | R189: =$A$189 & "#" & B189 -> Potraviny a tabák#Klimatizace
A190: =VLOOKUP("B_101830",TBL_KS_sektory[],2,FALSE) -> Potraviny a tabák | B190: Ohřev vody | R190: Potraviny a tabák#Ohřev vody
A191: =VLOOKUP("B_101830",TBL_KS_sektory[],2,FALSE) -> Potraviny a tabák | B191: Ostatní užití | R191: Potraviny a tabák#Ostatní užití
A192: =VLOOKUP("B_101830",TBL_KS_sektory[],2,FALSE) -> Potraviny a tabák | B192: Osvětlení a spotřebiče | R192: Potraviny a tabák#Osvětlení a spotřebiče
A193: =VLOOKUP("B_101830",TBL_KS_sektory[],2,FALSE) -> Potraviny a tabák | B193: Technologie | R193: Potraviny a tabák#Technologie
A194: =VLOOKUP("B_101830",TBL_KS_sektory[],2,FALSE) -> Potraviny a tabák | B194: Vaření | R194: Potraviny a tabák#Vaření
A195: =VLOOKUP("B_101830",TBL_KS_sektory[],2,FALSE) -> Potraviny a tabák | B195: Vytápění | R195: Potraviny a tabák#Vytápění
B196: Celkem | C196: =SUM(C189:C195) -> 0 | D196: 0 | E196: =SUM(E189:E195) -> 0 | F196: 0 | G196: 0 | H196: 0 | I196: 0 | J196: 0 | K196: 0 | L196: 0 | M196: 0 | N196: 0 | O196: 0 | R196: Potraviny a tabák#Celkem
A199: Sektor | B199: Účel užití | C199: Tuhá paliva | D199: Kapalná paliva | E199: Plynná paliva | F199: Biomasa | G199: Ostatní paliva | H199: Elektřina | I199: Teplo | J199: OZE mimo biomasu | K199: Letecký benzín | L199: Benzín | M199: Diesel | N199: Letecký petrolej | O199: LPG
A200: =VLOOKUP("B_101307",TBL_KS_sektory[],2,FALSE) -> Rafinérie | B200: Klimatizace | R200: =$A$200 & "#" & B200 -> Rafinérie#Klimatizace
A201: =VLOOKUP("B_101307",TBL_KS_sektory[],2,FALSE) -> Rafinérie | B201: Ohřev vody | R201: Rafinérie#Ohřev vody
A202: =VLOOKUP("B_101307",TBL_KS_sektory[],2,FALSE) -> Rafinérie | B202: Ostatní užití | R202: Rafinérie#Ostatní užití
A203: =VLOOKUP("B_101307",TBL_KS_sektory[],2,FALSE) -> Rafinérie | B203: Osvětlení a spotřebiče | R203: Rafinérie#Osvětlení a spotřebiče
A204: =VLOOKUP("B_101307",TBL_KS_sektory[],2,FALSE) -> Rafinérie | B204: Technologie | D204: 1 | E204: 1 | H204: 1 | I204: 1 | R204: Rafinérie#Technologie
A205: =VLOOKUP("B_101307",TBL_KS_sektory[],2,FALSE) -> Rafinérie | B205: Vaření | R205: Rafinérie#Vaření
A206: =VLOOKUP("B_101307",TBL_KS_sektory[],2,FALSE) -> Rafinérie | B206: Vytápění | R206: Rafinérie#Vytápění
B207: Celkem | C207: =SUM(C200:C206) -> 0 | D207: 1 | E207: =SUM(E200:E206) -> 1 | F207: 0 | G207: 0 | H207: 1 | I207: 1 | J207: 0 | K207: 0 | L207: 0 | M207: 0 | N207: 0 | O207: 0 | R207: Rafinérie#Celkem
A210: Sektor | B210: Účel užití | C210: Tuhá paliva | D210: Kapalná paliva | E210: Plynná paliva | F210: Biomasa | G210: Ostatní paliva | H210: Elektřina | I210: Teplo | J210: OZE mimo biomasu | K210: Letecký benzín | L210: Benzín | M210: Diesel | N210: Letecký petrolej | O210: LPG
A211: =VLOOKUP("B_101852",TBL_KS_sektory[],2,FALSE) -> Stavebnictví | B211: Klimatizace | R211: =$A$211 & "#" & B211 -> Stavebnictví#Klimatizace
A212: =VLOOKUP("B_101852",TBL_KS_sektory[],2,FALSE) -> Stavebnictví | B212: Ohřev vody | C212: 0.3 | E212: 0.29 | F212: 0.3 | H212: 0.05 | I212: 0.3 | R212: Stavebnictví#Ohřev vody
A213: =VLOOKUP("B_101852",TBL_KS_sektory[],2,FALSE) -> Stavebnictví | B213: Ostatní užití | R213: Stavebnictví#Ostatní užití
A214: =VLOOKUP("B_101852",TBL_KS_sektory[],2,FALSE) -> Stavebnictví | B214: Osvětlení a spotřebiče | H214: 0.1 | R214: Stavebnictví#Osvětlení a spotřebiče
A215: =VLOOKUP("B_101852",TBL_KS_sektory[],2,FALSE) -> Stavebnictví | B215: Technologie | D215: 1 | H215: 0.8 | R215: Stavebnictví#Technologie
A216: =VLOOKUP("B_101852",TBL_KS_sektory[],2,FALSE) -> Stavebnictví | B216: Vaření | E216: 0.01 | R216: Stavebnictví#Vaření
A217: =VLOOKUP("B_101852",TBL_KS_sektory[],2,FALSE) -> Stavebnictví | B217: Vytápění | C217: 0.7 | E217: 0.7 | F217: 0.7 | H217: 0.05 | I217: 0.7 | R217: Stavebnictví#Vytápění
B218: Celkem | C218: =SUM(C211:C217) -> 1 | D218: 1 | E218: =SUM(E211:E217) -> 1 | F218: 1 | G218: 0 | H218: 1 | I218: 1 | J218: 0 | K218: 0 | L218: 0 | M218: 0 | N218: 0 | O218: 0 | R218: Stavebnictví#Celkem
A221: Sektor | B221: Účel užití | C221: Tuhá paliva | D221: Kapalná paliva | E221: Plynná paliva | F221: Biomasa | G221: Ostatní paliva | H221: Elektřina | I221: Teplo | J221: OZE mimo biomasu | K221: Letecký benzín | L221: Benzín | M221: Diesel | N221: Letecký petrolej | O221: LPG
A222: =VLOOKUP("B_101847",TBL_KS_sektory[],2,FALSE) -> Strojírenství | B222: Klimatizace | R222: =$A$222 & "#" & B222 -> Strojírenství#Klimatizace
A223: =VLOOKUP("B_101847",TBL_KS_sektory[],2,FALSE) -> Strojírenství | B223: Ohřev vody | R223: Strojírenství#Ohřev vody
A224: =VLOOKUP("B_101847",TBL_KS_sektory[],2,FALSE) -> Strojírenství | B224: Ostatní užití | R224: Strojírenství#Ostatní užití
A225: =VLOOKUP("B_101847",TBL_KS_sektory[],2,FALSE) -> Strojírenství | B225: Osvětlení a spotřebiče | R225: Strojírenství#Osvětlení a spotřebiče
A226: =VLOOKUP("B_101847",TBL_KS_sektory[],2,FALSE) -> Strojírenství | B226: Technologie | R226: Strojírenství#Technologie
A227: =VLOOKUP("B_101847",TBL_KS_sektory[],2,FALSE) -> Strojírenství | B227: Vaření | R227: Strojírenství#Vaření
A228: =VLOOKUP("B_101847",TBL_KS_sektory[],2,FALSE) -> Strojírenství | B228: Vytápění | R228: Strojírenství#Vytápění
B229: Celkem | C229: =SUM(C222:C228) -> 0 | D229: 0 | E229: =SUM(E222:E228) -> 0 | F229: 0 | G229: 0 | H229: 0 | I229: 0 | J229: 0 | K229: 0 | L229: 0 | M229: 0 | N229: 0 | O229: 0 | R229: Strojírenství#Celkem
A232: Sektor | B232: Účel užití | C232: Tuhá paliva | D232: Kapalná paliva | E232: Plynná paliva | F232: Biomasa | G232: Ostatní paliva | H232: Elektřina | I232: Teplo | J232: OZE mimo biomasu | K232: Letecký benzín | L232: Benzín | M232: Diesel | N232: Letecký petrolej | O232: LPG
A233: =VLOOKUP("B_101835",TBL_KS_sektory[],2,FALSE) -> Textilní a kožedělný průmysl | B233: Klimatizace | R233: =$A$233 & "#" & B233 -> Textilní a kožedělný průmysl#Klimatizace
A234: =VLOOKUP("B_101835",TBL_KS_sektory[],2,FALSE) -> Textilní a kožedělný průmysl | B234: Ohřev vody | R234: Textilní a kožedělný průmysl#Ohřev vody
A235: =VLOOKUP("B_101835",TBL_KS_sektory[],2,FALSE) -> Textilní a kožedělný průmysl | B235: Ostatní užití | R235: Textilní a kožedělný průmysl#Ostatní užití
A236: =VLOOKUP("B_101835",TBL_KS_sektory[],2,FALSE) -> Textilní a kožedělný průmysl | B236: Osvětlení a spotřebiče | R236: Textilní a kožedělný průmysl#Osvětlení a spotřebiče
A237: =VLOOKUP("B_101835",TBL_KS_sektory[],2,FALSE) -> Textilní a kožedělný průmysl | B237: Technologie | R237: Textilní a kožedělný průmysl#Technologie
A238: =VLOOKUP("B_101835",TBL_KS_sektory[],2,FALSE) -> Textilní a kožedělný průmysl | B238: Vaření | R238: Textilní a kožedělný průmysl#Vaření
A239: =VLOOKUP("B_101835",TBL_KS_sektory[],2,FALSE) -> Textilní a kožedělný průmysl | B239: Vytápění | R239: Textilní a kožedělný průmysl#Vytápění
B240: Celkem | C240: =SUM(C233:C239) -> 0 | D240: 0 | E240: =SUM(E233:E239) -> 0 | F240: 0 | G240: 0 | H240: 0 | I240: 0 | J240: 0 | K240: 0 | L240: 0 | M240: 0 | N240: 0 | O240: 0 | R240: Textilní a kožedělný průmysl#Celkem
A243: Sektor | B243: Účel užití | C243: Tuhá paliva | D243: Kapalná paliva | E243: Plynná paliva | F243: Biomasa | G243: Ostatní paliva | H243: Elektřina | I243: Teplo | J243: OZE mimo biomasu | K243: Letecký benzín | L243: Benzín | M243: Diesel | N243: Letecký petrolej | O243: LPG
A244: =VLOOKUP("B_101825",TBL_KS_sektory[],2,FALSE) -> Zpracování tuhých paliv | B244: Klimatizace | R244: =$A$244 & "#" & B244 -> Zpracování tuhých paliv#Klimatizace
... 25 more rows

Sheet Emis_Fakt_NIR
D1: solid | E1: liquid | F1: gas | G1: biomass | H1: other | I1: elec | J1: heat | K1: RES | L1: aviationgasoline | M1: gasoline | N1: diesel | O1: jetkerosene | P1: LPG
C3: Rok | D3: =Emisní_faktory!B1 -> 2015
C4: Poslední NIR | D4: =MAX(NIR_roky!$1:$1) -> 2015 | F4: Emisní faktory tohoto roku se použijí pro výhled.
C6: Emisní faktory z NIR CO2 [t/TJ] | D6: Tuhá paliva | E6: Kapalná paliva | F6: Plynná paliva | G6: Biomasa | H6: Ostatní paliva | I6: Elektřina | J6: Teplo | K6: OZE mimo biomasu | L6: Letecký benzín | M6: Benzín | N6: Diesel | O6: Letecký petrolej | P6: LPG
A7: residential | C7: Domácnosti | D7: =IF(ISNUMBER(IFERROR(INDEX(NIR!$B$5:$B$287,MATCH($A7 & "#" & D$1,NIR!$H$5:$H$287,0)),0)),IFERROR(INDEX(NIR!$B$5:$B$287,MATCH($A7 & "#" & D$1,NIR!$H$5:$H$287,0)),0),0) -> 96.63184357 | E7: =IF(ISNUMBER(IFERROR(INDEX(NIR!$B$5:$B$287,MATCH($A7 & "#" & E$1,NIR!$H$5:$H$287,0)),0)),IFERROR(INDEX(NIR!$B$5:$B$287,MATCH($A7 & "#" & E$1,NIR!$H$5:$H$287,0)),0),0) -> 65.85652054 | F7: =IF(ISNUMBER(IFERROR(INDEX(NIR!$B$5:$B$287,MATCH($A7 & "#" & F$1,NIR!$H$5:$H$287,0)),0)),IFERROR(INDEX(NIR!$B$5:$B$287,MATCH($A7 & "#" & F$1,NIR!$H$5:$H$287,0)),0),0) -> 55.42024357 | G7: 0 | H7: =IF(ISNUMBER(IFERROR(INDEX(NIR!$B$5:$B$287,MATCH($A7 & "#" & H$1,NIR!$H$5:$H$287,0)),0)),IFERROR(INDEX(NIR!$B$5:$B$287,MATCH($A7 & "#" & H$1,NIR!$H$5:$H$287,0)),0),0) -> 0 | I7: =EF_E_a_T!$B$33 -> 175.2955253 | J7: =EF_E_a_T!$E$33 -> 92.72279743 | K7: 0 | L7: =IF(ISNUMBER(IFERROR(INDEX(NIR!$B$5:$B$287,MATCH($A7 & "#" & L$1,NIR!$H$5:$H$287,0)),0)),IFERROR(INDEX(NIR!$B$5:$B$287,MATCH($A7 & "#" & L$1,NIR!$H$5:$H$287,0)),0),0) -> 0 | M7: =IF(ISNUMBER(IFERROR(INDEX(NIR!$B$5:$B$287,MATCH($A7 & "#" & M$1,NIR!$H$5:$H$287,0)),0)),IFERROR(INDEX(NIR!$B$5:$B$287,MATCH($A7 & "#" & M$1,NIR!$H$5:$H$287,0)),0),0) -> 0 | N7: =IF(ISNUMBER(IFERROR(INDEX(NIR!$B$5:$B$287,MATCH($A7 & "#" & N$1,NIR!$H$5:$H$287,0)),0)),IFERROR(INDEX(NIR!$B$5:$B$287,MATCH($A7 & "#" & N$1,NIR!$H$5:$H$287,0)),0),0) -> 0 | O7: =IF(ISNUMBER(IFERROR(INDEX(NIR!$B$5:$B$287,MATCH($A7 & "#" & O$1,NIR!$H$5:$H$287,0)),0)),IFERROR(INDEX(NIR!$B$5:$B$287,MATCH($A7 & "#" & O$1,NIR!$H$5:$H$287,0)),0),0) -> 0 | P7: =IF(ISNUMBER(IFERROR(INDEX(NIR!$B$5:$B$287,MATCH($A7 & "#" & P$1,NIR!$H$5:$H$287,0)),0)),IFERROR(INDEX(NIR!$B$5:$B$287,MATCH($A7 & "#" & P$1,NIR!$H$5:$H$287,0)),0),0) -> 0
A8: services | C8: Služby | D8: =IF(ISNUMBER(IFERROR(INDEX(NIR!$B$5:$B$287,MATCH($A8 & "#" & D$1,NIR!$H$5:$H$287,0)),0)),IFERROR(INDEX(NIR!$B$5:$B$287,MATCH($A8 & "#" & D$1,NIR!$H$5:$H$287,0)),0),0) -> 98.63712225 | E8: =IF(ISNUMBER(IFERROR(INDEX(NIR!$B$5:$B$287,MATCH($A8 & "#" & E$1,NIR!$H$5:$H$287,0)),0)),IFERROR(INDEX(NIR!$B$5:$B$287,MATCH($A8 & "#" & E$1,NIR!$H$5:$H$287,0)),0),0) -> 72.54278097 | F8: =IF(ISNUMBER(IFERROR(INDEX(NIR!$B$5:$B$287,MATCH($A8 & "#" & F$1,NIR!$H$5:$H$287,0)),0)),IFERROR(INDEX(NIR!$B$5:$B$287,MATCH($A8 & "#" & F$1,NIR!$H$5:$H$287,0)),0),0) -> 55.42024357 | G8: 0 | H8: =IF(ISNUMBER(IFERROR(INDEX(NIR!$B$5:$B$287,MATCH($A8 & "#" & H$1,NIR!$H$5:$H$287,0)),0)),IFERROR(INDEX(NIR!$B$5:$B$287,MATCH($A8 & "#" & H$1,NIR!$H$5:$H$287,0)),0),0) -> 0 | I8: =EF_E_a_T!$B$33 -> 175.2955253 | J8: =EF_E_a_T!$E$33 -> 92.72279743 | K8: 0 | L8: =IF(ISNUMBER(IFERROR(INDEX(NIR!$B$5:$B$287,MATCH($A8 & "#" & L$1,NIR!$H$5:$H$287,0)),0)),IFERROR(INDEX(NIR!$B$5:$B$287,MATCH($A8 & "#" & L$1,NIR!$H$5:$H$287,0)),0),0) -> 0 | M8: =IF(ISNUMBER(IFERROR(INDEX(NIR!$B$5:$B$287,MATCH($A8 & "#" & M$1,NIR!$H$5:$H$287,0)),0)),IFERROR(INDEX(NIR!$B$5:$B$287,MATCH($A8 & "#" & M$1,NIR!$H$5:$H$287,0)),0),0) -> 0 | N8: =IF(ISNUMBER(IFERROR(INDEX(NIR!$B$5:$B$287,MATCH($A8 & "#" & N$1,NIR!$H$5:$H$287,0)),0)),IFERROR(INDEX(NIR!$B$5:$B$287,MATCH($A8 & "#" & N$1,NIR!$H$5:$H$287,0)),0),0) -> 0 | O8: =IF(ISNUMBER(IFERROR(INDEX(NIR!$B$5:$B$287,MATCH($A8 & "#" & O$1,NIR!$H$5:$H$287,0)),0)),IFERROR(INDEX(NIR!$B$5:$B$287,MATCH($A8 & "#" & O$1,NIR!$H$5:$H$287,0)),0),0) -> 0 | P8: =IF(ISNUMBER(IFERROR(INDEX(NIR!$B$5:$B$287,MATCH($A8 & "#" & P$1,NIR!$H$5:$H$287,0)),0)),IFERROR(INDEX(NIR!$B$5:$B$287,MATCH($A8 & "#" & P$1,NIR!$H$5:$H$287,0)),0),0) -> 0
A9: transport | C9: Doprava celkem | D9: =IF(ISNUMBER(IFERROR(INDEX(NIR!$B$5:$B$287,MATCH($A9 & "#" & D$1,NIR!$H$5:$H$287,0)),0)),IFERROR(INDEX(NIR!$B$5:$B$287,MATCH($A9 & "#" & D$1,NIR!$H$5:$H$287,0)),0),0) -> 0 | E9: =IF(ISNUMBER(IFERROR(INDEX(NIR!$B$5:$B$287,MATCH($A9 & "#" & E$1,NIR!$H$5:$H$287,0)),0)),IFERROR(INDEX(NIR!$B$5:$B$287,MATCH($A9 & "#" & E$1,NIR!$H$5:$H$287,0)),0),0) -> 72.62001345 | F9: =IF(ISNUMBER(IFERROR(INDEX(NIR!$B$5:$B$287,MATCH($A9 & "#" & F$1,NIR!$H$5:$H$287,0)),0)),IFERROR(INDEX(NIR!$B$5:$B$287,MATCH($A9 & "#" & F$1,NIR!$H$5:$H$287,0)),0),0) -> 52.43203384 | G9: 0 | H9: =IF(ISNUMBER(IFERROR(INDEX(NIR!$B$5:$B$287,MATCH($A9 & "#" & H$1,NIR!$H$5:$H$287,0)),0)),IFERROR(INDEX(NIR!$B$5:$B$287,MATCH($A9 & "#" & H$1,NIR!$H$5:$H$287,0)),0),0) -> 0 | I9: =EF_E_a_T!$B$33 -> 175.2955253 | J9: 0 | K9: 0 | L9: =IF(ISNUMBER(IFERROR(INDEX(NIR!$B$5:$B$287,MATCH($A9 & "#" & L$1,NIR!$H$5:$H$287,0)),0)),IFERROR(INDEX(NIR!$B$5:$B$287,MATCH($A9 & "#" & L$1,NIR!$H$5:$H$287,0)),0),0) -> 0 | M9: =IF(ISNUMBER(IFERROR(INDEX(NIR!$B$5:$B$287,MATCH($A9 & "#" & M$1,NIR!$H$5:$H$287,0)),0)),IFERROR(INDEX(NIR!$B$5:$B$287,MATCH($A9 & "#" & M$1,NIR!$H$5:$H$287,0)),0),0) -> 0 | N9: =IF(ISNUMBER(IFERROR(INDEX(NIR!$B$5:$B$287,MATCH($A9 & "#" & N$1,NIR!$H$5:$H$287,0)),0)),IFERROR(INDEX(NIR!$B$5:$B$287,MATCH($A9 & "#" & N$1,NIR!$H$5:$H$287,0)),0),0) -> 0 | O9: =IF(ISNUMBER(IFERROR(INDEX(NIR!$B$5:$B$287,MATCH($A9 & "#" & O$1,NIR!$H$5:$H$287,0)),0)),IFERROR(INDEX(NIR!$B$5:$B$287,MATCH($A9 & "#" & O$1,NIR!$H$5:$H$287,0)),0),0) -> 0 | P9: =IF(ISNUMBER(IFERROR(INDEX(NIR!$B$5:$B$287,MATCH($A9 & "#" & P$1,NIR!$H$5:$H$287,0)),0)),IFERROR(INDEX(NIR!$B$5:$B$287,MATCH($A9 & "#" & P$1,NIR!$H$5:$H$287,0)),0),0) -> 0
A10: rail | C10: Železnice | D10: =IF(ISNUMBER(IFERROR(INDEX(NIR!$B$5:$B$287,MATCH($A10 & "#" & D$1,NIR!$H$5:$H$287,0)),0)),IFERROR(INDEX(NIR!$B$5:$B$287,MATCH($A10 & "#" & D$1,NIR!$H$5:$H$287,0)),0),0) -> 0 | E10: =IF(ISNUMBER(IFERROR(INDEX(NIR!$B$5:$B$287,MATCH($A10 & "#" & E$1,NIR!$H$5:$H$287,0)),0)),IFERROR(INDEX(NIR!$B$5:$B$287,MATCH($A10 & "#" & E$1,NIR!$H$5:$H$287,0)),0),0) -> 74.1 | F10: =IF(ISNUMBER(IFERROR(INDEX(NIR!$B$5:$B$287,MATCH($A10 & "#" & F$1,NIR!$H$5:$H$287,0)),0)),IFERROR(INDEX(NIR!$B$5:$B$287,MATCH($A10 & "#" & F$1,NIR!$H$5:$H$287,0)),0),0) -> 0 | G10: 0 | H10: =IF(ISNUMBER(IFERROR(INDEX(NIR!$B$5:$B$287,MATCH($A10 & "#" & H$1,NIR!$H$5:$H$287,0)),0)),IFERROR(INDEX(NIR!$B$5:$B$287,MATCH($A10 & "#" & H$1,NIR!$H$5:$H$287,0)),0),0) -> 0 | I10: =EF_E_a_T!$B$33 -> 175.2955253 | J10: 0 | K10: 0 | L10: =IF(ISNUMBER(IFERROR(INDEX(NIR!$B$5:$B$287,MATCH($A10 & "#" & L$1,NIR!$H$5:$H$287,0)),0)),IFERROR(INDEX(NIR!$B$5:$B$287,MATCH($A10 & "#" & L$1,NIR!$H$5:$H$287,0)),0),0) -> 0 | M10: =IF(ISNUMBER(IFERROR(INDEX(NIR!$B$5:$B$287,MATCH($A10 & "#" & M$1,NIR!$H$5:$H$287,0)),0)),IFERROR(INDEX(NIR!$B$5:$B$287,MATCH($A10 & "#" & M$1,NIR!$H$5:$H$287,0)),0),0) -> 0 | N10: =IF(ISNUMBER(IFERROR(INDEX(NIR!$B$5:$B$287,MATCH($A10 & "#" & N$1,NIR!$H$5:$H$287,0)),0)),IFERROR(INDEX(NIR!$B$5:$B$287,MATCH($A10 & "#" & N$1,NIR!$H$5:$H$287,0)),0),0) -> 0 | O10: =IF(ISNUMBER(IFERROR(INDEX(NIR!$B$5:$B$287,MATCH($A10 & "#" & O$1,NIR!$H$5:$H$287,0)),0)),IFERROR(INDEX(NIR!$B$5:$B$287,MATCH($A10 & "#" & O$1,NIR!$H$5:$H$287,0)),0),0) -> 0 | P10: =IF(ISNUMBER(IFERROR(INDEX(NIR!$B$5:$B$287,MATCH($A10 & "#" & P$1,NIR!$H$5:$H$287,0)),0)),IFERROR(INDEX(NIR!$B$5:$B$287,MATCH($A10 & "#" & P$1,NIR!$H$5:$H$287,0)),0),0) -> 0
A11: road | C11: Silniční | D11: =IF(ISNUMBER(IFERROR(INDEX(NIR!$B$5:$B$287,MATCH($A11 & "#" & D$1,NIR!$H$5:$H$287,0)),0)),IFERROR(INDEX(NIR!$B$5:$B$287,MATCH($A11 & "#" & D$1,NIR!$H$5:$H$287,0)),0),0) -> 0 | E11: =IF(ISNUMBER(IFERROR(INDEX(NIR!$B$5:$B$287,MATCH($A11 & "#" & E$1,NIR!$H$5:$H$287,0)),0)),IFERROR(INDEX(NIR!$B$5:$B$287,MATCH($A11 & "#" & E$1,NIR!$H$5:$H$287,0)),0),0) -> 0 | F11: =IF(ISNUMBER(IFERROR(INDEX(NIR!$B$5:$B$287,MATCH($A11 & "#" & F$1,NIR!$H$5:$H$287,0)),0)),IFERROR(INDEX(NIR!$B$5:$B$287,MATCH($A11 & "#" & F$1,NIR!$H$5:$H$287,0)),0),0) -> 54.70216919 | G11: 0 | H11: =IF(ISNUMBER(IFERROR(INDEX(NIR!$B$5:$B$287,MATCH($A11 & "#" & H$1,NIR!$H$5:$H$287,0)),0)),IFERROR(INDEX(NIR!$B$5:$B$287,MATCH($A11 & "#" & H$1,NIR!$H$5:$H$287,0)),0),0) -> 0 | I11: =EF_E_a_T!$B$33 -> 175.2955253 | J11: 0 | K11: 0 | L11: =IF(ISNUMBER(IFERROR(INDEX(NIR!$B$5:$B$287,MATCH($A11 & "#" & L$1,NIR!$H$5:$H$287,0)),0)),IFERROR(INDEX(NIR!$B$5:$B$287,MATCH($A11 & "#" & L$1,NIR!$H$5:$H$287,0)),0),0) -> 0 | M11: =IF(ISNUMBER(IFERROR(INDEX(NIR!$B$5:$B$287,MATCH($A11 & "#" & M$1,NIR!$H$5:$H$287,0)),0)),IFERROR(INDEX(NIR!$B$5:$B$287,MATCH($A11 & "#" & M$1,NIR!$H$5:$H$287,0)),0),0) -> 69.3 | N11: =IF(ISNUMBER(IFERROR(INDEX(NIR!$B$5:$B$287,MATCH($A11 & "#" & N$1,NIR!$H$5:$H$287,0)),0)),IFERROR(INDEX(NIR!$B$5:$B$287,MATCH($A11 & "#" & N$1,NIR!$H$5:$H$287,0)),0),0) -> 74.1 | O11: =IF(ISNUMBER(IFERROR(INDEX(NIR!$B$5:$B$287,MATCH($A11 & "#" & O$1,NIR!$H$5:$H$287,0)),0)),IFERROR(INDEX(NIR!$B$5:$B$287,MATCH($A11 & "#" & O$1,NIR!$H$5:$H$287,0)),0),0) -> 0 | P11: =IF(ISNUMBER(IFERROR(INDEX(NIR!$B$5:$B$287,MATCH($A11 & "#" & P$1,NIR!$H$5:$H$287,0)),0)),IFERROR(INDEX(NIR!$B$5:$B$287,MATCH($A11 & "#" & P$1,NIR!$H$5:$H$287,0)),0),0) -> 65.90445105
A12: domaviation | C12: Vnitrostátní letecká doprava | D12: =IF(ISNUMBER(IFERROR(INDEX(NIR!$B$5:$B$287,MATCH($A12 & "#" & D$1,NIR!$H$5:$H$287,0)),0)),IFERROR(INDEX(NIR!$B$5:$B$287,MATCH($A12 & "#" & D$1,NIR!$H$5:$H$287,0)),0),0) -> 0 | E12: =IF(ISNUMBER(IFERROR(INDEX(NIR!$B$5:$B$287,MATCH($A12 & "#" & E$1,NIR!$H$5:$H$287,0)),0)),IFERROR(INDEX(NIR!$B$5:$B$287,MATCH($A12 & "#" & E$1,NIR!$H$5:$H$287,0)),0),0) -> 0 | F12: =IF(ISNUMBER(IFERROR(INDEX(NIR!$B$5:$B$287,MATCH($A12 & "#" & F$1,NIR!$H$5:$H$287,0)),0)),IFERROR(INDEX(NIR!$B$5:$B$287,MATCH($A12 & "#" & F$1,NIR!$H$5:$H$287,0)),0),0) -> 0 | G12: 0 | H12: =IF(ISNUMBER(IFERROR(INDEX(NIR!$B$5:$B$287,MATCH($A12 & "#" & H$1,NIR!$H$5:$H$287,0)),0)),IFERROR(INDEX(NIR!$B$5:$B$287,MATCH($A12 & "#" & H$1,NIR!$H$5:$H$287,0)),0),0) -> 0 | I12: =EF_E_a_T!$B$33 -> 175.2955253 | J12: 0 | K12: 0 | L12: =IF(ISNUMBER(IFERROR(INDEX(NIR!$B$5:$B$287,MATCH($A12 & "#" & L$1,NIR!$H$5:$H$287,0)),0)),IFERROR(INDEX(NIR!$B$5:$B$287,MATCH($A12 & "#" & L$1,NIR!$H$5:$H$287,0)),0),0) -> 70 | M12: =IF(ISNUMBER(IFERROR(INDEX(NIR!$B$5:$B$287,MATCH($A12 & "#" & M$1,NIR!$H$5:$H$287,0)),0)),IFERROR(INDEX(NIR!$B$5:$B$287,MATCH($A12 & "#" & M$1,NIR!$H$5:$H$287,0)),0),0) -> 0 | N12: =IF(ISNUMBER(IFERROR(INDEX(NIR!$B$5:$B$287,MATCH($A12 & "#" & N$1,NIR!$H$5:$H$287,0)),0)),IFERROR(INDEX(NIR!$B$5:$B$287,MATCH($A12 & "#" & N$1,NIR!$H$5:$H$287,0)),0),0) -> 0 | O12: =IF(ISNUMBER(IFERROR(INDEX(NIR!$B$5:$B$287,MATCH($A12 & "#" & O$1,NIR!$H$5:$H$287,0)),0)),IFERROR(INDEX(NIR!$B$5:$B$287,MATCH($A12 & "#" & O$1,NIR!$H$5:$H$287,0)),0),0) -> 71.50000001 | P12: =IF(ISNUMBER(IFERROR(INDEX(NIR!$B$5:$B$287,MATCH($A12 & "#" & P$1,NIR!$H$5:$H$287,0)),0)),IFERROR(INDEX(NIR!$B$5:$B$287,MATCH($A12 & "#" & P$1,NIR!$H$5:$H$287,0)),0),0) -> 0
A13: domnavigation | C13: Vnitrostátní lodní doprava | D13: =IF(ISNUMBER(IFERROR(INDEX(NIR!$B$5:$B$287,MATCH($A13 & "#" & D$1,NIR!$H$5:$H$287,0)),0)),IFERROR(INDEX(NIR!$B$5:$B$287,MATCH($A13 & "#" & D$1,NIR!$H$5:$H$287,0)),0),0) -> 0 | E13: =IF(ISNUMBER(IFERROR(INDEX(NIR!$B$5:$B$287,MATCH($A13 & "#" & E$1,NIR!$H$5:$H$287,0)),0)),IFERROR(INDEX(NIR!$B$5:$B$287,MATCH($A13 & "#" & E$1,NIR!$H$5:$H$287,0)),0),0) -> 0 | F13: =IF(ISNUMBER(IFERROR(INDEX(NIR!$B$5:$B$287,MATCH($A13 & "#" & F$1,NIR!$H$5:$H$287,0)),0)),IFERROR(INDEX(NIR!$B$5:$B$287,MATCH($A13 & "#" & F$1,NIR!$H$5:$H$287,0)),0),0) -> 0 | G13: 0 | H13: =IF(ISNUMBER(IFERROR(INDEX(NIR!$B$5:$B$287,MATCH($A13 & "#" & H$1,NIR!$H$5:$H$287,0)),0)),IFERROR(INDEX(NIR!$B$5:$B$287,MATCH($A13 & "#" & H$1,NIR!$H$5:$H$287,0)),0),0) -> 0 | I13: =EF_E_a_T!$B$33 -> 175.2955253 | J13: 0 | K13: 0 | L13: =IF(ISNUMBER(IFERROR(INDEX(NIR!$B$5:$B$287,MATCH($A13 & "#" & L$1,NIR!$H$5:$H$287,0)),0)),IFERROR(INDEX(NIR!$B$5:$B$287,MATCH($A13 & "#" & L$1,NIR!$H$5:$H$287,0)),0),0) -> 0 | M13: =IF(ISNUMBER(IFERROR(INDEX(NIR!$B$5:$B$287,MATCH($A13 & "#" & M$1,NIR!$H$5:$H$287,0)),0)),IFERROR(INDEX(NIR!$B$5:$B$287,MATCH($A13 & "#" & M$1,NIR!$H$5:$H$287,0)),0),0) -> 0 | N13: =IF(ISNUMBER(IFERROR(INDEX(NIR!$B$5:$B$287,MATCH($A13 & "#" & N$1,NIR!$H$5:$H$287,0)),0)),IFERROR(INDEX(NIR!$B$5:$B$287,MATCH($A13 & "#" & N$1,NIR!$H$5:$H$287,0)),0),0) -> 74.1 | O13: =IF(ISNUMBER(IFERROR(INDEX(NIR!$B$5:$B$287,MATCH($A13 & "#" & O$1,NIR!$H$5:$H$287,0)),0)),IFERROR(INDEX(NIR!$B$5:$B$287,MATCH($A13 & "#" & O$1,NIR!$H$5:$H$287,0)),0),0) -> 0 | P13: =IF(ISNUMBER(IFERROR(INDEX(NIR!$B$5:$B$287,MATCH($A13 & "#" & P$1,NIR!$H$5:$H$287,0)),0)),IFERROR(INDEX(NIR!$B$5:$B$287,MATCH($A13 & "#" & P$1,NIR!$H$5:$H$287,0)),0),0) -> 0
A14: pipeline | C14: Potrubní doprava | D14: =IF(ISNUMBER(IFERROR(INDEX(NIR!$B$5:$B$287,MATCH($A14 & "#" & D$1,NIR!$H$5:$H$287,0)),0)),IFERROR(INDEX(NIR!$B$5:$B$287,MATCH($A14 & "#" & D$1,NIR!$H$5:$H$287,0)),0),0) -> 0 | E14: =IF(ISNUMBER(IFERROR(INDEX(NIR!$B$5:$B$287,MATCH($A14 & "#" & E$1,NIR!$H$5:$H$287,0)),0)),IFERROR(INDEX(NIR!$B$5:$B$287,MATCH($A14 & "#" & E$1,NIR!$H$5:$H$287,0)),0),0) -> 0 | F14: =IF(ISNUMBER(IFERROR(INDEX(NIR!$B$5:$B$287,MATCH($A14 & "#" & F$1,NIR!$H$5:$H$287,0)),0)),IFERROR(INDEX(NIR!$B$5:$B$287,MATCH($A14 & "#" & F$1,NIR!$H$5:$H$287,0)),0),0) -> 49.99048012 | G14: 0 | H14: =IF(ISNUMBER(IFERROR(INDEX(NIR!$B$5:$B$287,MATCH($A14 & "#" & H$1,NIR!$H$5:$H$287,0)),0)),IFERROR(INDEX(NIR!$B$5:$B$287,MATCH($A14 & "#" & H$1,NIR!$H$5:$H$287,0)),0),0) -> 0 | I14: =EF_E_a_T!$B$33 -> 175.2955253 | J14: 0 | K14: 0 | L14: =IF(ISNUMBER(IFERROR(INDEX(NIR!$B$5:$B$287,MATCH($A14 & "#" & L$1,NIR!$H$5:$H$287,0)),0)),IFERROR(INDEX(NIR!$B$5:$B$287,MATCH($A14 & "#" & L$1,NIR!$H$5:$H$287,0)),0),0) -> 0 | M14: =IF(ISNUMBER(IFERROR(INDEX(NIR!$B$5:$B$287,MATCH($A14 & "#" & M$1,NIR!$H$5:$H$287,0)),0)),IFERROR(INDEX(NIR!$B$5:$B$287,MATCH($A14 & "#" & M$1,NIR!$H$5:$H$287,0)),0),0) -> 0 | N14: =IF(ISNUMBER(IFERROR(INDEX(NIR!$B$5:$B$287,MATCH($A14 & "#" & N$1,NIR!$H$5:$H$287,0)),0)),IFERROR(INDEX(NIR!$B$5:$B$287,MATCH($A14 & "#" & N$1,NIR!$H$5:$H$287,0)),0),0) -> 0 | O14: =IF(ISNUMBER(IFERROR(INDEX(NIR!$B$5:$B$287,MATCH($A14 & "#" & O$1,NIR!$H$5:$H$287,0)),0)),IFERROR(INDEX(NIR!$B$5:$B$287,MATCH($A14 & "#" & O$1,NIR!$H$5:$H$287,0)),0),0) -> 0 | P14: =IF(ISNUMBER(IFERROR(INDEX(NIR!$B$5:$B$287,MATCH($A14 & "#" & P$1,NIR!$H$5:$H$287,0)),0)),IFERROR(INDEX(NIR!$B$5:$B$287,MATCH($A14 & "#" & P$1,NIR!$H$5:$H$287,0)),0),0) -> 0
A15: industry | C15: Průmysl celkem | D15: =IF(ISNUMBER(IFERROR(INDEX(NIR!$B$5:$B$287,MATCH($A15 & "#" & D$1,NIR!$H$5:$H$287,0)),0)),IFERROR(INDEX(NIR!$B$5:$B$287,MATCH($A15 & "#" & D$1,NIR!$H$5:$H$287,0)),0),0) -> 91.06706287 | E15: =IF(ISNUMBER(IFERROR(INDEX(NIR!$B$5:$B$287,MATCH($A15 & "#" & E$1,NIR!$H$5:$H$287,0)),0)),IFERROR(INDEX(NIR!$B$5:$B$287,MATCH($A15 & "#" & E$1,NIR!$H$5:$H$287,0)),0),0) -> 72.96545296 | F15: =IF(ISNUMBER(IFERROR(INDEX(NIR!$B$5:$B$287,MATCH($A15 & "#" & F$1,NIR!$H$5:$H$287,0)),0)),IFERROR(INDEX(NIR!$B$5:$B$287,MATCH($A15 & "#" & F$1,NIR!$H$5:$H$287,0)),0),0) -> 55.42024357 | G15: 0 | H15: =IF(ISNUMBER(IFERROR(INDEX(NIR!$B$5:$B$287,MATCH($A15 & "#" & H$1,NIR!$H$5:$H$287,0)),0)),IFERROR(INDEX(NIR!$B$5:$B$287,MATCH($A15 & "#" & H$1,NIR!$H$5:$H$287,0)),0),0) -> 84.30654771 | I15: =EF_E_a_T!$B$33 -> 175.2955253 | J15: =EF_E_a_T!$E$33 -> 92.72279743 | K15: 0 | L15: =IF(ISNUMBER(IFERROR(INDEX(NIR!$B$5:$B$287,MATCH($A15 & "#" & L$1,NIR!$H$5:$H$287,0)),0)),IFERROR(INDEX(NIR!$B$5:$B$287,MATCH($A15 & "#" & L$1,NIR!$H$5:$H$287,0)),0),0) -> 0 | M15: =IF(ISNUMBER(IFERROR(INDEX(NIR!$B$5:$B$287,MATCH($A15 & "#" & M$1,NIR!$H$5:$H$287,0)),0)),IFERROR(INDEX(NIR!$B$5:$B$287,MATCH($A15 & "#" & M$1,NIR!$H$5:$H$287,0)),0),0) -> 0 | N15: =IF(ISNUMBER(IFERROR(INDEX(NIR!$B$5:$B$287,MATCH($A15 & "#" & N$1,NIR!$H$5:$H$287,0)),0)),IFERROR(INDEX(NIR!$B$5:$B$287,MATCH($A15 & "#" & N$1,NIR!$H$5:$H$287,0)),0),0) -> 0 | O15: =IF(ISNUMBER(IFERROR(INDEX(NIR!$B$5:$B$287,MATCH($A15 & "#" & O$1,NIR!$H$5:$H$287,0)),0)),IFERROR(INDEX(NIR!$B$5:$B$287,MATCH($A15 & "#" & O$1,NIR!$H$5:$H$287,0)),0),0) -> 0 | P15: =IF(ISNUMBER(IFERROR(INDEX(NIR!$B$5:$B$287,MATCH($A15 & "#" & P$1,NIR!$H$5:$H$287,0)),0)),IFERROR(INDEX(NIR!$B$5:$B$287,MATCH($A15 & "#" & P$1,NIR!$H$5:$H$287,0)),0),0) -> 0
A16: refinery | C16: Rafinérie | D16: =IF(ISNUMBER(IFERROR(INDEX(NIR!$B$5:$B$287,MATCH($A16 & "#" & D$1,NIR!$H$5:$H$287,0)),0)),IFERROR(INDEX(NIR!$B$5:$B$287,MATCH($A16 & "#" & D$1,NIR!$H$5:$H$287,0)),0),0) -> 0 | E16: =IF(ISNUMBER(IFERROR(INDEX(NIR!$B$5:$B$287,MATCH($A16 & "#" & E$1,NIR!$H$5:$H$287,0)),0)),IFERROR(INDEX(NIR!$B$5:$B$287,MATCH($A16 & "#" & E$1,NIR!$H$5:$H$287,0)),0),0) -> 61.51955031 | F16: =IF(ISNUMBER(IFERROR(INDEX(NIR!$B$5:$B$287,MATCH($A16 & "#" & F$1,NIR!$H$5:$H$287,0)),0)),IFERROR(INDEX(NIR!$B$5:$B$287,MATCH($A16 & "#" & F$1,NIR!$H$5:$H$287,0)),0),0) -> 55.42024357 | G16: 0 | H16: =IF(ISNUMBER(IFERROR(INDEX(NIR!$B$5:$B$287,MATCH($A16 & "#" & H$1,NIR!$H$5:$H$287,0)),0)),IFERROR(INDEX(NIR!$B$5:$B$287,MATCH($A16 & "#" & H$1,NIR!$H$5:$H$287,0)),0),0) -> 0 | I16: =EF_E_a_T!$B$33 -> 175.2955253 | J16: =EF_E_a_T!$E$33 -> 92.72279743 | K16: 0 | L16: =IF(ISNUMBER(IFERROR(INDEX(NIR!$B$5:$B$287,MATCH($A16 & "#" & L$1,NIR!$H$5:$H$287,0)),0)),IFERROR(INDEX(NIR!$B$5:$B$287,MATCH($A16 & "#" & L$1,NIR!$H$5:$H$287,0)),0),0) -> 0 | M16: =IF(ISNUMBER(IFERROR(INDEX(NIR!$B$5:$B$287,MATCH($A16 & "#" & M$1,NIR!$H$5:$H$287,0)),0)),IFERROR(INDEX(NIR!$B$5:$B$287,MATCH($A16 & "#" & M$1,NIR!$H$5:$H$287,0)),0),0) -> 0 | N16: =IF(ISNUMBER(IFERROR(INDEX(NIR!$B$5:$B$287,MATCH($A16 & "#" & N$1,NIR!$H$5:$H$287,0)),0)),IFERROR(INDEX(NIR!$B$5:$B$287,MATCH($A16 & "#" & N$1,NIR!$H$5:$H$287,0)),0),0) -> 0 | O16: =IF(ISNUMBER(IFERROR(INDEX(NIR!$B$5:$B$287,MATCH($A16 & "#" & O$1,NIR!$H$5:$H$287,0)),0)),IFERROR(INDEX(NIR!$B$5:$B$287,MATCH($A16 & "#" & O$1,NIR!$H$5:$H$287,0)),0),0) -> 0 | P16: =IF(ISNUMBER(IFERROR(INDEX(NIR!$B$5:$B$287,MATCH($A16 & "#" & P$1,NIR!$H$5:$H$287,0)),0)),IFERROR(INDEX(NIR!$B$5:$B$287,MATCH($A16 & "#" & P$1,NIR!$H$5:$H$287,0)),0),0) -> 0
A17: ferrous | C17: Metalurgie železných kovů | D17: =IF(ISNUMBER(IFERROR(INDEX(NIR!$B$5:$B$287,MATCH($A17 & "#" & D$1,NIR!$H$5:$H$287,0)),0)),IFERROR(INDEX(NIR!$B$5:$B$287,MATCH($A17 & "#" & D$1,NIR!$H$5:$H$287,0)),0),0) -> 85.45620511 | E17: =IF(ISNUMBER(IFERROR(INDEX(NIR!$B$5:$B$287,MATCH($A17 & "#" & E$1,NIR!$H$5:$H$287,0)),0)),IFERROR(INDEX(NIR!$B$5:$B$287,MATCH($A17 & "#" & E$1,NIR!$H$5:$H$287,0)),0),0) -> 0 | F17: =IF(ISNUMBER(IFERROR(INDEX(NIR!$B$5:$B$287,MATCH($A17 & "#" & F$1,NIR!$H$5:$H$287,0)),0)),IFERROR(INDEX(NIR!$B$5:$B$287,MATCH($A17 & "#" & F$1,NIR!$H$5:$H$287,0)),0),0) -> 55.42024357 | G17: 0 | H17: =IF(ISNUMBER(IFERROR(INDEX(NIR!$B$5:$B$287,MATCH($A17 & "#" & H$1,NIR!$H$5:$H$287,0)),0)),IFERROR(INDEX(NIR!$B$5:$B$287,MATCH($A17 & "#" & H$1,NIR!$H$5:$H$287,0)),0),0) -> 0 | I17: =EF_E_a_T!$B$33 -> 175.2955253 | J17: =EF_E_a_T!$E$33 -> 92.72279743 | K17: 0 | L17: =IF(ISNUMBER(IFERROR(INDEX(NIR!$B$5:$B$287,MATCH($A17 & "#" & L$1,NIR!$H$5:$H$287,0)),0)),IFERROR(INDEX(NIR!$B$5:$B$287,MATCH($A17 & "#" & L$1,NIR!$H$5:$H$287,0)),0),0) -> 0 | M17: =IF(ISNUMBER(IFERROR(INDEX(NIR!$B$5:$B$287,MATCH($A17 & "#" & M$1,NIR!$H$5:$H$287,0)),0)),IFERROR(INDEX(NIR!$B$5:$B$287,MATCH($A17 & "#" & M$1,NIR!$H$5:$H$287,0)),0),0) -> 0 | N17: =IF(ISNUMBER(IFERROR(INDEX(NIR!$B$5:$B$287,MATCH($A17 & "#" & N$1,NIR!$H$5:$H$287,0)),0)),IFERROR(INDEX(NIR!$B$5:$B$287,MATCH($A17 & "#" & N$1,NIR!$H$5:$H$287,0)),0),0) -> 0 | O17: =IF(ISNUMBER(IFERROR(INDEX(NIR!$B$5:$B$287,MATCH($A17 & "#" & O$1,NIR!$H$5:$H$287,0)),0)),IFERROR(INDEX(NIR!$B$5:$B$287,MATCH($A17 & "#" & O$1,NIR!$H$5:$H$287,0)),0),0) -> 0 | P17: =IF(ISNUMBER(IFERROR(INDEX(NIR!$B$5:$B$287,MATCH($A17 & "#" & P$1,NIR!$H$5:$H$287,0)),0)),IFERROR(INDEX(NIR!$B$5:$B$287,MATCH($A17 & "#" & P$1,NIR!$H$5:$H$287,0)),0),0) -> 0
A18: nonferrous | C18: Metalurgie neželezných kovů | D18: =IF(ISNUMBER(IFERROR(INDEX(NIR!$B$5:$B$287,MATCH($A18 & "#" & D$1,NIR!$H$5:$H$287,0)),0)),IFERROR(INDEX(NIR!$B$5:$B$287,MATCH($A18 & "#" & D$1,NIR!$H$5:$H$287,0)),0),0) -> 107 | E18: =IF(ISNUMBER(IFERROR(INDEX(NIR!$B$5:$B$287,MATCH($A18 & "#" & E$1,NIR!$H$5:$H$287,0)),0)),IFERROR(INDEX(NIR!$B$5:$B$287,MATCH($A18 & "#" & E$1,NIR!$H$5:$H$287,0)),0),0) -> 77.4 | F18: =IF(ISNUMBER(IFERROR(INDEX(NIR!$B$5:$B$287,MATCH($A18 & "#" & F$1,NIR!$H$5:$H$287,0)),0)),IFERROR(INDEX(NIR!$B$5:$B$287,MATCH($A18 & "#" & F$1,NIR!$H$5:$H$287,0)),0),0) -> 55.42024357 | G18: 0 | H18: =IF(ISNUMBER(IFERROR(INDEX(NIR!$B$5:$B$287,MATCH($A18 & "#" & H$1,NIR!$H$5:$H$287,0)),0)),IFERROR(INDEX(NIR!$B$5:$B$287,MATCH($A18 & "#" & H$1,NIR!$H$5:$H$287,0)),0),0) -> 0 | I18: =EF_E_a_T!$B$33 -> 175.2955253 | J18: =EF_E_a_T!$E$33 -> 92.72279743 | K18: 0 | L18: =IF(ISNUMBER(IFERROR(INDEX(NIR!$B$5:$B$287,MATCH($A18 & "#" & L$1,NIR!$H$5:$H$287,0)),0)),IFERROR(INDEX(NIR!$B$5:$B$287,MATCH($A18 & "#" & L$1,NIR!$H$5:$H$287,0)),0),0) -> 0 | M18: =IF(ISNUMBER(IFERROR(INDEX(NIR!$B$5:$B$287,MATCH($A18 & "#" & M$1,NIR!$H$5:$H$287,0)),0)),IFERROR(INDEX(NIR!$B$5:$B$287,MATCH($A18 & "#" & M$1,NIR!$H$5:$H$287,0)),0),0) -> 0 | N18: =IF(ISNUMBER(IFERROR(INDEX(NIR!$B$5:$B$287,MATCH($A18 & "#" & N$1,NIR!$H$5:$H$287,0)),0)),IFERROR(INDEX(NIR!$B$5:$B$287,MATCH($A18 & "#" & N$1,NIR!$H$5:$H$287,0)),0),0) -> 0 | O18: =IF(ISNUMBER(IFERROR(INDEX(NIR!$B$5:$B$287,MATCH($A18 & "#" & O$1,NIR!$H$5:$H$287,0)),0)),IFERROR(INDEX(NIR!$B$5:$B$287,MATCH($A18 & "#" & O$1,NIR!$H$5:$H$287,0)),0),0) -> 0 | P18: =IF(ISNUMBER(IFERROR(INDEX(NIR!$B$5:$B$287,MATCH($A18 & "#" & P$1,NIR!$H$5:$H$287,0)),0)),IFERROR(INDEX(NIR!$B$5:$B$287,MATCH($A18 & "#" & P$1,NIR!$H$5:$H$287,0)),0),0) -> 0
A19: nonmetalic | C19: Nekové materiály | D19: =IF(ISNUMBER(IFERROR(INDEX(NIR!$B$5:$B$287,MATCH($A19 & "#" & D$1,NIR!$H$5:$H$287,0)),0)),IFERROR(INDEX(NIR!$B$5:$B$287,MATCH($A19 & "#" & D$1,NIR!$H$5:$H$287,0)),0),0) -> 91.89567198 | E19: =IF(ISNUMBER(IFERROR(INDEX(NIR!$B$5:$B$287,MATCH($A19 & "#" & E$1,NIR!$H$5:$H$287,0)),0)),IFERROR(INDEX(NIR!$B$5:$B$287,MATCH($A19 & "#" & E$1,NIR!$H$5:$H$287,0)),0),0) -> 73.69127331 | F19: =IF(ISNUMBER(IFERROR(INDEX(NIR!$B$5:$B$287,MATCH($A19 & "#" & F$1,NIR!$H$5:$H$287,0)),0)),IFERROR(INDEX(NIR!$B$5:$B$287,MATCH($A19 & "#" & F$1,NIR!$H$5:$H$287,0)),0),0) -> 55.42024357 | G19: 0 | H19: =IF(ISNUMBER(IFERROR(INDEX(NIR!$B$5:$B$287,MATCH($A19 & "#" & H$1,NIR!$H$5:$H$287,0)),0)),IFERROR(INDEX(NIR!$B$5:$B$287,MATCH($A19 & "#" & H$1,NIR!$H$5:$H$287,0)),0),0) -> 84.30654771 | I19: =EF_E_a_T!$B$33 -> 175.2955253 | J19: =EF_E_a_T!$E$33 -> 92.72279743 | K19: 0 | L19: =IF(ISNUMBER(IFERROR(INDEX(NIR!$B$5:$B$287,MATCH($A19 & "#" & L$1,NIR!$H$5:$H$287,0)),0)),IFERROR(INDEX(NIR!$B$5:$B$287,MATCH($A19 & "#" & L$1,NIR!$H$5:$H$287,0)),0),0) -> 0 | M19: =IF(ISNUMBER(IFERROR(INDEX(NIR!$B$5:$B$287,MATCH($A19 & "#" & M$1,NIR!$H$5:$H$287,0)),0)),IFERROR(INDEX(NIR!$B$5:$B$287,MATCH($A19 & "#" & M$1,NIR!$H$5:$H$287,0)),0),0) -> 0 | N19: =IF(ISNUMBER(IFERROR(INDEX(NIR!$B$5:$B$287,MATCH($A19 & "#" & N$1,NIR!$H$5:$H$287,0)),0)),IFERROR(INDEX(NIR!$B$5:$B$287,MATCH($A19 & "#" & N$1,NIR!$H$5:$H$287,0)),0),0) -> 0 | O19: =IF(ISNUMBER(IFERROR(INDEX(NIR!$B$5:$B$287,MATCH($A19 & "#" & O$1,NIR!$H$5:$H$287,0)),0)),IFERROR(INDEX(NIR!$B$5:$B$287,MATCH($A19 & "#" & O$1,NIR!$H$5:$H$287,0)),0),0) -> 0 | P19: =IF(ISNUMBER(IFERROR(INDEX(NIR!$B$5:$B$287,MATCH($A19 & "#" & P$1,NIR!$H$5:$H$287,0)),0)),IFERROR(INDEX(NIR!$B$5:$B$287,MATCH($A19 & "#" & P$1,NIR!$H$5:$H$287,0)),0),0) -> 0
A20: chemical | C20: Chemie | D20: =IF(ISNUMBER(IFERROR(INDEX(NIR!$B$5:$B$287,MATCH($A20 & "#" & D$1,NIR!$H$5:$H$287,0)),0)),IFERROR(INDEX(NIR!$B$5:$B$287,MATCH($A20 & "#" & D$1,NIR!$H$5:$H$287,0)),0),0) -> 97.49825638 | E20: =IF(ISNUMBER(IFERROR(INDEX(NIR!$B$5:$B$287,MATCH($A20 & "#" & E$1,NIR!$H$5:$H$287,0)),0)),IFERROR(INDEX(NIR!$B$5:$B$287,MATCH($A20 & "#" & E$1,NIR!$H$5:$H$287,0)),0),0) -> 73.50029906 | F20: =IF(ISNUMBER(IFERROR(INDEX(NIR!$B$5:$B$287,MATCH($A20 & "#" & F$1,NIR!$H$5:$H$287,0)),0)),IFERROR(INDEX(NIR!$B$5:$B$287,MATCH($A20 & "#" & F$1,NIR!$H$5:$H$287,0)),0),0) -> 55.42024357 | G20: 0 | H20: =IF(ISNUMBER(IFERROR(INDEX(NIR!$B$5:$B$287,MATCH($A20 & "#" & H$1,NIR!$H$5:$H$287,0)),0)),IFERROR(INDEX(NIR!$B$5:$B$287,MATCH($A20 & "#" & H$1,NIR!$H$5:$H$287,0)),0),0) -> 0 | I20: =EF_E_a_T!$B$33 -> 175.2955253 | J20: =EF_E_a_T!$E$33 -> 92.72279743 | K20: 0 | L20: =IF(ISNUMBER(IFERROR(INDEX(NIR!$B$5:$B$287,MATCH($A20 & "#" & L$1,NIR!$H$5:$H$287,0)),0)),IFERROR(INDEX(NIR!$B$5:$B$287,MATCH($A20 & "#" & L$1,NIR!$H$5:$H$287,0)),0),0) -> 0 | M20: =IF(ISNUMBER(IFERROR(INDEX(NIR!$B$5:$B$287,MATCH($A20 & "#" & M$1,NIR!$H$5:$H$287,0)),0)),IFERROR(INDEX(NIR!$B$5:$B$287,MATCH($A20 & "#" & M$1,NIR!$H$5:$H$287,0)),0),0) -> 0 | N20: =IF(ISNUMBER(IFERROR(INDEX(NIR!$B$5:$B$287,MATCH($A20 & "#" & N$1,NIR!$H$5:$H$287,0)),0)),IFERROR(INDEX(NIR!$B$5:$B$287,MATCH($A20 & "#" & N$1,NIR!$H$5:$H$287,0)),0),0) -> 0 | O20: =IF(ISNUMBER(IFERROR(INDEX(NIR!$B$5:$B$287,MATCH($A20 & "#" & O$1,NIR!$H$5:$H$287,0)),0)),IFERROR(INDEX(NIR!$B$5:$B$287,MATCH($A20 & "#" & O$1,NIR!$H$5:$H$287,0)),0),0) -> 0 | P20: =IF(ISNUMBER(IFERROR(INDEX(NIR!$B$5:$B$287,MATCH($A20 & "#" & P$1,NIR!$H$5:$H$287,0)),0)),IFERROR(INDEX(NIR!$B$5:$B$287,MATCH($A20 & "#" & P$1,NIR!$H$5:$H$287,0)),0),0) -> 0
A21: mansolid | C21: Zpracování tuhých paliv | D21: =IF(ISNUMBER(IFERROR(INDEX(NIR!$B$5:$B$287,MATCH($A21 & "#" & D$1,NIR!$H$5:$H$287,0)),0)),IFERROR(INDEX(NIR!$B$5:$B$287,MATCH($A21 & "#" & D$1,NIR!$H$5:$H$287,0)),0),0) -> 93.88155325 | E21: =IF(ISNUMBER(IFERROR(INDEX(NIR!$B$5:$B$287,MATCH($A21 & "#" & E$1,NIR!$H$5:$H$287,0)),0)),IFERROR(INDEX(NIR!$B$5:$B$287,MATCH($A21 & "#" & E$1,NIR!$H$5:$H$287,0)),0),0) -> 74.1 | F21: =IF(ISNUMBER(IFERROR(INDEX(NIR!$B$5:$B$287,MATCH($A21 & "#" & F$1,NIR!$H$5:$H$287,0)),0)),IFERROR(INDEX(NIR!$B$5:$B$287,MATCH($A21 & "#" & F$1,NIR!$H$5:$H$287,0)),0),0) -> 55.42024357 | G21: 0 | H21: =IF(ISNUMBER(IFERROR(INDEX(NIR!$B$5:$B$287,MATCH($A21 & "#" & H$1,NIR!$H$5:$H$287,0)),0)),IFERROR(INDEX(NIR!$B$5:$B$287,MATCH($A21 & "#" & H$1,NIR!$H$5:$H$287,0)),0),0) -> 0 | I21: =EF_E_a_T!$B$33 -> 175.2955253 | J21: =EF_E_a_T!$E$33 -> 92.72279743 | K21: 0 | L21: =IF(ISNUMBER(IFERROR(INDEX(NIR!$B$5:$B$287,MATCH($A21 & "#" & L$1,NIR!$H$5:$H$287,0)),0)),IFERROR(INDEX(NIR!$B$5:$B$287,MATCH($A21 & "#" & L$1,NIR!$H$5:$H$287,0)),0),0) -> 0 | M21: =IF(ISNUMBER(IFERROR(INDEX(NIR!$B$5:$B$287,MATCH($A21 & "#" & M$1,NIR!$H$5:$H$287,0)),0)),IFERROR(INDEX(NIR!$B$5:$B$287,MATCH($A21 & "#" & M$1,NIR!$H$5:$H$287,0)),0),0) -> 0 | N21: =IF(ISNUMBER(IFERROR(INDEX(NIR!$B$5:$B$287,MATCH($A21 & "#" & N$1,NIR!$H$5:$H$287,0)),0)),IFERROR(INDEX(NIR!$B$5:$B$287,MATCH($A21 & "#" & N$1,NIR!$H$5:$H$287,0)),0),0) -> 0 | O21: =IF(ISNUMBER(IFERROR(INDEX(NIR!$B$5:$B$287,MATCH($A21 & "#" & O$1,NIR!$H$5:$H$287,0)),0)),IFERROR(INDEX(NIR!$B$5:$B$287,MATCH($A21 & "#" & O$1,NIR!$H$5:$H$287,0)),0),0) -> 0 | P21: =IF(ISNUMBER(IFERROR(INDEX(NIR!$B$5:$B$287,MATCH($A21 & "#" & P$1,NIR!$H$5:$H$287,0)),0)),IFERROR(INDEX(NIR!$B$5:$B$287,MATCH($A21 & "#" & P$1,NIR!$H$5:$H$287,0)),0),0) -> 0
A22: paper | C22: Papír a celulóza | D22: =IF(ISNUMBER(IFERROR(INDEX(NIR!$B$5:$B$287,MATCH($A22 & "#" & D$1,NIR!$H$5:$H$287,0)),0)),IFERROR(INDEX(NIR!$B$5:$B$287,MATCH($A22 & "#" & D$1,NIR!$H$5:$H$287,0)),0),0) -> 98.62597968 | E22: =IF(ISNUMBER(IFERROR(INDEX(NIR!$B$5:$B$287,MATCH($A22 & "#" & E$1,NIR!$H$5:$H$287,0)),0)),IFERROR(INDEX(NIR!$B$5:$B$287,MATCH($A22 & "#" & E$1,NIR!$H$5:$H$287,0)),0),0) -> 72.9376643 | F22: =IF(ISNUMBER(IFERROR(INDEX(NIR!$B$5:$B$287,MATCH($A22 & "#" & F$1,NIR!$H$5:$H$287,0)),0)),IFERROR(INDEX(NIR!$B$5:$B$287,MATCH($A22 & "#" & F$1,NIR!$H$5:$H$287,0)),0),0) -> 55.42024357 | G22: 0 | H22: =IF(ISNUMBER(IFERROR(INDEX(NIR!$B$5:$B$287,MATCH($A22 & "#" & H$1,NIR!$H$5:$H$287,0)),0)),IFERROR(INDEX(NIR!$B$5:$B$287,MATCH($A22 & "#" & H$1,NIR!$H$5:$H$287,0)),0),0) -> 0 | I22: =EF_E_a_T!$B$33 -> 175.2955253 | J22: =EF_E_a_T!$E$33 -> 92.72279743 | K22: 0 | L22: =IF(ISNUMBER(IFERROR(INDEX(NIR!$B$5:$B$287,MATCH($A22 & "#" & L$1,NIR!$H$5:$H$287,0)),0)),IFERROR(INDEX(NIR!$B$5:$B$287,MATCH($A22 & "#" & L$1,NIR!$H$5:$H$287,0)),0),0) -> 0 | M22: =IF(ISNUMBER(IFERROR(INDEX(NIR!$B$5:$B$287,MATCH($A22 & "#" & M$1,NIR!$H$5:$H$287,0)),0)),IFERROR(INDEX(NIR!$B$5:$B$287,MATCH($A22 & "#" & M$1,NIR!$H$5:$H$287,0)),0),0) -> 0 | N22: =IF(ISNUMBER(IFERROR(INDEX(NIR!$B$5:$B$287,MATCH($A22 & "#" & N$1,NIR!$H$5:$H$287,0)),0)),IFERROR(INDEX(NIR!$B$5:$B$287,MATCH($A22 & "#" & N$1,NIR!$H$5:$H$287,0)),0),0) -> 0 | O22: =IF(ISNUMBER(IFERROR(INDEX(NIR!$B$5:$B$287,MATCH($A22 & "#" & O$1,NIR!$H$5:$H$287,0)),0)),IFERROR(INDEX(NIR!$B$5:$B$287,MATCH($A22 & "#" & O$1,NIR!$H$5:$H$287,0)),0),0) -> 0 | P22: =IF(ISNUMBER(IFERROR(INDEX(NIR!$B$5:$B$287,MATCH($A22 & "#" & P$1,NIR!$H$5:$H$287,0)),0)),IFERROR(INDEX(NIR!$B$5:$B$287,MATCH($A22 & "#" & P$1,NIR!$H$5:$H$287,0)),0),0) -> 0
A23: food | C23: Potraviny | D23: =IF(ISNUMBER(IFERROR(INDEX(NIR!$B$5:$B$287,MATCH($A23 & "#" & D$1,NIR!$H$5:$H$287,0)),0)),IFERROR(INDEX(NIR!$B$5:$B$287,MATCH($A23 & "#" & D$1,NIR!$H$5:$H$287,0)),0),0) -> 97.22554625 | E23: =IF(ISNUMBER(IFERROR(INDEX(NIR!$B$5:$B$287,MATCH($A23 & "#" & E$1,NIR!$H$5:$H$287,0)),0)),IFERROR(INDEX(NIR!$B$5:$B$287,MATCH($A23 & "#" & E$1,NIR!$H$5:$H$287,0)),0),0) -> 72.23435875 | F23: =IF(ISNUMBER(IFERROR(INDEX(NIR!$B$5:$B$287,MATCH($A23 & "#" & F$1,NIR!$H$5:$H$287,0)),0)),IFERROR(INDEX(NIR!$B$5:$B$287,MATCH($A23 & "#" & F$1,NIR!$H$5:$H$287,0)),0),0) -> 55.42024357 | G23: 0 | H23: =IF(ISNUMBER(IFERROR(INDEX(NIR!$B$5:$B$287,MATCH($A23 & "#" & H$1,NIR!$H$5:$H$287,0)),0)),IFERROR(INDEX(NIR!$B$5:$B$287,MATCH($A23 & "#" & H$1,NIR!$H$5:$H$287,0)),0),0) -> 0 | I23: =EF_E_a_T!$B$33 -> 175.2955253 | J23: =EF_E_a_T!$E$33 -> 92.72279743 | K23: 0 | L23: =IF(ISNUMBER(IFERROR(INDEX(NIR!$B$5:$B$287,MATCH($A23 & "#" & L$1,NIR!$H$5:$H$287,0)),0)),IFERROR(INDEX(NIR!$B$5:$B$287,MATCH($A23 & "#" & L$1,NIR!$H$5:$H$287,0)),0),0) -> 0 | M23: =IF(ISNUMBER(IFERROR(INDEX(NIR!$B$5:$B$287,MATCH($A23 & "#" & M$1,NIR!$H$5:$H$287,0)),0)),IFERROR(INDEX(NIR!$B$5:$B$287,MATCH($A23 & "#" & M$1,NIR!$H$5:$H$287,0)),0),0) -> 0 | N23: =IF(ISNUMBER(IFERROR(INDEX(NIR!$B$5:$B$287,MATCH($A23 & "#" & N$1,NIR!$H$5:$H$287,0)),0)),IFERROR(INDEX(NIR!$B$5:$B$287,MATCH($A23 & "#" & N$1,NIR!$H$5:$H$287,0)),0),0) -> 0 | O23: =IF(ISNUMBER(IFERROR(INDEX(NIR!$B$5:$B$287,MATCH($A23 & "#" & O$1,NIR!$H$5:$H$287,0)),0)),IFERROR(INDEX(NIR!$B$5:$B$287,MATCH($A23 & "#" & O$1,NIR!$H$5:$H$287,0)),0),0) -> 0 | P23: =IF(ISNUMBER(IFERROR(INDEX(NIR!$B$5:$B$287,MATCH($A23 & "#" & P$1,NIR!$H$5:$H$287,0)),0)),IFERROR(INDEX(NIR!$B$5:$B$287,MATCH($A23 & "#" & P$1,NIR!$H$5:$H$287,0)),0),0) -> 0
A24: otherindustry | C24: Ostatní průmysl | D24: =IF(ISNUMBER(IFERROR(INDEX(NIR!$B$5:$B$287,MATCH($A24 & "#" & D$1,NIR!$H$5:$H$287,0)),0)),IFERROR(INDEX(NIR!$B$5:$B$287,MATCH($A24 & "#" & D$1,NIR!$H$5:$H$287,0)),0),0) -> 98.67776822 | E24: =IF(ISNUMBER(IFERROR(INDEX(NIR!$B$5:$B$287,MATCH($A24 & "#" & E$1,NIR!$H$5:$H$287,0)),0)),IFERROR(INDEX(NIR!$B$5:$B$287,MATCH($A24 & "#" & E$1,NIR!$H$5:$H$287,0)),0),0) -> 72.82825864 | F24: =IF(ISNUMBER(IFERROR(INDEX(NIR!$B$5:$B$287,MATCH($A24 & "#" & F$1,NIR!$H$5:$H$287,0)),0)),IFERROR(INDEX(NIR!$B$5:$B$287,MATCH($A24 & "#" & F$1,NIR!$H$5:$H$287,0)),0),0) -> 55.42024357 | G24: 0 | H24: =IF(ISNUMBER(IFERROR(INDEX(NIR!$B$5:$B$287,MATCH($A24 & "#" & H$1,NIR!$H$5:$H$287,0)),0)),IFERROR(INDEX(NIR!$B$5:$B$287,MATCH($A24 & "#" & H$1,NIR!$H$5:$H$287,0)),0),0) -> 0 | I24: =EF_E_a_T!$B$33 -> 175.2955253 | J24: =EF_E_a_T!$E$33 -> 92.72279743 | K24: 0 | L24: =IF(ISNUMBER(IFERROR(INDEX(NIR!$B$5:$B$287,MATCH($A24 & "#" & L$1,NIR!$H$5:$H$287,0)),0)),IFERROR(INDEX(NIR!$B$5:$B$287,MATCH($A24 & "#" & L$1,NIR!$H$5:$H$287,0)),0),0) -> 0 | M24: =IF(ISNUMBER(IFERROR(INDEX(NIR!$B$5:$B$287,MATCH($A24 & "#" & M$1,NIR!$H$5:$H$287,0)),0)),IFERROR(INDEX(NIR!$B$5:$B$287,MATCH($A24 & "#" & M$1,NIR!$H$5:$H$287,0)),0),0) -> 0 | N24: =IF(ISNUMBER(IFERROR(INDEX(NIR!$B$5:$B$287,MATCH($A24 & "#" & N$1,NIR!$H$5:$H$287,0)),0)),IFERROR(INDEX(NIR!$B$5:$B$287,MATCH($A24 & "#" & N$1,NIR!$H$5:$H$287,0)),0),0) -> 0 | O24: =IF(ISNUMBER(IFERROR(INDEX(NIR!$B$5:$B$287,MATCH($A24 & "#" & O$1,NIR!$H$5:$H$287,0)),0)),IFERROR(INDEX(NIR!$B$5:$B$287,MATCH($A24 & "#" & O$1,NIR!$H$5:$H$287,0)),0),0) -> 0 | P24: =IF(ISNUMBER(IFERROR(INDEX(NIR!$B$5:$B$287,MATCH($A24 & "#" & P$1,NIR!$H$5:$H$287,0)),0)),IFERROR(INDEX(NIR!$B$5:$B$287,MATCH($A24 & "#" & P$1,NIR!$H$5:$H$287,0)),0),0) -> 0
A25: agriculture | C25: Zemědělství | D25: =IF(ISNUMBER(IFERROR(INDEX(NIR!$B$5:$B$287,MATCH($A25 & "#" & D$1,NIR!$H$5:$H$287,0)),0)),IFERROR(INDEX(NIR!$B$5:$B$287,MATCH($A25 & "#" & D$1,NIR!$H$5:$H$287,0)),0),0) -> 98.26158286 | E25: =IF(ISNUMBER(IFERROR(INDEX(NIR!$B$5:$B$287,MATCH($A25 & "#" & E$1,NIR!$H$5:$H$287,0)),0)),IFERROR(INDEX(NIR!$B$5:$B$287,MATCH($A25 & "#" & E$1,NIR!$H$5:$H$287,0)),0),0) -> 73.92989281 | F25: =IF(ISNUMBER(IFERROR(INDEX(NIR!$B$5:$B$287,MATCH($A25 & "#" & F$1,NIR!$H$5:$H$287,0)),0)),IFERROR(INDEX(NIR!$B$5:$B$287,MATCH($A25 & "#" & F$1,NIR!$H$5:$H$287,0)),0),0) -> 55.42024357 | G25: 0 | H25: =IF(ISNUMBER(IFERROR(INDEX(NIR!$B$5:$B$287,MATCH($A25 & "#" & H$1,NIR!$H$5:$H$287,0)),0)),IFERROR(INDEX(NIR!$B$5:$B$287,MATCH($A25 & "#" & H$1,NIR!$H$5:$H$287,0)),0),0) -> 0 | I25: =EF_E_a_T!$B$33 -> 175.2955253 | J25: =EF_E_a_T!$E$33 -> 92.72279743 | K25: 0 | L25: =IF(ISNUMBER(IFERROR(INDEX(NIR!$B$5:$B$287,MATCH($A25 & "#" & L$1,NIR!$H$5:$H$287,0)),0)),IFERROR(INDEX(NIR!$B$5:$B$287,MATCH($A25 & "#" & L$1,NIR!$H$5:$H$287,0)),0),0) -> 0 | M25: =IF(ISNUMBER(IFERROR(INDEX(NIR!$B$5:$B$287,MATCH($A25 & "#" & M$1,NIR!$H$5:$H$287,0)),0)),IFERROR(INDEX(NIR!$B$5:$B$287,MATCH($A25 & "#" & M$1,NIR!$H$5:$H$287,0)),0),0) -> 0 | N25: =IF(ISNUMBER(IFERROR(INDEX(NIR!$B$5:$B$287,MATCH($A25 & "#" & N$1,NIR!$H$5:$H$287,0)),0)),IFERROR(INDEX(NIR!$B$5:$B$287,MATCH($A25 & "#" & N$1,NIR!$H$5:$H$287,0)),0),0) -> 0 | O25: =IF(ISNUMBER(IFERROR(INDEX(NIR!$B$5:$B$287,MATCH($A25 & "#" & O$1,NIR!$H$5:$H$287,0)),0)),IFERROR(INDEX(NIR!$B$5:$B$287,MATCH($A25 & "#" & O$1,NIR!$H$5:$H$287,0)),0),0) -> 0 | P25: =IF(ISNUMBER(IFERROR(INDEX(NIR!$B$5:$B$287,MATCH($A25 & "#" & P$1,NIR!$H$5:$H$287,0)),0)),IFERROR(INDEX(NIR!$B$5:$B$287,MATCH($A25 & "#" & P$1,NIR!$H$5:$H$287,0)),0),0) -> 0
C27: Emisní faktory z NIR CH4 [kg/TJ] | D27: Tuhá paliva | E27: Kapalná paliva | F27: Plynná paliva | G27: Biomasa | H27: Ostatní paliva | I27: Elektřina | J27: Teplo | K27: OZE mimo biomasu | L27: Letecký benzín | M27: Benzín | N27: Diesel | O27: Letecký petrolej | P27: LPG
A28: residential | C28: Domácnosti | D28: =IF(ISNUMBER(IFERROR(INDEX(NIR!$C$5:$C$287,MATCH($A28 & "#" & D$1,NIR!$H$5:$H$287,0)),0)),IFERROR(INDEX(NIR!$C$5:$C$287,MATCH($A28 & "#" & D$1,NIR!$H$5:$H$287,0)),0),0) -> 300 | E28: =IF(ISNUMBER(IFERROR(INDEX(NIR!$C$5:$C$287,MATCH($A28 & "#" & E$1,NIR!$H$5:$H$287,0)),0)),IFERROR(INDEX(NIR!$C$5:$C$287,MATCH($A28 & "#" & E$1,NIR!$H$5:$H$287,0)),0),0) -> 5 | F28: =IF(ISNUMBER(IFERROR(INDEX(NIR!$C$5:$C$287,MATCH($A28 & "#" & F$1,NIR!$H$5:$H$287,0)),0)),IFERROR(INDEX(NIR!$C$5:$C$287,MATCH($A28 & "#" & F$1,NIR!$H$5:$H$287,0)),0),0) -> 5 | G28: =IF(ISNUMBER(IFERROR(INDEX(NIR!$C$5:$C$287,MATCH($A28 & "#" & G$1,NIR!$H$5:$H$287,0)),0)),IFERROR(INDEX(NIR!$C$5:$C$287,MATCH($A28 & "#" & G$1,NIR!$H$5:$H$287,0)),0),0) -> 299.0414042 | H28: =IF(ISNUMBER(IFERROR(INDEX(NIR!$C$5:$C$287,MATCH($A28 & "#" & H$1,NIR!$H$5:$H$287,0)),0)),IFERROR(INDEX(NIR!$C$5:$C$287,MATCH($A28 & "#" & H$1,NIR!$H$5:$H$287,0)),0),0) -> 0 | I28: =EF_E_a_T!$C$33 -> 0.02632473189 | J28: =EF_E_a_T!$F$33 -> 0.01420256281 | K28: 0 | L28: =IF(ISNUMBER(IFERROR(INDEX(NIR!$C$5:$C$287,MATCH($A28 & "#" & L$1,NIR!$H$5:$H$287,0)),0)),IFERROR(INDEX(NIR!$C$5:$C$287,MATCH($A28 & "#" & L$1,NIR!$H$5:$H$287,0)),0),0) -> 0 | M28: =IF(ISNUMBER(IFERROR(INDEX(NIR!$C$5:$C$287,MATCH($A28 & "#" & M$1,NIR!$H$5:$H$287,0)),0)),IFERROR(INDEX(NIR!$C$5:$C$287,MATCH($A28 & "#" & M$1,NIR!$H$5:$H$287,0)),0),0) -> 0 | N28: =IF(ISNUMBER(IFERROR(INDEX(NIR!$C$5:$C$287,MATCH($A28 & "#" & N$1,NIR!$H$5:$H$287,0)),0)),IFERROR(INDEX(NIR!$C$5:$C$287,MATCH($A28 & "#" & N$1,NIR!$H$5:$H$287,0)),0),0) -> 0 | O28: =IF(ISNUMBER(IFERROR(INDEX(NIR!$C$5:$C$287,MATCH($A28 & "#" & O$1,NIR!$H$5:$H$287,0)),0)),IFERROR(INDEX(NIR!$C$5:$C$287,MATCH($A28 & "#" & O$1,NIR!$H$5:$H$287,0)),0),0) -> 0 | P28: =IF(ISNUMBER(IFERROR(INDEX(NIR!$C$5:$C$287,MATCH($A28 & "#" & P$1,NIR!$H$5:$H$287,0)),0)),IFERROR(INDEX(NIR!$C$5:$C$287,MATCH($A28 & "#" & P$1,NIR!$H$5:$H$287,0)),0),0) -> 0
A29: services | C29: Služby | D29: =IF(ISNUMBER(IFERROR(INDEX(NIR!$C$5:$C$287,MATCH($A29 & "#" & D$1,NIR!$H$5:$H$287,0)),0)),IFERROR(INDEX(NIR!$C$5:$C$287,MATCH($A29 & "#" & D$1,NIR!$H$5:$H$287,0)),0),0) -> 10 | E29: =IF(ISNUMBER(IFERROR(INDEX(NIR!$C$5:$C$287,MATCH($A29 & "#" & E$1,NIR!$H$5:$H$287,0)),0)),IFERROR(INDEX(NIR!$C$5:$C$287,MATCH($A29 & "#" & E$1,NIR!$H$5:$H$287,0)),0),0) -> 8.446690755 | F29: =IF(ISNUMBER(IFERROR(INDEX(NIR!$C$5:$C$287,MATCH($A29 & "#" & F$1,NIR!$H$5:$H$287,0)),0)),IFERROR(INDEX(NIR!$C$5:$C$287,MATCH($A29 & "#" & F$1,NIR!$H$5:$H$287,0)),0),0) -> 5 | G29: =IF(ISNUMBER(IFERROR(INDEX(NIR!$C$5:$C$287,MATCH($A29 & "#" & G$1,NIR!$H$5:$H$287,0)),0)),IFERROR(INDEX(NIR!$C$5:$C$287,MATCH($A29 & "#" & G$1,NIR!$H$5:$H$287,0)),0),0) -> 134.0869854 | H29: =IF(ISNUMBER(IFERROR(INDEX(NIR!$C$5:$C$287,MATCH($A29 & "#" & H$1,NIR!$H$5:$H$287,0)),0)),IFERROR(INDEX(NIR!$C$5:$C$287,MATCH($A29 & "#" & H$1,NIR!$H$5:$H$287,0)),0),0) -> 0 | I29: =EF_E_a_T!$C$33 -> 0.02632473189 | J29: =EF_E_a_T!$F$33 -> 0.01420256281 | K29: 0 | L29: =IF(ISNUMBER(IFERROR(INDEX(NIR!$C$5:$C$287,MATCH($A29 & "#" & L$1,NIR!$H$5:$H$287,0)),0)),IFERROR(INDEX(NIR!$C$5:$C$287,MATCH($A29 & "#" & L$1,NIR!$H$5:$H$287,0)),0),0) -> 0 | M29: =IF(ISNUMBER(IFERROR(INDEX(NIR!$C$5:$C$287,MATCH($A29 & "#" & M$1,NIR!$H$5:$H$287,0)),0)),IFERROR(INDEX(NIR!$C$5:$C$287,MATCH($A29 & "#" & M$1,NIR!$H$5:$H$287,0)),0),0) -> 0 | N29: =IF(ISNUMBER(IFERROR(INDEX(NIR!$C$5:$C$287,MATCH($A29 & "#" & N$1,NIR!$H$5:$H$287,0)),0)),IFERROR(INDEX(NIR!$C$5:$C$287,MATCH($A29 & "#" & N$1,NIR!$H$5:$H$287,0)),0),0) -> 0 | O29: =IF(ISNUMBER(IFERROR(INDEX(NIR!$C$5:$C$287,MATCH($A29 & "#" & O$1,NIR!$H$5:$H$287,0)),0)),IFERROR(INDEX(NIR!$C$5:$C$287,MATCH($A29 & "#" & O$1,NIR!$H$5:$H$287,0)),0),0) -> 0 | P29: =IF(ISNUMBER(IFERROR(INDEX(NIR!$C$5:$C$287,MATCH($A29 & "#" & P$1,NIR!$H$5:$H$287,0)),0)),IFERROR(INDEX(NIR!$C$5:$C$287,MATCH($A29 & "#" & P$1,NIR!$H$5:$H$287,0)),0),0) -> 0
A30: transport | C30: Doprava celkem | D30: =IF(ISNUMBER(IFERROR(INDEX(NIR!$C$5:$C$287,MATCH($A30 & "#" & D$1,NIR!$H$5:$H$287,0)),0)),IFERROR(INDEX(NIR!$C$5:$C$287,MATCH($A30 & "#" & D$1,NIR!$H$5:$H$287,0)),0),0) -> 0 | E30: =IF(ISNUMBER(IFERROR(INDEX(NIR!$C$5:$C$287,MATCH($A30 & "#" & E$1,NIR!$H$5:$H$287,0)),0)),IFERROR(INDEX(NIR!$C$5:$C$287,MATCH($A30 & "#" & E$1,NIR!$H$5:$H$287,0)),0),0) -> 3.64695989 | F30: =IF(ISNUMBER(IFERROR(INDEX(NIR!$C$5:$C$287,MATCH($A30 & "#" & F$1,NIR!$H$5:$H$287,0)),0)),IFERROR(INDEX(NIR!$C$5:$C$287,MATCH($A30 & "#" & F$1,NIR!$H$5:$H$287,0)),0),0) -> 48.1553589 | G30: =IF(ISNUMBER(IFERROR(INDEX(NIR!$C$5:$C$287,MATCH($A30 & "#" & G$1,NIR!$H$5:$H$287,0)),0)),IFERROR(INDEX(NIR!$C$5:$C$287,MATCH($A30 & "#" & G$1,NIR!$H$5:$H$287,0)),0),0) -> 1.915418076 | H30: =IF(ISNUMBER(IFERROR(INDEX(NIR!$C$5:$C$287,MATCH($A30 & "#" & H$1,NIR!$H$5:$H$287,0)),0)),IFERROR(INDEX(NIR!$C$5:$C$287,MATCH($A30 & "#" & H$1,NIR!$H$5:$H$287,0)),0),0) -> 0 | I30: =EF_E_a_T!$C$33 -> 0.02632473189 | J30: 0 | K30: 0 | L30: =IF(ISNUMBER(IFERROR(INDEX(NIR!$C$5:$C$287,MATCH($A30 & "#" & L$1,NIR!$H$5:$H$287,0)),0)),IFERROR(INDEX(NIR!$C$5:$C$287,MATCH($A30 & "#" & L$1,NIR!$H$5:$H$287,0)),0),0) -> 0 | M30: =IF(ISNUMBER(IFERROR(INDEX(NIR!$C$5:$C$287,MATCH($A30 & "#" & M$1,NIR!$H$5:$H$287,0)),0)),IFERROR(INDEX(NIR!$C$5:$C$287,MATCH($A30 & "#" & M$1,NIR!$H$5:$H$287,0)),0),0) -> 0 | N30: =IF(ISNUMBER(IFERROR(INDEX(NIR!$C$5:$C$287,MATCH($A30 & "#" & N$1,NIR!$H$5:$H$287,0)),0)),IFERROR(INDEX(NIR!$C$5:$C$287,MATCH($A30 & "#" & N$1,NIR!$H$5:$H$287,0)),0),0) -> 0 | O30: =IF(ISNUMBER(IFERROR(INDEX(NIR!$C$5:$C$287,MATCH($A30 & "#" & O$1,NIR!$H$5:$H$287,0)),0)),IFERROR(INDEX(NIR!$C$5:$C$287,MATCH($A30 & "#" & O$1,NIR!$H$5:$H$287,0)),0),0) -> 0 | P30: =IF(ISNUMBER(IFERROR(INDEX(NIR!$C$5:$C$287,MATCH($A30 & "#" & P$1,NIR!$H$5:$H$287,0)),0)),IFERROR(INDEX(NIR!$C$5:$C$287,MATCH($A30 & "#" & P$1,NIR!$H$5:$H$287,0)),0),0) -> 0
A31: rail | C31: Železnice | D31: =IF(ISNUMBER(IFERROR(INDEX(NIR!$C$5:$C$287,MATCH($A31 & "#" & D$1,NIR!$H$5:$H$287,0)),0)),IFERROR(INDEX(NIR!$C$5:$C$287,MATCH($A31 & "#" & D$1,NIR!$H$5:$H$287,0)),0),0) -> 0 | E31: =IF(ISNUMBER(IFERROR(INDEX(NIR!$C$5:$C$287,MATCH($A31 & "#" & E$1,NIR!$H$5:$H$287,0)),0)),IFERROR(INDEX(NIR!$C$5:$C$287,MATCH($A31 & "#" & E$1,NIR!$H$5:$H$287,0)),0),0) -> 4.15 | F31: =IF(ISNUMBER(IFERROR(INDEX(NIR!$C$5:$C$287,MATCH($A31 & "#" & F$1,NIR!$H$5:$H$287,0)),0)),IFERROR(INDEX(NIR!$C$5:$C$287,MATCH($A31 & "#" & F$1,NIR!$H$5:$H$287,0)),0),0) -> 0 | G31: =IF(ISNUMBER(IFERROR(INDEX(NIR!$C$5:$C$287,MATCH($A31 & "#" & G$1,NIR!$H$5:$H$287,0)),0)),IFERROR(INDEX(NIR!$C$5:$C$287,MATCH($A31 & "#" & G$1,NIR!$H$5:$H$287,0)),0),0) -> 0 | H31: =IF(ISNUMBER(IFERROR(INDEX(NIR!$C$5:$C$287,MATCH($A31 & "#" & H$1,NIR!$H$5:$H$287,0)),0)),IFERROR(INDEX(NIR!$C$5:$C$287,MATCH($A31 & "#" & H$1,NIR!$H$5:$H$287,0)),0),0) -> 0 | I31: =EF_E_a_T!$C$33 -> 0.02632473189 | J31: 0 | K31: 0 | L31: =IF(ISNUMBER(IFERROR(INDEX(NIR!$C$5:$C$287,MATCH($A31 & "#" & L$1,NIR!$H$5:$H$287,0)),0)),IFERROR(INDEX(NIR!$C$5:$C$287,MATCH($A31 & "#" & L$1,NIR!$H$5:$H$287,0)),0),0) -> 0 | M31: =IF(ISNUMBER(IFERROR(INDEX(NIR!$C$5:$C$287,MATCH($A31 & "#" & M$1,NIR!$H$5:$H$287,0)),0)),IFERROR(INDEX(NIR!$C$5:$C$287,MATCH($A31 & "#" & M$1,NIR!$H$5:$H$287,0)),0),0) -> 0 | N31: =IF(ISNUMBER(IFERROR(INDEX(NIR!$C$5:$C$287,MATCH($A31 & "#" & N$1,NIR!$H$5:$H$287,0)),0)),IFERROR(INDEX(NIR!$C$5:$C$287,MATCH($A31 & "#" & N$1,NIR!$H$5:$H$287,0)),0),0) -> 0 | O31: =IF(ISNUMBER(IFERROR(INDEX(NIR!$C$5:$C$287,MATCH($A31 & "#" & O$1,NIR!$H$5:$H$287,0)),0)),IFERROR(INDEX(NIR!$C$5:$C$287,MATCH($A31 & "#" & O$1,NIR!$H$5:$H$287,0)),0),0) -> 0 | P31: =IF(ISNUMBER(IFERROR(INDEX(NIR!$C$5:$C$287,MATCH($A31 & "#" & P$1,NIR!$H$5:$H$287,0)),0)),IFERROR(INDEX(NIR!$C$5:$C$287,MATCH($A31 & "#" & P$1,NIR!$H$5:$H$287,0)),0),0) -> 0
A32: road | C32: Silniční | D32: =IF(ISNUMBER(IFERROR(INDEX(NIR!$C$5:$C$287,MATCH($A32 & "#" & D$1,NIR!$H$5:$H$287,0)),0)),IFERROR(INDEX(NIR!$C$5:$C$287,MATCH($A32 & "#" & D$1,NIR!$H$5:$H$287,0)),0),0) -> 0 | E32: =IF(ISNUMBER(IFERROR(INDEX(NIR!$C$5:$C$287,MATCH($A32 & "#" & E$1,NIR!$H$5:$H$287,0)),0)),IFERROR(INDEX(NIR!$C$5:$C$287,MATCH($A32 & "#" & E$1,NIR!$H$5:$H$287,0)),0),0) -> 0 | F32: =IF(ISNUMBER(IFERROR(INDEX(NIR!$C$5:$C$287,MATCH($A32 & "#" & F$1,NIR!$H$5:$H$287,0)),0)),IFERROR(INDEX(NIR!$C$5:$C$287,MATCH($A32 & "#" & F$1,NIR!$H$5:$H$287,0)),0),0) -> 92 | G32: =IF(ISNUMBER(IFERROR(INDEX(NIR!$C$5:$C$287,MATCH($A32 & "#" & G$1,NIR!$H$5:$H$287,0)),0)),IFERROR(INDEX(NIR!$C$5:$C$287,MATCH($A32 & "#" & G$1,NIR!$H$5:$H$287,0)),0),0) -> 1.915418076 | H32: =IF(ISNUMBER(IFERROR(INDEX(NIR!$C$5:$C$287,MATCH($A32 & "#" & H$1,NIR!$H$5:$H$287,0)),0)),IFERROR(INDEX(NIR!$C$5:$C$287,MATCH($A32 & "#" & H$1,NIR!$H$5:$H$287,0)),0),0) -> 0 | I32: =EF_E_a_T!$C$33 -> 0.02632473189 | J32: 0 | K32: 0 | L32: =IF(ISNUMBER(IFERROR(INDEX(NIR!$C$5:$C$287,MATCH($A32 & "#" & L$1,NIR!$H$5:$H$287,0)),0)),IFERROR(INDEX(NIR!$C$5:$C$287,MATCH($A32 & "#" & L$1,NIR!$H$5:$H$287,0)),0),0) -> 0 | M32: =IF(ISNUMBER(IFERROR(INDEX(NIR!$C$5:$C$287,MATCH($A32 & "#" & M$1,NIR!$H$5:$H$287,0)),0)),IFERROR(INDEX(NIR!$C$5:$C$287,MATCH($A32 & "#" & M$1,NIR!$H$5:$H$287,0)),0),0) -> 4.182755267 | N32: =IF(ISNUMBER(IFERROR(INDEX(NIR!$C$5:$C$287,MATCH($A32 & "#" & N$1,NIR!$H$5:$H$287,0)),0)),IFERROR(INDEX(NIR!$C$5:$C$287,MATCH($A32 & "#" & N$1,NIR!$H$5:$H$287,0)),0),0) -> 2.909137131 | O32: =IF(ISNUMBER(IFERROR(INDEX(NIR!$C$5:$C$287,MATCH($A32 & "#" & O$1,NIR!$H$5:$H$287,0)),0)),IFERROR(INDEX(NIR!$C$5:$C$287,MATCH($A32 & "#" & O$1,NIR!$H$5:$H$287,0)),0),0) -> 0 | P32: =IF(ISNUMBER(IFERROR(INDEX(NIR!$C$5:$C$287,MATCH($A32 & "#" & P$1,NIR!$H$5:$H$287,0)),0)),IFERROR(INDEX(NIR!$C$5:$C$287,MATCH($A32 & "#" & P$1,NIR!$H$5:$H$287,0)),0),0) -> 22.20022291
A33: domaviation | C33: Vnitrostátní letecká doprava | D33: =IF(ISNUMBER(IFERROR(INDEX(NIR!$C$5:$C$287,MATCH($A33 & "#" & D$1,NIR!$H$5:$H$287,0)),0)),IFERROR(INDEX(NIR!$C$5:$C$287,MATCH($A33 & "#" & D$1,NIR!$H$5:$H$287,0)),0),0) -> 0 | E33: =IF(ISNUMBER(IFERROR(INDEX(NIR!$C$5:$C$287,MATCH($A33 & "#" & E$1,NIR!$H$5:$H$287,0)),0)),IFERROR(INDEX(NIR!$C$5:$C$287,MATCH($A33 & "#" & E$1,NIR!$H$5:$H$287,0)),0),0) -> 0 | F33: =IF(ISNUMBER(IFERROR(INDEX(NIR!$C$5:$C$287,MATCH($A33 & "#" & F$1,NIR!$H$5:$H$287,0)),0)),IFERROR(INDEX(NIR!$C$5:$C$287,MATCH($A33 & "#" & F$1,NIR!$H$5:$H$287,0)),0),0) -> 0 | G33: =IF(ISNUMBER(IFERROR(INDEX(NIR!$C$5:$C$287,MATCH($A33 & "#" & G$1,NIR!$H$5:$H$287,0)),0)),IFERROR(INDEX(NIR!$C$5:$C$287,MATCH($A33 & "#" & G$1,NIR!$H$5:$H$287,0)),0),0) -> 0 | H33: =IF(ISNUMBER(IFERROR(INDEX(NIR!$C$5:$C$287,MATCH($A33 & "#" & H$1,NIR!$H$5:$H$287,0)),0)),IFERROR(INDEX(NIR!$C$5:$C$287,MATCH($A33 & "#" & H$1,NIR!$H$5:$H$287,0)),0),0) -> 0 | I33: =EF_E_a_T!$C$33 -> 0.02632473189 | J33: 0 | K33: 0 | L33: =IF(ISNUMBER(IFERROR(INDEX(NIR!$C$5:$C$287,MATCH($A33 & "#" & L$1,NIR!$H$5:$H$287,0)),0)),IFERROR(INDEX(NIR!$C$5:$C$287,MATCH($A33 & "#" & L$1,NIR!$H$5:$H$287,0)),0),0) -> 0.5 | M33: =IF(ISNUMBER(IFERROR(INDEX(NIR!$C$5:$C$287,MATCH($A33 & "#" & M$1,NIR!$H$5:$H$287,0)),0)),IFERROR(INDEX(NIR!$C$5:$C$287,MATCH($A33 & "#" & M$1,NIR!$H$5:$H$287,0)),0),0) -> 0 | N33: =IF(ISNUMBER(IFERROR(INDEX(NIR!$C$5:$C$287,MATCH($A33 & "#" & N$1,NIR!$H$5:$H$287,0)),0)),IFERROR(INDEX(NIR!$C$5:$C$287,MATCH($A33 & "#" & N$1,NIR!$H$5:$H$287,0)),0),0) -> 0 | O33: =IF(ISNUMBER(IFERROR(INDEX(NIR!$C$5:$C$287,MATCH($A33 & "#" & O$1,NIR!$H$5:$H$287,0)),0)),IFERROR(INDEX(NIR!$C$5:$C$287,MATCH($A33 & "#" & O$1,NIR!$H$5:$H$287,0)),0),0) -> 0.5 | P33: =IF(ISNUMBER(IFERROR(INDEX(NIR!$C$5:$C$287,MATCH($A33 & "#" & P$1,NIR!$H$5:$H$287,0)),0)),IFERROR(INDEX(NIR!$C$5:$C$287,MATCH($A33 & "#" & P$1,NIR!$H$5:$H$287,0)),0),0) -> 0
A34: domnavigation | C34: Vnitrostátní lodní doprava | D34: =IF(ISNUMBER(IFERROR(INDEX(NIR!$C$5:$C$287,MATCH($A34 & "#" & D$1,NIR!$H$5:$H$287,0)),0)),IFERROR(INDEX(NIR!$C$5:$C$287,MATCH($A34 & "#" & D$1,NIR!$H$5:$H$287,0)),0),0) -> 0 | E34: =IF(ISNUMBER(IFERROR(INDEX(NIR!$C$5:$C$287,MATCH($A34 & "#" & E$1,NIR!$H$5:$H$287,0)),0)),IFERROR(INDEX(NIR!$C$5:$C$287,MATCH($A34 & "#" & E$1,NIR!$H$5:$H$287,0)),0),0) -> 0 | F34: =IF(ISNUMBER(IFERROR(INDEX(NIR!$C$5:$C$287,MATCH($A34 & "#" & F$1,NIR!$H$5:$H$287,0)),0)),IFERROR(INDEX(NIR!$C$5:$C$287,MATCH($A34 & "#" & F$1,NIR!$H$5:$H$287,0)),0),0) -> 0 | G34: =IF(ISNUMBER(IFERROR(INDEX(NIR!$C$5:$C$287,MATCH($A34 & "#" & G$1,NIR!$H$5:$H$287,0)),0)),IFERROR(INDEX(NIR!$C$5:$C$287,MATCH($A34 & "#" & G$1,NIR!$H$5:$H$287,0)),0),0) -> 0 | H34: =IF(ISNUMBER(IFERROR(INDEX(NIR!$C$5:$C$287,MATCH($A34 & "#" & H$1,NIR!$H$5:$H$287,0)),0)),IFERROR(INDEX(NIR!$C$5:$C$287,MATCH($A34 & "#" & H$1,NIR!$H$5:$H$287,0)),0),0) -> 0 | I34: =EF_E_a_T!$C$33 -> 0.02632473189 | J34: 0 | K34: 0 | L34: =IF(ISNUMBER(IFERROR(INDEX(NIR!$C$5:$C$287,MATCH($A34 & "#" & L$1,NIR!$H$5:$H$287,0)),0)),IFERROR(INDEX(NIR!$C$5:$C$287,MATCH($A34 & "#" & L$1,NIR!$H$5:$H$287,0)),0),0) -> 0 | M34: =IF(ISNUMBER(IFERROR(INDEX(NIR!$C$5:$C$287,MATCH($A34 & "#" & M$1,NIR!$H$5:$H$287,0)),0)),IFERROR(INDEX(NIR!$C$5:$C$287,MATCH($A34 & "#" & M$1,NIR!$H$5:$H$287,0)),0),0) -> 0 | N34: =IF(ISNUMBER(IFERROR(INDEX(NIR!$C$5:$C$287,MATCH($A34 & "#" & N$1,NIR!$H$5:$H$287,0)),0)),IFERROR(INDEX(NIR!$C$5:$C$287,MATCH($A34 & "#" & N$1,NIR!$H$5:$H$287,0)),0),0) -> 7 | O34: =IF(ISNUMBER(IFERROR(INDEX(NIR!$C$5:$C$287,MATCH($A34 & "#" & O$1,NIR!$H$5:$H$287,0)),0)),IFERROR(INDEX(NIR!$C$5:$C$287,MATCH($A34 & "#" & O$1,NIR!$H$5:$H$287,0)),0),0) -> 0 | P34: =IF(ISNUMBER(IFERROR(INDEX(NIR!$C$5:$C$287,MATCH($A34 & "#" & P$1,NIR!$H$5:$H$287,0)),0)),IFERROR(INDEX(NIR!$C$5:$C$287,MATCH($A34 & "#" & P$1,NIR!$H$5:$H$287,0)),0),0) -> 0
A35: pipeline | C35: Potrubní doprava | D35: =IF(ISNUMBER(IFERROR(INDEX(NIR!$C$5:$C$287,MATCH($A35 & "#" & D$1,NIR!$H$5:$H$287,0)),0)),IFERROR(INDEX(NIR!$C$5:$C$287,MATCH($A35 & "#" & D$1,NIR!$H$5:$H$287,0)),0),0) -> 0 | E35: =IF(ISNUMBER(IFERROR(INDEX(NIR!$C$5:$C$287,MATCH($A35 & "#" & E$1,NIR!$H$5:$H$287,0)),0)),IFERROR(INDEX(NIR!$C$5:$C$287,MATCH($A35 & "#" & E$1,NIR!$H$5:$H$287,0)),0),0) -> 0 | F35: =IF(ISNUMBER(IFERROR(INDEX(NIR!$C$5:$C$287,MATCH($A35 & "#" & F$1,NIR!$H$5:$H$287,0)),0)),IFERROR(INDEX(NIR!$C$5:$C$287,MATCH($A35 & "#" & F$1,NIR!$H$5:$H$287,0)),0),0) -> 1 | G35: =IF(ISNUMBER(IFERROR(INDEX(NIR!$C$5:$C$287,MATCH($A35 & "#" & G$1,NIR!$H$5:$H$287,0)),0)),IFERROR(INDEX(NIR!$C$5:$C$287,MATCH($A35 & "#" & G$1,NIR!$H$5:$H$287,0)),0),0) -> 0 | H35: =IF(ISNUMBER(IFERROR(INDEX(NIR!$C$5:$C$287,MATCH($A35 & "#" & H$1,NIR!$H$5:$H$287,0)),0)),IFERROR(INDEX(NIR!$C$5:$C$287,MATCH($A35 & "#" & H$1,NIR!$H$5:$H$287,0)),0),0) -> 0 | I35: =EF_E_a_T!$C$33 -> 0.02632473189 | J35: 0 | K35: 0 | L35: =IF(ISNUMBER(IFERROR(INDEX(NIR!$C$5:$C$287,MATCH($A35 & "#" & L$1,NIR!$H$5:$H$287,0)),0)),IFERROR(INDEX(NIR!$C$5:$C$287,MATCH($A35 & "#" & L$1,NIR!$H$5:$H$287,0)),0),0) -> 0 | M35: =IF(ISNUMBER(IFERROR(INDEX(NIR!$C$5:$C$287,MATCH($A35 & "#" & M$1,NIR!$H$5:$H$287,0)),0)),IFERROR(INDEX(NIR!$C$5:$C$287,MATCH($A35 & "#" & M$1,NIR!$H$5:$H$287,0)),0),0) -> 0 | N35: =IF(ISNUMBER(IFERROR(INDEX(NIR!$C$5:$C$287,MATCH($A35 & "#" & N$1,NIR!$H$5:$H$287,0)),0)),IFERROR(INDEX(NIR!$C$5:$C$287,MATCH($A35 & "#" & N$1,NIR!$H$5:$H$287,0)),0),0) -> 0 | O35: =IF(ISNUMBER(IFERROR(INDEX(NIR!$C$5:$C$287,MATCH($A35 & "#" & O$1,NIR!$H$5:$H$287,0)),0)),IFERROR(INDEX(NIR!$C$5:$C$287,MATCH($A35 & "#" & O$1,NIR!$H$5:$H$287,0)),0),0) -> 0 | P35: =IF(ISNUMBER(IFERROR(INDEX(NIR!$C$5:$C$287,MATCH($A35 & "#" & P$1,NIR!$H$5:$H$287,0)),0)),IFERROR(INDEX(NIR!$C$5:$C$287,MATCH($A35 & "#" & P$1,NIR!$H$5:$H$287,0)),0),0) -> 0
A36: industry | C36: Průmysl celkem | D36: =IF(ISNUMBER(IFERROR(INDEX(NIR!$C$5:$C$287,MATCH($A36 & "#" & D$1,NIR!$H$5:$H$287,0)),0)),IFERROR(INDEX(NIR!$C$5:$C$287,MATCH($A36 & "#" & D$1,NIR!$H$5:$H$287,0)),0),0) -> 8.654559321 | E36: =IF(ISNUMBER(IFERROR(INDEX(NIR!$C$5:$C$287,MATCH($A36 & "#" & E$1,NIR!$H$5:$H$287,0)),0)),IFERROR(INDEX(NIR!$C$5:$C$287,MATCH($A36 & "#" & E$1,NIR!$H$5:$H$287,0)),0),0) -> 2.823698536 | F36: =IF(ISNUMBER(IFERROR(INDEX(NIR!$C$5:$C$287,MATCH($A36 & "#" & F$1,NIR!$H$5:$H$287,0)),0)),IFERROR(INDEX(NIR!$C$5:$C$287,MATCH($A36 & "#" & F$1,NIR!$H$5:$H$287,0)),0),0) -> 1 | G36: =IF(ISNUMBER(IFERROR(INDEX(NIR!$C$5:$C$287,MATCH($A36 & "#" & G$1,NIR!$H$5:$H$287,0)),0)),IFERROR(INDEX(NIR!$C$5:$C$287,MATCH($A36 & "#" & G$1,NIR!$H$5:$H$287,0)),0),0) -> 18.23334405 | H36: =IF(ISNUMBER(IFERROR(INDEX(NIR!$C$5:$C$287,MATCH($A36 & "#" & H$1,NIR!$H$5:$H$287,0)),0)),IFERROR(INDEX(NIR!$C$5:$C$287,MATCH($A36 & "#" & H$1,NIR!$H$5:$H$287,0)),0),0) -> 30 | I36: =EF_E_a_T!$C$33 -> 0.02632473189 | J36: =EF_E_a_T!$F$33 -> 0.01420256281 | K36: 0 | L36: =IF(ISNUMBER(IFERROR(INDEX(NIR!$C$5:$C$287,MATCH($A36 & "#" & L$1,NIR!$H$5:$H$287,0)),0)),IFERROR(INDEX(NIR!$C$5:$C$287,MATCH($A36 & "#" & L$1,NIR!$H$5:$H$287,0)),0),0) -> 0 | M36: =IF(ISNUMBER(IFERROR(INDEX(NIR!$C$5:$C$287,MATCH($A36 & "#" & M$1,NIR!$H$5:$H$287,0)),0)),IFERROR(INDEX(NIR!$C$5:$C$287,MATCH($A36 & "#" & M$1,NIR!$H$5:$H$287,0)),0),0) -> 0 | N36: =IF(ISNUMBER(IFERROR(INDEX(NIR!$C$5:$C$287,MATCH($A36 & "#" & N$1,NIR!$H$5:$H$287,0)),0)),IFERROR(INDEX(NIR!$C$5:$C$287,MATCH($A36 & "#" & N$1,NIR!$H$5:$H$287,0)),0),0) -> 0 | O36: =IF(ISNUMBER(IFERROR(INDEX(NIR!$C$5:$C$287,MATCH($A36 & "#" & O$1,NIR!$H$5:$H$287,0)),0)),IFERROR(INDEX(NIR!$C$5:$C$287,MATCH($A36 & "#" & O$1,NIR!$H$5:$H$287,0)),0),0) -> 0 | P36: =IF(ISNUMBER(IFERROR(INDEX(NIR!$C$5:$C$287,MATCH($A36 & "#" & P$1,NIR!$H$5:$H$287,0)),0)),IFERROR(INDEX(NIR!$C$5:$C$287,MATCH($A36 & "#" & P$1,NIR!$H$5:$H$287,0)),0),0) -> 0
A37: refinery | C37: Rafinérie | D37: =IF(ISNUMBER(IFERROR(INDEX(NIR!$C$5:$C$287,MATCH($A37 & "#" & D$1,NIR!$H$5:$H$287,0)),0)),IFERROR(INDEX(NIR!$C$5:$C$287,MATCH($A37 & "#" & D$1,NIR!$H$5:$H$287,0)),0),0) -> 0 | E37: =IF(ISNUMBER(IFERROR(INDEX(NIR!$C$5:$C$287,MATCH($A37 & "#" & E$1,NIR!$H$5:$H$287,0)),0)),IFERROR(INDEX(NIR!$C$5:$C$287,MATCH($A37 & "#" & E$1,NIR!$H$5:$H$287,0)),0),0) -> 1.707149946 | F37: =IF(ISNUMBER(IFERROR(INDEX(NIR!$C$5:$C$287,MATCH($A37 & "#" & F$1,NIR!$H$5:$H$287,0)),0)),IFERROR(INDEX(NIR!$C$5:$C$287,MATCH($A37 & "#" & F$1,NIR!$H$5:$H$287,0)),0),0) -> 1 | G37: =IF(ISNUMBER(IFERROR(INDEX(NIR!$C$5:$C$287,MATCH($A37 & "#" & G$1,NIR!$H$5:$H$287,0)),0)),IFERROR(INDEX(NIR!$C$5:$C$287,MATCH($A37 & "#" & G$1,NIR!$H$5:$H$287,0)),0),0) -> 0 | H37: =IF(ISNUMBER(IFERROR(INDEX(NIR!$C$5:$C$287,MATCH($A37 & "#" & H$1,NIR!$H$5:$H$287,0)),0)),IFERROR(INDEX(NIR!$C$5:$C$287,MATCH($A37 & "#" & H$1,NIR!$H$5:$H$287,0)),0),0) -> 0 | I37: =EF_E_a_T!$C$33 -> 0.02632473189 | J37: =EF_E_a_T!$F$33 -> 0.01420256281 | K37: 0 | L37: =IF(ISNUMBER(IFERROR(INDEX(NIR!$C$5:$C$287,MATCH($A37 & "#" & L$1,NIR!$H$5:$H$287,0)),0)),IFERROR(INDEX(NIR!$C$5:$C$287,MATCH($A37 & "#" & L$1,NIR!$H$5:$H$287,0)),0),0) -> 0 | M37: =IF(ISNUMBER(IFERROR(INDEX(NIR!$C$5:$C$287,MATCH($A37 & "#" & M$1,NIR!$H$5:$H$287,0)),0)),IFERROR(INDEX(NIR!$C$5:$C$287,MATCH($A37 & "#" & M$1,NIR!$H$5:$H$287,0)),0),0) -> 0 | N37: =IF(ISNUMBER(IFERROR(INDEX(NIR!$C$5:$C$287,MATCH($A37 & "#" & N$1,NIR!$H$5:$H$287,0)),0)),IFERROR(INDEX(NIR!$C$5:$C$287,MATCH($A37 & "#" & N$1,NIR!$H$5:$H$287,0)),0),0) -> 0 | O37: =IF(ISNUMBER(IFERROR(INDEX(NIR!$C$5:$C$287,MATCH($A37 & "#" & O$1,NIR!$H$5:$H$287,0)),0)),IFERROR(INDEX(NIR!$C$5:$C$287,MATCH($A37 & "#" & O$1,NIR!$H$5:$H$287,0)),0),0) -> 0 | P37: =IF(ISNUMBER(IFERROR(INDEX(NIR!$C$5:$C$287,MATCH($A37 & "#" & P$1,NIR!$H$5:$H$287,0)),0)),IFERROR(INDEX(NIR!$C$5:$C$287,MATCH($A37 & "#" & P$1,NIR!$H$5:$H$287,0)),0),0) -> 0
A38: ferrous | C38: Metalurgie železných kovů | D38: =IF(ISNUMBER(IFERROR(INDEX(NIR!$C$5:$C$287,MATCH($A38 & "#" & D$1,NIR!$H$5:$H$287,0)),0)),IFERROR(INDEX(NIR!$C$5:$C$287,MATCH($A38 & "#" & D$1,NIR!$H$5:$H$287,0)),0),0) -> 7.102979001 | E38: =IF(ISNUMBER(IFERROR(INDEX(NIR!$C$5:$C$287,MATCH($A38 & "#" & E$1,NIR!$H$5:$H$287,0)),0)),IFERROR(INDEX(NIR!$C$5:$C$287,MATCH($A38 & "#" & E$1,NIR!$H$5:$H$287,0)),0),0) -> 0 | F38: =IF(ISNUMBER(IFERROR(INDEX(NIR!$C$5:$C$287,MATCH($A38 & "#" & F$1,NIR!$H$5:$H$287,0)),0)),IFERROR(INDEX(NIR!$C$5:$C$287,MATCH($A38 & "#" & F$1,NIR!$H$5:$H$287,0)),0),0) -> 1 | G38: =IF(ISNUMBER(IFERROR(INDEX(NIR!$C$5:$C$287,MATCH($A38 & "#" & G$1,NIR!$H$5:$H$287,0)),0)),IFERROR(INDEX(NIR!$C$5:$C$287,MATCH($A38 & "#" & G$1,NIR!$H$5:$H$287,0)),0),0) -> 30 | H38: =IF(ISNUMBER(IFERROR(INDEX(NIR!$C$5:$C$287,MATCH($A38 & "#" & H$1,NIR!$H$5:$H$287,0)),0)),IFERROR(INDEX(NIR!$C$5:$C$287,MATCH($A38 & "#" & H$1,NIR!$H$5:$H$287,0)),0),0) -> 0 | I38: =EF_E_a_T!$C$33 -> 0.02632473189 | J38: =EF_E_a_T!$F$33 -> 0.01420256281 | K38: 0 | L38: =IF(ISNUMBER(IFERROR(INDEX(NIR!$C$5:$C$287,MATCH($A38 & "#" & L$1,NIR!$H$5:$H$287,0)),0)),IFERROR(INDEX(NIR!$C$5:$C$287,MATCH($A38 & "#" & L$1,NIR!$H$5:$H$287,0)),0),0) -> 0 | M38: =IF(ISNUMBER(IFERROR(INDEX(NIR!$C$5:$C$287,MATCH($A38 & "#" & M$1,NIR!$H$5:$H$287,0)),0)),IFERROR(INDEX(NIR!$C$5:$C$287,MATCH($A38 & "#" & M$1,NIR!$H$5:$H$287,0)),0),0) -> 0 | N38: =IF(ISNUMBER(IFERROR(INDEX(NIR!$C$5:$C$287,MATCH($A38 & "#" & N$1,NIR!$H$5:$H$287,0)),0)),IFERROR(INDEX(NIR!$C$5:$C$287,MATCH($A38 & "#" & N$1,NIR!$H$5:$H$287,0)),0),0) -> 0 | O38: =IF(ISNUMBER(IFERROR(INDEX(NIR!$C$5:$C$287,MATCH($A38 & "#" & O$1,NIR!$H$5:$H$287,0)),0)),IFERROR(INDEX(NIR!$C$5:$C$287,MATCH($A38 & "#" & O$1,NIR!$H$5:$H$287,0)),0),0) -> 0 | P38: =IF(ISNUMBER(IFERROR(INDEX(NIR!$C$5:$C$287,MATCH($A38 & "#" & P$1,NIR!$H$5:$H$287,0)),0)),IFERROR(INDEX(NIR!$C$5:$C$287,MATCH($A38 & "#" & P$1,NIR!$H$5:$H$287,0)),0),0) -> 0
A39: nonferrous | C39: Metalurgie neželezných kovů | D39: =IF(ISNUMBER(IFERROR(INDEX(NIR!$C$5:$C$287,MATCH($A39 & "#" & D$1,NIR!$H$5:$H$287,0)),0)),IFERROR(INDEX(NIR!$C$5:$C$287,MATCH($A39 & "#" & D$1,NIR!$H$5:$H$287,0)),0),0) -> 10 | E39: =IF(ISNUMBER(IFERROR(INDEX(NIR!$C$5:$C$287,MATCH($A39 & "#" & E$1,NIR!$H$5:$H$287,0)),0)),IFERROR(INDEX(NIR!$C$5:$C$287,MATCH($A39 & "#" & E$1,NIR!$H$5:$H$287,0)),0),0) -> 3 | F39: =IF(ISNUMBER(IFERROR(INDEX(NIR!$C$5:$C$287,MATCH($A39 & "#" & F$1,NIR!$H$5:$H$287,0)),0)),IFERROR(INDEX(NIR!$C$5:$C$287,MATCH($A39 & "#" & F$1,NIR!$H$5:$H$287,0)),0),0) -> 1 | G39: =IF(ISNUMBER(IFERROR(INDEX(NIR!$C$5:$C$287,MATCH($A39 & "#" & G$1,NIR!$H$5:$H$287,0)),0)),IFERROR(INDEX(NIR!$C$5:$C$287,MATCH($A39 & "#" & G$1,NIR!$H$5:$H$287,0)),0),0) -> 30 | H39: =IF(ISNUMBER(IFERROR(INDEX(NIR!$C$5:$C$287,MATCH($A39 & "#" & H$1,NIR!$H$5:$H$287,0)),0)),IFERROR(INDEX(NIR!$C$5:$C$287,MATCH($A39 & "#" & H$1,NIR!$H$5:$H$287,0)),0),0) -> 0 | I39: =EF_E_a_T!$C$33 -> 0.02632473189 | J39: =EF_E_a_T!$F$33 -> 0.01420256281 | K39: 0 | L39: =IF(ISNUMBER(IFERROR(INDEX(NIR!$C$5:$C$287,MATCH($A39 & "#" & L$1,NIR!$H$5:$H$287,0)),0)),IFERROR(INDEX(NIR!$C$5:$C$287,MATCH($A39 & "#" & L$1,NIR!$H$5:$H$287,0)),0),0) -> 0 | M39: =IF(ISNUMBER(IFERROR(INDEX(NIR!$C$5:$C$287,MATCH($A39 & "#" & M$1,NIR!$H$5:$H$287,0)),0)),IFERROR(INDEX(NIR!$C$5:$C$287,MATCH($A39 & "#" & M$1,NIR!$H$5:$H$287,0)),0),0) -> 0 | N39: =IF(ISNUMBER(IFERROR(INDEX(NIR!$C$5:$C$287,MATCH($A39 & "#" & N$1,NIR!$H$5:$H$287,0)),0)),IFERROR(INDEX(NIR!$C$5:$C$287,MATCH($A39 & "#" & N$1,NIR!$H$5:$H$287,0)),0),0) -> 0 | O39: =IF(ISNUMBER(IFERROR(INDEX(NIR!$C$5:$C$287,MATCH($A39 & "#" & O$1,NIR!$H$5:$H$287,0)),0)),IFERROR(INDEX(NIR!$C$5:$C$287,MATCH($A39 & "#" & O$1,NIR!$H$5:$H$287,0)),0),0) -> 0 | P39: =IF(ISNUMBER(IFERROR(INDEX(NIR!$C$5:$C$287,MATCH($A39 & "#" & P$1,NIR!$H$5:$H$287,0)),0)),IFERROR(INDEX(NIR!$C$5:$C$287,MATCH($A39 & "#" & P$1,NIR!$H$5:$H$287,0)),0),0) -> 0
A40: nonmetalic | C40: Nekové materiály | D40: =IF(ISNUMBER(IFERROR(INDEX(NIR!$C$5:$C$287,MATCH($A40 & "#" & D$1,NIR!$H$5:$H$287,0)),0)),IFERROR(INDEX(NIR!$C$5:$C$287,MATCH($A40 & "#" & D$1,NIR!$H$5:$H$287,0)),0),0) -> 9.913925894 | E40: =IF(ISNUMBER(IFERROR(INDEX(NIR!$C$5:$C$287,MATCH($A40 & "#" & E$1,NIR!$H$5:$H$287,0)),0)),IFERROR(INDEX(NIR!$C$5:$C$287,MATCH($A40 & "#" & E$1,NIR!$H$5:$H$287,0)),0),0) -> 2.686757531 | F40: =IF(ISNUMBER(IFERROR(INDEX(NIR!$C$5:$C$287,MATCH($A40 & "#" & F$1,NIR!$H$5:$H$287,0)),0)),IFERROR(INDEX(NIR!$C$5:$C$287,MATCH($A40 & "#" & F$1,NIR!$H$5:$H$287,0)),0),0) -> 1 | G40: =IF(ISNUMBER(IFERROR(INDEX(NIR!$C$5:$C$287,MATCH($A40 & "#" & G$1,NIR!$H$5:$H$287,0)),0)),IFERROR(INDEX(NIR!$C$5:$C$287,MATCH($A40 & "#" & G$1,NIR!$H$5:$H$287,0)),0),0) -> 30 | H40: =IF(ISNUMBER(IFERROR(INDEX(NIR!$C$5:$C$287,MATCH($A40 & "#" & H$1,NIR!$H$5:$H$287,0)),0)),IFERROR(INDEX(NIR!$C$5:$C$287,MATCH($A40 & "#" & H$1,NIR!$H$5:$H$287,0)),0),0) -> 30 | I40: =EF_E_a_T!$C$33 -> 0.02632473189 | J40: =EF_E_a_T!$F$33 -> 0.01420256281 | K40: 0 | L40: =IF(ISNUMBER(IFERROR(INDEX(NIR!$C$5:$C$287,MATCH($A40 & "#" & L$1,NIR!$H$5:$H$287,0)),0)),IFERROR(INDEX(NIR!$C$5:$C$287,MATCH($A40 & "#" & L$1,NIR!$H$5:$H$287,0)),0),0) -> 0 | M40: =IF(ISNUMBER(IFERROR(INDEX(NIR!$C$5:$C$287,MATCH($A40 & "#" & M$1,NIR!$H$5:$H$287,0)),0)),IFERROR(INDEX(NIR!$C$5:$C$287,MATCH($A40 & "#" & M$1,NIR!$H$5:$H$287,0)),0),0) -> 0 | N40: =IF(ISNUMBER(IFERROR(INDEX(NIR!$C$5:$C$287,MATCH($A40 & "#" & N$1,NIR!$H$5:$H$287,0)),0)),IFERROR(INDEX(NIR!$C$5:$C$287,MATCH($A40 & "#" & N$1,NIR!$H$5:$H$287,0)),0),0) -> 0 | O40: =IF(ISNUMBER(IFERROR(INDEX(NIR!$C$5:$C$287,MATCH($A40 & "#" & O$1,NIR!$H$5:$H$287,0)),0)),IFERROR(INDEX(NIR!$C$5:$C$287,MATCH($A40 & "#" & O$1,NIR!$H$5:$H$287,0)),0),0) -> 0 | P40: =IF(ISNUMBER(IFERROR(INDEX(NIR!$C$5:$C$287,MATCH($A40 & "#" & P$1,NIR!$H$5:$H$287,0)),0)),IFERROR(INDEX(NIR!$C$5:$C$287,MATCH($A40 & "#" & P$1,NIR!$H$5:$H$287,0)),0),0) -> 0
A41: chemical | C41: Chemie | D41: =IF(ISNUMBER(IFERROR(INDEX(NIR!$C$5:$C$287,MATCH($A41 & "#" & D$1,NIR!$H$5:$H$287,0)),0)),IFERROR(INDEX(NIR!$C$5:$C$287,MATCH($A41 & "#" & D$1,NIR!$H$5:$H$287,0)),0),0) -> 10 | E41: =IF(ISNUMBER(IFERROR(INDEX(NIR!$C$5:$C$287,MATCH($A41 & "#" & E$1,NIR!$H$5:$H$287,0)),0)),IFERROR(INDEX(NIR!$C$5:$C$287,MATCH($A41 & "#" & E$1,NIR!$H$5:$H$287,0)),0),0) -> 3 | F41: =IF(ISNUMBER(IFERROR(INDEX(NIR!$C$5:$C$287,MATCH($A41 & "#" & F$1,NIR!$H$5:$H$287,0)),0)),IFERROR(INDEX(NIR!$C$5:$C$287,MATCH($A41 & "#" & F$1,NIR!$H$5:$H$287,0)),0),0) -> 1 | G41: =IF(ISNUMBER(IFERROR(INDEX(NIR!$C$5:$C$287,MATCH($A41 & "#" & G$1,NIR!$H$5:$H$287,0)),0)),IFERROR(INDEX(NIR!$C$5:$C$287,MATCH($A41 & "#" & G$1,NIR!$H$5:$H$287,0)),0),0) -> 30 | H41: =IF(ISNUMBER(IFERROR(INDEX(NIR!$C$5:$C$287,MATCH($A41 & "#" & H$1,NIR!$H$5:$H$287,0)),0)),IFERROR(INDEX(NIR!$C$5:$C$287,MATCH($A41 & "#" & H$1,NIR!$H$5:$H$287,0)),0),0) -> 0 | I41: =EF_E_a_T!$C$33 -> 0.02632473189 | J41: =EF_E_a_T!$F$33 -> 0.01420256281 | K41: 0 | L41: =IF(ISNUMBER(IFERROR(INDEX(NIR!$C$5:$C$287,MATCH($A41 & "#" & L$1,NIR!$H$5:$H$287,0)),0)),IFERROR(INDEX(NIR!$C$5:$C$287,MATCH($A41 & "#" & L$1,NIR!$H$5:$H$287,0)),0),0) -> 0 | M41: =IF(ISNUMBER(IFERROR(INDEX(NIR!$C$5:$C$287,MATCH($A41 & "#" & M$1,NIR!$H$5:$H$287,0)),0)),IFERROR(INDEX(NIR!$C$5:$C$287,MATCH($A41 & "#" & M$1,NIR!$H$5:$H$287,0)),0),0) -> 0 | N41: =IF(ISNUMBER(IFERROR(INDEX(NIR!$C$5:$C$287,MATCH($A41 & "#" & N$1,NIR!$H$5:$H$287,0)),0)),IFERROR(INDEX(NIR!$C$5:$C$287,MATCH($A41 & "#" & N$1,NIR!$H$5:$H$287,0)),0),0) -> 0 | O41: =IF(ISNUMBER(IFERROR(INDEX(NIR!$C$5:$C$287,MATCH($A41 & "#" & O$1,NIR!$H$5:$H$287,0)),0)),IFERROR(INDEX(NIR!$C$5:$C$287,MATCH($A41 & "#" & O$1,NIR!$H$5:$H$287,0)),0),0) -> 0 | P41: =IF(ISNUMBER(IFERROR(INDEX(NIR!$C$5:$C$287,MATCH($A41 & "#" & P$1,NIR!$H$5:$H$287,0)),0)),IFERROR(INDEX(NIR!$C$5:$C$287,MATCH($A41 & "#" & P$1,NIR!$H$5:$H$287,0)),0),0) -> 0
A42: mansolid | C42: Zpracování tuhých paliv | D42: =IF(ISNUMBER(IFERROR(INDEX(NIR!$C$5:$C$287,MATCH($A42 & "#" & D$1,NIR!$H$5:$H$287,0)),0)),IFERROR(INDEX(NIR!$C$5:$C$287,MATCH($A42 & "#" & D$1,NIR!$H$5:$H$287,0)),0),0) -> 1 | E42: =IF(ISNUMBER(IFERROR(INDEX(NIR!$C$5:$C$287,MATCH($A42 & "#" & E$1,NIR!$H$5:$H$287,0)),0)),IFERROR(INDEX(NIR!$C$5:$C$287,MATCH($A42 & "#" & E$1,NIR!$H$5:$H$287,0)),0),0) -> 3 | F42: =IF(ISNUMBER(IFERROR(INDEX(NIR!$C$5:$C$287,MATCH($A42 & "#" & F$1,NIR!$H$5:$H$287,0)),0)),IFERROR(INDEX(NIR!$C$5:$C$287,MATCH($A42 & "#" & F$1,NIR!$H$5:$H$287,0)),0),0) -> 1 | G42: =IF(ISNUMBER(IFERROR(INDEX(NIR!$C$5:$C$287,MATCH($A42 & "#" & G$1,NIR!$H$5:$H$287,0)),0)),IFERROR(INDEX(NIR!$C$5:$C$287,MATCH($A42 & "#" & G$1,NIR!$H$5:$H$287,0)),0),0) -> 0 | H42: =IF(ISNUMBER(IFERROR(INDEX(NIR!$C$5:$C$287,MATCH($A42 & "#" & H$1,NIR!$H$5:$H$287,0)),0)),IFERROR(INDEX(NIR!$C$5:$C$287,MATCH($A42 & "#" & H$1,NIR!$H$5:$H$287,0)),0),0) -> 0 | I42: =EF_E_a_T!$C$33 -> 0.02632473189 | J42: =EF_E_a_T!$F$33 -> 0.01420256281 | K42: 0 | L42: =IF(ISNUMBER(IFERROR(INDEX(NIR!$C$5:$C$287,MATCH($A42 & "#" & L$1,NIR!$H$5:$H$287,0)),0)),IFERROR(INDEX(NIR!$C$5:$C$287,MATCH($A42 & "#" & L$1,NIR!$H$5:$H$287,0)),0),0) -> 0 | M42: =IF(ISNUMBER(IFERROR(INDEX(NIR!$C$5:$C$287,MATCH($A42 & "#" & M$1,NIR!$H$5:$H$287,0)),0)),IFERROR(INDEX(NIR!$C$5:$C$287,MATCH($A42 & "#" & M$1,NIR!$H$5:$H$287,0)),0),0) -> 0 | N42: =IF(ISNUMBER(IFERROR(INDEX(NIR!$C$5:$C$287,MATCH($A42 & "#" & N$1,NIR!$H$5:$H$287,0)),0)),IFERROR(INDEX(NIR!$C$5:$C$287,MATCH($A42 & "#" & N$1,NIR!$H$5:$H$287,0)),0),0) -> 0 | O42: =IF(ISNUMBER(IFERROR(INDEX(NIR!$C$5:$C$287,MATCH($A42 & "#" & O$1,NIR!$H$5:$H$287,0)),0)),IFERROR(INDEX(NIR!$C$5:$C$287,MATCH($A42 & "#" & O$1,NIR!$H$5:$H$287,0)),0),0) -> 0 | P42: =IF(ISNUMBER(IFERROR(INDEX(NIR!$C$5:$C$287,MATCH($A42 & "#" & P$1,NIR!$H$5:$H$287,0)),0)),IFERROR(INDEX(NIR!$C$5:$C$287,MATCH($A42 & "#" & P$1,NIR!$H$5:$H$287,0)),0),0) -> 0
A43: paper | C43: Papír a celulóza | D43: =IF(ISNUMBER(IFERROR(INDEX(NIR!$C$5:$C$287,MATCH($A43 & "#" & D$1,NIR!$H$5:$H$287,0)),0)),IFERROR(INDEX(NIR!$C$5:$C$287,MATCH($A43 & "#" & D$1,NIR!$H$5:$H$287,0)),0),0) -> 10 | E43: =IF(ISNUMBER(IFERROR(INDEX(NIR!$C$5:$C$287,MATCH($A43 & "#" & E$1,NIR!$H$5:$H$287,0)),0)),IFERROR(INDEX(NIR!$C$5:$C$287,MATCH($A43 & "#" & E$1,NIR!$H$5:$H$287,0)),0),0) -> 2.524664705 | F43: =IF(ISNUMBER(IFERROR(INDEX(NIR!$C$5:$C$287,MATCH($A43 & "#" & F$1,NIR!$H$5:$H$287,0)),0)),IFERROR(INDEX(NIR!$C$5:$C$287,MATCH($A43 & "#" & F$1,NIR!$H$5:$H$287,0)),0),0) -> 1 | G43: =IF(ISNUMBER(IFERROR(INDEX(NIR!$C$5:$C$287,MATCH($A43 & "#" & G$1,NIR!$H$5:$H$287,0)),0)),IFERROR(INDEX(NIR!$C$5:$C$287,MATCH($A43 & "#" & G$1,NIR!$H$5:$H$287,0)),0),0) -> 19.70837994 | H43: =IF(ISNUMBER(IFERROR(INDEX(NIR!$C$5:$C$287,MATCH($A43 & "#" & H$1,NIR!$H$5:$H$287,0)),0)),IFERROR(INDEX(NIR!$C$5:$C$287,MATCH($A43 & "#" & H$1,NIR!$H$5:$H$287,0)),0),0) -> 0 | I43: =EF_E_a_T!$C$33 -> 0.02632473189 | J43: =EF_E_a_T!$F$33 -> 0.01420256281 | K43: 0 | L43: =IF(ISNUMBER(IFERROR(INDEX(NIR!$C$5:$C$287,MATCH($A43 & "#" & L$1,NIR!$H$5:$H$287,0)),0)),IFERROR(INDEX(NIR!$C$5:$C$287,MATCH($A43 & "#" & L$1,NIR!$H$5:$H$287,0)),0),0) -> 0 | M43: =IF(ISNUMBER(IFERROR(INDEX(NIR!$C$5:$C$287,MATCH($A43 & "#" & M$1,NIR!$H$5:$H$287,0)),0)),IFERROR(INDEX(NIR!$C$5:$C$287,MATCH($A43 & "#" & M$1,NIR!$H$5:$H$287,0)),0),0) -> 0 | N43: =IF(ISNUMBER(IFERROR(INDEX(NIR!$C$5:$C$287,MATCH($A43 & "#" & N$1,NIR!$H$5:$H$287,0)),0)),IFERROR(INDEX(NIR!$C$5:$C$287,MATCH($A43 & "#" & N$1,NIR!$H$5:$H$287,0)),0),0) -> 0 | O43: =IF(ISNUMBER(IFERROR(INDEX(NIR!$C$5:$C$287,MATCH($A43 & "#" & O$1,NIR!$H$5:$H$287,0)),0)),IFERROR(INDEX(NIR!$C$5:$C$287,MATCH($A43 & "#" & O$1,NIR!$H$5:$H$287,0)),0),0) -> 0 | P43: =IF(ISNUMBER(IFERROR(INDEX(NIR!$C$5:$C$287,MATCH($A43 & "#" & P$1,NIR!$H$5:$H$287,0)),0)),IFERROR(INDEX(NIR!$C$5:$C$287,MATCH($A43 & "#" & P$1,NIR!$H$5:$H$287,0)),0),0) -> 0
A44: food | C44: Potraviny | D44: =IF(ISNUMBER(IFERROR(INDEX(NIR!$C$5:$C$287,MATCH($A44 & "#" & D$1,NIR!$H$5:$H$287,0)),0)),IFERROR(INDEX(NIR!$C$5:$C$287,MATCH($A44 & "#" & D$1,NIR!$H$5:$H$287,0)),0),0) -> 10 | E44: =IF(ISNUMBER(IFERROR(INDEX(NIR!$C$5:$C$287,MATCH($A44 & "#" & E$1,NIR!$H$5:$H$287,0)),0)),IFERROR(INDEX(NIR!$C$5:$C$287,MATCH($A44 & "#" & E$1,NIR!$H$5:$H$287,0)),0),0) -> 2.387623024 | F44: =IF(ISNUMBER(IFERROR(INDEX(NIR!$C$5:$C$287,MATCH($A44 & "#" & F$1,NIR!$H$5:$H$287,0)),0)),IFERROR(INDEX(NIR!$C$5:$C$287,MATCH($A44 & "#" & F$1,NIR!$H$5:$H$287,0)),0),0) -> 1 | G44: =IF(ISNUMBER(IFERROR(INDEX(NIR!$C$5:$C$287,MATCH($A44 & "#" & G$1,NIR!$H$5:$H$287,0)),0)),IFERROR(INDEX(NIR!$C$5:$C$287,MATCH($A44 & "#" & G$1,NIR!$H$5:$H$287,0)),0),0) -> 2.884142905 | H44: =IF(ISNUMBER(IFERROR(INDEX(NIR!$C$5:$C$287,MATCH($A44 & "#" & H$1,NIR!$H$5:$H$287,0)),0)),IFERROR(INDEX(NIR!$C$5:$C$287,MATCH($A44 & "#" & H$1,NIR!$H$5:$H$287,0)),0),0) -> 0 | I44: =EF_E_a_T!$C$33 -> 0.02632473189 | J44: =EF_E_a_T!$F$33 -> 0.01420256281 | K44: 0 | L44: =IF(ISNUMBER(IFERROR(INDEX(NIR!$C$5:$C$287,MATCH($A44 & "#" & L$1,NIR!$H$5:$H$287,0)),0)),IFERROR(INDEX(NIR!$C$5:$C$287,MATCH($A44 & "#" & L$1,NIR!$H$5:$H$287,0)),0),0) -> 0 | M44: =IF(ISNUMBER(IFERROR(INDEX(NIR!$C$5:$C$287,MATCH($A44 & "#" & M$1,NIR!$H$5:$H$287,0)),0)),IFERROR(INDEX(NIR!$C$5:$C$287,MATCH($A44 & "#" & M$1,NIR!$H$5:$H$287,0)),0),0) -> 0 | N44: =IF(ISNUMBER(IFERROR(INDEX(NIR!$C$5:$C$287,MATCH($A44 & "#" & N$1,NIR!$H$5:$H$287,0)),0)),IFERROR(INDEX(NIR!$C$5:$C$287,MATCH($A44 & "#" & N$1,NIR!$H$5:$H$287,0)),0),0) -> 0 | O44: =IF(ISNUMBER(IFERROR(INDEX(NIR!$C$5:$C$287,MATCH($A44 & "#" & O$1,NIR!$H$5:$H$287,0)),0)),IFERROR(INDEX(NIR!$C$5:$C$287,MATCH($A44 & "#" & O$1,NIR!$H$5:$H$287,0)),0),0) -> 0 | P44: =IF(ISNUMBER(IFERROR(INDEX(NIR!$C$5:$C$287,MATCH($A44 & "#" & P$1,NIR!$H$5:$H$287,0)),0)),IFERROR(INDEX(NIR!$C$5:$C$287,MATCH($A44 & "#" & P$1,NIR!$H$5:$H$287,0)),0),0) -> 0
A45: otherindustry | C45: Ostatní průmysl | D45: =IF(ISNUMBER(IFERROR(INDEX(NIR!$C$5:$C$287,MATCH($A45 & "#" & D$1,NIR!$H$5:$H$287,0)),0)),IFERROR(INDEX(NIR!$C$5:$C$287,MATCH($A45 & "#" & D$1,NIR!$H$5:$H$287,0)),0),0) -> 9.787079344 | E45: =IF(ISNUMBER(IFERROR(INDEX(NIR!$C$5:$C$287,MATCH($A45 & "#" & E$1,NIR!$H$5:$H$287,0)),0)),IFERROR(INDEX(NIR!$C$5:$C$287,MATCH($A45 & "#" & E$1,NIR!$H$5:$H$287,0)),0),0) -> 2.821439411 | F45: =IF(ISNUMBER(IFERROR(INDEX(NIR!$C$5:$C$287,MATCH($A45 & "#" & F$1,NIR!$H$5:$H$287,0)),0)),IFERROR(INDEX(NIR!$C$5:$C$287,MATCH($A45 & "#" & F$1,NIR!$H$5:$H$287,0)),0),0) -> 1 | G45: =IF(ISNUMBER(IFERROR(INDEX(NIR!$C$5:$C$287,MATCH($A45 & "#" & G$1,NIR!$H$5:$H$287,0)),0)),IFERROR(INDEX(NIR!$C$5:$C$287,MATCH($A45 & "#" & G$1,NIR!$H$5:$H$287,0)),0),0) -> 28.7740735 | H45: =IF(ISNUMBER(IFERROR(INDEX(NIR!$C$5:$C$287,MATCH($A45 & "#" & H$1,NIR!$H$5:$H$287,0)),0)),IFERROR(INDEX(NIR!$C$5:$C$287,MATCH($A45 & "#" & H$1,NIR!$H$5:$H$287,0)),0),0) -> 0 | I45: =EF_E_a_T!$C$33 -> 0.02632473189 | J45: =EF_E_a_T!$F$33 -> 0.01420256281 | K45: 0 | L45: =IF(ISNUMBER(IFERROR(INDEX(NIR!$C$5:$C$287,MATCH($A45 & "#" & L$1,NIR!$H$5:$H$287,0)),0)),IFERROR(INDEX(NIR!$C$5:$C$287,MATCH($A45 & "#" & L$1,NIR!$H$5:$H$287,0)),0),0) -> 0 | M45: =IF(ISNUMBER(IFERROR(INDEX(NIR!$C$5:$C$287,MATCH($A45 & "#" & M$1,NIR!$H$5:$H$287,0)),0)),IFERROR(INDEX(NIR!$C$5:$C$287,MATCH($A45 & "#" & M$1,NIR!$H$5:$H$287,0)),0),0) -> 0 | N45: =IF(ISNUMBER(IFERROR(INDEX(NIR!$C$5:$C$287,MATCH($A45 & "#" & N$1,NIR!$H$5:$H$287,0)),0)),IFERROR(INDEX(NIR!$C$5:$C$287,MATCH($A45 & "#" & N$1,NIR!$H$5:$H$287,0)),0),0) -> 0 | O45: =IF(ISNUMBER(IFERROR(INDEX(NIR!$C$5:$C$287,MATCH($A45 & "#" & O$1,NIR!$H$5:$H$287,0)),0)),IFERROR(INDEX(NIR!$C$5:$C$287,MATCH($A45 & "#" & O$1,NIR!$H$5:$H$287,0)),0),0) -> 0 | P45: =IF(ISNUMBER(IFERROR(INDEX(NIR!$C$5:$C$287,MATCH($A45 & "#" & P$1,NIR!$H$5:$H$287,0)),0)),IFERROR(INDEX(NIR!$C$5:$C$287,MATCH($A45 & "#" & P$1,NIR!$H$5:$H$287,0)),0),0) -> 0
A46: agriculture | C46: Zemědělství | D46: =IF(ISNUMBER(IFERROR(INDEX(NIR!$C$5:$C$287,MATCH($A46 & "#" & D$1,NIR!$H$5:$H$287,0)),0)),IFERROR(INDEX(NIR!$C$5:$C$287,MATCH($A46 & "#" & D$1,NIR!$H$5:$H$287,0)),0),0) -> 300 | E46: =IF(ISNUMBER(IFERROR(INDEX(NIR!$C$5:$C$287,MATCH($A46 & "#" & E$1,NIR!$H$5:$H$287,0)),0)),IFERROR(INDEX(NIR!$C$5:$C$287,MATCH($A46 & "#" & E$1,NIR!$H$5:$H$287,0)),0),0) -> 5.494162078 | F46: =IF(ISNUMBER(IFERROR(INDEX(NIR!$C$5:$C$287,MATCH($A46 & "#" & F$1,NIR!$H$5:$H$287,0)),0)),IFERROR(INDEX(NIR!$C$5:$C$287,MATCH($A46 & "#" & F$1,NIR!$H$5:$H$287,0)),0),0) -> 4.999562884 | G46: =IF(ISNUMBER(IFERROR(INDEX(NIR!$C$5:$C$287,MATCH($A46 & "#" & G$1,NIR!$H$5:$H$287,0)),0)),IFERROR(INDEX(NIR!$C$5:$C$287,MATCH($A46 & "#" & G$1,NIR!$H$5:$H$287,0)),0),0) -> 25.87990717 | H46: =IF(ISNUMBER(IFERROR(INDEX(NIR!$C$5:$C$287,MATCH($A46 & "#" & H$1,NIR!$H$5:$H$287,0)),0)),IFERROR(INDEX(NIR!$C$5:$C$287,MATCH($A46 & "#" & H$1,NIR!$H$5:$H$287,0)),0),0) -> 0 | I46: =EF_E_a_T!$C$33 -> 0.02632473189 | J46: =EF_E_a_T!$F$33 -> 0.01420256281 | K46: 0 | L46: =IF(ISNUMBER(IFERROR(INDEX(NIR!$C$5:$C$287,MATCH($A46 & "#" & L$1,NIR!$H$5:$H$287,0)),0)),IFERROR(INDEX(NIR!$C$5:$C$287,MATCH($A46 & "#" & L$1,NIR!$H$5:$H$287,0)),0),0) -> 0 | M46: =IF(ISNUMBER(IFERROR(INDEX(NIR!$C$5:$C$287,MATCH($A46 & "#" & M$1,NIR!$H$5:$H$287,0)),0)),IFERROR(INDEX(NIR!$C$5:$C$287,MATCH($A46 & "#" & M$1,NIR!$H$5:$H$287,0)),0),0) -> 0 | N46: =IF(ISNUMBER(IFERROR(INDEX(NIR!$C$5:$C$287,MATCH($A46 & "#" & N$1,NIR!$H$5:$H$287,0)),0)),IFERROR(INDEX(NIR!$C$5:$C$287,MATCH($A46 & "#" & N$1,NIR!$H$5:$H$287,0)),0),0) -> 0 | O46: =IF(ISNUMBER(IFERROR(INDEX(NIR!$C$5:$C$287,MATCH($A46 & "#" & O$1,NIR!$H$5:$H$287,0)),0)),IFERROR(INDEX(NIR!$C$5:$C$287,MATCH($A46 & "#" & O$1,NIR!$H$5:$H$287,0)),0),0) -> 0 | P46: =IF(ISNUMBER(IFERROR(INDEX(NIR!$C$5:$C$287,MATCH($A46 & "#" & P$1,NIR!$H$5:$H$287,0)),0)),IFERROR(INDEX(NIR!$C$5:$C$287,MATCH($A46 & "#" & P$1,NIR!$H$5:$H$287,0)),0),0) -> 0
C48: Emisní faktory z NIR N2O [kg/TJ] | D48: Tuhá paliva | E48: Kapalná paliva | F48: Plynná paliva | G48: Biomasa | H48: Ostatní paliva | I48: Elektřina | J48: Teplo | K48: OZE mimo biomasu | L48: Letecký benzín | M48: Benzín | N48: Diesel | O48: Letecký petrolej | P48: LPG
A49: residential | C49: Domácnosti | D49: =IF(ISNUMBER(IFERROR(INDEX(NIR!$D$5:$D$287,MATCH($A49 & "#" & D$1,NIR!$H$5:$H$287,0)),0)),IFERROR(INDEX(NIR!$D$5:$D$287,MATCH($A49 & "#" & D$1,NIR!$H$5:$H$287,0)),0),0) -> 1.5 | E49: =IF(ISNUMBER(IFERROR(INDEX(NIR!$D$5:$D$287,MATCH($A49 & "#" & E$1,NIR!$H$5:$H$287,0)),0)),IFERROR(INDEX(NIR!$D$5:$D$287,MATCH($A49 & "#" & E$1,NIR!$H$5:$H$287,0)),0),0) -> 0.1 | F49: =IF(ISNUMBER(IFERROR(INDEX(NIR!$D$5:$D$287,MATCH($A49 & "#" & F$1,NIR!$H$5:$H$287,0)),0)),IFERROR(INDEX(NIR!$D$5:$D$287,MATCH($A49 & "#" & F$1,NIR!$H$5:$H$287,0)),0),0) -> 0.1 | G49: =IF(ISNUMBER(IFERROR(INDEX(NIR!$D$5:$D$287,MATCH($A49 & "#" & G$1,NIR!$H$5:$H$287,0)),0)),IFERROR(INDEX(NIR!$D$5:$D$287,MATCH($A49 & "#" & G$1,NIR!$H$5:$H$287,0)),0),0) -> 3.971242126 | H49: =IF(ISNUMBER(IFERROR(INDEX(NIR!$D$5:$D$287,MATCH($A49 & "#" & H$1,NIR!$H$5:$H$287,0)),0)),IFERROR(INDEX(NIR!$D$5:$D$287,MATCH($A49 & "#" & H$1,NIR!$H$5:$H$287,0)),0),0) -> 0 | I49: =EF_E_a_T!$D$33 -> 0.002973548483 | J49: =EF_E_a_T!$G$33 -> 0.001369846022 | K49: 0 | L49: =IF(ISNUMBER(IFERROR(INDEX(NIR!$D$5:$D$287,MATCH($A49 & "#" & L$1,NIR!$H$5:$H$287,0)),0)),IFERROR(INDEX(NIR!$D$5:$D$287,MATCH($A49 & "#" & L$1,NIR!$H$5:$H$287,0)),0),0) -> 0 | M49: =IF(ISNUMBER(IFERROR(INDEX(NIR!$D$5:$D$287,MATCH($A49 & "#" & M$1,NIR!$H$5:$H$287,0)),0)),IFERROR(INDEX(NIR!$D$5:$D$287,MATCH($A49 & "#" & M$1,NIR!$H$5:$H$287,0)),0),0) -> 0 | N49: =IF(ISNUMBER(IFERROR(INDEX(NIR!$D$5:$D$287,MATCH($A49 & "#" & N$1,NIR!$H$5:$H$287,0)),0)),IFERROR(INDEX(NIR!$D$5:$D$287,MATCH($A49 & "#" & N$1,NIR!$H$5:$H$287,0)),0),0) -> 0 | O49: =IF(ISNUMBER(IFERROR(INDEX(NIR!$D$5:$D$287,MATCH($A49 & "#" & O$1,NIR!$H$5:$H$287,0)),0)),IFERROR(INDEX(NIR!$D$5:$D$287,MATCH($A49 & "#" & O$1,NIR!$H$5:$H$287,0)),0),0) -> 0 | P49: =IF(ISNUMBER(IFERROR(INDEX(NIR!$D$5:$D$287,MATCH($A49 & "#" & P$1,NIR!$H$5:$H$287,0)),0)),IFERROR(INDEX(NIR!$D$5:$D$287,MATCH($A49 & "#" & P$1,NIR!$H$5:$H$287,0)),0),0) -> 0
A50: services | C50: Služby | D50: =IF(ISNUMBER(IFERROR(INDEX(NIR!$D$5:$D$287,MATCH($A50 & "#" & D$1,NIR!$H$5:$H$287,0)),0)),IFERROR(INDEX(NIR!$D$5:$D$287,MATCH($A50 & "#" & D$1,NIR!$H$5:$H$287,0)),0),0) -> 1.5 | E50: =IF(ISNUMBER(IFERROR(INDEX(NIR!$D$5:$D$287,MATCH($A50 & "#" & E$1,NIR!$H$5:$H$287,0)),0)),IFERROR(INDEX(NIR!$D$5:$D$287,MATCH($A50 & "#" & E$1,NIR!$H$5:$H$287,0)),0),0) -> 0.4446690757 | F50: =IF(ISNUMBER(IFERROR(INDEX(NIR!$D$5:$D$287,MATCH($A50 & "#" & F$1,NIR!$H$5:$H$287,0)),0)),IFERROR(INDEX(NIR!$D$5:$D$287,MATCH($A50 & "#" & F$1,NIR!$H$5:$H$287,0)),0),0) -> 0.1 | G50: =IF(ISNUMBER(IFERROR(INDEX(NIR!$D$5:$D$287,MATCH($A50 & "#" & G$1,NIR!$H$5:$H$287,0)),0)),IFERROR(INDEX(NIR!$D$5:$D$287,MATCH($A50 & "#" & G$1,NIR!$H$5:$H$287,0)),0),0) -> 1.806573705 | H50: =IF(ISNUMBER(IFERROR(INDEX(NIR!$D$5:$D$287,MATCH($A50 & "#" & H$1,NIR!$H$5:$H$287,0)),0)),IFERROR(INDEX(NIR!$D$5:$D$287,MATCH($A50 & "#" & H$1,NIR!$H$5:$H$287,0)),0),0) -> 0 | I50: =EF_E_a_T!$D$33 -> 0.002973548483 | J50: =EF_E_a_T!$G$33 -> 0.001369846022 | K50: 0 | L50: =IF(ISNUMBER(IFERROR(INDEX(NIR!$D$5:$D$287,MATCH($A50 & "#" & L$1,NIR!$H$5:$H$287,0)),0)),IFERROR(INDEX(NIR!$D$5:$D$287,MATCH($A50 & "#" & L$1,NIR!$H$5:$H$287,0)),0),0) -> 0 | M50: =IF(ISNUMBER(IFERROR(INDEX(NIR!$D$5:$D$287,MATCH($A50 & "#" & M$1,NIR!$H$5:$H$287,0)),0)),IFERROR(INDEX(NIR!$D$5:$D$287,MATCH($A50 & "#" & M$1,NIR!$H$5:$H$287,0)),0),0) -> 0 | N50: =IF(ISNUMBER(IFERROR(INDEX(NIR!$D$5:$D$287,MATCH($A50 & "#" & N$1,NIR!$H$5:$H$287,0)),0)),IFERROR(INDEX(NIR!$D$5:$D$287,MATCH($A50 & "#" & N$1,NIR!$H$5:$H$287,0)),0),0) -> 0 | O50: =IF(ISNUMBER(IFERROR(INDEX(NIR!$D$5:$D$287,MATCH($A50 & "#" & O$1,NIR!$H$5:$H$287,0)),0)),IFERROR(INDEX(NIR!$D$5:$D$287,MATCH($A50 & "#" & O$1,NIR!$H$5:$H$287,0)),0),0) -> 0 | P50: =IF(ISNUMBER(IFERROR(INDEX(NIR!$D$5:$D$287,MATCH($A50 & "#" & P$1,NIR!$H$5:$H$287,0)),0)),IFERROR(INDEX(NIR!$D$5:$D$287,MATCH($A50 & "#" & P$1,NIR!$H$5:$H$287,0)),0),0) -> 0
A51: transport | C51: Doprava celkem | D51: =IF(ISNUMBER(IFERROR(INDEX(NIR!$D$5:$D$287,MATCH($A51 & "#" & D$1,NIR!$H$5:$H$287,0)),0)),IFERROR(INDEX(NIR!$D$5:$D$287,MATCH($A51 & "#" & D$1,NIR!$H$5:$H$287,0)),0),0) -> 0 | E51: =IF(ISNUMBER(IFERROR(INDEX(NIR!$D$5:$D$287,MATCH($A51 & "#" & E$1,NIR!$H$5:$H$287,0)),0)),IFERROR(INDEX(NIR!$D$5:$D$287,MATCH($A51 & "#" & E$1,NIR!$H$5:$H$287,0)),0),0) -> 5.309549439 | F51: =IF(ISNUMBER(IFERROR(INDEX(NIR!$D$5:$D$287,MATCH($A51 & "#" & F$1,NIR!$H$5:$H$287,0)),0)),IFERROR(INDEX(NIR!$D$5:$D$287,MATCH($A51 & "#" & F$1,NIR!$H$5:$H$287,0)),0),0) -> 1.602753196 | G51: =IF(ISNUMBER(IFERROR(INDEX(NIR!$D$5:$D$287,MATCH($A51 & "#" & G$1,NIR!$H$5:$H$287,0)),0)),IFERROR(INDEX(NIR!$D$5:$D$287,MATCH($A51 & "#" & G$1,NIR!$H$5:$H$287,0)),0),0) -> 0.6 | H51: =IF(ISNUMBER(IFERROR(INDEX(NIR!$D$5:$D$287,MATCH($A51 & "#" & H$1,NIR!$H$5:$H$287,0)),0)),IFERROR(INDEX(NIR!$D$5:$D$287,MATCH($A51 & "#" & H$1,NIR!$H$5:$H$287,0)),0),0) -> 0 | I51: =EF_E_a_T!$D$33 -> 0.002973548483 | J51: 0 | K51: 0 | L51: =IF(ISNUMBER(IFERROR(INDEX(NIR!$D$5:$D$287,MATCH($A51 & "#" & L$1,NIR!$H$5:$H$287,0)),0)),IFERROR(INDEX(NIR!$D$5:$D$287,MATCH($A51 & "#" & L$1,NIR!$H$5:$H$287,0)),0),0) -> 0 | M51: =IF(ISNUMBER(IFERROR(INDEX(NIR!$D$5:$D$287,MATCH($A51 & "#" & M$1,NIR!$H$5:$H$287,0)),0)),IFERROR(INDEX(NIR!$D$5:$D$287,MATCH($A51 & "#" & M$1,NIR!$H$5:$H$287,0)),0),0) -> 0 | N51: =IF(ISNUMBER(IFERROR(INDEX(NIR!$D$5:$D$287,MATCH($A51 & "#" & N$1,NIR!$H$5:$H$287,0)),0)),IFERROR(INDEX(NIR!$D$5:$D$287,MATCH($A51 & "#" & N$1,NIR!$H$5:$H$287,0)),0),0) -> 0 | O51: =IF(ISNUMBER(IFERROR(INDEX(NIR!$D$5:$D$287,MATCH($A51 & "#" & O$1,NIR!$H$5:$H$287,0)),0)),IFERROR(INDEX(NIR!$D$5:$D$287,MATCH($A51 & "#" & O$1,NIR!$H$5:$H$287,0)),0),0) -> 0 | P51: =IF(ISNUMBER(IFERROR(INDEX(NIR!$D$5:$D$287,MATCH($A51 & "#" & P$1,NIR!$H$5:$H$287,0)),0)),IFERROR(INDEX(NIR!$D$5:$D$287,MATCH($A51 & "#" & P$1,NIR!$H$5:$H$287,0)),0),0) -> 0
A52: rail | C52: Železnice | D52: =IF(ISNUMBER(IFERROR(INDEX(NIR!$D$5:$D$287,MATCH($A52 & "#" & D$1,NIR!$H$5:$H$287,0)),0)),IFERROR(INDEX(NIR!$D$5:$D$287,MATCH($A52 & "#" & D$1,NIR!$H$5:$H$287,0)),0),0) -> 0 | E52: =IF(ISNUMBER(IFERROR(INDEX(NIR!$D$5:$D$287,MATCH($A52 & "#" & E$1,NIR!$H$5:$H$287,0)),0)),IFERROR(INDEX(NIR!$D$5:$D$287,MATCH($A52 & "#" & E$1,NIR!$H$5:$H$287,0)),0),0) -> 28.6 | F52: =IF(ISNUMBER(IFERROR(INDEX(NIR!$D$5:$D$287,MATCH($A52 & "#" & F$1,NIR!$H$5:$H$287,0)),0)),IFERROR(INDEX(NIR!$D$5:$D$287,MATCH($A52 & "#" & F$1,NIR!$H$5:$H$287,0)),0),0) -> 0 | G52: =IF(ISNUMBER(IFERROR(INDEX(NIR!$D$5:$D$287,MATCH($A52 & "#" & G$1,NIR!$H$5:$H$287,0)),0)),IFERROR(INDEX(NIR!$D$5:$D$287,MATCH($A52 & "#" & G$1,NIR!$H$5:$H$287,0)),0),0) -> 0 | H52: =IF(ISNUMBER(IFERROR(INDEX(NIR!$D$5:$D$287,MATCH($A52 & "#" & H$1,NIR!$H$5:$H$287,0)),0)),IFERROR(INDEX(NIR!$D$5:$D$287,MATCH($A52 & "#" & H$1,NIR!$H$5:$H$287,0)),0),0) -> 0 | I52: =EF_E_a_T!$D$33 -> 0.002973548483 | J52: 0 | K52: 0 | L52: =IF(ISNUMBER(IFERROR(INDEX(NIR!$D$5:$D$287,MATCH($A52 & "#" & L$1,NIR!$H$5:$H$287,0)),0)),IFERROR(INDEX(NIR!$D$5:$D$287,MATCH($A52 & "#" & L$1,NIR!$H$5:$H$287,0)),0),0) -> 0 | M52: =IF(ISNUMBER(IFERROR(INDEX(NIR!$D$5:$D$287,MATCH($A52 & "#" & M$1,NIR!$H$5:$H$287,0)),0)),IFERROR(INDEX(NIR!$D$5:$D$287,MATCH($A52 & "#" & M$1,NIR!$H$5:$H$287,0)),0),0) -> 0 | N52: =IF(ISNUMBER(IFERROR(INDEX(NIR!$D$5:$D$287,MATCH($A52 & "#" & N$1,NIR!$H$5:$H$287,0)),0)),IFERROR(INDEX(NIR!$D$5:$D$287,MATCH($A52 & "#" & N$1,NIR!$H$5:$H$287,0)),0),0) -> 0 | O52: =IF(ISNUMBER(IFERROR(INDEX(NIR!$D$5:$D$287,MATCH($A52 & "#" & O$1,NIR!$H$5:$H$287,0)),0)),IFERROR(INDEX(NIR!$D$5:$D$287,MATCH($A52 & "#" & O$1,NIR!$H$5:$H$287,0)),0),0) -> 0 | P52: =IF(ISNUMBER(IFERROR(INDEX(NIR!$D$5:$D$287,MATCH($A52 & "#" & P$1,NIR!$H$5:$H$287,0)),0)),IFERROR(INDEX(NIR!$D$5:$D$287,MATCH($A52 & "#" & P$1,NIR!$H$5:$H$287,0)),0),0) -> 0
A53: road | C53: Silniční | D53: =IF(ISNUMBER(IFERROR(INDEX(NIR!$D$5:$D$287,MATCH($A53 & "#" & D$1,NIR!$H$5:$H$287,0)),0)),IFERROR(INDEX(NIR!$D$5:$D$287,MATCH($A53 & "#" & D$1,NIR!$H$5:$H$287,0)),0),0) -> 0 | E53: =IF(ISNUMBER(IFERROR(INDEX(NIR!$D$5:$D$287,MATCH($A53 & "#" & E$1,NIR!$H$5:$H$287,0)),0)),IFERROR(INDEX(NIR!$D$5:$D$287,MATCH($A53 & "#" & E$1,NIR!$H$5:$H$287,0)),0),0) -> 0 | F53: =IF(ISNUMBER(IFERROR(INDEX(NIR!$D$5:$D$287,MATCH($A53 & "#" & F$1,NIR!$H$5:$H$287,0)),0)),IFERROR(INDEX(NIR!$D$5:$D$287,MATCH($A53 & "#" & F$1,NIR!$H$5:$H$287,0)),0),0) -> 3 | G53: =IF(ISNUMBER(IFERROR(INDEX(NIR!$D$5:$D$287,MATCH($A53 & "#" & G$1,NIR!$H$5:$H$287,0)),0)),IFERROR(INDEX(NIR!$D$5:$D$287,MATCH($A53 & "#" & G$1,NIR!$H$5:$H$287,0)),0),0) -> 0.6 | H53: =IF(ISNUMBER(IFERROR(INDEX(NIR!$D$5:$D$287,MATCH($A53 & "#" & H$1,NIR!$H$5:$H$287,0)),0)),IFERROR(INDEX(NIR!$D$5:$D$287,MATCH($A53 & "#" & H$1,NIR!$H$5:$H$287,0)),0),0) -> 0 | I53: =EF_E_a_T!$D$33 -> 0.002973548483 | J53: 0 | K53: 0 | L53: =IF(ISNUMBER(IFERROR(INDEX(NIR!$D$5:$D$287,MATCH($A53 & "#" & L$1,NIR!$H$5:$H$287,0)),0)),IFERROR(INDEX(NIR!$D$5:$D$287,MATCH($A53 & "#" & L$1,NIR!$H$5:$H$287,0)),0),0) -> 0 | M53: =IF(ISNUMBER(IFERROR(INDEX(NIR!$D$5:$D$287,MATCH($A53 & "#" & M$1,NIR!$H$5:$H$287,0)),0)),IFERROR(INDEX(NIR!$D$5:$D$287,MATCH($A53 & "#" & M$1,NIR!$H$5:$H$287,0)),0),0) -> 4.602846617 | N53: =IF(ISNUMBER(IFERROR(INDEX(NIR!$D$5:$D$287,MATCH($A53 & "#" & N$1,NIR!$H$5:$H$287,0)),0)),IFERROR(INDEX(NIR!$D$5:$D$287,MATCH($A53 & "#" & N$1,NIR!$H$5:$H$287,0)),0),0) -> 5.230489111 | O53: =IF(ISNUMBER(IFERROR(INDEX(NIR!$D$5:$D$287,MATCH($A53 & "#" & O$1,NIR!$H$5:$H$287,0)),0)),IFERROR(INDEX(NIR!$D$5:$D$287,MATCH($A53 & "#" & O$1,NIR!$H$5:$H$287,0)),0),0) -> 0 | P53: =IF(ISNUMBER(IFERROR(INDEX(NIR!$D$5:$D$287,MATCH($A53 & "#" & P$1,NIR!$H$5:$H$287,0)),0)),IFERROR(INDEX(NIR!$D$5:$D$287,MATCH($A53 & "#" & P$1,NIR!$H$5:$H$287,0)),0),0) -> 0.2
A54: domaviation | C54: Vnitrostátní letecká doprava | D54: =IF(ISNUMBER(IFERROR(INDEX(NIR!$D$5:$D$287,MATCH($A54 & "#" & D$1,NIR!$H$5:$H$287,0)),0)),IFERROR(INDEX(NIR!$D$5:$D$287,MATCH($A54 & "#" & D$1,NIR!$H$5:$H$287,0)),0),0) -> 0 | E54: =IF(ISNUMBER(IFERROR(INDEX(NIR!$D$5:$D$287,MATCH($A54 & "#" & E$1,NIR!$H$5:$H$287,0)),0)),IFERROR(INDEX(NIR!$D$5:$D$287,MATCH($A54 & "#" & E$1,NIR!$H$5:$H$287,0)),0),0) -> 0 | F54: =IF(ISNUMBER(IFERROR(INDEX(NIR!$D$5:$D$287,MATCH($A54 & "#" & F$1,NIR!$H$5:$H$287,0)),0)),IFERROR(INDEX(NIR!$D$5:$D$287,MATCH($A54 & "#" & F$1,NIR!$H$5:$H$287,0)),0),0) -> 0 | G54: =IF(ISNUMBER(IFERROR(INDEX(NIR!$D$5:$D$287,MATCH($A54 & "#" & G$1,NIR!$H$5:$H$287,0)),0)),IFERROR(INDEX(NIR!$D$5:$D$287,MATCH($A54 & "#" & G$1,NIR!$H$5:$H$287,0)),0),0) -> 0 | H54: =IF(ISNUMBER(IFERROR(INDEX(NIR!$D$5:$D$287,MATCH($A54 & "#" & H$1,NIR!$H$5:$H$287,0)),0)),IFERROR(INDEX(NIR!$D$5:$D$287,MATCH($A54 & "#" & H$1,NIR!$H$5:$H$287,0)),0),0) -> 0 | I54: =EF_E_a_T!$D$33 -> 0.002973548483 | J54: 0 | K54: 0 | L54: =IF(ISNUMBER(IFERROR(INDEX(NIR!$D$5:$D$287,MATCH($A54 & "#" & L$1,NIR!$H$5:$H$287,0)),0)),IFERROR(INDEX(NIR!$D$5:$D$287,MATCH($A54 & "#" & L$1,NIR!$H$5:$H$287,0)),0),0) -> 2 | M54: =IF(ISNUMBER(IFERROR(INDEX(NIR!$D$5:$D$287,MATCH($A54 & "#" & M$1,NIR!$H$5:$H$287,0)),0)),IFERROR(INDEX(NIR!$D$5:$D$287,MATCH($A54 & "#" & M$1,NIR!$H$5:$H$287,0)),0),0) -> 0 | N54: =IF(ISNUMBER(IFERROR(INDEX(NIR!$D$5:$D$287,MATCH($A54 & "#" & N$1,NIR!$H$5:$H$287,0)),0)),IFERROR(INDEX(NIR!$D$5:$D$287,MATCH($A54 & "#" & N$1,NIR!$H$5:$H$287,0)),0),0) -> 0 | O54: =IF(ISNUMBER(IFERROR(INDEX(NIR!$D$5:$D$287,MATCH($A54 & "#" & O$1,NIR!$H$5:$H$287,0)),0)),IFERROR(INDEX(NIR!$D$5:$D$287,MATCH($A54 & "#" & O$1,NIR!$H$5:$H$287,0)),0),0) -> 2.022632795 | P54: =IF(ISNUMBER(IFERROR(INDEX(NIR!$D$5:$D$287,MATCH($A54 & "#" & P$1,NIR!$H$5:$H$287,0)),0)),IFERROR(INDEX(NIR!$D$5:$D$287,MATCH($A54 & "#" & P$1,NIR!$H$5:$H$287,0)),0),0) -> 0
A55: domnavigation | C55: Vnitrostátní lodní doprava | D55: =IF(ISNUMBER(IFERROR(INDEX(NIR!$D$5:$D$287,MATCH($A55 & "#" & D$1,NIR!$H$5:$H$287,0)),0)),IFERROR(INDEX(NIR!$D$5:$D$287,MATCH($A55 & "#" & D$1,NIR!$H$5:$H$287,0)),0),0) -> 0 | E55: =IF(ISNUMBER(IFERROR(INDEX(NIR!$D$5:$D$287,MATCH($A55 & "#" & E$1,NIR!$H$5:$H$287,0)),0)),IFERROR(INDEX(NIR!$D$5:$D$287,MATCH($A55 & "#" & E$1,NIR!$H$5:$H$287,0)),0),0) -> 0 | F55: =IF(ISNUMBER(IFERROR(INDEX(NIR!$D$5:$D$287,MATCH($A55 & "#" & F$1,NIR!$H$5:$H$287,0)),0)),IFERROR(INDEX(NIR!$D$5:$D$287,MATCH($A55 & "#" & F$1,NIR!$H$5:$H$287,0)),0),0) -> 0 | G55: =IF(ISNUMBER(IFERROR(INDEX(NIR!$D$5:$D$287,MATCH($A55 & "#" & G$1,NIR!$H$5:$H$287,0)),0)),IFERROR(INDEX(NIR!$D$5:$D$287,MATCH($A55 & "#" & G$1,NIR!$H$5:$H$287,0)),0),0) -> 0 | H55: =IF(ISNUMBER(IFERROR(INDEX(NIR!$D$5:$D$287,MATCH($A55 & "#" & H$1,NIR!$H$5:$H$287,0)),0)),IFERROR(INDEX(NIR!$D$5:$D$287,MATCH($A55 & "#" & H$1,NIR!$H$5:$H$287,0)),0),0) -> 0 | I55: =EF_E_a_T!$D$33 -> 0.002973548483 | J55: 0 | K55: 0 | L55: =IF(ISNUMBER(IFERROR(INDEX(NIR!$D$5:$D$287,MATCH($A55 & "#" & L$1,NIR!$H$5:$H$287,0)),0)),IFERROR(INDEX(NIR!$D$5:$D$287,MATCH($A55 & "#" & L$1,NIR!$H$5:$H$287,0)),0),0) -> 0 | M55: =IF(ISNUMBER(IFERROR(INDEX(NIR!$D$5:$D$287,MATCH($A55 & "#" & M$1,NIR!$H$5:$H$287,0)),0)),IFERROR(INDEX(NIR!$D$5:$D$287,MATCH($A55 & "#" & M$1,NIR!$H$5:$H$287,0)),0),0) -> 0 | N55: =IF(ISNUMBER(IFERROR(INDEX(NIR!$D$5:$D$287,MATCH($A55 & "#" & N$1,NIR!$H$5:$H$287,0)),0)),IFERROR(INDEX(NIR!$D$5:$D$287,MATCH($A55 & "#" & N$1,NIR!$H$5:$H$287,0)),0),0) -> 2 | O55: =IF(ISNUMBER(IFERROR(INDEX(NIR!$D$5:$D$287,MATCH($A55 & "#" & O$1,NIR!$H$5:$H$287,0)),0)),IFERROR(INDEX(NIR!$D$5:$D$287,MATCH($A55 & "#" & O$1,NIR!$H$5:$H$287,0)),0),0) -> 0 | P55: =IF(ISNUMBER(IFERROR(INDEX(NIR!$D$5:$D$287,MATCH($A55 & "#" & P$1,NIR!$H$5:$H$287,0)),0)),IFERROR(INDEX(NIR!$D$5:$D$287,MATCH($A55 & "#" & P$1,NIR!$H$5:$H$287,0)),0),0) -> 0
A56: pipeline | C56: Potrubní doprava | D56: =IF(ISNUMBER(IFERROR(INDEX(NIR!$D$5:$D$287,MATCH($A56 & "#" & D$1,NIR!$H$5:$H$287,0)),0)),IFERROR(INDEX(NIR!$D$5:$D$287,MATCH($A56 & "#" & D$1,NIR!$H$5:$H$287,0)),0),0) -> 0 | E56: =IF(ISNUMBER(IFERROR(INDEX(NIR!$D$5:$D$287,MATCH($A56 & "#" & E$1,NIR!$H$5:$H$287,0)),0)),IFERROR(INDEX(NIR!$D$5:$D$287,MATCH($A56 & "#" & E$1,NIR!$H$5:$H$287,0)),0),0) -> 0 | F56: =IF(ISNUMBER(IFERROR(INDEX(NIR!$D$5:$D$287,MATCH($A56 & "#" & F$1,NIR!$H$5:$H$287,0)),0)),IFERROR(INDEX(NIR!$D$5:$D$287,MATCH($A56 & "#" & F$1,NIR!$H$5:$H$287,0)),0),0) -> 0.1 | G56: =IF(ISNUMBER(IFERROR(INDEX(NIR!$D$5:$D$287,MATCH($A56 & "#" & G$1,NIR!$H$5:$H$287,0)),0)),IFERROR(INDEX(NIR!$D$5:$D$287,MATCH($A56 & "#" & G$1,NIR!$H$5:$H$287,0)),0),0) -> 0 | H56: =IF(ISNUMBER(IFERROR(INDEX(NIR!$D$5:$D$287,MATCH($A56 & "#" & H$1,NIR!$H$5:$H$287,0)),0)),IFERROR(INDEX(NIR!$D$5:$D$287,MATCH($A56 & "#" & H$1,NIR!$H$5:$H$287,0)),0),0) -> 0 | I56: =EF_E_a_T!$D$33 -> 0.002973548483 | J56: 0 | K56: 0 | L56: =IF(ISNUMBER(IFERROR(INDEX(NIR!$D$5:$D$287,MATCH($A56 & "#" & L$1,NIR!$H$5:$H$287,0)),0)),IFERROR(INDEX(NIR!$D$5:$D$287,MATCH($A56 & "#" & L$1,NIR!$H$5:$H$287,0)),0),0) -> 0 | M56: =IF(ISNUMBER(IFERROR(INDEX(NIR!$D$5:$D$287,MATCH($A56 & "#" & M$1,NIR!$H$5:$H$287,0)),0)),IFERROR(INDEX(NIR!$D$5:$D$287,MATCH($A56 & "#" & M$1,NIR!$H$5:$H$287,0)),0),0) -> 0 | N56: =IF(ISNUMBER(IFERROR(INDEX(NIR!$D$5:$D$287,MATCH($A56 & "#" & N$1,NIR!$H$5:$H$287,0)),0)),IFERROR(INDEX(NIR!$D$5:$D$287,MATCH($A56 & "#" & N$1,NIR!$H$5:$H$287,0)),0),0) -> 0 | O56: =IF(ISNUMBER(IFERROR(INDEX(NIR!$D$5:$D$287,MATCH($A56 & "#" & O$1,NIR!$H$5:$H$287,0)),0)),IFERROR(INDEX(NIR!$D$5:$D$287,MATCH($A56 & "#" & O$1,NIR!$H$5:$H$287,0)),0),0) -> 0 | P56: =IF(ISNUMBER(IFERROR(INDEX(NIR!$D$5:$D$287,MATCH($A56 & "#" & P$1,NIR!$H$5:$H$287,0)),0)),IFERROR(INDEX(NIR!$D$5:$D$287,MATCH($A56 & "#" & P$1,NIR!$H$5:$H$287,0)),0),0) -> 0
A57: industry | C57: Průmysl celkem | D57: =IF(ISNUMBER(IFERROR(INDEX(NIR!$D$5:$D$287,MATCH($A57 & "#" & D$1,NIR!$H$5:$H$287,0)),0)),IFERROR(INDEX(NIR!$D$5:$D$287,MATCH($A57 & "#" & D$1,NIR!$H$5:$H$287,0)),0),0) -> 1.290709228 | E57: =IF(ISNUMBER(IFERROR(INDEX(NIR!$D$5:$D$287,MATCH($A57 & "#" & E$1,NIR!$H$5:$H$287,0)),0)),IFERROR(INDEX(NIR!$D$5:$D$287,MATCH($A57 & "#" & E$1,NIR!$H$5:$H$287,0)),0),0) -> 0.5559246339 | F57: =IF(ISNUMBER(IFERROR(INDEX(NIR!$D$5:$D$287,MATCH($A57 & "#" & F$1,NIR!$H$5:$H$287,0)),0)),IFERROR(INDEX(NIR!$D$5:$D$287,MATCH($A57 & "#" & F$1,NIR!$H$5:$H$287,0)),0),0) -> 0.1 | G57: =IF(ISNUMBER(IFERROR(INDEX(NIR!$D$5:$D$287,MATCH($A57 & "#" & G$1,NIR!$H$5:$H$287,0)),0)),IFERROR(INDEX(NIR!$D$5:$D$287,MATCH($A57 & "#" & G$1,NIR!$H$5:$H$287,0)),0),0) -> 2.417587649 | H57: =IF(ISNUMBER(IFERROR(INDEX(NIR!$D$5:$D$287,MATCH($A57 & "#" & H$1,NIR!$H$5:$H$287,0)),0)),IFERROR(INDEX(NIR!$D$5:$D$287,MATCH($A57 & "#" & H$1,NIR!$H$5:$H$287,0)),0),0) -> 4 | I57: =EF_E_a_T!$D$33 -> 0.002973548483 | J57: =EF_E_a_T!$G$33 -> 0.001369846022 | K57: 0 | L57: =IF(ISNUMBER(IFERROR(INDEX(NIR!$D$5:$D$287,MATCH($A57 & "#" & L$1,NIR!$H$5:$H$287,0)),0)),IFERROR(INDEX(NIR!$D$5:$D$287,MATCH($A57 & "#" & L$1,NIR!$H$5:$H$287,0)),0),0) -> 0 | M57: =IF(ISNUMBER(IFERROR(INDEX(NIR!$D$5:$D$287,MATCH($A57 & "#" & M$1,NIR!$H$5:$H$287,0)),0)),IFERROR(INDEX(NIR!$D$5:$D$287,MATCH($A57 & "#" & M$1,NIR!$H$5:$H$287,0)),0),0) -> 0 | N57: =IF(ISNUMBER(IFERROR(INDEX(NIR!$D$5:$D$287,MATCH($A57 & "#" & N$1,NIR!$H$5:$H$287,0)),0)),IFERROR(INDEX(NIR!$D$5:$D$287,MATCH($A57 & "#" & N$1,NIR!$H$5:$H$287,0)),0),0) -> 0 | O57: =IF(ISNUMBER(IFERROR(INDEX(NIR!$D$5:$D$287,MATCH($A57 & "#" & O$1,NIR!$H$5:$H$287,0)),0)),IFERROR(INDEX(NIR!$D$5:$D$287,MATCH($A57 & "#" & O$1,NIR!$H$5:$H$287,0)),0),0) -> 0 | P57: =IF(ISNUMBER(IFERROR(INDEX(NIR!$D$5:$D$287,MATCH($A57 & "#" & P$1,NIR!$H$5:$H$287,0)),0)),IFERROR(INDEX(NIR!$D$5:$D$287,MATCH($A57 & "#" & P$1,NIR!$H$5:$H$287,0)),0),0) -> 0
A58: refinery | C58: Rafinérie | D58: =IF(ISNUMBER(IFERROR(INDEX(NIR!$D$5:$D$287,MATCH($A58 & "#" & D$1,NIR!$H$5:$H$287,0)),0)),IFERROR(INDEX(NIR!$D$5:$D$287,MATCH($A58 & "#" & D$1,NIR!$H$5:$H$287,0)),0),0) -> 0 | E58: =IF(ISNUMBER(IFERROR(INDEX(NIR!$D$5:$D$287,MATCH($A58 & "#" & E$1,NIR!$H$5:$H$287,0)),0)),IFERROR(INDEX(NIR!$D$5:$D$287,MATCH($A58 & "#" & E$1,NIR!$H$5:$H$287,0)),0),0) -> 0.2767874865 | F58: =IF(ISNUMBER(IFERROR(INDEX(NIR!$D$5:$D$287,MATCH($A58 & "#" & F$1,NIR!$H$5:$H$287,0)),0)),IFERROR(INDEX(NIR!$D$5:$D$287,MATCH($A58 & "#" & F$1,NIR!$H$5:$H$287,0)),0),0) -> 0.1 | G58: =IF(ISNUMBER(IFERROR(INDEX(NIR!$D$5:$D$287,MATCH($A58 & "#" & G$1,NIR!$H$5:$H$287,0)),0)),IFERROR(INDEX(NIR!$D$5:$D$287,MATCH($A58 & "#" & G$1,NIR!$H$5:$H$287,0)),0),0) -> 0 | H58: =IF(ISNUMBER(IFERROR(INDEX(NIR!$D$5:$D$287,MATCH($A58 & "#" & H$1,NIR!$H$5:$H$287,0)),0)),IFERROR(INDEX(NIR!$D$5:$D$287,MATCH($A58 & "#" & H$1,NIR!$H$5:$H$287,0)),0),0) -> 0 | I58: =EF_E_a_T!$D$33 -> 0.002973548483 | J58: =EF_E_a_T!$G$33 -> 0.001369846022 | K58: 0 | L58: =IF(ISNUMBER(IFERROR(INDEX(NIR!$D$5:$D$287,MATCH($A58 & "#" & L$1,NIR!$H$5:$H$287,0)),0)),IFERROR(INDEX(NIR!$D$5:$D$287,MATCH($A58 & "#" & L$1,NIR!$H$5:$H$287,0)),0),0) -> 0 | M58: =IF(ISNUMBER(IFERROR(INDEX(NIR!$D$5:$D$287,MATCH($A58 & "#" & M$1,NIR!$H$5:$H$287,0)),0)),IFERROR(INDEX(NIR!$D$5:$D$287,MATCH($A58 & "#" & M$1,NIR!$H$5:$H$287,0)),0),0) -> 0 | N58: =IF(ISNUMBER(IFERROR(INDEX(NIR!$D$5:$D$287,MATCH($A58 & "#" & N$1,NIR!$H$5:$H$287,0)),0)),IFERROR(INDEX(NIR!$D$5:$D$287,MATCH($A58 & "#" & N$1,NIR!$H$5:$H$287,0)),0),0) -> 0 | O58: =IF(ISNUMBER(IFERROR(INDEX(NIR!$D$5:$D$287,MATCH($A58 & "#" & O$1,NIR!$H$5:$H$287,0)),0)),IFERROR(INDEX(NIR!$D$5:$D$287,MATCH($A58 & "#" & O$1,NIR!$H$5:$H$287,0)),0),0) -> 0 | P58: =IF(ISNUMBER(IFERROR(INDEX(NIR!$D$5:$D$287,MATCH($A58 & "#" & P$1,NIR!$H$5:$H$287,0)),0)),IFERROR(INDEX(NIR!$D$5:$D$287,MATCH($A58 & "#" & P$1,NIR!$H$5:$H$287,0)),0),0) -> 0
A59: ferrous | C59: Metalurgie železných kovů | D59: =IF(ISNUMBER(IFERROR(INDEX(NIR!$D$5:$D$287,MATCH($A59 & "#" & D$1,NIR!$H$5:$H$287,0)),0)),IFERROR(INDEX(NIR!$D$5:$D$287,MATCH($A59 & "#" & D$1,NIR!$H$5:$H$287,0)),0),0) -> 1.049352289 | E59: =IF(ISNUMBER(IFERROR(INDEX(NIR!$D$5:$D$287,MATCH($A59 & "#" & E$1,NIR!$H$5:$H$287,0)),0)),IFERROR(INDEX(NIR!$D$5:$D$287,MATCH($A59 & "#" & E$1,NIR!$H$5:$H$287,0)),0),0) -> 0 | F59: =IF(ISNUMBER(IFERROR(INDEX(NIR!$D$5:$D$287,MATCH($A59 & "#" & F$1,NIR!$H$5:$H$287,0)),0)),IFERROR(INDEX(NIR!$D$5:$D$287,MATCH($A59 & "#" & F$1,NIR!$H$5:$H$287,0)),0),0) -> 0.1 | G59: =IF(ISNUMBER(IFERROR(INDEX(NIR!$D$5:$D$287,MATCH($A59 & "#" & G$1,NIR!$H$5:$H$287,0)),0)),IFERROR(INDEX(NIR!$D$5:$D$287,MATCH($A59 & "#" & G$1,NIR!$H$5:$H$287,0)),0),0) -> 3.999999999 | H59: =IF(ISNUMBER(IFERROR(INDEX(NIR!$D$5:$D$287,MATCH($A59 & "#" & H$1,NIR!$H$5:$H$287,0)),0)),IFERROR(INDEX(NIR!$D$5:$D$287,MATCH($A59 & "#" & H$1,NIR!$H$5:$H$287,0)),0),0) -> 0 | I59: =EF_E_a_T!$D$33 -> 0.002973548483 | J59: =EF_E_a_T!$G$33 -> 0.001369846022 | K59: 0 | L59: =IF(ISNUMBER(IFERROR(INDEX(NIR!$D$5:$D$287,MATCH($A59 & "#" & L$1,NIR!$H$5:$H$287,0)),0)),IFERROR(INDEX(NIR!$D$5:$D$287,MATCH($A59 & "#" & L$1,NIR!$H$5:$H$287,0)),0),0) -> 0 | M59: =IF(ISNUMBER(IFERROR(INDEX(NIR!$D$5:$D$287,MATCH($A59 & "#" & M$1,NIR!$H$5:$H$287,0)),0)),IFERROR(INDEX(NIR!$D$5:$D$287,MATCH($A59 & "#" & M$1,NIR!$H$5:$H$287,0)),0),0) -> 0 | N59: =IF(ISNUMBER(IFERROR(INDEX(NIR!$D$5:$D$287,MATCH($A59 & "#" & N$1,NIR!$H$5:$H$287,0)),0)),IFERROR(INDEX(NIR!$D$5:$D$287,MATCH($A59 & "#" & N$1,NIR!$H$5:$H$287,0)),0),0) -> 0 | O59: =IF(ISNUMBER(IFERROR(INDEX(NIR!$D$5:$D$287,MATCH($A59 & "#" & O$1,NIR!$H$5:$H$287,0)),0)),IFERROR(INDEX(NIR!$D$5:$D$287,MATCH($A59 & "#" & O$1,NIR!$H$5:$H$287,0)),0),0) -> 0 | P59: =IF(ISNUMBER(IFERROR(INDEX(NIR!$D$5:$D$287,MATCH($A59 & "#" & P$1,NIR!$H$5:$H$287,0)),0)),IFERROR(INDEX(NIR!$D$5:$D$287,MATCH($A59 & "#" & P$1,NIR!$H$5:$H$287,0)),0),0) -> 0
A60: nonferrous | C60: Metalurgie neželezných kovů | D60: =IF(ISNUMBER(IFERROR(INDEX(NIR!$D$5:$D$287,MATCH($A60 & "#" & D$1,NIR!$H$5:$H$287,0)),0)),IFERROR(INDEX(NIR!$D$5:$D$287,MATCH($A60 & "#" & D$1,NIR!$H$5:$H$287,0)),0),0) -> 1.5 | E60: =IF(ISNUMBER(IFERROR(INDEX(NIR!$D$5:$D$287,MATCH($A60 & "#" & E$1,NIR!$H$5:$H$287,0)),0)),IFERROR(INDEX(NIR!$D$5:$D$287,MATCH($A60 & "#" & E$1,NIR!$H$5:$H$287,0)),0),0) -> 0.6000000001 | F60: =IF(ISNUMBER(IFERROR(INDEX(NIR!$D$5:$D$287,MATCH($A60 & "#" & F$1,NIR!$H$5:$H$287,0)),0)),IFERROR(INDEX(NIR!$D$5:$D$287,MATCH($A60 & "#" & F$1,NIR!$H$5:$H$287,0)),0),0) -> 0.1 | G60: =IF(ISNUMBER(IFERROR(INDEX(NIR!$D$5:$D$287,MATCH($A60 & "#" & G$1,NIR!$H$5:$H$287,0)),0)),IFERROR(INDEX(NIR!$D$5:$D$287,MATCH($A60 & "#" & G$1,NIR!$H$5:$H$287,0)),0),0) -> 4.000000001 | H60: =IF(ISNUMBER(IFERROR(INDEX(NIR!$D$5:$D$287,MATCH($A60 & "#" & H$1,NIR!$H$5:$H$287,0)),0)),IFERROR(INDEX(NIR!$D$5:$D$287,MATCH($A60 & "#" & H$1,NIR!$H$5:$H$287,0)),0),0) -> 0 | I60: =EF_E_a_T!$D$33 -> 0.002973548483 | J60: =EF_E_a_T!$G$33 -> 0.001369846022 | K60: 0 | L60: =IF(ISNUMBER(IFERROR(INDEX(NIR!$D$5:$D$287,MATCH($A60 & "#" & L$1,NIR!$H$5:$H$287,0)),0)),IFERROR(INDEX(NIR!$D$5:$D$287,MATCH($A60 & "#" & L$1,NIR!$H$5:$H$287,0)),0),0) -> 0 | M60: =IF(ISNUMBER(IFERROR(INDEX(NIR!$D$5:$D$287,MATCH($A60 & "#" & M$1,NIR!$H$5:$H$287,0)),0)),IFERROR(INDEX(NIR!$D$5:$D$287,MATCH($A60 & "#" & M$1,NIR!$H$5:$H$287,0)),0),0) -> 0 | N60: =IF(ISNUMBER(IFERROR(INDEX(NIR!$D$5:$D$287,MATCH($A60 & "#" & N$1,NIR!$H$5:$H$287,0)),0)),IFERROR(INDEX(NIR!$D$5:$D$287,MATCH($A60 & "#" & N$1,NIR!$H$5:$H$287,0)),0),0) -> 0 | O60: =IF(ISNUMBER(IFERROR(INDEX(NIR!$D$5:$D$287,MATCH($A60 & "#" & O$1,NIR!$H$5:$H$287,0)),0)),IFERROR(INDEX(NIR!$D$5:$D$287,MATCH($A60 & "#" & O$1,NIR!$H$5:$H$287,0)),0),0) -> 0 | P60: =IF(ISNUMBER(IFERROR(INDEX(NIR!$D$5:$D$287,MATCH($A60 & "#" & P$1,NIR!$H$5:$H$287,0)),0)),IFERROR(INDEX(NIR!$D$5:$D$287,MATCH($A60 & "#" & P$1,NIR!$H$5:$H$287,0)),0),0) -> 0
A61: nonmetalic | C61: Nekové materiály | D61: =IF(ISNUMBER(IFERROR(INDEX(NIR!$D$5:$D$287,MATCH($A61 & "#" & D$1,NIR!$H$5:$H$287,0)),0)),IFERROR(INDEX(NIR!$D$5:$D$287,MATCH($A61 & "#" & D$1,NIR!$H$5:$H$287,0)),0),0) -> 1.486610695 | E61: =IF(ISNUMBER(IFERROR(INDEX(NIR!$D$5:$D$287,MATCH($A61 & "#" & E$1,NIR!$H$5:$H$287,0)),0)),IFERROR(INDEX(NIR!$D$5:$D$287,MATCH($A61 & "#" & E$1,NIR!$H$5:$H$287,0)),0),0) -> 0.5216893827 | F61: =IF(ISNUMBER(IFERROR(INDEX(NIR!$D$5:$D$287,MATCH($A61 & "#" & F$1,NIR!$H$5:$H$287,0)),0)),IFERROR(INDEX(NIR!$D$5:$D$287,MATCH($A61 & "#" & F$1,NIR!$H$5:$H$287,0)),0),0) -> 0.1 | G61: =IF(ISNUMBER(IFERROR(INDEX(NIR!$D$5:$D$287,MATCH($A61 & "#" & G$1,NIR!$H$5:$H$287,0)),0)),IFERROR(INDEX(NIR!$D$5:$D$287,MATCH($A61 & "#" & G$1,NIR!$H$5:$H$287,0)),0),0) -> 4 | H61: =IF(ISNUMBER(IFERROR(INDEX(NIR!$D$5:$D$287,MATCH($A61 & "#" & H$1,NIR!$H$5:$H$287,0)),0)),IFERROR(INDEX(NIR!$D$5:$D$287,MATCH($A61 & "#" & H$1,NIR!$H$5:$H$287,0)),0),0) -> 4 | I61: =EF_E_a_T!$D$33 -> 0.002973548483 | J61: =EF_E_a_T!$G$33 -> 0.001369846022 | K61: 0 | L61: =IF(ISNUMBER(IFERROR(INDEX(NIR!$D$5:$D$287,MATCH($A61 & "#" & L$1,NIR!$H$5:$H$287,0)),0)),IFERROR(INDEX(NIR!$D$5:$D$287,MATCH($A61 & "#" & L$1,NIR!$H$5:$H$287,0)),0),0) -> 0 | M61: =IF(ISNUMBER(IFERROR(INDEX(NIR!$D$5:$D$287,MATCH($A61 & "#" & M$1,NIR!$H$5:$H$287,0)),0)),IFERROR(INDEX(NIR!$D$5:$D$287,MATCH($A61 & "#" & M$1,NIR!$H$5:$H$287,0)),0),0) -> 0 | N61: =IF(ISNUMBER(IFERROR(INDEX(NIR!$D$5:$D$287,MATCH($A61 & "#" & N$1,NIR!$H$5:$H$287,0)),0)),IFERROR(INDEX(NIR!$D$5:$D$287,MATCH($A61 & "#" & N$1,NIR!$H$5:$H$287,0)),0),0) -> 0 | O61: =IF(ISNUMBER(IFERROR(INDEX(NIR!$D$5:$D$287,MATCH($A61 & "#" & O$1,NIR!$H$5:$H$287,0)),0)),IFERROR(INDEX(NIR!$D$5:$D$287,MATCH($A61 & "#" & O$1,NIR!$H$5:$H$287,0)),0),0) -> 0 | P61: =IF(ISNUMBER(IFERROR(INDEX(NIR!$D$5:$D$287,MATCH($A61 & "#" & P$1,NIR!$H$5:$H$287,0)),0)),IFERROR(INDEX(NIR!$D$5:$D$287,MATCH($A61 & "#" & P$1,NIR!$H$5:$H$287,0)),0),0) -> 0
A62: chemical | C62: Chemie | D62: =IF(ISNUMBER(IFERROR(INDEX(NIR!$D$5:$D$287,MATCH($A62 & "#" & D$1,NIR!$H$5:$H$287,0)),0)),IFERROR(INDEX(NIR!$D$5:$D$287,MATCH($A62 & "#" & D$1,NIR!$H$5:$H$287,0)),0),0) -> 1.5 | E62: =IF(ISNUMBER(IFERROR(INDEX(NIR!$D$5:$D$287,MATCH($A62 & "#" & E$1,NIR!$H$5:$H$287,0)),0)),IFERROR(INDEX(NIR!$D$5:$D$287,MATCH($A62 & "#" & E$1,NIR!$H$5:$H$287,0)),0),0) -> 0.6 | F62: =IF(ISNUMBER(IFERROR(INDEX(NIR!$D$5:$D$287,MATCH($A62 & "#" & F$1,NIR!$H$5:$H$287,0)),0)),IFERROR(INDEX(NIR!$D$5:$D$287,MATCH($A62 & "#" & F$1,NIR!$H$5:$H$287,0)),0),0) -> 0.1 | G62: =IF(ISNUMBER(IFERROR(INDEX(NIR!$D$5:$D$287,MATCH($A62 & "#" & G$1,NIR!$H$5:$H$287,0)),0)),IFERROR(INDEX(NIR!$D$5:$D$287,MATCH($A62 & "#" & G$1,NIR!$H$5:$H$287,0)),0),0) -> 4 | H62: =IF(ISNUMBER(IFERROR(INDEX(NIR!$D$5:$D$287,MATCH($A62 & "#" & H$1,NIR!$H$5:$H$287,0)),0)),IFERROR(INDEX(NIR!$D$5:$D$287,MATCH($A62 & "#" & H$1,NIR!$H$5:$H$287,0)),0),0) -> 0 | I62: =EF_E_a_T!$D$33 -> 0.002973548483 | J62: =EF_E_a_T!$G$33 -> 0.001369846022 | K62: 0 | L62: =IF(ISNUMBER(IFERROR(INDEX(NIR!$D$5:$D$287,MATCH($A62 & "#" & L$1,NIR!$H$5:$H$287,0)),0)),IFERROR(INDEX(NIR!$D$5:$D$287,MATCH($A62 & "#" & L$1,NIR!$H$5:$H$287,0)),0),0) -> 0 | M62: =IF(ISNUMBER(IFERROR(INDEX(NIR!$D$5:$D$287,MATCH($A62 & "#" & M$1,NIR!$H$5:$H$287,0)),0)),IFERROR(INDEX(NIR!$D$5:$D$287,MATCH($A62 & "#" & M$1,NIR!$H$5:$H$287,0)),0),0) -> 0 | N62: =IF(ISNUMBER(IFERROR(INDEX(NIR!$D$5:$D$287,MATCH($A62 & "#" & N$1,NIR!$H$5:$H$287,0)),0)),IFERROR(INDEX(NIR!$D$5:$D$287,MATCH($A62 & "#" & N$1,NIR!$H$5:$H$287,0)),0),0) -> 0 | O62: =IF(ISNUMBER(IFERROR(INDEX(NIR!$D$5:$D$287,MATCH($A62 & "#" & O$1,NIR!$H$5:$H$287,0)),0)),IFERROR(INDEX(NIR!$D$5:$D$287,MATCH($A62 & "#" & O$1,NIR!$H$5:$H$287,0)),0),0) -> 0 | P62: =IF(ISNUMBER(IFERROR(INDEX(NIR!$D$5:$D$287,MATCH($A62 & "#" & P$1,NIR!$H$5:$H$287,0)),0)),IFERROR(INDEX(NIR!$D$5:$D$287,MATCH($A62 & "#" & P$1,NIR!$H$5:$H$287,0)),0),0) -> 0
A63: mansolid | C63: Zpracování tuhých paliv | D63: =IF(ISNUMBER(IFERROR(INDEX(NIR!$D$5:$D$287,MATCH($A63 & "#" & D$1,NIR!$H$5:$H$287,0)),0)),IFERROR(INDEX(NIR!$D$5:$D$287,MATCH($A63 & "#" & D$1,NIR!$H$5:$H$287,0)),0),0) -> 0.9764441602 | E63: =IF(ISNUMBER(IFERROR(INDEX(NIR!$D$5:$D$287,MATCH($A63 & "#" & E$1,NIR!$H$5:$H$287,0)),0)),IFERROR(INDEX(NIR!$D$5:$D$287,MATCH($A63 & "#" & E$1,NIR!$H$5:$H$287,0)),0),0) -> 0.6 | F63: =IF(ISNUMBER(IFERROR(INDEX(NIR!$D$5:$D$287,MATCH($A63 & "#" & F$1,NIR!$H$5:$H$287,0)),0)),IFERROR(INDEX(NIR!$D$5:$D$287,MATCH($A63 & "#" & F$1,NIR!$H$5:$H$287,0)),0),0) -> 0.09999999997 | G63: =IF(ISNUMBER(IFERROR(INDEX(NIR!$D$5:$D$287,MATCH($A63 & "#" & G$1,NIR!$H$5:$H$287,0)),0)),IFERROR(INDEX(NIR!$D$5:$D$287,MATCH($A63 & "#" & G$1,NIR!$H$5:$H$287,0)),0),0) -> 0 | H63: =IF(ISNUMBER(IFERROR(INDEX(NIR!$D$5:$D$287,MATCH($A63 & "#" & H$1,NIR!$H$5:$H$287,0)),0)),IFERROR(INDEX(NIR!$D$5:$D$287,MATCH($A63 & "#" & H$1,NIR!$H$5:$H$287,0)),0),0) -> 0 | I63: =EF_E_a_T!$D$33 -> 0.002973548483 | J63: =EF_E_a_T!$G$33 -> 0.001369846022 | K63: 0 | L63: =IF(ISNUMBER(IFERROR(INDEX(NIR!$D$5:$D$287,MATCH($A63 & "#" & L$1,NIR!$H$5:$H$287,0)),0)),IFERROR(INDEX(NIR!$D$5:$D$287,MATCH($A63 & "#" & L$1,NIR!$H$5:$H$287,0)),0),0) -> 0 | M63: =IF(ISNUMBER(IFERROR(INDEX(NIR!$D$5:$D$287,MATCH($A63 & "#" & M$1,NIR!$H$5:$H$287,0)),0)),IFERROR(INDEX(NIR!$D$5:$D$287,MATCH($A63 & "#" & M$1,NIR!$H$5:$H$287,0)),0),0) -> 0 | N63: =IF(ISNUMBER(IFERROR(INDEX(NIR!$D$5:$D$287,MATCH($A63 & "#" & N$1,NIR!$H$5:$H$287,0)),0)),IFERROR(INDEX(NIR!$D$5:$D$287,MATCH($A63 & "#" & N$1,NIR!$H$5:$H$287,0)),0),0) -> 0 | O63: =IF(ISNUMBER(IFERROR(INDEX(NIR!$D$5:$D$287,MATCH($A63 & "#" & O$1,NIR!$H$5:$H$287,0)),0)),IFERROR(INDEX(NIR!$D$5:$D$287,MATCH($A63 & "#" & O$1,NIR!$H$5:$H$287,0)),0),0) -> 0 | P63: =IF(ISNUMBER(IFERROR(INDEX(NIR!$D$5:$D$287,MATCH($A63 & "#" & P$1,NIR!$H$5:$H$287,0)),0)),IFERROR(INDEX(NIR!$D$5:$D$287,MATCH($A63 & "#" & P$1,NIR!$H$5:$H$287,0)),0),0) -> 0
A64: paper | C64: Papír a celulóza | D64: =IF(ISNUMBER(IFERROR(INDEX(NIR!$D$5:$D$287,MATCH($A64 & "#" & D$1,NIR!$H$5:$H$287,0)),0)),IFERROR(INDEX(NIR!$D$5:$D$287,MATCH($A64 & "#" & D$1,NIR!$H$5:$H$287,0)),0),0) -> 1.5 | E64: =IF(ISNUMBER(IFERROR(INDEX(NIR!$D$5:$D$287,MATCH($A64 & "#" & E$1,NIR!$H$5:$H$287,0)),0)),IFERROR(INDEX(NIR!$D$5:$D$287,MATCH($A64 & "#" & E$1,NIR!$H$5:$H$287,0)),0),0) -> 0.4811661763 | F64: =IF(ISNUMBER(IFERROR(INDEX(NIR!$D$5:$D$287,MATCH($A64 & "#" & F$1,NIR!$H$5:$H$287,0)),0)),IFERROR(INDEX(NIR!$D$5:$D$287,MATCH($A64 & "#" & F$1,NIR!$H$5:$H$287,0)),0),0) -> 0.1 | G64: =IF(ISNUMBER(IFERROR(INDEX(NIR!$D$5:$D$287,MATCH($A64 & "#" & G$1,NIR!$H$5:$H$287,0)),0)),IFERROR(INDEX(NIR!$D$5:$D$287,MATCH($A64 & "#" & G$1,NIR!$H$5:$H$287,0)),0),0) -> 2.615954544 | H64: =IF(ISNUMBER(IFERROR(INDEX(NIR!$D$5:$D$287,MATCH($A64 & "#" & H$1,NIR!$H$5:$H$287,0)),0)),IFERROR(INDEX(NIR!$D$5:$D$287,MATCH($A64 & "#" & H$1,NIR!$H$5:$H$287,0)),0),0) -> 0 | I64: =EF_E_a_T!$D$33 -> 0.002973548483 | J64: =EF_E_a_T!$G$33 -> 0.001369846022 | K64: 0 | L64: =IF(ISNUMBER(IFERROR(INDEX(NIR!$D$5:$D$287,MATCH($A64 & "#" & L$1,NIR!$H$5:$H$287,0)),0)),IFERROR(INDEX(NIR!$D$5:$D$287,MATCH($A64 & "#" & L$1,NIR!$H$5:$H$287,0)),0),0) -> 0 | M64: =IF(ISNUMBER(IFERROR(INDEX(NIR!$D$5:$D$287,MATCH($A64 & "#" & M$1,NIR!$H$5:$H$287,0)),0)),IFERROR(INDEX(NIR!$D$5:$D$287,MATCH($A64 & "#" & M$1,NIR!$H$5:$H$287,0)),0),0) -> 0 | N64: =IF(ISNUMBER(IFERROR(INDEX(NIR!$D$5:$D$287,MATCH($A64 & "#" & N$1,NIR!$H$5:$H$287,0)),0)),IFERROR(INDEX(NIR!$D$5:$D$287,MATCH($A64 & "#" & N$1,NIR!$H$5:$H$287,0)),0),0) -> 0 | O64: =IF(ISNUMBER(IFERROR(INDEX(NIR!$D$5:$D$287,MATCH($A64 & "#" & O$1,NIR!$H$5:$H$287,0)),0)),IFERROR(INDEX(NIR!$D$5:$D$287,MATCH($A64 & "#" & O$1,NIR!$H$5:$H$287,0)),0),0) -> 0 | P64: =IF(ISNUMBER(IFERROR(INDEX(NIR!$D$5:$D$287,MATCH($A64 & "#" & P$1,NIR!$H$5:$H$287,0)),0)),IFERROR(INDEX(NIR!$D$5:$D$287,MATCH($A64 & "#" & P$1,NIR!$H$5:$H$287,0)),0),0) -> 0
A65: food | C65: Potraviny | D65: =IF(ISNUMBER(IFERROR(INDEX(NIR!$D$5:$D$287,MATCH($A65 & "#" & D$1,NIR!$H$5:$H$287,0)),0)),IFERROR(INDEX(NIR!$D$5:$D$287,MATCH($A65 & "#" & D$1,NIR!$H$5:$H$287,0)),0),0) -> 1.5 | E65: =IF(ISNUMBER(IFERROR(INDEX(NIR!$D$5:$D$287,MATCH($A65 & "#" & E$1,NIR!$H$5:$H$287,0)),0)),IFERROR(INDEX(NIR!$D$5:$D$287,MATCH($A65 & "#" & E$1,NIR!$H$5:$H$287,0)),0),0) -> 0.4469057561 | F65: =IF(ISNUMBER(IFERROR(INDEX(NIR!$D$5:$D$287,MATCH($A65 & "#" & F$1,NIR!$H$5:$H$287,0)),0)),IFERROR(INDEX(NIR!$D$5:$D$287,MATCH($A65 & "#" & F$1,NIR!$H$5:$H$287,0)),0),0) -> 0.1 | G65: =IF(ISNUMBER(IFERROR(INDEX(NIR!$D$5:$D$287,MATCH($A65 & "#" & G$1,NIR!$H$5:$H$287,0)),0)),IFERROR(INDEX(NIR!$D$5:$D$287,MATCH($A65 & "#" & G$1,NIR!$H$5:$H$287,0)),0),0) -> 0.3533847356 | H65: =IF(ISNUMBER(IFERROR(INDEX(NIR!$D$5:$D$287,MATCH($A65 & "#" & H$1,NIR!$H$5:$H$287,0)),0)),IFERROR(INDEX(NIR!$D$5:$D$287,MATCH($A65 & "#" & H$1,NIR!$H$5:$H$287,0)),0),0) -> 0 | I65: =EF_E_a_T!$D$33 -> 0.002973548483 | J65: =EF_E_a_T!$G$33 -> 0.001369846022 | K65: 0 | L65: =IF(ISNUMBER(IFERROR(INDEX(NIR!$D$5:$D$287,MATCH($A65 & "#" & L$1,NIR!$H$5:$H$287,0)),0)),IFERROR(INDEX(NIR!$D$5:$D$287,MATCH($A65 & "#" & L$1,NIR!$H$5:$H$287,0)),0),0) -> 0 | M65: =IF(ISNUMBER(IFERROR(INDEX(NIR!$D$5:$D$287,MATCH($A65 & "#" & M$1,NIR!$H$5:$H$287,0)),0)),IFERROR(INDEX(NIR!$D$5:$D$287,MATCH($A65 & "#" & M$1,NIR!$H$5:$H$287,0)),0),0) -> 0 | N65: =IF(ISNUMBER(IFERROR(INDEX(NIR!$D$5:$D$287,MATCH($A65 & "#" & N$1,NIR!$H$5:$H$287,0)),0)),IFERROR(INDEX(NIR!$D$5:$D$287,MATCH($A65 & "#" & N$1,NIR!$H$5:$H$287,0)),0),0) -> 0 | O65: =IF(ISNUMBER(IFERROR(INDEX(NIR!$D$5:$D$287,MATCH($A65 & "#" & O$1,NIR!$H$5:$H$287,0)),0)),IFERROR(INDEX(NIR!$D$5:$D$287,MATCH($A65 & "#" & O$1,NIR!$H$5:$H$287,0)),0),0) -> 0 | P65: =IF(ISNUMBER(IFERROR(INDEX(NIR!$D$5:$D$287,MATCH($A65 & "#" & P$1,NIR!$H$5:$H$287,0)),0)),IFERROR(INDEX(NIR!$D$5:$D$287,MATCH($A65 & "#" & P$1,NIR!$H$5:$H$287,0)),0),0) -> 0
A66: otherindustry | C66: Ostatní průmysl | D66: =IF(ISNUMBER(IFERROR(INDEX(NIR!$D$5:$D$287,MATCH($A66 & "#" & D$1,NIR!$H$5:$H$287,0)),0)),IFERROR(INDEX(NIR!$D$5:$D$287,MATCH($A66 & "#" & D$1,NIR!$H$5:$H$287,0)),0),0) -> 1.466879009 | E66: =IF(ISNUMBER(IFERROR(INDEX(NIR!$D$5:$D$287,MATCH($A66 & "#" & E$1,NIR!$H$5:$H$287,0)),0)),IFERROR(INDEX(NIR!$D$5:$D$287,MATCH($A66 & "#" & E$1,NIR!$H$5:$H$287,0)),0),0) -> 0.5553598528 | F66: =IF(ISNUMBER(IFERROR(INDEX(NIR!$D$5:$D$287,MATCH($A66 & "#" & F$1,NIR!$H$5:$H$287,0)),0)),IFERROR(INDEX(NIR!$D$5:$D$287,MATCH($A66 & "#" & F$1,NIR!$H$5:$H$287,0)),0),0) -> 0.1 | G66: =IF(ISNUMBER(IFERROR(INDEX(NIR!$D$5:$D$287,MATCH($A66 & "#" & G$1,NIR!$H$5:$H$287,0)),0)),IFERROR(INDEX(NIR!$D$5:$D$287,MATCH($A66 & "#" & G$1,NIR!$H$5:$H$287,0)),0),0) -> 3.835134023 | H66: =IF(ISNUMBER(IFERROR(INDEX(NIR!$D$5:$D$287,MATCH($A66 & "#" & H$1,NIR!$H$5:$H$287,0)),0)),IFERROR(INDEX(NIR!$D$5:$D$287,MATCH($A66 & "#" & H$1,NIR!$H$5:$H$287,0)),0),0) -> 0 | I66: =EF_E_a_T!$D$33 -> 0.002973548483 | J66: =EF_E_a_T!$G$33 -> 0.001369846022 | K66: 0 | L66: =IF(ISNUMBER(IFERROR(INDEX(NIR!$D$5:$D$287,MATCH($A66 & "#" & L$1,NIR!$H$5:$H$287,0)),0)),IFERROR(INDEX(NIR!$D$5:$D$287,MATCH($A66 & "#" & L$1,NIR!$H$5:$H$287,0)),0),0) -> 0 | M66: =IF(ISNUMBER(IFERROR(INDEX(NIR!$D$5:$D$287,MATCH($A66 & "#" & M$1,NIR!$H$5:$H$287,0)),0)),IFERROR(INDEX(NIR!$D$5:$D$287,MATCH($A66 & "#" & M$1,NIR!$H$5:$H$287,0)),0),0) -> 0 | N66: =IF(ISNUMBER(IFERROR(INDEX(NIR!$D$5:$D$287,MATCH($A66 & "#" & N$1,NIR!$H$5:$H$287,0)),0)),IFERROR(INDEX(NIR!$D$5:$D$287,MATCH($A66 & "#" & N$1,NIR!$H$5:$H$287,0)),0),0) -> 0 | O66: =IF(ISNUMBER(IFERROR(INDEX(NIR!$D$5:$D$287,MATCH($A66 & "#" & O$1,NIR!$H$5:$H$287,0)),0)),IFERROR(INDEX(NIR!$D$5:$D$287,MATCH($A66 & "#" & O$1,NIR!$H$5:$H$287,0)),0),0) -> 0 | P66: =IF(ISNUMBER(IFERROR(INDEX(NIR!$D$5:$D$287,MATCH($A66 & "#" & P$1,NIR!$H$5:$H$287,0)),0)),IFERROR(INDEX(NIR!$D$5:$D$287,MATCH($A66 & "#" & P$1,NIR!$H$5:$H$287,0)),0),0) -> 0
A67: agriculture | C67: Zemědělství | D67: =IF(ISNUMBER(IFERROR(INDEX(NIR!$D$5:$D$287,MATCH($A67 & "#" & D$1,NIR!$H$5:$H$287,0)),0)),IFERROR(INDEX(NIR!$D$5:$D$287,MATCH($A67 & "#" & D$1,NIR!$H$5:$H$287,0)),0),0) -> 1.5 | E67: =IF(ISNUMBER(IFERROR(INDEX(NIR!$D$5:$D$287,MATCH($A67 & "#" & E$1,NIR!$H$5:$H$287,0)),0)),IFERROR(INDEX(NIR!$D$5:$D$287,MATCH($A67 & "#" & E$1,NIR!$H$5:$H$287,0)),0),0) -> 5.110755545 | F67: =IF(ISNUMBER(IFERROR(INDEX(NIR!$D$5:$D$287,MATCH($A67 & "#" & F$1,NIR!$H$5:$H$287,0)),0)),IFERROR(INDEX(NIR!$D$5:$D$287,MATCH($A67 & "#" & F$1,NIR!$H$5:$H$287,0)),0),0) -> 0.09999125768 | G67: =IF(ISNUMBER(IFERROR(INDEX(NIR!$D$5:$D$287,MATCH($A67 & "#" & G$1,NIR!$H$5:$H$287,0)),0)),IFERROR(INDEX(NIR!$D$5:$D$287,MATCH($A67 & "#" & G$1,NIR!$H$5:$H$287,0)),0),0) -> 0.3760394508 | H67: =IF(ISNUMBER(IFERROR(INDEX(NIR!$D$5:$D$287,MATCH($A67 & "#" & H$1,NIR!$H$5:$H$287,0)),0)),IFERROR(INDEX(NIR!$D$5:$D$287,MATCH($A67 & "#" & H$1,NIR!$H$5:$H$287,0)),0),0) -> 0 | I67: =EF_E_a_T!$D$33 -> 0.002973548483 | J67: =EF_E_a_T!$G$33 -> 0.001369846022 | K67: 0 | L67: =IF(ISNUMBER(IFERROR(INDEX(NIR!$D$5:$D$287,MATCH($A67 & "#" & L$1,NIR!$H$5:$H$287,0)),0)),IFERROR(INDEX(NIR!$D$5:$D$287,MATCH($A67 & "#" & L$1,NIR!$H$5:$H$287,0)),0),0) -> 0 | M67: =IF(ISNUMBER(IFERROR(INDEX(NIR!$D$5:$D$287,MATCH($A67 & "#" & M$1,NIR!$H$5:$H$287,0)),0)),IFERROR(INDEX(NIR!$D$5:$D$287,MATCH($A67 & "#" & M$1,NIR!$H$5:$H$287,0)),0),0) -> 0 | N67: =IF(ISNUMBER(IFERROR(INDEX(NIR!$D$5:$D$287,MATCH($A67 & "#" & N$1,NIR!$H$5:$H$287,0)),0)),IFERROR(INDEX(NIR!$D$5:$D$287,MATCH($A67 & "#" & N$1,NIR!$H$5:$H$287,0)),0),0) -> 0 | O67: =IF(ISNUMBER(IFERROR(INDEX(NIR!$D$5:$D$287,MATCH($A67 & "#" & O$1,NIR!$H$5:$H$287,0)),0)),IFERROR(INDEX(NIR!$D$5:$D$287,MATCH($A67 & "#" & O$1,NIR!$H$5:$H$287,0)),0),0) -> 0 | P67: =IF(ISNUMBER(IFERROR(INDEX(NIR!$D$5:$D$287,MATCH($A67 & "#" & P$1,NIR!$H$5:$H$287,0)),0)),IFERROR(INDEX(NIR!$D$5:$D$287,MATCH($A67 & "#" & P$1,NIR!$H$5:$H$287,0)),0),0) -> 0

Sheet EF_E_a_T
A1: Rok | B1: =Emisní_faktory!B1 -> 2015
A3: Emisní faktory pro vyrobenou elektřinu a teplo
A5: [kg/GJ] | B5: Elektřina | E5: Teplo
B6: CO2 | C6: CH4 | D6: N2O | E6: CO2 | F6: CH4 | G6: N2O
A7: Emisní faktory za všechny zdroje | B7: =IF(Rok<=Last_Bil,E_a_T!O164,Výsledek_projekce!BN164) -> 136.4075643 | C7: =IF(Rok<=Last_Bil,E_a_T!P164/1000,Výsledek_projekce!BO164) -> 0.02048479305 | D7: =IF(Rok<=Last_Bil,E_a_T!Q164/1000,Výsledek_projekce!BP164) -> 0.002313889674 | E7: =IF(Rok<=Last_Bil,E_a_T!R164,Výsledek_projekce!BQ164) -> 87.37300839 | F7: =IF(Rok<=Last_Bil,E_a_T!S164/1000,Výsledek_projekce!BR164) -> 0.0133831234 | G7: =IF(Rok<=Last_Bil,E_a_T!T164/1000,Výsledek_projekce!BS164) -> 0.00129081058
A8: Emisní faktory za zdroje bez OZE | B8: =IF(Rok<=Last_Bil,E_a_T!O165,Výsledek_projekce!BN165) -> 153.9853031 | C8: =IF(Rok<=Last_Bil,E_a_T!P165/1000,Výsledek_projekce!BO165) -> 0.001645143138 | D8: =IF(Rok<=Last_Bil,E_a_T!Q165/1000,Výsledek_projekce!BP165) -> 0.002159415197 | E8: =IF(Rok<=Last_Bil,E_a_T!R165,Výsledek_projekce!BQ165) -> 94.1558995 | F8: =IF(Rok<=Last_Bil,E_a_T!S165/1000,Výsledek_projekce!BR165) -> 0.00113895471 | G8: =IF(Rok<=Last_Bil,E_a_T!T165/1000,Výsledek_projekce!BS165) -> 0.001111095338
A9: Emisní faktory za zdroje bez OZE a JE | B9: =IF(Rok<=Last_Bil,E_a_T!O166,Výsledek_projekce!BN166) -> 243.305357 | C9: =IF(Rok<=Last_Bil,E_a_T!P166/1000,Výsledek_projekce!BO166) -> 0.002599417806 | D9: =IF(Rok<=Last_Bil,E_a_T!Q166/1000,Výsledek_projekce!BP166) -> 0.003411996308 | E9: =IF(Rok<=Last_Bil,E_a_T!R166,Výsledek_projekce!BQ166) -> 94.92633451 | F9: =IF(Rok<=Last_Bil,E_a_T!S166/1000,Výsledek_projekce!BR166) -> 0.00114827426 | G9: =IF(Rok<=Last_Bil,E_a_T!T166/1000,Výsledek_projekce!BS166) -> 0.001120186927
A10: Sada zvolených hodnot | B10: =VLOOKUP(Emisní_faktory!$B$7,$A$7:$G$9,2) -> 136.4075643 | C10: =VLOOKUP(Emisní_faktory!$B$7,$A$7:$G$9,3) -> 0.02048479305 | D10: =VLOOKUP(Emisní_faktory!$B$7,$A$7:$G$9,4) -> 0.002313889674 | E10: =VLOOKUP(Emisní_faktory!$B$7,$A$7:$G$9,5) -> 87.37300839 | F10: =VLOOKUP(Emisní_faktory!$B$7,$A$7:$G$9,6) -> 0.0133831234 | G10: =VLOOKUP(Emisní_faktory!$B$7,$A$7:$G$9,7) -> 0.00129081058
A13: Výpočet zvýšení emisních faktorů vlivem vlastních spotřeb a ztrát
B15: Elektřina | C15: Teplo
A16: Hrubá výroba [TJ] | B16: =IF(Rok<=Last_Bil,SUM(E_a_T!F115:F160),INDEX(Projekce!D137:BL137,,Rok-1990+1)) -> 297130 | C16: =IF(Rok<=Last_Bil,VLOOKUP("TJ#" & $I16 & "#" & C$24 & "#CZ",EB[],Emisní_faktory!$B$2),INDEX(Projekce!D155:BL155,,Rok-1990+1)) -> 121307 | I16: 17_107000
A17: Vlastní spotřeba [TJ] | B17: =IF(Rok<=Last_Bil,VLOOKUP("TJ#" & $I17 & "#" & B$24 & "#CZ",EB[],Emisní_faktory!$B$2),INDEX(Projekce!D104:BL104,,Rok-1990+1)) -> 25114 | C17: =IF(Rok<=Last_Bil,VLOOKUP("TJ#" & $I17 & "#" & C$24 & "#CZ",EB[],Emisní_faktory!$B$2),INDEX(Projekce!D114:BL114,,Rok-1990+1)) -> 22243 | I17: B_101301
A18: Čistá výroba [TJ] | B18: =IF(Rok<=Last_Bil,VLOOKUP("TJ#" & $I18 & "#" & B$24 & "#CZ",EB[],Emisní_faktory!$B$2),INDEX(Projekce!D105:BL105,,Rok-1990+1)) -> 276898 | C18: =IF(Rok<=Last_Bil,VLOOKUP("TJ#" & $I18 & "#" & C$24 & "#CZ",EB[],Emisní_faktory!$B$2),INDEX(Projekce!D115:BL115,,Rok-1990+1)) -> 99064 | I18: 17_107100
A19: Distribuční ztráty [TJ] | B19: =IF(Rok<=Last_Bil,VLOOKUP("TJ#" & $I19 & "#" & B$24 & "#CZ",EB[],Emisní_faktory!$B$2),INDEX(Projekce!D106:BL106,,Rok-1990+1)) -> 14641 | C19: =IF(Rok<=Last_Bil,VLOOKUP("TJ#" & $I19 & "#" & C$24 & "#CZ",EB[],Emisní_faktory!$B$2),INDEX(Projekce!D116:BL116,,Rok-1990+1)) -> 6713 | I19: B_101400
A20: Spotřeba v energetickém sektoru [TJ] | B20: =IF(Rok<=Last_Bil,VLOOKUP("TJ#" & $I20 & "#" & B$24 & "#CZ",EB[],Emisní_faktory!$B$2),INDEX(Projekce!D107:BL107,,Rok-1990+1)) -> 33174 | C20: =IF(Rok<=Last_Bil,VLOOKUP("TJ#" & $I20 & "#" & C$24 & "#CZ",EB[],Emisní_faktory!$B$2),INDEX(Projekce!D117:BL117,,Rok-1990+1)) -> 27111 | I20: B_101300
A21: Konečná spotřeba [TJ] | B21: =IF(Rok<=Last_Bil,VLOOKUP("TJ#" & $I21 & "#" & B$24 & "#CZ",EB[],Emisní_faktory!$B$2),INDEX(Projekce!D108:BL108,,Rok-1990+1)) -> 198040 | C21: =IF(Rok<=Last_Bil,VLOOKUP("TJ#" & $I21 & "#" & C$24 & "#CZ",EB[],Emisní_faktory!$B$2),INDEX(Projekce!D118:BL118,,Rok-1990+1)) -> 87197 | I21: B_101700
A22: Zvýšení emisíního faktoru vlivem vlastních spotřeb a ztrát [1] | B22: =B16/(B20+B21) -> 1.285086543 | C22: =C16/(C20+C21) -> 1.06122931
B24: 6000 | C24: 5200
A26: Emisní faktory pro spotřební elektřinu a teplo
A28: [kg/GJ] | B28: Elektřina | E28: Teplo
B29: CO2 | C29: CH4 | D29: N2O | E29: CO2 | F29: CH4 | G29: N2O
A30: =A7 -> Emisní faktory za všechny zdroje | B30: =B7*$B$22 -> 175.2955253 | C30: 0.02632473189 | D30: 0.002973548483 | E30: =E7*$C$22 -> 92.72279743 | F30: 0.01420256281 | G30: 0.001369846022
A31: =A8 -> Emisní faktory za zdroje bez OZE | B31: 197.8844408 | C31: 0.002114151309 | D31: 0.002775035411 | E31: 99.92100028 | F31: 0.001208692122 | G31: 0.00117912694
A32: =A9 -> Emisní faktory za zdroje bez OZE a JE | B32: 312.6684402 | C32: 0.003340476842 | D32: 0.004384710541 | E32: 100.7386085 | F32: 0.001218582301 | G32: 0.0011887752
A33: =A10 -> Sada zvolených hodnot | B33: 175.2955253 | C33: 0.02632473189 | D33: 0.002973548483 | E33: 92.72279743 | F33: 0.01420256281 | G33: 0.001369846022

Sheet Roky (hidden)
A1: Rok | C1: =MIN(Last_NIR,Last_Bil) -> 2015
A2: 1990
A3: 1991
A4: 1992
A5: 1993
A6: 1994
A7: 1995
A8: 1996
A9: 1997
A10: 1998
A11: 1999
A12: 2000
A13: 2001
A14: 2002
A15: 2003
A16: 2004
A17: 2005
A18: 2006
A19: 2007
A20: 2008
A21: 2009
A22: 2010
A23: 2011
A24: 2012
A25: 2013
A26: 2014
A27: 2015
A28: 2016
A29: 2017
A30: 2018
A31: 2019
A32: 2020
A33: 2021
A34: 2022
A35: 2023
A36: 2024
A37: 2025
A38: 2026
A39: 2027
A40: 2028
A41: 2029
A42: 2030
A43: 2031
A44: 2032
A45: 2033
A46: 2034
A47: 2035
A48: 2036
A49: 2037
A50: 2038
A51: 2039
A52: 2040
A53: 2041
A54: 2042
A55: 2043
A56: 2044
A57: 2045
A58: 2046
A59: 2047
A60: 2048
A61: 2049
A62: 2050

Sheet EB_komplet (hidden)
A1: key | B1: Nositel | C1: Nositel_doprava | D1: Výběr | E1: Source_carrier | F1: Zdrojový_nositel | G1: unit | H1: indic_nrg | I1: product | J1: geo | K1: indic_desc | L1: unit_desc | M1: product_desc | N1: geo_desc | O1: 1990 | P1: 1991 | Q1: 1992 | R1: 1993 | S1: 1994 | T1: 1995 | U1: 1996 | V1: 1997 | W1: 1998 | X1: 1999 | Y1: 2000 | Z1: 2001 | AA1: 2002 | AB1: 2003 | AC1: 2004 | AD1: 2005 | AE1: 2006 | AF1: 2007 | AG1: 2008 | AH1: 2009 | AI1: 2010 | AJ1: 2011 | AK1: 2012 | AL1: 2013 | AM1: 2014 | AN1: 2015
A2: =EB[[#This Row],[unit]] & "#" & EB[[#This Row],[indic_nrg]] & "#" & EB[[#This Row],[product]] & "#" & EB[[#This Row],[geo]] -> GWH#14_1070341#6000#CZ | B2: =VLOOKUP(EB[[#This Row],[product]],KS_DB[[product]:[KS]],5,FALSE) -> electricity | C2: =VLOOKUP(EB[[#This Row],[product]],KS_DB[[product]:[KS]],6,FALSE) -> electricity | D2: =VLOOKUP(EB[[#This Row],[product]],Carriers[],4,FALSE) -> 1 | E2: =VLOOKUP(EB[[#This Row],[indic_nrg]],Indicators[],4,FALSE) -> 5510 | F2: =IFERROR(VLOOKUP(EB[[#This Row],[Source_carrier]],KS_DB[[product]:[KS]],6,FALSE),0) -> RES | G2: GWH | H2: 14_1070341 | I2: 6000 | J2: CZ | K2: Gross electricity generation Main activity electricity only - Hydro -1 MW | L2: Gigawatt-hour | M2: Electrical energy | N2: Czech Republic | O2: 0 | P2: 0 | Q2: 0 | R2: 0 | S2: 0 | T2: 0 | U2: 0 | V2: 0 | W2: 0 | X2: 0 | Y2: 0 | Z2: 0 | AA2: 0 | AB2: 73 | AC2: 86 | AD2: 102 | AE2: 99 | AF2: 155 | AG2: 147 | AH2: 141 | AI2: 165 | AJ2: 119 | AK2: 117 | AL2: 144 | AM2: 140 | AN2: 134
A3: =EB[[#This Row],[unit]] & "#" & EB[[#This Row],[indic_nrg]] & "#" & EB[[#This Row],[product]] & "#" & EB[[#This Row],[geo]] -> GWH#14_1070342#6000#CZ | B3: =VLOOKUP(EB[[#This Row],[product]],KS_DB[[product]:[KS]],5,FALSE) -> electricity | C3: =VLOOKUP(EB[[#This Row],[product]],KS_DB[[product]:[KS]],6,FALSE) -> electricity | D3: =VLOOKUP(EB[[#This Row],[product]],Carriers[],4,FALSE) -> 1 | E3: =VLOOKUP(EB[[#This Row],[indic_nrg]],Indicators[],4,FALSE) -> 5510 | F3: =IFERROR(VLOOKUP(EB[[#This Row],[Source_carrier]],KS_DB[[product]:[KS]],6,FALSE),0) -> RES | G3: GWH | H3: 14_1070342 | I3: 6000 | J3: CZ | K3: Gross electricity generation Main activity electricity only - Hydro 1-10 MW | L3: Gigawatt-hour | M3: Electrical energy | N3: Czech Republic | O3: 0 | P3: 0 | Q3: 0 | R3: 0 | S3: 0 | T3: 0 | U3: 0 | V3: 0 | W3: 0 | X3: 170 | Y3: 110 | Z3: 140 | AA3: 208 | AB3: 278 | AC3: 416 | AD3: 491 | AE3: 474 | AF3: 369 | AG3: 333 | AH3: 309 | AI3: 388 | AJ3: 334 | AK3: 334 | AL3: 398 | AM3: 355 | AN3: 361
A4: =EB[[#This Row],[unit]] & "#" & EB[[#This Row],[indic_nrg]] & "#" & EB[[#This Row],[product]] & "#" & EB[[#This Row],[geo]] -> GWH#14_1070343#6000#CZ | B4: =VLOOKUP(EB[[#This Row],[product]],KS_DB[[product]:[KS]],5,FALSE) -> electricity | C4: =VLOOKUP(EB[[#This Row],[product]],KS_DB[[product]:[KS]],6,FALSE) -> electricity | D4: =VLOOKUP(EB[[#This Row],[product]],Carriers[],4,FALSE) -> 1 | E4: =VLOOKUP(EB[[#This Row],[indic_nrg]],Indicators[],4,FALSE) -> 5510 | F4: =IFERROR(VLOOKUP(EB[[#This Row],[Source_carrier]],KS_DB[[product]:[KS]],6,FALSE),0) -> RES | G4: GWH | H4: 14_1070343 | I4: 6000 | J4: CZ | K4: Gross electricity generation Main activity electricity only - Hydro 10+ MW | L4: Gigawatt-hour | M4: Electrical energy | N4: Czech Republic | O4: 1113 | P4: 997 | Q4: 1294 | R4: 1268 | S4: 1347 | T4: 1858 | U4: 1845 | V4: 1515 | W4: 1199 | X4: 1114 | Y4: 1255 | Z4: 1363 | AA4: 1743 | AB4: 661 | AC4: 1054 | AD4: 1236 | AE4: 1518 | AF4: 999 | AG4: 988 | AH4: 1409 | AI4: 1550 | AJ4: 1007 | AK4: 1154 | AL4: 1572 | AM4: 850 | AN4: 733
A5: =EB[[#This Row],[unit]] & "#" & EB[[#This Row],[indic_nrg]] & "#" & EB[[#This Row],[product]] & "#" & EB[[#This Row],[geo]] -> GWH#14_1070351#6000#CZ | B5: =VLOOKUP(EB[[#This Row],[product]],KS_DB[[product]:[KS]],5,FALSE) -> electricity | C5: =VLOOKUP(EB[[#This Row],[product]],KS_DB[[product]:[KS]],6,FALSE) -> electricity | D5: =VLOOKUP(EB[[#This Row],[product]],Carriers[],4,FALSE) -> 1 | E5: =VLOOKUP(EB[[#This Row],[indic_nrg]],Indicators[],4,FALSE) -> 5510 | F5: =IFERROR(VLOOKUP(EB[[#This Row],[Source_carrier]],KS_DB[[product]:[KS]],6,FALSE),0) -> RES | G5: GWH | H5: 14_1070351 | I5: 6000 | J5: CZ | K5: Gross electricity generation Autoproducer electricity only - Hydro -1 MW | L5: Gigawatt-hour | M5: Electrical energy | N5: Czech Republic | O5: 48 | P5: 92 | Q5: 108 | R5: 101 | S5: 113 | T5: 144 | U5: 124 | V5: 184 | W5: 197 | X5: 256 | Y5: 245 | Z5: 265 | AA5: 254 | AB5: 169 | AC5: 200 | AD5: 241 | AE5: 234 | AF5: 365 | AG5: 345 | AH5: 333 | AI5: 390 | AJ5: 278 | AK5: 274 | AL5: 335 | AM5: 326 | AN5: 312
A6: =EB[[#This Row],[unit]] & "#" & EB[[#This Row],[indic_nrg]] & "#" & EB[[#This Row],[product]] & "#" & EB[[#This Row],[geo]] -> GWH#14_1070352#6000#CZ | B6: =VLOOKUP(EB[[#This Row],[product]],KS_DB[[product]:[KS]],5,FALSE) -> electricity | C6: =VLOOKUP(EB[[#This Row],[product]],KS_DB[[product]:[KS]],6,FALSE) -> electricity | D6: =VLOOKUP(EB[[#This Row],[product]],Carriers[],4,FALSE) -> 1 | E6: =VLOOKUP(EB[[#This Row],[indic_nrg]],Indicators[],4,FALSE) -> 5510 | F6: =IFERROR(VLOOKUP(EB[[#This Row],[Source_carrier]],KS_DB[[product]:[KS]],6,FALSE),0) -> RES | G6: GWH | H6: 14_1070352 | I6: 6000 | J6: CZ | K6: Gross electricity generation Autoproducer electricity only - Hydro 1-10 MW | L6: Gigawatt-hour | M6: Electrical energy | N6: Czech Republic | O6: 0 | P6: 0 | Q6: 0 | R6: 0 | S6: 0 | T6: 0 | U6: 0 | V6: 0 | W6: 0 | X6: 141 | Y6: 148 | Z6: 286 | AA6: 287 | AB6: 140 | AC6: 201 | AD6: 236 | AE6: 158 | AF6: 123 | AG6: 141 | AH6: 171 | AI6: 216 | AJ6: 163 | AK6: 191 | AL6: 217 | AM6: 191 | AN6: 195
A7: =EB[[#This Row],[unit]] & "#" & EB[[#This Row],[indic_nrg]] & "#" & EB[[#This Row],[product]] & "#" & EB[[#This Row],[geo]] -> GWH#14_1070353#6000#CZ | B7: =VLOOKUP(EB[[#This Row],[product]],KS_DB[[product]:[KS]],5,FALSE) -> electricity | C7: =VLOOKUP(EB[[#This Row],[product]],KS_DB[[product]:[KS]],6,FALSE) -> electricity | D7: =VLOOKUP(EB[[#This Row],[product]],Carriers[],4,FALSE) -> 1 | E7: =VLOOKUP(EB[[#This Row],[indic_nrg]],Indicators[],4,FALSE) -> 5510 | F7: =IFERROR(VLOOKUP(EB[[#This Row],[Source_carrier]],KS_DB[[product]:[KS]],6,FALSE),0) -> RES | G7: GWH | H7: 14_1070353 | I7: 6000 | J7: CZ | K7: Gross electricity generation Autoproducer electricity only - Hydro 10+ MW | L7: Gigawatt-hour | M7: Electrical energy | N7: Czech Republic | O7: 0 | P7: 0 | Q7: 0 | R7: 0 | S7: 0 | T7: 0 | U7: 0 | V7: 0 | W7: 0 | X7: 0 | Y7: 0 | Z7: 0 | AA7: 0 | AB7: 62 | AC7: 62 | AD7: 73 | AE7: 69 | AF7: 78 | AG7: 69 | AH7: 66 | AI7: 80 | AJ7: 62 | AK7: 58 | AL7: 69 | AM7: 47 | AN7: 60
A8: =EB[[#This Row],[unit]] & "#" & EB[[#This Row],[indic_nrg]] & "#" & EB[[#This Row],[product]] & "#" & EB[[#This Row],[geo]] -> GWH#14_1070421#6000#CZ | B8: =VLOOKUP(EB[[#This Row],[product]],KS_DB[[product]:[KS]],5,FALSE) -> electricity | C8: =VLOOKUP(EB[[#This Row],[product]],KS_DB[[product]:[KS]],6,FALSE) -> electricity | D8: =VLOOKUP(EB[[#This Row],[product]],Carriers[],4,FALSE) -> 1 | E8: =VLOOKUP(EB[[#This Row],[indic_nrg]],Indicators[],4,FALSE) -> 5534 | F8: =IFERROR(VLOOKUP(EB[[#This Row],[Source_carrier]],KS_DB[[product]:[KS]],6,FALSE),0) -> RES | G8: GWH | H8: 14_1070421 | I8: 6000 | J8: CZ | K8: Gross electricity generation Main activity electricity only - Solar Photovoltaic | L8: Gigawatt-hour | M8: Electrical energy | N8: Czech Republic | O8: 0 | P8: 0 | Q8: 0 | R8: 0 | S8: 0 | T8: 0 | U8: 0 | V8: 0 | W8: 0 | X8: 0 | Y8: 0 | Z8: 0 | AA8: 0 | AB8: 0 | AC8: 0 | AD8: 0 | AE8: 1 | AF8: 2 | AG8: 13 | AH8: 89 | AI8: 616 | AJ8: 2182 | AK8: 2149 | AL8: 2033 | AM8: 2123 | AN8: 2264
A9: =EB[[#This Row],[unit]] & "#" & EB[[#This Row],[indic_nrg]] & "#" & EB[[#This Row],[product]] & "#" & EB[[#This Row],[geo]] -> GWH#14_1070422#6000#CZ | B9: =VLOOKUP(EB[[#This Row],[product]],KS_DB[[product]:[KS]],5,FALSE) -> electricity | C9: =VLOOKUP(EB[[#This Row],[product]],KS_DB[[product]:[KS]],6,FALSE) -> electricity | D9: =VLOOKUP(EB[[#This Row],[product]],Carriers[],4,FALSE) -> 1 | E9: =VLOOKUP(EB[[#This Row],[indic_nrg]],Indicators[],4,FALSE) -> 5532 | F9: =IFERROR(VLOOKUP(EB[[#This Row],[Source_carrier]],KS_DB[[product]:[KS]],6,FALSE),0) -> RES | G9: GWH | H9: 14_1070422 | I9: 6000 | J9: CZ | K9: Gross electricity generation Main activity electricity only - Solar Thermal | L9: Gigawatt-hour | M9: Electrical energy | N9: Czech Republic | O9: 0 | P9: 0 | Q9: 0 | R9: 0 | S9: 0 | T9: 0 | U9: 0 | V9: 0 | W9: 0 | X9: 0 | Y9: 0 | Z9: 0 | AA9: 0 | AB9: 0 | AC9: 0 | AD9: 0 | AE9: 0 | AF9: 0 | AG9: 0 | AH9: 0 | AI9: 0 | AJ9: 0 | AK9: 0 | AL9: 0 | AM9: 0 | AN9: 0
A10: =EB[[#This Row],[unit]] & "#" & EB[[#This Row],[indic_nrg]] & "#" & EB[[#This Row],[product]] & "#" & EB[[#This Row],[geo]] -> GWH#14_1070431#6000#CZ | B10: =VLOOKUP(EB[[#This Row],[product]],KS_DB[[product]:[KS]],5,FALSE) -> electricity | C10: =VLOOKUP(EB[[#This Row],[product]],KS_DB[[product]:[KS]],6,FALSE) -> electricity | D10: =VLOOKUP(EB[[#This Row],[product]],Carriers[],4,FALSE) -> 1 | E10: =VLOOKUP(EB[[#This Row],[indic_nrg]],Indicators[],4,FALSE) -> 5534 | F10: =IFERROR(VLOOKUP(EB[[#This Row],[Source_carrier]],KS_DB[[product]:[KS]],6,FALSE),0) -> RES | G10: GWH | H10: 14_1070431 | I10: 6000 | J10: CZ | K10: Gross electricity generation Autoproducer electricity only - Solar Photovoltaic | L10: Gigawatt-hour | M10: Electrical energy | N10: Czech Republic | O10: 0 | P10: 0 | Q10: 0 | R10: 0 | S10: 0 | T10: 0 | U10: 0 | V10: 0 | W10: 0 | X10: 0 | Y10: 0 | Z10: 0 | AA10: 0 | AB10: 0 | AC10: 0 | AD10: 0 | AE10: 0 | AF10: 0 | AG10: 0 | AH10: 0 | AI10: 0 | AJ10: 0 | AK10: 0 | AL10: 0 | AM10: 0 | AN10: 0
A11: =EB[[#This Row],[unit]] & "#" & EB[[#This Row],[indic_nrg]] & "#" & EB[[#This Row],[product]] & "#" & EB[[#This Row],[geo]] -> GWH#14_1070432#6000#CZ | B11: =VLOOKUP(EB[[#This Row],[product]],KS_DB[[product]:[KS]],5,FALSE) -> electricity | C11: =VLOOKUP(EB[[#This Row],[product]],KS_DB[[product]:[KS]],6,FALSE) -> electricity | D11: =VLOOKUP(EB[[#This Row],[product]],Carriers[],4,FALSE) -> 1 | E11: =VLOOKUP(EB[[#This Row],[indic_nrg]],Indicators[],4,FALSE) -> 5532 | F11: =IFERROR(VLOOKUP(EB[[#This Row],[Source_carrier]],KS_DB[[product]:[KS]],6,FALSE),0) -> RES | G11: GWH | H11: 14_1070432 | I11: 6000 | J11: CZ | K11: Gross electricity generation Autoproducer electricity only - Solar Thermal | L11: Gigawatt-hour | M11: Electrical energy | N11: Czech Republic | O11: 0 | P11: 0 | Q11: 0 | R11: 0 | S11: 0 | T11: 0 | U11: 0 | V11: 0 | W11: 0 | X11: 0 | Y11: 0 | Z11: 0 | AA11: 0 | AB11: 0 | AC11: 0 | AD11: 0 | AE11: 0 | AF11: 0 | AG11: 0 | AH11: 0 | AI11: 0 | AJ11: 0 | AK11: 0 | AL11: 0 | AM11: 0 | AN11: 0
A12: =EB[[#This Row],[unit]] & "#" & EB[[#This Row],[indic_nrg]] & "#" & EB[[#This Row],[product]] & "#" & EB[[#This Row],[geo]] -> GWH#15_107030#6000#CZ | B12: =VLOOKUP(EB[[#This Row],[product]],KS_DB[[product]:[KS]],5,FALSE) -> electricity | C12: =VLOOKUP(EB[[#This Row],[product]],KS_DB[[product]:[KS]],6,FALSE) -> electricity | D12: =VLOOKUP(EB[[#This Row],[product]],Carriers[],4,FALSE) -> 1 | E12: =VLOOKUP(EB[[#This Row],[indic_nrg]],Indicators[],4,FALSE) -> 5100 | F12: =IFERROR(VLOOKUP(EB[[#This Row],[Source_carrier]],KS_DB[[product]:[KS]],6,FALSE),0) -> nuclear | G12: GWH | H12: 15_107030 | I12: 6000 | J12: CZ | K12: Gross electricity generation Main activity electricity only - Nuclear | L12: Gigawatt-hour | M12: Electrical energy | N12: Czech Republic | O12: 12585 | P12: 12132 | Q12: 12250 | R12: 12627 | S12: 12977 | T12: 12230 | U12: 12850 | V12: 12494 | W12: 13178 | X12: 13357 | Y12: 13590 | Z12: 14749 | AA12: 18738 | AB12: 25872 | AC12: 26325 | AD12: 24728 | AE12: 26046 | AF12: 26172 | AG12: 26551 | AH12: 27208 | AI12: 27998 | AJ12: 28283 | AK12: 30324 | AL12: 30745 | AM12: 30325 | AN12: 26841
A13: =EB[[#This Row],[unit]] & "#" & EB[[#This Row],[indic_nrg]] & "#" & EB[[#This Row],[product]] & "#" & EB[[#This Row],[geo]] -> GWH#15_107031#6000#CZ | B13: =VLOOKUP(EB[[#This Row],[product]],KS_DB[[product]:[KS]],5,FALSE) -> electricity | C13: =VLOOKUP(EB[[#This Row],[product]],KS_DB[[product]:[KS]],6,FALSE) -> electricity | D13: =VLOOKUP(EB[[#This Row],[product]],Carriers[],4,FALSE) -> 1 | E13: =VLOOKUP(EB[[#This Row],[indic_nrg]],Indicators[],4,FALSE) -> 5100 | F13: =IFERROR(VLOOKUP(EB[[#This Row],[Source_carrier]],KS_DB[[product]:[KS]],6,FALSE),0) -> nuclear | G13: GWH | H13: 15_107031 | I13: 6000 | J13: CZ | K13: Gross electricity generation Main activity CHP plants - Nuclear | L13: Gigawatt-hour | M13: Electrical energy | N13: Czech Republic | O13: 0 | P13: 0 | Q13: 0 | R13: 0 | S13: 0 | T13: 0 | U13: 0 | V13: 0 | W13: 0 | X13: 0 | Y13: 0 | Z13: 0 | AA13: 0 | AB13: 0 | AC13: 0 | AD13: 0 | AE13: 0 | AF13: 0 | AG13: 0 | AH13: 0 | AI13: 0 | AJ13: 0 | AK13: 0 | AL13: 0 | AM13: 0 | AN13: 0
A14: =EB[[#This Row],[unit]] & "#" & EB[[#This Row],[indic_nrg]] & "#" & EB[[#This Row],[product]] & "#" & EB[[#This Row],[geo]] -> GWH#15_107032#6000#CZ | B14: =VLOOKUP(EB[[#This Row],[product]],KS_DB[[product]:[KS]],5,FALSE) -> electricity | C14: =VLOOKUP(EB[[#This Row],[product]],KS_DB[[product]:[KS]],6,FALSE) -> electricity | D14: =VLOOKUP(EB[[#This Row],[product]],Carriers[],4,FALSE) -> 1 | E14: =VLOOKUP(EB[[#This Row],[indic_nrg]],Indicators[],4,FALSE) -> 5100 | F14: =IFERROR(VLOOKUP(EB[[#This Row],[Source_carrier]],KS_DB[[product]:[KS]],6,FALSE),0) -> nuclear | G14: GWH | H14: 15_107032 | I14: 6000 | J14: CZ | K14: Gross electricity generation Autoproducer electricity only - Nuclear | L14: Gigawatt-hour | M14: Electrical energy | N14: Czech Republic | O14: 0 | P14: 0 | Q14: 0 | R14: 0 | S14: 0 | T14: 0 | U14: 0 | V14: 0 | W14: 0 | X14: 0 | Y14: 0 | Z14: 0 | AA14: 0 | AB14: 0 | AC14: 0 | AD14: 0 | AE14: 0 | AF14: 0 | AG14: 0 | AH14: 0 | AI14: 0 | AJ14: 0 | AK14: 0 | AL14: 0 | AM14: 0 | AN14: 0
A15: =EB[[#This Row],[unit]] & "#" & EB[[#This Row],[indic_nrg]] & "#" & EB[[#This Row],[product]] & "#" & EB[[#This Row],[geo]] -> GWH#15_107033#6000#CZ | B15: =VLOOKUP(EB[[#This Row],[product]],KS_DB[[product]:[KS]],5,FALSE) -> electricity | C15: =VLOOKUP(EB[[#This Row],[product]],KS_DB[[product]:[KS]],6,FALSE) -> electricity | D15: =VLOOKUP(EB[[#This Row],[product]],Carriers[],4,FALSE) -> 1 | E15: =VLOOKUP(EB[[#This Row],[indic_nrg]],Indicators[],4,FALSE) -> 5100 | F15: =IFERROR(VLOOKUP(EB[[#This Row],[Source_carrier]],KS_DB[[product]:[KS]],6,FALSE),0) -> nuclear | G15: GWH | H15: 15_107033 | I15: 6000 | J15: CZ | K15: Gross electricity generation Autoproducer CHP plants - Nuclear | L15: Gigawatt-hour | M15: Electrical energy | N15: Czech Republic | O15: 0 | P15: 0 | Q15: 0 | R15: 0 | S15: 0 | T15: 0 | U15: 0 | V15: 0 | W15: 0 | X15: 0 | Y15: 0 | Z15: 0 | AA15: 0 | AB15: 0 | AC15: 0 | AD15: 0 | AE15: 0 | AF15: 0 | AG15: 0 | AH15: 0 | AI15: 0 | AJ15: 0 | AK15: 0 | AL15: 0 | AM15: 0 | AN15: 0
A16: =EB[[#This Row],[unit]] & "#" & EB[[#This Row],[indic_nrg]] & "#" & EB[[#This Row],[product]] & "#" & EB[[#This Row],[geo]] -> GWH#15_107034#6000#CZ | B16: =VLOOKUP(EB[[#This Row],[product]],KS_DB[[product]:[KS]],5,FALSE) -> electricity | C16: =VLOOKUP(EB[[#This Row],[product]],KS_DB[[product]:[KS]],6,FALSE) -> electricity | D16: =VLOOKUP(EB[[#This Row],[product]],Carriers[],4,FALSE) -> 1 | E16: =VLOOKUP(EB[[#This Row],[indic_nrg]],Indicators[],4,FALSE) -> 0 | F16: =IFERROR(VLOOKUP(EB[[#This Row],[Source_carrier]],KS_DB[[product]:[KS]],6,FALSE),0) -> 0 | G16: GWH | H16: 15_107034 | I16: 6000 | J16: CZ | K16: Gross electricity generation Main activity electricity only - Hydro | L16: Gigawatt-hour | M16: Electrical energy | N16: Czech Republic | O16: 1401 | P16: 1227 | Q16: 1530 | R16: 1495 | S16: 1663 | T16: 2130 | U16: 2279 | V16: 1896 | W16: 1687 | X16: 1819 | Y16: 1920 | Z16: 1916 | AA16: 2304 | AB16: 1423 | AC16: 2099 | AD16: 2477 | AE16: 2797 | AF16: 1957 | AG16: 1820 | AH16: 2412 | AI16: 2694 | AJ16: 2161 | AK16: 2337 | AL16: 3018 | AM16: 2397 | AN16: 2505
A17: =EB[[#This Row],[unit]] & "#" & EB[[#This Row],[indic_nrg]] & "#" & EB[[#This Row],[product]] & "#" & EB[[#This Row],[geo]] -> GWH#15_107035#6000#CZ | B17: =VLOOKUP(EB[[#This Row],[product]],KS_DB[[product]:[KS]],5,FALSE) -> electricity | C17: =VLOOKUP(EB[[#This Row],[product]],KS_DB[[product]:[KS]],6,FALSE) -> electricity | D17: =VLOOKUP(EB[[#This Row],[product]],Carriers[],4,FALSE) -> 1 | E17: =VLOOKUP(EB[[#This Row],[indic_nrg]],Indicators[],4,FALSE) -> 0 | F17: =IFERROR(VLOOKUP(EB[[#This Row],[Source_carrier]],KS_DB[[product]:[KS]],6,FALSE),0) -> 0 | G17: GWH | H17: 15_107035 | I17: 6000 | J17: CZ | K17: Gross electricity generation Autoproducer electricity only - Hydro | L17: Gigawatt-hour | M17: Electrical energy | N17: Czech Republic | O17: 48 | P17: 92 | Q17: 108 | R17: 101 | S17: 113 | T17: 144 | U17: 124 | V17: 184 | W17: 197 | X17: 397 | Y17: 393 | Z17: 551 | AA17: 541 | AB17: 371 | AC17: 463 | AD17: 550 | AE17: 460 | AF17: 566 | AG17: 556 | AH17: 570 | AI17: 686 | AJ17: 503 | AK17: 523 | AL17: 621 | AM17: 564 | AN17: 566
A18: =EB[[#This Row],[unit]] & "#" & EB[[#This Row],[indic_nrg]] & "#" & EB[[#This Row],[product]] & "#" & EB[[#This Row],[geo]] -> GWH#15_107036#6000#CZ | B18: =VLOOKUP(EB[[#This Row],[product]],KS_DB[[product]:[KS]],5,FALSE) -> electricity | C18: =VLOOKUP(EB[[#This Row],[product]],KS_DB[[product]:[KS]],6,FALSE) -> electricity | D18: =VLOOKUP(EB[[#This Row],[product]],Carriers[],4,FALSE) -> 1 | E18: =VLOOKUP(EB[[#This Row],[indic_nrg]],Indicators[],4,FALSE) -> 0 | F18: =IFERROR(VLOOKUP(EB[[#This Row],[Source_carrier]],KS_DB[[product]:[KS]],6,FALSE),0) -> 0 | G18: GWH | H18: 15_107036 | I18: 6000 | J18: CZ | K18: Gross electricity generation Main activity electricity only - Pumped Hydro | L18: Gigawatt-hour | M18: Electrical energy | N18: Czech Republic | O18: 288 | P18: 230 | Q18: 236 | R18: 227 | S18: 316 | T18: 272 | U18: 434 | V18: 381 | W18: 488 | X18: 535 | Y18: 555 | Z18: 413 | AA18: 353 | AB18: 411 | AC18: 543 | AD18: 647 | AE18: 707 | AF18: 434 | AG18: 352 | AH18: 553 | AI18: 591 | AJ18: 701 | AK18: 731 | AL18: 905 | AM18: 1052 | AN18: 1276
A19: =EB[[#This Row],[unit]] & "#" & EB[[#This Row],[indic_nrg]] & "#" & EB[[#This Row],[product]] & "#" & EB[[#This Row],[geo]] -> GWH#15_107037#6000#CZ | B19: =VLOOKUP(EB[[#This Row],[product]],KS_DB[[product]:[KS]],5,FALSE) -> electricity | C19: =VLOOKUP(EB[[#This Row],[product]],KS_DB[[product]:[KS]],6,FALSE) -> electricity | D19: =VLOOKUP(EB[[#This Row],[product]],Carriers[],4,FALSE) -> 1 | E19: =VLOOKUP(EB[[#This Row],[indic_nrg]],Indicators[],4,FALSE) -> 0 | F19: =IFERROR(VLOOKUP(EB[[#This Row],[Source_carrier]],KS_DB[[product]:[KS]],6,FALSE),0) -> 0 | G19: GWH | H19: 15_107037 | I19: 6000 | J19: CZ | K19: Gross electricity generation Autoproducer electricity only - Pumped Hydro | L19: Gigawatt-hour | M19: Electrical energy | N19: Czech Republic | O19: 0 | P19: 0 | Q19: 0 | R19: 0 | S19: 0 | T19: 0 | U19: 0 | V19: 0 | W19: 0 | X19: 0 | Y19: 0 | Z19: 0 | AA19: 0 | AB19: 0 | AC19: 0 | AD19: 0 | AE19: 0 | AF19: 0 | AG19: 0 | AH19: 0 | AI19: 0 | AJ19: 0 | AK19: 0 | AL19: 0 | AM19: 0 | AN19: 0
A20: =EB[[#This Row],[unit]] & "#" & EB[[#This Row],[indic_nrg]] & "#" & EB[[#This Row],[product]] & "#" & EB[[#This Row],[geo]] -> GWH#15_107038#6000#CZ | B20: =VLOOKUP(EB[[#This Row],[product]],KS_DB[[product]:[KS]],5,FALSE) -> electricity | C20: =VLOOKUP(EB[[#This Row],[product]],KS_DB[[product]:[KS]],6,FALSE) -> electricity | D20: =VLOOKUP(EB[[#This Row],[product]],Carriers[],4,FALSE) -> 1 | E20: =VLOOKUP(EB[[#This Row],[indic_nrg]],Indicators[],4,FALSE) -> 5550 | F20: =IFERROR(VLOOKUP(EB[[#This Row],[Source_carrier]],KS_DB[[product]:[KS]],6,FALSE),0) -> RES | G20: GWH | H20: 15_107038 | I20: 6000 | J20: CZ | K20: Gross electricity generation Main activity electricity only - Geothermal | L20: Gigawatt-hour | M20: Electrical energy | N20: Czech Republic | O20: 0 | P20: 0 | Q20: 0 | R20: 0 | S20: 0 | T20: 0 | U20: 0 | V20: 0 | W20: 0 | X20: 0 | Y20: 0 | Z20: 0 | AA20: 0 | AB20: 0 | AC20: 0 | AD20: 0 | AE20: 0 | AF20: 0 | AG20: 0 | AH20: 0 | AI20: 0 | AJ20: 0 | AK20: 0 | AL20: 0 | AM20: 0 | AN20: 0
A21: =EB[[#This Row],[unit]] & "#" & EB[[#This Row],[indic_nrg]] & "#" & EB[[#This Row],[product]] & "#" & EB[[#This Row],[geo]] -> GWH#15_107039#6000#CZ | B21: =VLOOKUP(EB[[#This Row],[product]],KS_DB[[product]:[KS]],5,FALSE) -> electricity | C21: =VLOOKUP(EB[[#This Row],[product]],KS_DB[[product]:[KS]],6,FALSE) -> electricity | D21: =VLOOKUP(EB[[#This Row],[product]],Carriers[],4,FALSE) -> 1 | E21: =VLOOKUP(EB[[#This Row],[indic_nrg]],Indicators[],4,FALSE) -> 5550 | F21: =IFERROR(VLOOKUP(EB[[#This Row],[Source_carrier]],KS_DB[[product]:[KS]],6,FALSE),0) -> RES | G21: GWH | H21: 15_107039 | I21: 6000 | J21: CZ | K21: Gross electricity generation Main activity CHP plants - Geothermal | L21: Gigawatt-hour | M21: Electrical energy | N21: Czech Republic | O21: 0 | P21: 0 | Q21: 0 | R21: 0 | S21: 0 | T21: 0 | U21: 0 | V21: 0 | W21: 0 | X21: 0 | Y21: 0 | Z21: 0 | AA21: 0 | AB21: 0 | AC21: 0 | AD21: 0 | AE21: 0 | AF21: 0 | AG21: 0 | AH21: 0 | AI21: 0 | AJ21: 0 | AK21: 0 | AL21: 0 | AM21: 0 | AN21: 0
A22: =EB[[#This Row],[unit]] & "#" & EB[[#This Row],[indic_nrg]] & "#" & EB[[#This Row],[product]] & "#" & EB[[#This Row],[geo]] -> GWH#15_107040#6000#CZ | B22: =VLOOKUP(EB[[#This Row],[product]],KS_DB[[product]:[KS]],5,FALSE) -> electricity | C22: =VLOOKUP(EB[[#This Row],[product]],KS_DB[[product]:[KS]],6,FALSE) -> electricity | D22: =VLOOKUP(EB[[#This Row],[product]],Carriers[],4,FALSE) -> 1 | E22: =VLOOKUP(EB[[#This Row],[indic_nrg]],Indicators[],4,FALSE) -> 5550 | F22: =IFERROR(VLOOKUP(EB[[#This Row],[Source_carrier]],KS_DB[[product]:[KS]],6,FALSE),0) -> RES | G22: GWH | H22: 15_107040 | I22: 6000 | J22: CZ | K22: Gross electricity generation Autoproducer electricity only - Geothermal | L22: Gigawatt-hour | M22: Electrical energy | N22: Czech Republic | O22: 0 | P22: 0 | Q22: 0 | R22: 0 | S22: 0 | T22: 0 | U22: 0 | V22: 0 | W22: 0 | X22: 0 | Y22: 0 | Z22: 0 | AA22: 0 | AB22: 0 | AC22: 0 | AD22: 0 | AE22: 0 | AF22: 0 | AG22: 0 | AH22: 0 | AI22: 0 | AJ22: 0 | AK22: 0 | AL22: 0 | AM22: 0 | AN22: 0
A23: =EB[[#This Row],[unit]] & "#" & EB[[#This Row],[indic_nrg]] & "#" & EB[[#This Row],[product]] & "#" & EB[[#This Row],[geo]] -> GWH#15_107041#6000#CZ | B23: =VLOOKUP(EB[[#This Row],[product]],KS_DB[[product]:[KS]],5,FALSE) -> electricity | C23: =VLOOKUP(EB[[#This Row],[product]],KS_DB[[product]:[KS]],6,FALSE) -> electricity | D23: =VLOOKUP(EB[[#This Row],[product]],Carriers[],4,FALSE) -> 1 | E23: =VLOOKUP(EB[[#This Row],[indic_nrg]],Indicators[],4,FALSE) -> 5550 | F23: =IFERROR(VLOOKUP(EB[[#This Row],[Source_carrier]],KS_DB[[product]:[KS]],6,FALSE),0) -> RES | G23: GWH | H23: 15_107041 | I23: 6000 | J23: CZ | K23: Gross electricity generation Autoproducer CHP plants - Geothermal | L23: Gigawatt-hour | M23: Electrical energy | N23: Czech Republic | O23: 0 | P23: 0 | Q23: 0 | R23: 0 | S23: 0 | T23: 0 | U23: 0 | V23: 0 | W23: 0 | X23: 0 | Y23: 0 | Z23: 0 | AA23: 0 | AB23: 0 | AC23: 0 | AD23: 0 | AE23: 0 | AF23: 0 | AG23: 0 | AH23: 0 | AI23: 0 | AJ23: 0 | AK23: 0 | AL23: 0 | AM23: 0 | AN23: 0
A24: =EB[[#This Row],[unit]] & "#" & EB[[#This Row],[indic_nrg]] & "#" & EB[[#This Row],[product]] & "#" & EB[[#This Row],[geo]] -> GWH#15_107044#6000#CZ | B24: =VLOOKUP(EB[[#This Row],[product]],KS_DB[[product]:[KS]],5,FALSE) -> electricity | C24: =VLOOKUP(EB[[#This Row],[product]],KS_DB[[product]:[KS]],6,FALSE) -> electricity | D24: =VLOOKUP(EB[[#This Row],[product]],Carriers[],4,FALSE) -> 1 | E24: =VLOOKUP(EB[[#This Row],[indic_nrg]],Indicators[],4,FALSE) -> 5535 | F24: =IFERROR(VLOOKUP(EB[[#This Row],[Source_carrier]],KS_DB[[product]:[KS]],6,FALSE),0) -> RES | G24: GWH | H24: 15_107044 | I24: 6000 | J24: CZ | K24: Gross electricity generation Main activity electricity only - Tide, Wave and Ocean | L24: Gigawatt-hour | M24: Electrical energy | N24: Czech Republic | O24: 0 | P24: 0 | Q24: 0 | R24: 0 | S24: 0 | T24: 0 | U24: 0 | V24: 0 | W24: 0 | X24: 0 | Y24: 0 | Z24: 0 | AA24: 0 | AB24: 0 | AC24: 0 | AD24: 0 | AE24: 0 | AF24: 0 | AG24: 0 | AH24: 0 | AI24: 0 | AJ24: 0 | AK24: 0 | AL24: 0 | AM24: 0 | AN24: 0
A25: =EB[[#This Row],[unit]] & "#" & EB[[#This Row],[indic_nrg]] & "#" & EB[[#This Row],[product]] & "#" & EB[[#This Row],[geo]] -> GWH#15_107045#6000#CZ | B25: =VLOOKUP(EB[[#This Row],[product]],KS_DB[[product]:[KS]],5,FALSE) -> electricity | C25: =VLOOKUP(EB[[#This Row],[product]],KS_DB[[product]:[KS]],6,FALSE) -> electricity | D25: =VLOOKUP(EB[[#This Row],[product]],Carriers[],4,FALSE) -> 1 | E25: =VLOOKUP(EB[[#This Row],[indic_nrg]],Indicators[],4,FALSE) -> 5535 | F25: =IFERROR(VLOOKUP(EB[[#This Row],[Source_carrier]],KS_DB[[product]:[KS]],6,FALSE),0) -> RES | G25: GWH | H25: 15_107045 | I25: 6000 | J25: CZ | K25: Gross electricity generation Autoproducer electricity only - Tide, Wave and Ocean | L25: Gigawatt-hour | M25: Electrical energy | N25: Czech Republic | O25: 0 | P25: 0 | Q25: 0 | R25: 0 | S25: 0 | T25: 0 | U25: 0 | V25: 0 | W25: 0 | X25: 0 | Y25: 0 | Z25: 0 | AA25: 0 | AB25: 0 | AC25: 0 | AD25: 0 | AE25: 0 | AF25: 0 | AG25: 0 | AH25: 0 | AI25: 0 | AJ25: 0 | AK25: 0 | AL25: 0 | AM25: 0 | AN25: 0
A26: =EB[[#This Row],[unit]] & "#" & EB[[#This Row],[indic_nrg]] & "#" & EB[[#This Row],[product]] & "#" & EB[[#This Row],[geo]] -> GWH#15_107046#6000#CZ | B26: =VLOOKUP(EB[[#This Row],[product]],KS_DB[[product]:[KS]],5,FALSE) -> electricity | C26: =VLOOKUP(EB[[#This Row],[product]],KS_DB[[product]:[KS]],6,FALSE) -> electricity | D26: =VLOOKUP(EB[[#This Row],[product]],Carriers[],4,FALSE) -> 1 | E26: =VLOOKUP(EB[[#This Row],[indic_nrg]],Indicators[],4,FALSE) -> 5520 | F26: =IFERROR(VLOOKUP(EB[[#This Row],[Source_carrier]],KS_DB[[product]:[KS]],6,FALSE),0) -> RES | G26: GWH | H26: 15_107046 | I26: 6000 | J26: CZ | K26: Gross electricity generation Main activity electricity only - Wind | L26: Gigawatt-hour | M26: Electrical energy | N26: Czech Republic | O26: 0 | P26: 0 | Q26: 0 | R26: 0 | S26: 0 | T26: 0 | U26: 0 | V26: 0 | W26: 0 | X26: 0 | Y26: 1 | Z26: 0 | AA26: 2 | AB26: 5 | AC26: 10 | AD26: 21 | AE26: 49 | AF26: 125 | AG26: 245 | AH26: 288 | AI26: 335 | AJ26: 397 | AK26: 416 | AL26: 481 | AM26: 477 | AN26: 573
A27: =EB[[#This Row],[unit]] & "#" & EB[[#This Row],[indic_nrg]] & "#" & EB[[#This Row],[product]] & "#" & EB[[#This Row],[geo]] -> GWH#15_107047#6000#CZ | B27: =VLOOKUP(EB[[#This Row],[product]],KS_DB[[product]:[KS]],5,FALSE) -> electricity | C27: =VLOOKUP(EB[[#This Row],[product]],KS_DB[[product]:[KS]],6,FALSE) -> electricity | D27: =VLOOKUP(EB[[#This Row],[product]],Carriers[],4,FALSE) -> 1 | E27: =VLOOKUP(EB[[#This Row],[indic_nrg]],Indicators[],4,FALSE) -> 5520 | F27: =IFERROR(VLOOKUP(EB[[#This Row],[Source_carrier]],KS_DB[[product]:[KS]],6,FALSE),0) -> RES | G27: GWH | H27: 15_107047 | I27: 6000 | J27: CZ | K27: Gross electricity generation Autoproducer electricity only - Wind | L27: Gigawatt-hour | M27: Electrical energy | N27: Czech Republic | O27: 0 | P27: 0 | Q27: 0 | R27: 0 | S27: 0 | T27: 0 | U27: 0 | V27: 0 | W27: 0 | X27: 0 | Y27: 0 | Z27: 0 | AA27: 0 | AB27: 0 | AC27: 0 | AD27: 0 | AE27: 0 | AF27: 0 | AG27: 0 | AH27: 0 | AI27: 0 | AJ27: 0 | AK27: 0 | AL27: 0 | AM27: 0 | AN27: 0
A28: =EB[[#This Row],[unit]] & "#" & EB[[#This Row],[indic_nrg]] & "#" & EB[[#This Row],[product]] & "#" & EB[[#This Row],[geo]] -> GWH#15_107048#6000#CZ | B28: =VLOOKUP(EB[[#This Row],[product]],KS_DB[[product]:[KS]],5,FALSE) -> electricity | C28: =VLOOKUP(EB[[#This Row],[product]],KS_DB[[product]:[KS]],6,FALSE) -> electricity | D28: =VLOOKUP(EB[[#This Row],[product]],Carriers[],4,FALSE) -> 1 | E28: =VLOOKUP(EB[[#This Row],[indic_nrg]],Indicators[],4,FALSE) -> 0 | F28: =IFERROR(VLOOKUP(EB[[#This Row],[Source_carrier]],KS_DB[[product]:[KS]],6,FALSE),0) -> 0 | G28: GWH | H28: 15_107048 | I28: 6000 | J28: CZ | K28: Gross electricity generation Main activity electricity only - Combustible Fuels | L28: Gigawatt-hour | M28: Electrical energy | N28: Czech Republic | O28: 36628 | P28: 35499 | Q28: 33589 | R28: 32847 | S28: 31817 | T28: 32954 | U28: 33871 | V28: 34529 | W28: 34234 | X28: 32060 | Y28: 36944 | Z28: 36517 | AA28: 34633 | AB28: 35608 | AC28: 34627 | AD28: 33948 | AE28: 33985 | AF28: 39257 | AG28: 32972 | AH28: 31500 | AI28: 10150 | AJ28: 10290 | AK28: 9328 | AL28: 7931 | AM28: 7525 | AN28: 8649
A29: =EB[[#This Row],[unit]] & "#" & EB[[#This Row],[indic_nrg]] & "#" & EB[[#This Row],[product]] & "#" & EB[[#This Row],[geo]] -> GWH#15_107049#6000#CZ | B29: =VLOOKUP(EB[[#This Row],[product]],KS_DB[[product]:[KS]],5,FALSE) -> electricity | C29: =VLOOKUP(EB[[#This Row],[product]],KS_DB[[product]:[KS]],6,FALSE) -> electricity | D29: =VLOOKUP(EB[[#This Row],[product]],Carriers[],4,FALSE) -> 1 | E29: =VLOOKUP(EB[[#This Row],[indic_nrg]],Indicators[],4,FALSE) -> 0 | F29: =IFERROR(VLOOKUP(EB[[#This Row],[Source_carrier]],KS_DB[[product]:[KS]],6,FALSE),0) -> 0 | G29: GWH | H29: 15_107049 | I29: 6000 | J29: CZ | K29: Gross electricity generation Main activity CHP plants - Combustible Fuels | L29: Gigawatt-hour | M29: Electrical energy | N29: Czech Republic | O29: 4620 | P29: 4752 | Q29: 4981 | R29: 5337 | S29: 5894 | T29: 7230 | U29: 7972 | V29: 8037 | W29: 8137 | X29: 9546 | Y29: 10535 | Z29: 11279 | AA29: 10915 | AB29: 10857 | AC29: 11474 | AD29: 11284 | AE29: 11270 | AF29: 11418 | AG29: 12358 | AH29: 11843 | AI29: 35770 | AJ29: 36276 | AK29: 34897 | AL29: 34021 | AM29: 34151 | AN29: 33778
A30: =EB[[#This Row],[unit]] & "#" & EB[[#This Row],[indic_nrg]] & "#" & EB[[#This Row],[product]] & "#" & EB[[#This Row],[geo]] -> GWH#15_107050#6000#CZ | B30: =VLOOKUP(EB[[#This Row],[product]],KS_DB[[product]:[KS]],5,FALSE) -> electricity | C30: =VLOOKUP(EB[[#This Row],[product]],KS_DB[[product]:[KS]],6,FALSE) -> electricity | D30: =VLOOKUP(EB[[#This Row],[product]],Carriers[],4,FALSE) -> 1 | E30: =VLOOKUP(EB[[#This Row],[indic_nrg]],Indicators[],4,FALSE) -> 0 | F30: =IFERROR(VLOOKUP(EB[[#This Row],[Source_carrier]],KS_DB[[product]:[KS]],6,FALSE),0) -> 0 | G30: GWH | H30: 15_107050 | I30: 6000 | J30: CZ | K30: Gross electricity generation Autoproducer electricity only - Combustible Fuels | L30: Gigawatt-hour | M30: Electrical energy | N30: Czech Republic | O30: 650 | P30: 400 | Q30: 439 | R30: 327 | S30: 535 | T30: 524 | U30: 746 | V30: 952 | W30: 1112 | X30: 1028 | Y30: 893 | Z30: 993 | AA30: 1009 | AB30: 792 | AC30: 720 | AD30: 681 | AE30: 827 | AF30: 729 | AG30: 734 | AH30: 567 | AI30: 36 | AJ30: 41 | AK30: 36 | AL30: 32 | AM30: 57 | AN30: 70
A31: =EB[[#This Row],[unit]] & "#" & EB[[#This Row],[indic_nrg]] & "#" & EB[[#This Row],[product]] & "#" & EB[[#This Row],[geo]] -> GWH#15_107051#6000#CZ | B31: =VLOOKUP(EB[[#This Row],[product]],KS_DB[[product]:[KS]],5,FALSE) -> electricity | C31: =VLOOKUP(EB[[#This Row],[product]],KS_DB[[product]:[KS]],6,FALSE) -> electricity | D31: =VLOOKUP(EB[[#This Row],[product]],Carriers[],4,FALSE) -> 1 | E31: =VLOOKUP(EB[[#This Row],[indic_nrg]],Indicators[],4,FALSE) -> 0 | F31: =IFERROR(VLOOKUP(EB[[#This Row],[Source_carrier]],KS_DB[[product]:[KS]],6,FALSE),0) -> 0 | G31: GWH | H31: 15_107051 | I31: 6000 | J31: CZ | K31: Gross electricity generation Autoproducer CHP plants - Combustible Fuels | L31: Gigawatt-hour | M31: Electrical energy | N31: Czech Republic | O31: 6627 | P31: 6426 | Q31: 6396 | R31: 6147 | S31: 5706 | T31: 5635 | U31: 6415 | V31: 6506 | W31: 6567 | X31: 6487 | Y31: 9190 | Z31: 8642 | AA31: 8206 | AB31: 8299 | AC31: 8614 | AD31: 8888 | AE31: 8925 | AF31: 7971 | AG31: 8397 | AH31: 7708 | AI31: 7533 | AJ31: 7260 | AK31: 7334 | AL31: 7956 | AM31: 8441 | AN31: 8566
A32: =EB[[#This Row],[unit]] & "#" & EB[[#This Row],[indic_nrg]] & "#" & EB[[#This Row],[product]] & "#" & EB[[#This Row],[geo]] -> GWH#15_107052#6000#CZ | B32: =VLOOKUP(EB[[#This Row],[product]],KS_DB[[product]:[KS]],5,FALSE) -> electricity | C32: =VLOOKUP(EB[[#This Row],[product]],KS_DB[[product]:[KS]],6,FALSE) -> electricity | D32: =VLOOKUP(EB[[#This Row],[product]],Carriers[],4,FALSE) -> 1 | E32: =VLOOKUP(EB[[#This Row],[indic_nrg]],Indicators[],4,FALSE) -> 0 | F32: =IFERROR(VLOOKUP(EB[[#This Row],[Source_carrier]],KS_DB[[product]:[KS]],6,FALSE),0) -> 0 | G32: GWH | H32: 15_107052 | I32: 6000 | J32: CZ | K32: Gross electricity generation Autoproducer electricity only - Heat from Chemical Sources | L32: Gigawatt-hour | M32: Electrical energy | N32: Czech Republic | O32: 0 | P32: 0 | Q32: 0 | R32: 0 | S32: 0 | T32: 0 | U32: 0 | V32: 0 | W32: 0 | X32: 0 | Y32: 0 | Z32: 0 | AA32: 0 | AB32: 0 | AC32: 0 | AD32: 0 | AE32: 0 | AF32: 0 | AG32: 0 | AH32: 0 | AI32: 0 | AJ32: 0 | AK32: 0 | AL32: 0 | AM32: 0 | AN32: 0
A33: =EB[[#This Row],[unit]] & "#" & EB[[#This Row],[indic_nrg]] & "#" & EB[[#This Row],[product]] & "#" & EB[[#This Row],[geo]] -> GWH#15_107053#6000#CZ | B33: =VLOOKUP(EB[[#This Row],[product]],KS_DB[[product]:[KS]],5,FALSE) -> electricity | C33: =VLOOKUP(EB[[#This Row],[product]],KS_DB[[product]:[KS]],6,FALSE) -> electricity | D33: =VLOOKUP(EB[[#This Row],[product]],Carriers[],4,FALSE) -> 1 | E33: =VLOOKUP(EB[[#This Row],[indic_nrg]],Indicators[],4,FALSE) -> 0 | F33: =IFERROR(VLOOKUP(EB[[#This Row],[Source_carrier]],KS_DB[[product]:[KS]],6,FALSE),0) -> 0 | G33: GWH | H33: 15_107053 | I33: 6000 | J33: CZ | K33: Gross electricity generation Autoproducer CHP plants - Heat from Chemical Sources | L33: Gigawatt-hour | M33: Electrical energy | N33: Czech Republic | O33: 0 | P33: 0 | Q33: 0 | R33: 0 | S33: 0 | T33: 0 | U33: 0 | V33: 0 | W33: 0 | X33: 0 | Y33: 0 | Z33: 0 | AA33: 0 | AB33: 0 | AC33: 1 | AD33: 1 | AE33: 1 | AF33: 1 | AG33: 1 | AH33: 0 | AI33: 0 | AJ33: 0 | AK33: 0 | AL33: 0 | AM33: 9 | AN33: 1
A34: =EB[[#This Row],[unit]] & "#" & EB[[#This Row],[indic_nrg]] & "#" & EB[[#This Row],[product]] & "#" & EB[[#This Row],[geo]] -> GWH#15_107054#6000#CZ | B34: =VLOOKUP(EB[[#This Row],[product]],KS_DB[[product]:[KS]],5,FALSE) -> electricity | C34: =VLOOKUP(EB[[#This Row],[product]],KS_DB[[product]:[KS]],6,FALSE) -> electricity | D34: =VLOOKUP(EB[[#This Row],[product]],Carriers[],4,FALSE) -> 1 | E34: =VLOOKUP(EB[[#This Row],[indic_nrg]],Indicators[],4,FALSE) -> 0 | F34: =IFERROR(VLOOKUP(EB[[#This Row],[Source_carrier]],KS_DB[[product]:[KS]],6,FALSE),0) -> 0 | G34: GWH | H34: 15_107054 | I34: 6000 | J34: CZ | K34: Gross electricity generation Main activity electricity only - Other Sources | L34: Gigawatt-hour | M34: Electrical energy | N34: Czech Republic | O34: 0 | P34: 0 | Q34: 0 | R34: 0 | S34: 0 | T34: 0 | U34: 0 | V34: 0 | W34: 0 | X34: 0 | Y34: 0 | Z34: 0 | AA34: 0 | AB34: 0 | AC34: 0 | AD34: 0 | AE34: 0 | AF34: 0 | AG34: 0 | AH34: 0 | AI34: 0 | AJ34: 0 | AK34: 0 | AL34: 0 | AM34: 0 | AN34: 0
A35: =EB[[#This Row],[unit]] & "#" & EB[[#This Row],[indic_nrg]] & "#" & EB[[#This Row],[product]] & "#" & EB[[#This Row],[geo]] -> GWH#15_107055#6000#CZ | B35: =VLOOKUP(EB[[#This Row],[product]],KS_DB[[product]:[KS]],5,FALSE) -> electricity | C35: =VLOOKUP(EB[[#This Row],[product]],KS_DB[[product]:[KS]],6,FALSE) -> electricity | D35: =VLOOKUP(EB[[#This Row],[product]],Carriers[],4,FALSE) -> 1 | E35: =VLOOKUP(EB[[#This Row],[indic_nrg]],Indicators[],4,FALSE) -> 0 | F35: =IFERROR(VLOOKUP(EB[[#This Row],[Source_carrier]],KS_DB[[product]:[KS]],6,FALSE),0) -> 0 | G35: GWH | H35: 15_107055 | I35: 6000 | J35: CZ | K35: Gross electricity generation Main activity CHP plants - Other Sources | L35: Gigawatt-hour | M35: Electrical energy | N35: Czech Republic | O35: 0 | P35: 0 | Q35: 0 | R35: 0 | S35: 0 | T35: 0 | U35: 0 | V35: 0 | W35: 0 | X35: 0 | Y35: 0 | Z35: 0 | AA35: 0 | AB35: 0 | AC35: 0 | AD35: 0 | AE35: 0 | AF35: 0 | AG35: 0 | AH35: 0 | AI35: 25 | AJ35: 28 | AK35: 22 | AL35: 25 | AM35: 27 | AN35: 27
A36: =EB[[#This Row],[unit]] & "#" & EB[[#This Row],[indic_nrg]] & "#" & EB[[#This Row],[product]] & "#" & EB[[#This Row],[geo]] -> GWH#15_107056#6000#CZ | B36: =VLOOKUP(EB[[#This Row],[product]],KS_DB[[product]:[KS]],5,FALSE) -> electricity | C36: =VLOOKUP(EB[[#This Row],[product]],KS_DB[[product]:[KS]],6,FALSE) -> electricity | D36: =VLOOKUP(EB[[#This Row],[product]],Carriers[],4,FALSE) -> 1 | E36: =VLOOKUP(EB[[#This Row],[indic_nrg]],Indicators[],4,FALSE) -> 0 | F36: =IFERROR(VLOOKUP(EB[[#This Row],[Source_carrier]],KS_DB[[product]:[KS]],6,FALSE),0) -> 0 | G36: GWH | H36: 15_107056 | I36: 6000 | J36: CZ | K36: Gross electricity generation Autoproducer electricity only - Other Sources | L36: Gigawatt-hour | M36: Electrical energy | N36: Czech Republic | O36: 0 | P36: 0 | Q36: 0 | R36: 0 | S36: 0 | T36: 0 | U36: 0 | V36: 0 | W36: 0 | X36: 0 | Y36: 0 | Z36: 0 | AA36: 0 | AB36: 0 | AC36: 0 | AD36: 0 | AE36: 0 | AF36: 0 | AG36: 0 | AH36: 0 | AI36: 0 | AJ36: 0 | AK36: 0 | AL36: 0 | AM36: 0 | AN36: 0
A37: =EB[[#This Row],[unit]] & "#" & EB[[#This Row],[indic_nrg]] & "#" & EB[[#This Row],[product]] & "#" & EB[[#This Row],[geo]] -> GWH#15_107057#6000#CZ | B37: =VLOOKUP(EB[[#This Row],[product]],KS_DB[[product]:[KS]],5,FALSE) -> electricity | C37: =VLOOKUP(EB[[#This Row],[product]],KS_DB[[product]:[KS]],6,FALSE) -> electricity | D37: =VLOOKUP(EB[[#This Row],[product]],Carriers[],4,FALSE) -> 1 | E37: =VLOOKUP(EB[[#This Row],[indic_nrg]],Indicators[],4,FALSE) -> 0 | F37: =IFERROR(VLOOKUP(EB[[#This Row],[Source_carrier]],KS_DB[[product]:[KS]],6,FALSE),0) -> 0 | G37: GWH | H37: 15_107057 | I37: 6000 | J37: CZ | K37: Gross electricity generation Autoproducer CHP plants - Other Sources | L37: Gigawatt-hour | M37: Electrical energy | N37: Czech Republic | O37: 0 | P37: 0 | Q37: 0 | R37: 0 | S37: 0 | T37: 0 | U37: 0 | V37: 0 | W37: 0 | X37: 0 | Y37: 0 | Z37: 0 | AA37: 0 | AB37: 0 | AC37: 0 | AD37: 0 | AE37: 0 | AF37: 0 | AG37: 0 | AH37: 0 | AI37: 60 | AJ37: 56 | AK37: 52 | AL37: 50 | AM37: 52 | AN37: 52
A38: =EB[[#This Row],[unit]] & "#" & EB[[#This Row],[indic_nrg]] & "#" & EB[[#This Row],[product]] & "#" & EB[[#This Row],[geo]] -> GWH#16_107130#6000#CZ | B38: =VLOOKUP(EB[[#This Row],[product]],KS_DB[[product]:[KS]],5,FALSE) -> electricity | C38: =VLOOKUP(EB[[#This Row],[product]],KS_DB[[product]:[KS]],6,FALSE) -> electricity | D38: =VLOOKUP(EB[[#This Row],[product]],Carriers[],4,FALSE) -> 1 | E38: =VLOOKUP(EB[[#This Row],[indic_nrg]],Indicators[],4,FALSE) -> 0 | F38: =IFERROR(VLOOKUP(EB[[#This Row],[Source_carrier]],KS_DB[[product]:[KS]],6,FALSE),0) -> 0 | G38: GWH | H38: 16_107130 | I38: 6000 | J38: CZ | K38: Net electricity generation Main activity electricity only - Nuclear | L38: Gigawatt-hour | M38: Electrical energy | N38: Czech Republic | O38: 11767 | P38: 11378 | Q38: 11488 | R38: 11842 | S38: 12149 | T38: 11434 | U38: 12049 | V38: 11720 | W38: 12352 | X38: 12525 | Y38: 12709 | Z38: 13778 | AA38: 17583 | AB38: 24365 | AC38: 24816 | AD38: 23255 | AE38: 24499 | AF38: 24624 | AG38: 25015 | AH38: 25665 | AI38: 26346 | AJ38: 26602 | AK38: 28603 | AL38: 29001 | AM38: 28633 | AN38: 25335
A39: =EB[[#This Row],[unit]] & "#" & EB[[#This Row],[indic_nrg]] & "#" & EB[[#This Row],[product]] & "#" & EB[[#This Row],[geo]] -> GWH#16_107131#6000#CZ | B39: =VLOOKUP(EB[[#This Row],[product]],KS_DB[[product]:[KS]],5,FALSE) -> electricity | C39: =VLOOKUP(EB[[#This Row],[product]],KS_DB[[product]:[KS]],6,FALSE) -> electricity | D39: =VLOOKUP(EB[[#This Row],[product]],Carriers[],4,FALSE) -> 1 | E39: =VLOOKUP(EB[[#This Row],[indic_nrg]],Indicators[],4,FALSE) -> 0 | F39: =IFERROR(VLOOKUP(EB[[#This Row],[Source_carrier]],KS_DB[[product]:[KS]],6,FALSE),0) -> 0 | G39: GWH | H39: 16_107131 | I39: 6000 | J39: CZ | K39: Net electricity generation Main activity CHP plants - Nuclear | L39: Gigawatt-hour | M39: Electrical energy | N39: Czech Republic | O39: 0 | P39: 0 | Q39: 0 | R39: 0 | S39: 0 | T39: 0 | U39: 0 | V39: 0 | W39: 0 | X39: 0 | Y39: 0 | Z39: 0 | AA39: 0 | AB39: 0 | AC39: 0 | AD39: 0 | AE39: 0 | AF39: 0 | AG39: 0 | AH39: 0 | AI39: 0 | AJ39: 0 | AK39: 0 | AL39: 0 | AM39: 0 | AN39: 0
A40: =EB[[#This Row],[unit]] & "#" & EB[[#This Row],[indic_nrg]] & "#" & EB[[#This Row],[product]] & "#" & EB[[#This Row],[geo]] -> GWH#16_107132#6000#CZ | B40: =VLOOKUP(EB[[#This Row],[product]],KS_DB[[product]:[KS]],5,FALSE) -> electricity | C40: =VLOOKUP(EB[[#This Row],[product]],KS_DB[[product]:[KS]],6,FALSE) -> electricity | D40: =VLOOKUP(EB[[#This Row],[product]],Carriers[],4,FALSE) -> 1 | E40: =VLOOKUP(EB[[#This Row],[indic_nrg]],Indicators[],4,FALSE) -> 0 | F40: =IFERROR(VLOOKUP(EB[[#This Row],[Source_carrier]],KS_DB[[product]:[KS]],6,FALSE),0) -> 0 | G40: GWH | H40: 16_107132 | I40: 6000 | J40: CZ | K40: Net electricity generation Autoproducer electricity only - Nuclear | L40: Gigawatt-hour | M40: Electrical energy | N40: Czech Republic | O40: 0 | P40: 0 | Q40: 0 | R40: 0 | S40: 0 | T40: 0 | U40: 0 | V40: 0 | W40: 0 | X40: 0 | Y40: 0 | Z40: 0 | AA40: 0 | AB40: 0 | AC40: 0 | AD40: 0 | AE40: 0 | AF40: 0 | AG40: 0 | AH40: 0 | AI40: 0 | AJ40: 0 | AK40: 0 | AL40: 0 | AM40: 0 | AN40: 0
A41: =EB[[#This Row],[unit]] & "#" & EB[[#This Row],[indic_nrg]] & "#" & EB[[#This Row],[product]] & "#" & EB[[#This Row],[geo]] -> GWH#16_107133#6000#CZ | B41: =VLOOKUP(EB[[#This Row],[product]],KS_DB[[product]:[KS]],5,FALSE) -> electricity | C41: =VLOOKUP(EB[[#This Row],[product]],KS_DB[[product]:[KS]],6,FALSE) -> electricity | D41: =VLOOKUP(EB[[#This Row],[product]],Carriers[],4,FALSE) -> 1 | E41: =VLOOKUP(EB[[#This Row],[indic_nrg]],Indicators[],4,FALSE) -> 0 | F41: =IFERROR(VLOOKUP(EB[[#This Row],[Source_carrier]],KS_DB[[product]:[KS]],6,FALSE),0) -> 0 | G41: GWH | H41: 16_107133 | I41: 6000 | J41: CZ | K41: Net electricity generation Autoproducer CHP plants - Nuclear | L41: Gigawatt-hour | M41: Electrical energy | N41: Czech Republic | O41: 0 | P41: 0 | Q41: 0 | R41: 0 | S41: 0 | T41: 0 | U41: 0 | V41: 0 | W41: 0 | X41: 0 | Y41: 0 | Z41: 0 | AA41: 0 | AB41: 0 | AC41: 0 | AD41: 0 | AE41: 0 | AF41: 0 | AG41: 0 | AH41: 0 | AI41: 0 | AJ41: 0 | AK41: 0 | AL41: 0 | AM41: 0 | AN41: 0
A42: =EB[[#This Row],[unit]] & "#" & EB[[#This Row],[indic_nrg]] & "#" & EB[[#This Row],[product]] & "#" & EB[[#This Row],[geo]] -> GWH#16_107134#6000#CZ | B42: =VLOOKUP(EB[[#This Row],[product]],KS_DB[[product]:[KS]],5,FALSE) -> electricity | C42: =VLOOKUP(EB[[#This Row],[product]],KS_DB[[product]:[KS]],6,FALSE) -> electricity | D42: =VLOOKUP(EB[[#This Row],[product]],Carriers[],4,FALSE) -> 1 | E42: =VLOOKUP(EB[[#This Row],[indic_nrg]],Indicators[],4,FALSE) -> 0 | F42: =IFERROR(VLOOKUP(EB[[#This Row],[Source_carrier]],KS_DB[[product]:[KS]],6,FALSE),0) -> 0 | G42: GWH | H42: 16_107134 | I42: 6000 | J42: CZ | K42: Net electricity generation Main activity electricity only - Hydro | L42: Gigawatt-hour | M42: Electrical energy | N42: Czech Republic | O42: 1393 | P42: 1217 | Q42: 1520 | R42: 1486 | S42: 1653 | T42: 2120 | U42: 2270 | V42: 1883 | W42: 1679 | X42: 1808 | Y42: 1910 | Z42: 1908 | AA42: 2294 | AB42: 1414 | AC42: 2090 | AD42: 2466 | AE42: 2787 | AF42: 1949 | AG42: 1811 | AH42: 2402 | AI42: 2682 | AJ42: 2151 | AK42: 2318 | AL42: 2989 | AM42: 2382 | AN42: 2477
A43: =EB[[#This Row],[unit]] & "#" & EB[[#This Row],[indic_nrg]] & "#" & EB[[#This Row],[product]] & "#" & EB[[#This Row],[geo]] -> GWH#16_107135#6000#CZ | B43: =VLOOKUP(EB[[#This Row],[product]],KS_DB[[product]:[KS]],5,FALSE) -> electricity | C43: =VLOOKUP(EB[[#This Row],[product]],KS_DB[[product]:[KS]],6,FALSE) -> electricity | D43: =VLOOKUP(EB[[#This Row],[product]],Carriers[],4,FALSE) -> 1 | E43: =VLOOKUP(EB[[#This Row],[indic_nrg]],Indicators[],4,FALSE) -> 0 | F43: =IFERROR(VLOOKUP(EB[[#This Row],[Source_carrier]],KS_DB[[product]:[KS]],6,FALSE),0) -> 0 | G43: GWH | H43: 16_107135 | I43: 6000 | J43: CZ | K43: Net electricity generation Autoproducer electricity only - Hydro | L43: Gigawatt-hour | M43: Electrical energy | N43: Czech Republic | O43: 48 | P43: 91 | Q43: 106 | R43: 100 | S43: 112 | T43: 142 | U43: 122 | V43: 180 | W43: 196 | X43: 397 | Y43: 392 | Z43: 550 | AA43: 540 | AB43: 370 | AC43: 461 | AD43: 548 | AE43: 456 | AF43: 564 | AG43: 554 | AH43: 568 | AI43: 684 | AJ43: 500 | AK43: 520 | AL43: 619 | AM43: 562 | AN43: 561
A44: =EB[[#This Row],[unit]] & "#" & EB[[#This Row],[indic_nrg]] & "#" & EB[[#This Row],[product]] & "#" & EB[[#This Row],[geo]] -> GWH#16_107136#6000#CZ | B44: =VLOOKUP(EB[[#This Row],[product]],KS_DB[[product]:[KS]],5,FALSE) -> electricity | C44: =VLOOKUP(EB[[#This Row],[product]],KS_DB[[product]:[KS]],6,FALSE) -> electricity | D44: =VLOOKUP(EB[[#This Row],[product]],Carriers[],4,FALSE) -> 1 | E44: =VLOOKUP(EB[[#This Row],[indic_nrg]],Indicators[],4,FALSE) -> 0 | F44: =IFERROR(VLOOKUP(EB[[#This Row],[Source_carrier]],KS_DB[[product]:[KS]],6,FALSE),0) -> 0 | G44: GWH | H44: 16_107136 | I44: 6000 | J44: CZ | K44: Net electricity generation Main activity electricity only - Pumped Hydro | L44: Gigawatt-hour | M44: Electrical energy | N44: Czech Republic | O44: 288 | P44: 230 | Q44: 236 | R44: 227 | S44: 316 | T44: 272 | U44: 434 | V44: 381 | W44: 488 | X44: 535 | Y44: 555 | Z44: 413 | AA44: 353 | AB44: 411 | AC44: 543 | AD44: 647 | AE44: 707 | AF44: 434 | AG44: 352 | AH44: 553 | AI44: 591 | AJ44: 701 | AK44: 731 | AL44: 904 | AM44: 1035 | AN44: 1259
A45: =EB[[#This Row],[unit]] & "#" & EB[[#This Row],[indic_nrg]] & "#" & EB[[#This Row],[product]] & "#" & EB[[#This Row],[geo]] -> GWH#16_107137#6000#CZ | B45: =VLOOKUP(EB[[#This Row],[product]],KS_DB[[product]:[KS]],5,FALSE) -> electricity | C45: =VLOOKUP(EB[[#This Row],[product]],KS_DB[[product]:[KS]],6,FALSE) -> electricity | D45: =VLOOKUP(EB[[#This Row],[product]],Carriers[],4,FALSE) -> 1 | E45: =VLOOKUP(EB[[#This Row],[indic_nrg]],Indicators[],4,FALSE) -> 0 | F45: =IFERROR(VLOOKUP(EB[[#This Row],[Source_carrier]],KS_DB[[product]:[KS]],6,FALSE),0) -> 0 | G45: GWH | H45: 16_107137 | I45: 6000 | J45: CZ | K45: Net electricity generation Autoproducer electricity only - Pumped Hydro | L45: Gigawatt-hour | M45: Electrical energy | N45: Czech Republic | O45: 0 | P45: 0 | Q45: 0 | R45: 0 | S45: 0 | T45: 0 | U45: 0 | V45: 0 | W45: 0 | X45: 0 | Y45: 0 | Z45: 0 | AA45: 0 | AB45: 0 | AC45: 0 | AD45: 0 | AE45: 0 | AF45: 0 | AG45: 0 | AH45: 0 | AI45: 0 | AJ45: 0 | AK45: 0 | AL45: 0 | AM45: 0 | AN45: 0
A46: =EB[[#This Row],[unit]] & "#" & EB[[#This Row],[indic_nrg]] & "#" & EB[[#This Row],[product]] & "#" & EB[[#This Row],[geo]] -> GWH#16_107138#6000#CZ | B46: =VLOOKUP(EB[[#This Row],[product]],KS_DB[[product]:[KS]],5,FALSE) -> electricity | C46: =VLOOKUP(EB[[#This Row],[product]],KS_DB[[product]:[KS]],6,FALSE) -> electricity | D46: =VLOOKUP(EB[[#This Row],[product]],Carriers[],4,FALSE) -> 1 | E46: =VLOOKUP(EB[[#This Row],[indic_nrg]],Indicators[],4,FALSE) -> 0 | F46: =IFERROR(VLOOKUP(EB[[#This Row],[Source_carrier]],KS_DB[[product]:[KS]],6,FALSE),0) -> 0 | G46: GWH | H46: 16_107138 | I46: 6000 | J46: CZ | K46: Net electricity generation Main activity electricity only - Geothermal | L46: Gigawatt-hour | M46: Electrical energy | N46: Czech Republic | O46: 0 | P46: 0 | Q46: 0 | R46: 0 | S46: 0 | T46: 0 | U46: 0 | V46: 0 | W46: 0 | X46: 0 | Y46: 0 | Z46: 0 | AA46: 0 | AB46: 0 | AC46: 0 | AD46: 0 | AE46: 0 | AF46: 0 | AG46: 0 | AH46: 0 | AI46: 0 | AJ46: 0 | AK46: 0 | AL46: 0 | AM46: 0 | AN46: 0
A47: =EB[[#This Row],[unit]] & "#" & EB[[#This Row],[indic_nrg]] & "#" & EB[[#This Row],[product]] & "#" & EB[[#This Row],[geo]] -> GWH#16_107139#6000#CZ | B47: =VLOOKUP(EB[[#This Row],[product]],KS_DB[[product]:[KS]],5,FALSE) -> electricity | C47: =VLOOKUP(EB[[#This Row],[product]],KS_DB[[product]:[KS]],6,FALSE) -> electricity | D47: =VLOOKUP(EB[[#This Row],[product]],Carriers[],4,FALSE) -> 1 | E47: =VLOOKUP(EB[[#This Row],[indic_nrg]],Indicators[],4,FALSE) -> 0 | F47: =IFERROR(VLOOKUP(EB[[#This Row],[Source_carrier]],KS_DB[[product]:[KS]],6,FALSE),0) -> 0 | G47: GWH | H47: 16_107139 | I47: 6000 | J47: CZ | K47: Net electricity generation Main activity CHP plants - Geothermal | L47: Gigawatt-hour | M47: Electrical energy | N47: Czech Republic | O47: 0 | P47: 0 | Q47: 0 | R47: 0 | S47: 0 | T47: 0 | U47: 0 | V47: 0 | W47: 0 | X47: 0 | Y47: 0 | Z47: 0 | AA47: 0 | AB47: 0 | AC47: 0 | AD47: 0 | AE47: 0 | AF47: 0 | AG47: 0 | AH47: 0 | AI47: 0 | AJ47: 0 | AK47: 0 | AL47: 0 | AM47: 0 | AN47: 0
A48: =EB[[#This Row],[unit]] & "#" & EB[[#This Row],[indic_nrg]] & "#" & EB[[#This Row],[product]] & "#" & EB[[#This Row],[geo]] -> GWH#16_107140#6000#CZ | B48: =VLOOKUP(EB[[#This Row],[product]],KS_DB[[product]:[KS]],5,FALSE) -> electricity | C48: =VLOOKUP(EB[[#This Row],[product]],KS_DB[[product]:[KS]],6,FALSE) -> electricity | D48: =VLOOKUP(EB[[#This Row],[product]],Carriers[],4,FALSE) -> 1 | E48: =VLOOKUP(EB[[#This Row],[indic_nrg]],Indicators[],4,FALSE) -> 0 | F48: =IFERROR(VLOOKUP(EB[[#This Row],[Source_carrier]],KS_DB[[product]:[KS]],6,FALSE),0) -> 0 | G48: GWH | H48: 16_107140 | I48: 6000 | J48: CZ | K48: Net electricity generation Autoproducer electricity only - Geothermal | L48: Gigawatt-hour | M48: Electrical energy | N48: Czech Republic | O48: 0 | P48: 0 | Q48: 0 | R48: 0 | S48: 0 | T48: 0 | U48: 0 | V48: 0 | W48: 0 | X48: 0 | Y48: 0 | Z48: 0 | AA48: 0 | AB48: 0 | AC48: 0 | AD48: 0 | AE48: 0 | AF48: 0 | AG48: 0 | AH48: 0 | AI48: 0 | AJ48: 0 | AK48: 0 | AL48: 0 | AM48: 0 | AN48: 0
A49: =EB[[#This Row],[unit]] & "#" & EB[[#This Row],[indic_nrg]] & "#" & EB[[#This Row],[product]] & "#" & EB[[#This Row],[geo]] -> GWH#16_107141#6000#CZ | B49: =VLOOKUP(EB[[#This Row],[product]],KS_DB[[product]:[KS]],5,FALSE) -> electricity | C49: =VLOOKUP(EB[[#This Row],[product]],KS_DB[[product]:[KS]],6,FALSE) -> electricity | D49: =VLOOKUP(EB[[#This Row],[product]],Carriers[],4,FALSE) -> 1 | E49: =VLOOKUP(EB[[#This Row],[indic_nrg]],Indicators[],4,FALSE) -> 0 | F49: =IFERROR(VLOOKUP(EB[[#This Row],[Source_carrier]],KS_DB[[product]:[KS]],6,FALSE),0) -> 0 | G49: GWH | H49: 16_107141 | I49: 6000 | J49: CZ | K49: Net electricity generation Autoproducer CHP plants - Geothermal | L49: Gigawatt-hour | M49: Electrical energy | N49: Czech Republic | O49: 0 | P49: 0 | Q49: 0 | R49: 0 | S49: 0 | T49: 0 | U49: 0 | V49: 0 | W49: 0 | X49: 0 | Y49: 0 | Z49: 0 | AA49: 0 | AB49: 0 | AC49: 0 | AD49: 0 | AE49: 0 | AF49: 0 | AG49: 0 | AH49: 0 | AI49: 0 | AJ49: 0 | AK49: 0 | AL49: 0 | AM49: 0 | AN49: 0
A50: =EB[[#This Row],[unit]] & "#" & EB[[#This Row],[indic_nrg]] & "#" & EB[[#This Row],[product]] & "#" & EB[[#This Row],[geo]] -> GWH#16_107142#6000#CZ | B50: =VLOOKUP(EB[[#This Row],[product]],KS_DB[[product]:[KS]],5,FALSE) -> electricity | C50: =VLOOKUP(EB[[#This Row],[product]],KS_DB[[product]:[KS]],6,FALSE) -> electricity | D50: =VLOOKUP(EB[[#This Row],[product]],Carriers[],4,FALSE) -> 1 | E50: =VLOOKUP(EB[[#This Row],[indic_nrg]],Indicators[],4,FALSE) -> 0 | F50: =IFERROR(VLOOKUP(EB[[#This Row],[Source_carrier]],KS_DB[[product]:[KS]],6,FALSE),0) -> 0 | G50: GWH | H50: 16_107142 | I50: 6000 | J50: CZ | K50: Net electricity generation Main activity electricity only - Solar | L50: Gigawatt-hour | M50: Electrical energy | N50: Czech Republic | O50: 0 | P50: 0 | Q50: 0 | R50: 0 | S50: 0 | T50: 0 | U50: 0 | V50: 0 | W50: 0 | X50: 0 | Y50: 0 | Z50: 0 | AA50: 0 | AB50: 0 | AC50: 0 | AD50: 0 | AE50: 1 | AF50: 2 | AG50: 13 | AH50: 89 | AI50: 612 | AJ50: 2169 | AK50: 2128 | AL50: 2014 | AM50: 2104 | AN50: 2244
A51: =EB[[#This Row],[unit]] & "#" & EB[[#This Row],[indic_nrg]] & "#" & EB[[#This Row],[product]] & "#" & EB[[#This Row],[geo]] -> GWH#16_107143#6000#CZ | B51: =VLOOKUP(EB[[#This Row],[product]],KS_DB[[product]:[KS]],5,FALSE) -> electricity | C51: =VLOOKUP(EB[[#This Row],[product]],KS_DB[[product]:[KS]],6,FALSE) -> electricity | D51: =VLOOKUP(EB[[#This Row],[product]],Carriers[],4,FALSE) -> 1 | E51: =VLOOKUP(EB[[#This Row],[indic_nrg]],Indicators[],4,FALSE) -> 0 | F51: =IFERROR(VLOOKUP(EB[[#This Row],[Source_carrier]],KS_DB[[product]:[KS]],6,FALSE),0) -> 0 | G51: GWH | H51: 16_107143 | I51: 6000 | J51: CZ | K51: Net electricity generation Autoproducer electricity only - Solar | L51: Gigawatt-hour | M51: Electrical energy | N51: Czech Republic | O51: 0 | P51: 0 | Q51: 0 | R51: 0 | S51: 0 | T51: 0 | U51: 0 | V51: 0 | W51: 0 | X51: 0 | Y51: 0 | Z51: 0 | AA51: 0 | AB51: 0 | AC51: 0 | AD51: 0 | AE51: 0 | AF51: 0 | AG51: 0 | AH51: 0 | AI51: 0 | AJ51: 0 | AK51: 0 | AL51: 0 | AM51: 0 | AN51: 0
A52: =EB[[#This Row],[unit]] & "#" & EB[[#This Row],[indic_nrg]] & "#" & EB[[#This Row],[product]] & "#" & EB[[#This Row],[geo]] -> GWH#16_107144#6000#CZ | B52: =VLOOKUP(EB[[#This Row],[product]],KS_DB[[product]:[KS]],5,FALSE) -> electricity | C52: =VLOOKUP(EB[[#This Row],[product]],KS_DB[[product]:[KS]],6,FALSE) -> electricity | D52: =VLOOKUP(EB[[#This Row],[product]],Carriers[],4,FALSE) -> 1 | E52: =VLOOKUP(EB[[#This Row],[indic_nrg]],Indicators[],4,FALSE) -> 0 | F52: =IFERROR(VLOOKUP(EB[[#This Row],[Source_carrier]],KS_DB[[product]:[KS]],6,FALSE),0) -> 0 | G52: GWH | H52: 16_107144 | I52: 6000 | J52: CZ | K52: Net electricity generation Main activity electricity only - Tide, Wave and Ocean | L52: Gigawatt-hour | M52: Electrical energy | N52: Czech Republic | O52: 0 | P52: 0 | Q52: 0 | R52: 0 | S52: 0 | T52: 0 | U52: 0 | V52: 0 | W52: 0 | X52: 0 | Y52: 0 | Z52: 0 | AA52: 0 | AB52: 0 | AC52: 0 | AD52: 0 | AE52: 0 | AF52: 0 | AG52: 0 | AH52: 0 | AI52: 0 | AJ52: 0 | AK52: 0 | AL52: 0 | AM52: 0 | AN52: 0
A53: =EB[[#This Row],[unit]] & "#" & EB[[#This Row],[indic_nrg]] & "#" & EB[[#This Row],[product]] & "#" & EB[[#This Row],[geo]] -> GWH#16_107145#6000#CZ | B53: =VLOOKUP(EB[[#This Row],[product]],KS_DB[[product]:[KS]],5,FALSE) -> electricity | C53: =VLOOKUP(EB[[#This Row],[product]],KS_DB[[product]:[KS]],6,FALSE) -> electricity | D53: =VLOOKUP(EB[[#This Row],[product]],Carriers[],4,FALSE) -> 1 | E53: =VLOOKUP(EB[[#This Row],[indic_nrg]],Indicators[],4,FALSE) -> 0 | F53: =IFERROR(VLOOKUP(EB[[#This Row],[Source_carrier]],KS_DB[[product]:[KS]],6,FALSE),0) -> 0 | G53: GWH | H53: 16_107145 | I53: 6000 | J53: CZ | K53: Net electricity generation Autoproducer electricity only - Tide, Wave and Ocean | L53: Gigawatt-hour | M53: Electrical energy | N53: Czech Republic | O53: 0 | P53: 0 | Q53: 0 | R53: 0 | S53: 0 | T53: 0 | U53: 0 | V53: 0 | W53: 0 | X53: 0 | Y53: 0 | Z53: 0 | AA53: 0 | AB53: 0 | AC53: 0 | AD53: 0 | AE53: 0 | AF53: 0 | AG53: 0 | AH53: 0 | AI53: 0 | AJ53: 0 | AK53: 0 | AL53: 0 | AM53: 0 | AN53: 0
A54: =EB[[#This Row],[unit]] & "#" & EB[[#This Row],[indic_nrg]] & "#" & EB[[#This Row],[product]] & "#" & EB[[#This Row],[geo]] -> GWH#16_107146#6000#CZ | B54: =VLOOKUP(EB[[#This Row],[product]],KS_DB[[product]:[KS]],5,FALSE) -> electricity | C54: =VLOOKUP(EB[[#This Row],[product]],KS_DB[[product]:[KS]],6,FALSE) -> electricity | D54: =VLOOKUP(EB[[#This Row],[product]],Carriers[],4,FALSE) -> 1 | E54: =VLOOKUP(EB[[#This Row],[indic_nrg]],Indicators[],4,FALSE) -> 0 | F54: =IFERROR(VLOOKUP(EB[[#This Row],[Source_carrier]],KS_DB[[product]:[KS]],6,FALSE),0) -> 0 | G54: GWH | H54: 16_107146 | I54: 6000 | J54: CZ | K54: Net electricity generation Main activity electricity only - Wind | L54: Gigawatt-hour | M54: Electrical energy | N54: Czech Republic | O54: 0 | P54: 0 | Q54: 0 | R54: 0 | S54: 0 | T54: 0 | U54: 0 | V54: 0 | W54: 0 | X54: 0 | Y54: 1 | Z54: 0 | AA54: 2 | AB54: 5 | AC54: 10 | AD54: 21 | AE54: 49 | AF54: 125 | AG54: 245 | AH54: 287 | AI54: 335 | AJ54: 395 | AK54: 414 | AL54: 476 | AM54: 469 | AN54: 563
A55: =EB[[#This Row],[unit]] & "#" & EB[[#This Row],[indic_nrg]] & "#" & EB[[#This Row],[product]] & "#" & EB[[#This Row],[geo]] -> GWH#16_107147#6000#CZ | B55: =VLOOKUP(EB[[#This Row],[product]],KS_DB[[product]:[KS]],5,FALSE) -> electricity | C55: =VLOOKUP(EB[[#This Row],[product]],KS_DB[[product]:[KS]],6,FALSE) -> electricity | D55: =VLOOKUP(EB[[#This Row],[product]],Carriers[],4,FALSE) -> 1 | E55: =VLOOKUP(EB[[#This Row],[indic_nrg]],Indicators[],4,FALSE) -> 0 | F55: =IFERROR(VLOOKUP(EB[[#This Row],[Source_carrier]],KS_DB[[product]:[KS]],6,FALSE),0) -> 0 | G55: GWH | H55: 16_107147 | I55: 6000 | J55: CZ | K55: Net electricity generation Autoproducer electricity only - Wind | L55: Gigawatt-hour | M55: Electrical energy | N55: Czech Republic | O55: 0 | P55: 0 | Q55: 0 | R55: 0 | S55: 0 | T55: 0 | U55: 0 | V55: 0 | W55: 0 | X55: 0 | Y55: 0 | Z55: 0 | AA55: 0 | AB55: 0 | AC55: 0 | AD55: 0 | AE55: 0 | AF55: 0 | AG55: 0 | AH55: 0 | AI55: 0 | AJ55: 0 | AK55: 0 | AL55: 0 | AM55: 0 | AN55: 0
A56: =EB[[#This Row],[unit]] & "#" & EB[[#This Row],[indic_nrg]] & "#" & EB[[#This Row],[product]] & "#" & EB[[#This Row],[geo]] -> GWH#16_107148#6000#CZ | B56: =VLOOKUP(EB[[#This Row],[product]],KS_DB[[product]:[KS]],5,FALSE) -> electricity | C56: =VLOOKUP(EB[[#This Row],[product]],KS_DB[[product]:[KS]],6,FALSE) -> electricity | D56: =VLOOKUP(EB[[#This Row],[product]],Carriers[],4,FALSE) -> 1 | E56: =VLOOKUP(EB[[#This Row],[indic_nrg]],Indicators[],4,FALSE) -> 0 | F56: =IFERROR(VLOOKUP(EB[[#This Row],[Source_carrier]],KS_DB[[product]:[KS]],6,FALSE),0) -> 0 | G56: GWH | H56: 16_107148 | I56: 6000 | J56: CZ | K56: Net electricity generation Main activity electricity only - Combustible Fuels | L56: Gigawatt-hour | M56: Electrical energy | N56: Czech Republic | O56: 33824 | P56: 32996 | Q56: 31348 | R56: 30539 | S56: 29600 | T56: 30690 | U56: 31278 | V56: 31691 | W56: 31298 | X56: 29778 | Y56: 33886 | Z56: 33198 | AA56: 31604 | AB56: 32381 | AC56: 31621 | AD56: 30710 | AE56: 30443 | AF56: 35471 | AG56: 29592 | AH56: 27835 | AI56: 9345 | AJ56: 9411 | AK56: 8630 | AL56: 7330 | AM56: 6954 | AN56: 7989
A57: =EB[[#This Row],[unit]] & "#" & EB[[#This Row],[indic_nrg]] & "#" & EB[[#This Row],[product]] & "#" & EB[[#This Row],[geo]] -> GWH#16_107149#6000#CZ | B57: =VLOOKUP(EB[[#This Row],[product]],KS_DB[[product]:[KS]],5,FALSE) -> electricity | C57: =VLOOKUP(EB[[#This Row],[product]],KS_DB[[product]:[KS]],6,FALSE) -> electricity | D57: =VLOOKUP(EB[[#This Row],[product]],Carriers[],4,FALSE) -> 1 | E57: =VLOOKUP(EB[[#This Row],[indic_nrg]],Indicators[],4,FALSE) -> 0 | F57: =IFERROR(VLOOKUP(EB[[#This Row],[Source_carrier]],KS_DB[[product]:[KS]],6,FALSE),0) -> 0 | G57: GWH | H57: 16_107149 | I57: 6000 | J57: CZ | K57: Net electricity generation Main activity CHP plants - Combustible Fuels | L57: Gigawatt-hour | M57: Electrical energy | N57: Czech Republic | O57: 4266 | P57: 4274 | Q57: 4480 | R57: 4926 | S57: 5476 | T57: 6697 | U57: 7399 | V57: 7441 | W57: 7491 | X57: 8797 | Y57: 9571 | Z57: 10534 | AA57: 9961 | AB57: 9864 | AC57: 10398 | AD57: 10273 | AE57: 10667 | AF57: 10614 | AG57: 11723 | AH57: 11611 | AI57: 31375 | AJ57: 31983 | AK57: 30949 | AL57: 30024 | AM57: 30287 | AN57: 29890
A58: =EB[[#This Row],[unit]] & "#" & EB[[#This Row],[indic_nrg]] & "#" & EB[[#This Row],[product]] & "#" & EB[[#This Row],[geo]] -> GWH#16_107150#6000#CZ | B58: =VLOOKUP(EB[[#This Row],[product]],KS_DB[[product]:[KS]],5,FALSE) -> electricity | C58: =VLOOKUP(EB[[#This Row],[product]],KS_DB[[product]:[KS]],6,FALSE) -> electricity | D58: =VLOOKUP(EB[[#This Row],[product]],Carriers[],4,FALSE) -> 1 | E58: =VLOOKUP(EB[[#This Row],[indic_nrg]],Indicators[],4,FALSE) -> 0 | F58: =IFERROR(VLOOKUP(EB[[#This Row],[Source_carrier]],KS_DB[[product]:[KS]],6,FALSE),0) -> 0 | G58: GWH | H58: 16_107150 | I58: 6000 | J58: CZ | K58: Net electricity generation Autoproducer electricity only - Combustible Fuels | L58: Gigawatt-hour | M58: Electrical energy | N58: Czech Republic | O58: 610 | P58: 370 | Q58: 406 | R58: 300 | S58: 479 | T58: 479 | U58: 702 | V58: 905 | W58: 1059 | X58: 965 | Y58: 841 | Z58: 935 | AA58: 921 | AB58: 720 | AC58: 670 | AD58: 642 | AE58: 767 | AF58: 673 | AG58: 685 | AH58: 529 | AI58: 34 | AJ58: 38 | AK58: 34 | AL58: 29 | AM58: 53 | AN58: 63
A59: =EB[[#This Row],[unit]] & "#" & EB[[#This Row],[indic_nrg]] & "#" & EB[[#This Row],[product]] & "#" & EB[[#This Row],[geo]] -> GWH#16_107151#6000#CZ | B59: =VLOOKUP(EB[[#This Row],[product]],KS_DB[[product]:[KS]],5,FALSE) -> electricity | C59: =VLOOKUP(EB[[#This Row],[product]],KS_DB[[product]:[KS]],6,FALSE) -> electricity | D59: =VLOOKUP(EB[[#This Row],[product]],Carriers[],4,FALSE) -> 1 | E59: =VLOOKUP(EB[[#This Row],[indic_nrg]],Indicators[],4,FALSE) -> 0 | F59: =IFERROR(VLOOKUP(EB[[#This Row],[Source_carrier]],KS_DB[[product]:[KS]],6,FALSE),0) -> 0 | G59: GWH | H59: 16_107151 | I59: 6000 | J59: CZ | K59: Net electricity generation Autoproducer CHP plants - Combustible Fuels | L59: Gigawatt-hour | M59: Electrical energy | N59: Czech Republic | O59: 6217 | P59: 6051 | Q59: 6022 | R59: 5791 | S59: 5384 | T59: 5318 | U59: 6079 | V59: 6136 | W59: 6189 | X59: 5822 | Y59: 8704 | Z59: 7877 | AA59: 7488 | AB59: 7540 | AC59: 7852 | AD59: 8276 | AE59: 8214 | AF59: 7389 | AG59: 7446 | AH59: 7004 | AI59: 6811 | AJ59: 6580 | AK59: 6643 | AL59: 7227 | AM59: 7597 | AN59: 7722
A60: =EB[[#This Row],[unit]] & "#" & EB[[#This Row],[indic_nrg]] & "#" & EB[[#This Row],[product]] & "#" & EB[[#This Row],[geo]] -> GWH#16_107152#6000#CZ | B60: =VLOOKUP(EB[[#This Row],[product]],KS_DB[[product]:[KS]],5,FALSE) -> electricity | C60: =VLOOKUP(EB[[#This Row],[product]],KS_DB[[product]:[KS]],6,FALSE) -> electricity | D60: =VLOOKUP(EB[[#This Row],[product]],Carriers[],4,FALSE) -> 1 | E60: =VLOOKUP(EB[[#This Row],[indic_nrg]],Indicators[],4,FALSE) -> 0 | F60: =IFERROR(VLOOKUP(EB[[#This Row],[Source_carrier]],KS_DB[[product]:[KS]],6,FALSE),0) -> 0 | G60: GWH | H60: 16_107152 | I60: 6000 | J60: CZ | K60: Net electricity generation Autoproducer electricity only - Heat from Chemical Sources | L60: Gigawatt-hour | M60: Electrical energy | N60: Czech Republic | O60: 0 | P60: 0 | Q60: 0 | R60: 0 | S60: 0 | T60: 0 | U60: 0 | V60: 0 | W60: 0 | X60: 0 | Y60: 0 | Z60: 0 | AA60: 0 | AB60: 0 | AC60: 0 | AD60: 0 | AE60: 0 | AF60: 0 | AG60: 0 | AH60: 0 | AI60: 0 | AJ60: 0 | AK60: 0 | AL60: 0 | AM60: 0 | AN60: 0
A61: =EB[[#This Row],[unit]] & "#" & EB[[#This Row],[indic_nrg]] & "#" & EB[[#This Row],[product]] & "#" & EB[[#This Row],[geo]] -> GWH#16_107153#6000#CZ | B61: =VLOOKUP(EB[[#This Row],[product]],KS_DB[[product]:[KS]],5,FALSE) -> electricity | C61: =VLOOKUP(EB[[#This Row],[product]],KS_DB[[product]:[KS]],6,FALSE) -> electricity | D61: =VLOOKUP(EB[[#This Row],[product]],Carriers[],4,FALSE) -> 1 | E61: =VLOOKUP(EB[[#This Row],[indic_nrg]],Indicators[],4,FALSE) -> 0 | F61: =IFERROR(VLOOKUP(EB[[#This Row],[Source_carrier]],KS_DB[[product]:[KS]],6,FALSE),0) -> 0 | G61: GWH | H61: 16_107153 | I61: 6000 | J61: CZ | K61: Net electricity generation Autoproducer CHP plants - Heat from Chemical Sources | L61: Gigawatt-hour | M61: Electrical energy | N61: Czech Republic | O61: 0 | P61: 0 | Q61: 0 | R61: 0 | S61: 0 | T61: 0 | U61: 0 | V61: 0 | W61: 0 | X61: 0 | Y61: 0 | Z61: 0 | AA61: 0 | AB61: 0 | AC61: 1 | AD61: 1 | AE61: 1 | AF61: 1 | AG61: 1 | AH61: 0 | AI61: 0 | AJ61: 0 | AK61: 0 | AL61: 0 | AM61: 3 | AN61: 0
A62: =EB[[#This Row],[unit]] & "#" & EB[[#This Row],[indic_nrg]] & "#" & EB[[#This Row],[product]] & "#" & EB[[#This Row],[geo]] -> GWH#16_107154#6000#CZ | B62: =VLOOKUP(EB[[#This Row],[product]],KS_DB[[product]:[KS]],5,FALSE) -> electricity | C62: =VLOOKUP(EB[[#This Row],[product]],KS_DB[[product]:[KS]],6,FALSE) -> electricity | D62: =VLOOKUP(EB[[#This Row],[product]],Carriers[],4,FALSE) -> 1 | E62: =VLOOKUP(EB[[#This Row],[indic_nrg]],Indicators[],4,FALSE) -> 0 | F62: =IFERROR(VLOOKUP(EB[[#This Row],[Source_carrier]],KS_DB[[product]:[KS]],6,FALSE),0) -> 0 | G62: GWH | H62: 16_107154 | I62: 6000 | J62: CZ | K62: Net electricity generation Main activity electricity only - Other Sources | L62: Gigawatt-hour | M62: Electrical energy | N62: Czech Republic | O62: 0 | P62: 0 | Q62: 0 | R62: 0 | S62: 0 | T62: 0 | U62: 0 | V62: 0 | W62: 0 | X62: 0 | Y62: 0 | Z62: 0 | AA62: 0 | AB62: 0 | AC62: 0 | AD62: 0 | AE62: 0 | AF62: 0 | AG62: 0 | AH62: 0 | AI62: 0 | AJ62: 0 | AK62: 0 | AL62: 0 | AM62: 0 | AN62: 0
A63: =EB[[#This Row],[unit]] & "#" & EB[[#This Row],[indic_nrg]] & "#" & EB[[#This Row],[product]] & "#" & EB[[#This Row],[geo]] -> GWH#16_107155#6000#CZ | B63: =VLOOKUP(EB[[#This Row],[product]],KS_DB[[product]:[KS]],5,FALSE) -> electricity | C63: =VLOOKUP(EB[[#This Row],[product]],KS_DB[[product]:[KS]],6,FALSE) -> electricity | D63: =VLOOKUP(EB[[#This Row],[product]],Carriers[],4,FALSE) -> 1 | E63: =VLOOKUP(EB[[#This Row],[indic_nrg]],Indicators[],4,FALSE) -> 0 | F63: =IFERROR(VLOOKUP(EB[[#This Row],[Source_carrier]],KS_DB[[product]:[KS]],6,FALSE),0) -> 0 | G63: GWH | H63: 16_107155 | I63: 6000 | J63: CZ | K63: Net electricity generation Main activity CHP plants - Other Sources | L63: Gigawatt-hour | M63: Electrical energy | N63: Czech Republic | O63: 0 | P63: 0 | Q63: 0 | R63: 0 | S63: 0 | T63: 0 | U63: 0 | V63: 0 | W63: 0 | X63: 0 | Y63: 0 | Z63: 0 | AA63: 0 | AB63: 0 | AC63: 0 | AD63: 0 | AE63: 0 | AF63: 0 | AG63: 0 | AH63: 0 | AI63: 21 | AJ63: 23 | AK63: 18 | AL63: 18 | AM63: 20 | AN63: 20
A64: =EB[[#This Row],[unit]] & "#" & EB[[#This Row],[indic_nrg]] & "#" & EB[[#This Row],[product]] & "#" & EB[[#This Row],[geo]] -> GWH#16_107156#6000#CZ | B64: =VLOOKUP(EB[[#This Row],[product]],KS_DB[[product]:[KS]],5,FALSE) -> electricity | C64: =VLOOKUP(EB[[#This Row],[product]],KS_DB[[product]:[KS]],6,FALSE) -> electricity | D64: =VLOOKUP(EB[[#This Row],[product]],Carriers[],4,FALSE) -> 1 | E64: =VLOOKUP(EB[[#This Row],[indic_nrg]],Indicators[],4,FALSE) -> 0 | F64: =IFERROR(VLOOKUP(EB[[#This Row],[Source_carrier]],KS_DB[[product]:[KS]],6,FALSE),0) -> 0 | G64: GWH | H64: 16_107156 | I64: 6000 | J64: CZ | K64: Net electricity generation Autoproducer electricity only - Other Sources | L64: Gigawatt-hour | M64: Electrical energy | N64: Czech Republic | O64: 0 | P64: 0 | Q64: 0 | R64: 0 | S64: 0 | T64: 0 | U64: 0 | V64: 0 | W64: 0 | X64: 0 | Y64: 0 | Z64: 0 | AA64: 0 | AB64: 0 | AC64: 0 | AD64: 0 | AE64: 0 | AF64: 0 | AG64: 0 | AH64: 0 | AI64: 0 | AJ64: 0 | AK64: 0 | AL64: 0 | AM64: 0 | AN64: 0
A65: =EB[[#This Row],[unit]] & "#" & EB[[#This Row],[indic_nrg]] & "#" & EB[[#This Row],[product]] & "#" & EB[[#This Row],[geo]] -> GWH#16_107157#6000#CZ | B65: =VLOOKUP(EB[[#This Row],[product]],KS_DB[[product]:[KS]],5,FALSE) -> electricity | C65: =VLOOKUP(EB[[#This Row],[product]],KS_DB[[product]:[KS]],6,FALSE) -> electricity | D65: =VLOOKUP(EB[[#This Row],[product]],Carriers[],4,FALSE) -> 1 | E65: =VLOOKUP(EB[[#This Row],[indic_nrg]],Indicators[],4,FALSE) -> 0 | F65: =IFERROR(VLOOKUP(EB[[#This Row],[Source_carrier]],KS_DB[[product]:[KS]],6,FALSE),0) -> 0 | G65: GWH | H65: 16_107157 | I65: 6000 | J65: CZ | K65: Net electricity generation Autoproducer CHP plants - Other Sources | L65: Gigawatt-hour | M65: Electrical energy | N65: Czech Republic | O65: 0 | P65: 0 | Q65: 0 | R65: 0 | S65: 0 | T65: 0 | U65: 0 | V65: 0 | W65: 0 | X65: 0 | Y65: 0 | Z65: 0 | AA65: 0 | AB65: 0 | AC65: 0 | AD65: 0 | AE65: 0 | AF65: 0 | AG65: 0 | AH65: 0 | AI65: 57 | AJ65: 56 | AK65: 52 | AL65: 50 | AM65: 52 | AN65: 52
A66: =EB[[#This Row],[unit]] & "#" & EB[[#This Row],[indic_nrg]] & "#" & EB[[#This Row],[product]] & "#" & EB[[#This Row],[geo]] -> GWH#17_107000#6000#CZ | B66: =VLOOKUP(EB[[#This Row],[product]],KS_DB[[product]:[KS]],5,FALSE) -> electricity | C66: =VLOOKUP(EB[[#This Row],[product]],KS_DB[[product]:[KS]],6,FALSE) -> electricity | D66: =VLOOKUP(EB[[#This Row],[product]],Carriers[],4,FALSE) -> 1 | E66: =VLOOKUP(EB[[#This Row],[indic_nrg]],Indicators[],4,FALSE) -> 0 | F66: =IFERROR(VLOOKUP(EB[[#This Row],[Source_carrier]],KS_DB[[product]:[KS]],6,FALSE),0) -> 0 | G66: GWH | H66: 17_107000 | I66: 6000 | J66: CZ | K66: Total gross production | L66: Gigawatt-hour | M66: Electrical energy | N66: Czech Republic | O66: 62559 | P66: 60528 | Q66: 59293 | R66: 58881 | S66: 58705 | T66: 60847 | U66: 64257 | V66: 64598 | W66: 65112 | X66: 64694 | Y66: 73466 | Z66: 74647 | AA66: 76348 | AB66: 83227 | AC66: 84333 | AD66: 82578 | AE66: 84361 | AF66: 88198 | AG66: 83647 | AH66: 82185 | AI66: 85903 | AJ66: 87477 | AK66: 87418 | AL66: 86913 | AM66: 86148 | AN66: 83892
A67: =EB[[#This Row],[unit]] & "#" & EB[[#This Row],[indic_nrg]] & "#" & EB[[#This Row],[product]] & "#" & EB[[#This Row],[geo]] -> GWH#17_107100#6000#CZ | B67: =VLOOKUP(EB[[#This Row],[product]],KS_DB[[product]:[KS]],5,FALSE) -> electricity | C67: =VLOOKUP(EB[[#This Row],[product]],KS_DB[[product]:[KS]],6,FALSE) -> electricity | D67: =VLOOKUP(EB[[#This Row],[product]],Carriers[],4,FALSE) -> 1 | E67: =VLOOKUP(EB[[#This Row],[indic_nrg]],Indicators[],4,FALSE) -> 0 | F67: =IFERROR(VLOOKUP(EB[[#This Row],[Source_carrier]],KS_DB[[product]:[KS]],6,FALSE),0) -> 0 | G67: GWH | H67: 17_107100 | I67: 6000 | J67: CZ | K67: Total net production | L67: Gigawatt-hour | M67: Electrical energy | N67: Czech Republic | O67: 58125 | P67: 56377 | Q67: 55370 | R67: 54984 | S67: 54853 | T67: 56880 | U67: 59899 | V67: 59956 | W67: 60264 | X67: 60092 | Y67: 68014 | Z67: 68780 | AA67: 70393 | AB67: 76659 | AC67: 77919 | AD67: 76192 | AE67: 77884 | AF67: 81412 | AG67: 77085 | AH67: 75990 | AI67: 78302 | AJ67: 79908 | AK67: 80309 | AL67: 79777 | AM67: 79116 | AN67: 76916
A68: =EB[[#This Row],[unit]] & "#" & EB[[#This Row],[indic_nrg]] & "#" & EB[[#This Row],[product]] & "#" & EB[[#This Row],[geo]] -> GWH#17_107301#6000#CZ | B68: =VLOOKUP(EB[[#This Row],[product]],KS_DB[[product]:[KS]],5,FALSE) -> electricity | C68: =VLOOKUP(EB[[#This Row],[product]],KS_DB[[product]:[KS]],6,FALSE) -> electricity | D68: =VLOOKUP(EB[[#This Row],[product]],Carriers[],4,FALSE) -> 1 | E68: =VLOOKUP(EB[[#This Row],[indic_nrg]],Indicators[],4,FALSE) -> 0 | F68: =IFERROR(VLOOKUP(EB[[#This Row],[Source_carrier]],KS_DB[[product]:[KS]],6,FALSE),0) -> 0 | G68: GWH | H68: 17_107301 | I68: 6000 | J68: CZ | K68: Production in Pumped storage power stations | L68: Gigawatt-hour | M68: Electrical energy | N68: Czech Republic | O68: 288 | P68: 230 | Q68: 236 | R68: 227 | S68: 316 | T68: 272 | U68: 434 | V68: 381 | W68: 488 | X68: 535 | Y68: 555 | Z68: 413 | AA68: 353 | AB68: 411 | AC68: 543 | AD68: 647 | AE68: 707 | AF68: 434 | AG68: 352 | AH68: 553 | AI68: 591 | AJ68: 701 | AK68: 731 | AL68: 905 | AM68: 1052 | AN68: 1276
A69: =EB[[#This Row],[unit]] & "#" & EB[[#This Row],[indic_nrg]] & "#" & EB[[#This Row],[product]] & "#" & EB[[#This Row],[geo]] -> GWH#17_107302#6000#CZ | B69: =VLOOKUP(EB[[#This Row],[product]],KS_DB[[product]:[KS]],5,FALSE) -> electricity | C69: =VLOOKUP(EB[[#This Row],[product]],KS_DB[[product]:[KS]],6,FALSE) -> electricity | D69: =VLOOKUP(EB[[#This Row],[product]],Carriers[],4,FALSE) -> 1 | E69: =VLOOKUP(EB[[#This Row],[indic_nrg]],Indicators[],4,FALSE) -> 0 | F69: =IFERROR(VLOOKUP(EB[[#This Row],[Source_carrier]],KS_DB[[product]:[KS]],6,FALSE),0) -> 0 | G69: GWH | H69: 17_107302 | I69: 6000 | J69: CZ | K69: Used for pumped storage | L69: Gigawatt-hour | M69: Electrical energy | N69: Czech Republic | O69: 400 | P69: 326 | Q69: 326 | R69: 314 | S69: 436 | T69: 375 | U69: 596 | V69: 517 | W69: 654 | X69: 718 | Y69: 749 | Z69: 556 | AA69: 479 | AB69: 552 | AC69: 730 | AD69: 867 | AE69: 946 | AF69: 592 | AG69: 477 | AH69: 747 | AI69: 795 | AJ69: 944 | AK69: 982 | AL69: 1217 | AM69: 1363 | AN69: 1660
A70: =EB[[#This Row],[unit]] & "#" & EB[[#This Row],[indic_nrg]] & "#" & EB[[#This Row],[product]] & "#" & EB[[#This Row],[geo]] -> GWH#22_108501#6000#CZ | B70: =VLOOKUP(EB[[#This Row],[product]],KS_DB[[product]:[KS]],5,FALSE) -> electricity | C70: =VLOOKUP(EB[[#This Row],[product]],KS_DB[[product]:[KS]],6,FALSE) -> electricity | D70: =VLOOKUP(EB[[#This Row],[product]],Carriers[],4,FALSE) -> 1 | E70: =VLOOKUP(EB[[#This Row],[indic_nrg]],Indicators[],4,FALSE) -> 2115 | F70: =IFERROR(VLOOKUP(EB[[#This Row],[Source_carrier]],KS_DB[[product]:[KS]],6,FALSE),0) -> solid | G70: GWH | H70: 22_108501 | I70: 6000 | J70: CZ | K70: Gross electricity generation Main activity electricity only - Anthracite | L70: Gigawatt-hour | M70: Electrical energy | N70: Czech Republic | O70: 0 | P70: 0 | Q70: 0 | R70: 0 | S70: 0 | T70: 0 | U70: 0 | V70: 0 | W70: 0 | X70: 0 | Y70: 0 | Z70: 0 | AA70: 0 | AB70: 0 | AC70: 0 | AD70: 0 | AE70: 0 | AF70: 0 | AG70: 0 | AH70: 0 | AI70: 0 | AJ70: 0 | AK70: 0 | AL70: 0 | AM70: 0 | AN70: 0
A71: =EB[[#This Row],[unit]] & "#" & EB[[#This Row],[indic_nrg]] & "#" & EB[[#This Row],[product]] & "#" & EB[[#This Row],[geo]] -> GWH#22_108502#6000#CZ | B71: =VLOOKUP(EB[[#This Row],[product]],KS_DB[[product]:[KS]],5,FALSE) -> electricity | C71: =VLOOKUP(EB[[#This Row],[product]],KS_DB[[product]:[KS]],6,FALSE) -> electricity | D71: =VLOOKUP(EB[[#This Row],[product]],Carriers[],4,FALSE) -> 1 | E71: =VLOOKUP(EB[[#This Row],[indic_nrg]],Indicators[],4,FALSE) -> 2115 | F71: =IFERROR(VLOOKUP(EB[[#This Row],[Source_carrier]],KS_DB[[product]:[KS]],6,FALSE),0) -> solid | G71: GWH | H71: 22_108502 | I71: 6000 | J71: CZ | K71: Gross electricity generation Main activity CHP plants - Anthracite | L71: Gigawatt-hour | M71: Electrical energy | N71: Czech Republic | O71: 0 | P71: 0 | Q71: 0 | R71: 0 | S71: 0 | T71: 0 | U71: 0 | V71: 0 | W71: 0 | X71: 0 | Y71: 0 | Z71: 0 | AA71: 0 | AB71: 0 | AC71: 0 | AD71: 0 | AE71: 0 | AF71: 0 | AG71: 0 | AH71: 0 | AI71: 0 | AJ71: 0 | AK71: 0 | AL71: 0 | AM71: 0 | AN71: 0
A72: =EB[[#This Row],[unit]] & "#" & EB[[#This Row],[indic_nrg]] & "#" & EB[[#This Row],[product]] & "#" & EB[[#This Row],[geo]] -> GWH#22_108503#6000#CZ | B72: =VLOOKUP(EB[[#This Row],[product]],KS_DB[[product]:[KS]],5,FALSE) -> electricity | C72: =VLOOKUP(EB[[#This Row],[product]],KS_DB[[product]:[KS]],6,FALSE) -> electricity | D72: =VLOOKUP(EB[[#This Row],[product]],Carriers[],4,FALSE) -> 1 | E72: =VLOOKUP(EB[[#This Row],[indic_nrg]],Indicators[],4,FALSE) -> 2115 | F72: =IFERROR(VLOOKUP(EB[[#This Row],[Source_carrier]],KS_DB[[product]:[KS]],6,FALSE),0) -> solid | G72: GWH | H72: 22_108503 | I72: 6000 | J72: CZ | K72: Gross electricity generation Autoproducer electricity only - Anthracite | L72: Gigawatt-hour | M72: Electrical energy | N72: Czech Republic | O72: 0 | P72: 0 | Q72: 0 | R72: 0 | S72: 0 | T72: 0 | U72: 0 | V72: 0 | W72: 0 | X72: 0 | Y72: 0 | Z72: 0 | AA72: 0 | AB72: 0 | AC72: 0 | AD72: 0 | AE72: 0 | AF72: 0 | AG72: 0 | AH72: 0 | AI72: 0 | AJ72: 0 | AK72: 0 | AL72: 0 | AM72: 0 | AN72: 0
A73: =EB[[#This Row],[unit]] & "#" & EB[[#This Row],[indic_nrg]] & "#" & EB[[#This Row],[product]] & "#" & EB[[#This Row],[geo]] -> GWH#22_108504#6000#CZ | B73: =VLOOKUP(EB[[#This Row],[product]],KS_DB[[product]:[KS]],5,FALSE) -> electricity | C73: =VLOOKUP(EB[[#This Row],[product]],KS_DB[[product]:[KS]],6,FALSE) -> electricity | D73: =VLOOKUP(EB[[#This Row],[product]],Carriers[],4,FALSE) -> 1 | E73: =VLOOKUP(EB[[#This Row],[indic_nrg]],Indicators[],4,FALSE) -> 2115 | F73: =IFERROR(VLOOKUP(EB[[#This Row],[Source_carrier]],KS_DB[[product]:[KS]],6,FALSE),0) -> solid | G73: GWH | H73: 22_108504 | I73: 6000 | J73: CZ | K73: Gross electricity generation Autoproducer CHP plants - Anthracite | L73: Gigawatt-hour | M73: Electrical energy | N73: Czech Republic | O73: 0 | P73: 0 | Q73: 0 | R73: 0 | S73: 0 | T73: 0 | U73: 0 | V73: 0 | W73: 0 | X73: 0 | Y73: 0 | Z73: 0 | AA73: 0 | AB73: 0 | AC73: 0 | AD73: 0 | AE73: 0 | AF73: 0 | AG73: 0 | AH73: 0 | AI73: 0 | AJ73: 0 | AK73: 0 | AL73: 0 | AM73: 0 | AN73: 0
A74: =EB[[#This Row],[unit]] & "#" & EB[[#This Row],[indic_nrg]] & "#" & EB[[#This Row],[product]] & "#" & EB[[#This Row],[geo]] -> GWH#22_108511#6000#CZ | B74: =VLOOKUP(EB[[#This Row],[product]],KS_DB[[product]:[KS]],5,FALSE) -> electricity | C74: =VLOOKUP(EB[[#This Row],[product]],KS_DB[[product]:[KS]],6,FALSE) -> electricity | D74: =VLOOKUP(EB[[#This Row],[product]],Carriers[],4,FALSE) -> 1 | E74: =VLOOKUP(EB[[#This Row],[indic_nrg]],Indicators[],4,FALSE) -> 2116 | F74: =IFERROR(VLOOKUP(EB[[#This Row],[Source_carrier]],KS_DB[[product]:[KS]],6,FALSE),0) -> solid | G74: GWH | H74: 22_108511 | I74: 6000 | J74: CZ | K74: Gross electricity generation Main activity electricity only - Coking Coal | L74: Gigawatt-hour | M74: Electrical energy | N74: Czech Republic | O74: 0 | P74: 0 | Q74: 0 | R74: 0 | S74: 0 | T74: 0 | U74: 0 | V74: 0 | W74: 0 | X74: 0 | Y74: 0 | Z74: 0 | AA74: 0 | AB74: 0 | AC74: 0 | AD74: 0 | AE74: 0 | AF74: 0 | AG74: 0 | AH74: 0 | AI74: 0 | AJ74: 0 | AK74: 0 | AL74: 0 | AM74: 0 | AN74: 0
A75: =EB[[#This Row],[unit]] & "#" & EB[[#This Row],[indic_nrg]] & "#" & EB[[#This Row],[product]] & "#" & EB[[#This Row],[geo]] -> GWH#22_108512#6000#CZ | B75: =VLOOKUP(EB[[#This Row],[product]],KS_DB[[product]:[KS]],5,FALSE) -> electricity | C75: =VLOOKUP(EB[[#This Row],[product]],KS_DB[[product]:[KS]],6,FALSE) -> electricity | D75: =VLOOKUP(EB[[#This Row],[product]],Carriers[],4,FALSE) -> 1 | E75: =VLOOKUP(EB[[#This Row],[indic_nrg]],Indicators[],4,FALSE) -> 2116 | F75: =IFERROR(VLOOKUP(EB[[#This Row],[Source_carrier]],KS_DB[[product]:[KS]],6,FALSE),0) -> solid | G75: GWH | H75: 22_108512 | I75: 6000 | J75: CZ | K75: Gross electricity generation Main activity CHP plants - Coking Coal | L75: Gigawatt-hour | M75: Electrical energy | N75: Czech Republic | O75: 0 | P75: 0 | Q75: 0 | R75: 0 | S75: 0 | T75: 0 | U75: 0 | V75: 0 | W75: 0 | X75: 0 | Y75: 0 | Z75: 0 | AA75: 0 | AB75: 0 | AC75: 0 | AD75: 0 | AE75: 0 | AF75: 0 | AG75: 0 | AH75: 0 | AI75: 0 | AJ75: 0 | AK75: 0 | AL75: 0 | AM75: 0 | AN75: 0
A76: =EB[[#This Row],[unit]] & "#" & EB[[#This Row],[indic_nrg]] & "#" & EB[[#This Row],[product]] & "#" & EB[[#This Row],[geo]] -> GWH#22_108513#6000#CZ | B76: =VLOOKUP(EB[[#This Row],[product]],KS_DB[[product]:[KS]],5,FALSE) -> electricity | C76: =VLOOKUP(EB[[#This Row],[product]],KS_DB[[product]:[KS]],6,FALSE) -> electricity | D76: =VLOOKUP(EB[[#This Row],[product]],Carriers[],4,FALSE) -> 1 | E76: =VLOOKUP(EB[[#This Row],[indic_nrg]],Indicators[],4,FALSE) -> 2116 | F76: =IFERROR(VLOOKUP(EB[[#This Row],[Source_carrier]],KS_DB[[product]:[KS]],6,FALSE),0) -> solid | G76: GWH | H76: 22_108513 | I76: 6000 | J76: CZ | K76: Gross electricity generation Autoproducer electricity only - Coking Coal | L76: Gigawatt-hour | M76: Electrical energy | N76: Czech Republic | O76: 0 | P76: 0 | Q76: 0 | R76: 0 | S76: 0 | T76: 0 | U76: 0 | V76: 0 | W76: 0 | X76: 0 | Y76: 0 | Z76: 0 | AA76: 0 | AB76: 0 | AC76: 0 | AD76: 0 | AE76: 0 | AF76: 0 | AG76: 0 | AH76: 0 | AI76: 0 | AJ76: 0 | AK76: 0 | AL76: 0 | AM76: 0 | AN76: 0
A77: =EB[[#This Row],[unit]] & "#" & EB[[#This Row],[indic_nrg]] & "#" & EB[[#This Row],[product]] & "#" & EB[[#This Row],[geo]] -> GWH#22_108514#6000#CZ | B77: =VLOOKUP(EB[[#This Row],[product]],KS_DB[[product]:[KS]],5,FALSE) -> electricity | C77: =VLOOKUP(EB[[#This Row],[product]],KS_DB[[product]:[KS]],6,FALSE) -> electricity | D77: =VLOOKUP(EB[[#This Row],[product]],Carriers[],4,FALSE) -> 1 | E77: =VLOOKUP(EB[[#This Row],[indic_nrg]],Indicators[],4,FALSE) -> 2116 | F77: =IFERROR(VLOOKUP(EB[[#This Row],[Source_carrier]],KS_DB[[product]:[KS]],6,FALSE),0) -> solid | G77: GWH | H77: 22_108514 | I77: 6000 | J77: CZ | K77: Gross electricity generation Autoproducer CHP plants - Coking Coal | L77: Gigawatt-hour | M77: Electrical energy | N77: Czech Republic | O77: 0 | P77: 0 | Q77: 0 | R77: 0 | S77: 0 | T77: 0 | U77: 0 | V77: 0 | W77: 0 | X77: 0 | Y77: 0 | Z77: 0 | AA77: 0 | AB77: 0 | AC77: 0 | AD77: 0 | AE77: 0 | AF77: 0 | AG77: 0 | AH77: 0 | AI77: 0 | AJ77: 0 | AK77: 0 | AL77: 0 | AM77: 0 | AN77: 0
A78: =EB[[#This Row],[unit]] & "#" & EB[[#This Row],[indic_nrg]] & "#" & EB[[#This Row],[product]] & "#" & EB[[#This Row],[geo]] -> GWH#22_108521#6000#CZ | B78: =VLOOKUP(EB[[#This Row],[product]],KS_DB[[product]:[KS]],5,FALSE) -> electricity | C78: =VLOOKUP(EB[[#This Row],[product]],KS_DB[[product]:[KS]],6,FALSE) -> electricity | D78: =VLOOKUP(EB[[#This Row],[product]],Carriers[],4,FALSE) -> 1 | E78: =VLOOKUP(EB[[#This Row],[indic_nrg]],Indicators[],4,FALSE) -> 2117 | F78: =IFERROR(VLOOKUP(EB[[#This Row],[Source_carrier]],KS_DB[[product]:[KS]],6,FALSE),0) -> solid | G78: GWH | H78: 22_108521 | I78: 6000 | J78: CZ | K78: Gross electricity generation Main activity electricity only - Other Bituminous Coal | L78: Gigawatt-hour | M78: Electrical energy | N78: Czech Republic | O78: 3991 | P78: 3867 | Q78: 3659 | R78: 3580 | S78: 3424 | T78: 2456 | U78: 3964 | V78: 2520 | W78: 1963 | X78: 3604 | Y78: 2814 | Z78: 2781 | AA78: 2645 | AB78: 2702 | AC78: 2652 | AD78: 2520 | AE78: 2650 | AF78: 3522 | AG78: 2278 | AH78: 1643 | AI78: 0 | AJ78: 0 | AK78: 0 | AL78: 0 | AM78: 0 | AN78: 0
A79: =EB[[#This Row],[unit]] & "#" & EB[[#This Row],[indic_nrg]] & "#" & EB[[#This Row],[product]] & "#" & EB[[#This Row],[geo]] -> GWH#22_108522#6000#CZ | B79: =VLOOKUP(EB[[#This Row],[product]],KS_DB[[product]:[KS]],5,FALSE) -> electricity | C79: =VLOOKUP(EB[[#This Row],[product]],KS_DB[[product]:[KS]],6,FALSE) -> electricity | D79: =VLOOKUP(EB[[#This Row],[product]],Carriers[],4,FALSE) -> 1 | E79: =VLOOKUP(EB[[#This Row],[indic_nrg]],Indicators[],4,FALSE) -> 2117 | F79: =IFERROR(VLOOKUP(EB[[#This Row],[Source_carrier]],KS_DB[[product]:[KS]],6,FALSE),0) -> solid | G79: GWH | H79: 22_108522 | I79: 6000 | J79: CZ | K79: Gross electricity generation Main activity CHP plants - Other Bituminous Coal | L79: Gigawatt-hour | M79: Electrical energy | N79: Czech Republic | O79: 548 | P79: 563 | Q79: 591 | R79: 580 | S79: 647 | T79: 3517 | U79: 2049 | V79: 510 | W79: 720 | X79: 650 | Y79: 2701 | Z79: 2892 | AA79: 2726 | AB79: 2874 | AC79: 3243 | AD79: 2978 | AE79: 2958 | AF79: 2794 | AG79: 2535 | AH79: 3589 | AI79: 5630 | AJ79: 5501 | AK79: 4713 | AL79: 5085 | AM79: 4964 | AN79: 5558
A80: =EB[[#This Row],[unit]] & "#" & EB[[#This Row],[indic_nrg]] & "#" & EB[[#This Row],[product]] & "#" & EB[[#This Row],[geo]] -> GWH#22_108523#6000#CZ | B80: =VLOOKUP(EB[[#This Row],[product]],KS_DB[[product]:[KS]],5,FALSE) -> electricity | C80: =VLOOKUP(EB[[#This Row],[product]],KS_DB[[product]:[KS]],6,FALSE) -> electricity | D80: =VLOOKUP(EB[[#This Row],[product]],Carriers[],4,FALSE) -> 1 | E80: =VLOOKUP(EB[[#This Row],[indic_nrg]],Indicators[],4,FALSE) -> 2117 | F80: =IFERROR(VLOOKUP(EB[[#This Row],[Source_carrier]],KS_DB[[product]:[KS]],6,FALSE),0) -> solid | G80: GWH | H80: 22_108523 | I80: 6000 | J80: CZ | K80: Gross electricity generation Autoproducer electricity only - Other Bituminous Coal | L80: Gigawatt-hour | M80: Electrical energy | N80: Czech Republic | O80: 0 | P80: 0 | Q80: 0 | R80: 3 | S80: 4 | T80: 0 | U80: 1 | V80: 0 | W80: 0 | X80: 0 | Y80: 0 | Z80: 0 | AA80: 0 | AB80: 0 | AC80: 0 | AD80: 0 | AE80: 0 | AF80: 0 | AG80: 0 | AH80: 0 | AI80: 0 | AJ80: 0 | AK80: 0 | AL80: 0 | AM80: 0 | AN80: 0
A81: =EB[[#This Row],[unit]] & "#" & EB[[#This Row],[indic_nrg]] & "#" & EB[[#This Row],[product]] & "#" & EB[[#This Row],[geo]] -> GWH#22_108524#6000#CZ | B81: =VLOOKUP(EB[[#This Row],[product]],KS_DB[[product]:[KS]],5,FALSE) -> electricity | C81: =VLOOKUP(EB[[#This Row],[product]],KS_DB[[product]:[KS]],6,FALSE) -> electricity | D81: =VLOOKUP(EB[[#This Row],[product]],Carriers[],4,FALSE) -> 1 | E81: =VLOOKUP(EB[[#This Row],[indic_nrg]],Indicators[],4,FALSE) -> 2117 | F81: =IFERROR(VLOOKUP(EB[[#This Row],[Source_carrier]],KS_DB[[product]:[KS]],6,FALSE),0) -> solid | G81: GWH | H81: 22_108524 | I81: 6000 | J81: CZ | K81: Gross electricity generation Autoproducer CHP plants - Other Bituminous Coal | L81: Gigawatt-hour | M81: Electrical energy | N81: Czech Republic | O81: 1195 | P81: 1153 | Q81: 1128 | R81: 1132 | S81: 950 | T81: 985 | U81: 1329 | V81: 1320 | W81: 1830 | X81: 0 | Y81: 0 | Z81: 0 | AA81: 0 | AB81: 0 | AC81: 0 | AD81: 0 | AE81: 391 | AF81: 890 | AG81: 975 | AH81: 335 | AI81: 422 | AJ81: 193 | AK81: 183 | AL81: 181 | AM81: 156 | AN81: 95
A82: =EB[[#This Row],[unit]] & "#" & EB[[#This Row],[indic_nrg]] & "#" & EB[[#This Row],[product]] & "#" & EB[[#This Row],[geo]] -> GWH#22_108531#6000#CZ | B82: =VLOOKUP(EB[[#This Row],[product]],KS_DB[[product]:[KS]],5,FALSE) -> electricity | C82: =VLOOKUP(EB[[#This Row],[product]],KS_DB[[product]:[KS]],6,FALSE) -> electricity | D82: =VLOOKUP(EB[[#This Row],[product]],Carriers[],4,FALSE) -> 1 | E82: =VLOOKUP(EB[[#This Row],[indic_nrg]],Indicators[],4,FALSE) -> 2118 | F82: =IFERROR(VLOOKUP(EB[[#This Row],[Source_carrier]],KS_DB[[product]:[KS]],6,FALSE),0) -> solid | G82: GWH | H82: 22_108531 | I82: 6000 | J82: CZ | K82: Gross electricity generation Main activity electricity only - Sub-Bituminous Coal | L82: Gigawatt-hour | M82: Electrical energy | N82: Czech Republic | O82: 0 | P82: 0 | Q82: 0 | R82: 0 | S82: 0 | T82: 0 | U82: 0 | V82: 0 | W82: 0 | X82: 0 | Y82: 0 | Z82: 0 | AA82: 0 | AB82: 0 | AC82: 0 | AD82: 0 | AE82: 0 | AF82: 0 | AG82: 0 | AH82: 0 | AI82: 0 | AJ82: 0 | AK82: 0 | AL82: 0 | AM82: 0 | AN82: 0
A83: =EB[[#This Row],[unit]] & "#" & EB[[#This Row],[indic_nrg]] & "#" & EB[[#This Row],[product]] & "#" & EB[[#This Row],[geo]] -> GWH#22_108532#6000#CZ | B83: =VLOOKUP(EB[[#This Row],[product]],KS_DB[[product]:[KS]],5,FALSE) -> electricity | C83: =VLOOKUP(EB[[#This Row],[product]],KS_DB[[product]:[KS]],6,FALSE) -> electricity | D83: =VLOOKUP(EB[[#This Row],[product]],Carriers[],4,FALSE) -> 1 | E83: =VLOOKUP(EB[[#This Row],[indic_nrg]],Indicators[],4,FALSE) -> 2118 | F83: =IFERROR(VLOOKUP(EB[[#This Row],[Source_carrier]],KS_DB[[product]:[KS]],6,FALSE),0) -> solid | G83: GWH | H83: 22_108532 | I83: 6000 | J83: CZ | K83: Gross electricity generation Main activity CHP plants - Sub-Bituminous Coal | L83: Gigawatt-hour | M83: Electrical energy | N83: Czech Republic | O83: 0 | P83: 0 | Q83: 0 | R83: 0 | S83: 0 | T83: 0 | U83: 0 | V83: 0 | W83: 0 | X83: 0 | Y83: 0 | Z83: 0 | AA83: 0 | AB83: 0 | AC83: 0 | AD83: 0 | AE83: 0 | AF83: 0 | AG83: 0 | AH83: 0 | AI83: 0 | AJ83: 0 | AK83: 0 | AL83: 0 | AM83: 0 | AN83: 0
A84: =EB[[#This Row],[unit]] & "#" & EB[[#This Row],[indic_nrg]] & "#" & EB[[#This Row],[product]] & "#" & EB[[#This Row],[geo]] -> GWH#22_108533#6000#CZ | B84: =VLOOKUP(EB[[#This Row],[product]],KS_DB[[product]:[KS]],5,FALSE) -> electricity | C84: =VLOOKUP(EB[[#This Row],[product]],KS_DB[[product]:[KS]],6,FALSE) -> electricity | D84: =VLOOKUP(EB[[#This Row],[product]],Carriers[],4,FALSE) -> 1 | E84: =VLOOKUP(EB[[#This Row],[indic_nrg]],Indicators[],4,FALSE) -> 2118 | F84: =IFERROR(VLOOKUP(EB[[#This Row],[Source_carrier]],KS_DB[[product]:[KS]],6,FALSE),0) -> solid | G84: GWH | H84: 22_108533 | I84: 6000 | J84: CZ | K84: Gross electricity generation Autoproducer electricity only - Sub-Bituminous Coal | L84: Gigawatt-hour | M84: Electrical energy | N84: Czech Republic | O84: 0 | P84: 0 | Q84: 0 | R84: 0 | S84: 0 | T84: 0 | U84: 0 | V84: 0 | W84: 0 | X84: 0 | Y84: 0 | Z84: 0 | AA84: 0 | AB84: 0 | AC84: 0 | AD84: 0 | AE84: 0 | AF84: 0 | AG84: 0 | AH84: 0 | AI84: 0 | AJ84: 0 | AK84: 0 | AL84: 0 | AM84: 0 | AN84: 0
A85: =EB[[#This Row],[unit]] & "#" & EB[[#This Row],[indic_nrg]] & "#" & EB[[#This Row],[product]] & "#" & EB[[#This Row],[geo]] -> GWH#22_108534#6000#CZ | B85: =VLOOKUP(EB[[#This Row],[product]],KS_DB[[product]:[KS]],5,FALSE) -> electricity | C85: =VLOOKUP(EB[[#This Row],[product]],KS_DB[[product]:[KS]],6,FALSE) -> electricity | D85: =VLOOKUP(EB[[#This Row],[product]],Carriers[],4,FALSE) -> 1 | E85: =VLOOKUP(EB[[#This Row],[indic_nrg]],Indicators[],4,FALSE) -> 2118 | F85: =IFERROR(VLOOKUP(EB[[#This Row],[Source_carrier]],KS_DB[[product]:[KS]],6,FALSE),0) -> solid | G85: GWH | H85: 22_108534 | I85: 6000 | J85: CZ | K85: Gross electricity generation Autoproducer CHP plants - Sub-Bituminous Coal | L85: Gigawatt-hour | M85: Electrical energy | N85: Czech Republic | O85: 0 | P85: 0 | Q85: 0 | R85: 0 | S85: 0 | T85: 0 | U85: 0 | V85: 0 | W85: 0 | X85: 0 | Y85: 0 | Z85: 0 | AA85: 0 | AB85: 0 | AC85: 0 | AD85: 0 | AE85: 0 | AF85: 0 | AG85: 0 | AH85: 0 | AI85: 0 | AJ85: 0 | AK85: 0 | AL85: 0 | AM85: 0 | AN85: 0
A86: =EB[[#This Row],[unit]] & "#" & EB[[#This Row],[indic_nrg]] & "#" & EB[[#This Row],[product]] & "#" & EB[[#This Row],[geo]] -> GWH#22_108541#6000#CZ | B86: =VLOOKUP(EB[[#This Row],[product]],KS_DB[[product]:[KS]],5,FALSE) -> electricity | C86: =VLOOKUP(EB[[#This Row],[product]],KS_DB[[product]:[KS]],6,FALSE) -> electricity | D86: =VLOOKUP(EB[[#This Row],[product]],Carriers[],4,FALSE) -> 1 | E86: =VLOOKUP(EB[[#This Row],[indic_nrg]],Indicators[],4,FALSE) -> 2210 | F86: =IFERROR(VLOOKUP(EB[[#This Row],[Source_carrier]],KS_DB[[product]:[KS]],6,FALSE),0) -> solid | G86: GWH | H86: 22_108541 | I86: 6000 | J86: CZ | K86: Gross electricity generation Main activity electricity only - Lignite/Brown Coal | L86: Gigawatt-hour | M86: Electrical energy | N86: Czech Republic | O86: 32415 | P86: 31417 | Q86: 29726 | R86: 29157 | S86: 28264 | T86: 30346 | U86: 29714 | V86: 31758 | W86: 31857 | X86: 28108 | Y86: 33863 | Z86: 33473 | AA86: 31745 | AB86: 32720 | AC86: 31575 | AD86: 31044 | AE86: 30875 | AF86: 35270 | AG86: 30081 | AH86: 29225 | AI86: 9431 | AJ86: 9397 | AK86: 8756 | AL86: 7418 | AM86: 7257 | AN86: 8012
A87: =EB[[#This Row],[unit]] & "#" & EB[[#This Row],[indic_nrg]] & "#" & EB[[#This Row],[product]] & "#" & EB[[#This Row],[geo]] -> GWH#22_108542#6000#CZ | B87: =VLOOKUP(EB[[#This Row],[product]],KS_DB[[product]:[KS]],5,FALSE) -> electricity | C87: =VLOOKUP(EB[[#This Row],[product]],KS_DB[[product]:[KS]],6,FALSE) -> electricity | D87: =VLOOKUP(EB[[#This Row],[product]],Carriers[],4,FALSE) -> 1 | E87: =VLOOKUP(EB[[#This Row],[indic_nrg]],Indicators[],4,FALSE) -> 2210 | F87: =IFERROR(VLOOKUP(EB[[#This Row],[Source_carrier]],KS_DB[[product]:[KS]],6,FALSE),0) -> solid | G87: GWH | H87: 22_108542 | I87: 6000 | J87: CZ | K87: Gross electricity generation Main activity CHP plants - Lignite/Brown Coal | L87: Gigawatt-hour | M87: Electrical energy | N87: Czech Republic | O87: 3400 | P87: 3497 | Q87: 3665 | R87: 4093 | S87: 4604 | T87: 2955 | U87: 5023 | V87: 6599 | W87: 6417 | X87: 7493 | Y87: 6613 | Z87: 7118 | AA87: 6865 | AB87: 6564 | AC87: 6669 | AD87: 6974 | AE87: 6739 | AF87: 7167 | AG87: 8613 | AH87: 6957 | AI87: 28263 | AJ87: 28532 | AK87: 27588 | AL87: 25867 | AM87: 25914 | AN87: 24815
A88: =EB[[#This Row],[unit]] & "#" & EB[[#This Row],[indic_nrg]] & "#" & EB[[#This Row],[product]] & "#" & EB[[#This Row],[geo]] -> GWH#22_108543#6000#CZ | B88: =VLOOKUP(EB[[#This Row],[product]],KS_DB[[product]:[KS]],5,FALSE) -> electricity | C88: =VLOOKUP(EB[[#This Row],[product]],KS_DB[[product]:[KS]],6,FALSE) -> electricity | D88: =VLOOKUP(EB[[#This Row],[product]],Carriers[],4,FALSE) -> 1 | E88: =VLOOKUP(EB[[#This Row],[indic_nrg]],Indicators[],4,FALSE) -> 2210 | F88: =IFERROR(VLOOKUP(EB[[#This Row],[Source_carrier]],KS_DB[[product]:[KS]],6,FALSE),0) -> solid | G88: GWH | H88: 22_108543 | I88: 6000 | J88: CZ | K88: Gross electricity generation Autoproducer electricity only - Lignite/Brown Coal | L88: Gigawatt-hour | M88: Electrical energy | N88: Czech Republic | O88: 606 | P88: 373 | Q88: 409 | R88: 289 | S88: 505 | T88: 487 | U88: 548 | V88: 673 | W88: 816 | X88: 548 | Y88: 601 | Z88: 666 | AA88: 668 | AB88: 585 | AC88: 494 | AD88: 465 | AE88: 607 | AF88: 675 | AG88: 704 | AH88: 540 | AI88: 0 | AJ88: 0 | AK88: 0 | AL88: 0 | AM88: 0 | AN88: 0
A89: =EB[[#This Row],[unit]] & "#" & EB[[#This Row],[indic_nrg]] & "#" & EB[[#This Row],[product]] & "#" & EB[[#This Row],[geo]] -> GWH#22_108544#6000#CZ | B89: =VLOOKUP(EB[[#This Row],[product]],KS_DB[[product]:[KS]],5,FALSE) -> electricity | C89: =VLOOKUP(EB[[#This Row],[product]],KS_DB[[product]:[KS]],6,FALSE) -> electricity | D89: =VLOOKUP(EB[[#This Row],[product]],Carriers[],4,FALSE) -> 1 | E89: =VLOOKUP(EB[[#This Row],[indic_nrg]],Indicators[],4,FALSE) -> 2210 | F89: =IFERROR(VLOOKUP(EB[[#This Row],[Source_carrier]],KS_DB[[product]:[KS]],6,FALSE),0) -> solid | G89: GWH | H89: 22_108544 | I89: 6000 | J89: CZ | K89: Gross electricity generation Autoproducer CHP plants - Lignite/Brown Coal | L89: Gigawatt-hour | M89: Electrical energy | N89: Czech Republic | O89: 4865 | P89: 4729 | Q89: 4728 | R89: 4429 | S89: 3838 | T89: 3596 | U89: 2801 | V89: 2346 | W89: 1714 | X89: 3748 | Y89: 6160 | Z89: 5664 | AA89: 5188 | AB89: 5265 | AC89: 5618 | AD89: 5477 | AE89: 5398 | AF89: 3443 | AG89: 3582 | AH89: 3640 | AI89: 3136 | AJ89: 3062 | AK89: 2736 | AL89: 2561 | AM89: 2428 | AN89: 2647
A90: =EB[[#This Row],[unit]] & "#" & EB[[#This Row],[indic_nrg]] & "#" & EB[[#This Row],[product]] & "#" & EB[[#This Row],[geo]] -> GWH#22_108551#6000#CZ | B90: =VLOOKUP(EB[[#This Row],[product]],KS_DB[[product]:[KS]],5,FALSE) -> electricity | C90: =VLOOKUP(EB[[#This Row],[product]],KS_DB[[product]:[KS]],6,FALSE) -> electricity | D90: =VLOOKUP(EB[[#This Row],[product]],Carriers[],4,FALSE) -> 1 | E90: =VLOOKUP(EB[[#This Row],[indic_nrg]],Indicators[],4,FALSE) -> 2310 | F90: =IFERROR(VLOOKUP(EB[[#This Row],[Source_carrier]],KS_DB[[product]:[KS]],6,FALSE),0) -> solid | G90: GWH | H90: 22_108551 | I90: 6000 | J90: CZ | K90: Gross electricity generation Main activity electricity only - Peat | L90: Gigawatt-hour | M90: Electrical energy | N90: Czech Republic | O90: 0 | P90: 0 | Q90: 0 | R90: 0 | S90: 0 | T90: 0 | U90: 0 | V90: 0 | W90: 0 | X90: 0 | Y90: 0 | Z90: 0 | AA90: 0 | AB90: 0 | AC90: 0 | AD90: 0 | AE90: 0 | AF90: 0 | AG90: 0 | AH90: 0 | AI90: 0 | AJ90: 0 | AK90: 0 | AL90: 0 | AM90: 0 | AN90: 0
A91: =EB[[#This Row],[unit]] & "#" & EB[[#This Row],[indic_nrg]] & "#" & EB[[#This Row],[product]] & "#" & EB[[#This Row],[geo]] -> GWH#22_108552#6000#CZ | B91: =VLOOKUP(EB[[#This Row],[product]],KS_DB[[product]:[KS]],5,FALSE) -> electricity | C91: =VLOOKUP(EB[[#This Row],[product]],KS_DB[[product]:[KS]],6,FALSE) -> electricity | D91: =VLOOKUP(EB[[#This Row],[product]],Carriers[],4,FALSE) -> 1 | E91: =VLOOKUP(EB[[#This Row],[indic_nrg]],Indicators[],4,FALSE) -> 2310 | F91: =IFERROR(VLOOKUP(EB[[#This Row],[Source_carrier]],KS_DB[[product]:[KS]],6,FALSE),0) -> solid | G91: GWH | H91: 22_108552 | I91: 6000 | J91: CZ | K91: Gross electricity generation Main activity CHP plants - Peat | L91: Gigawatt-hour | M91: Electrical energy | N91: Czech Republic | O91: 0 | P91: 0 | Q91: 0 | R91: 0 | S91: 0 | T91: 0 | U91: 0 | V91: 0 | W91: 0 | X91: 0 | Y91: 0 | Z91: 0 | AA91: 0 | AB91: 0 | AC91: 0 | AD91: 0 | AE91: 0 | AF91: 0 | AG91: 0 | AH91: 0 | AI91: 0 | AJ91: 0 | AK91: 0 | AL91: 0 | AM91: 0 | AN91: 0
A92: =EB[[#This Row],[unit]] & "#" & EB[[#This Row],[indic_nrg]] & "#" & EB[[#This Row],[product]] & "#" & EB[[#This Row],[geo]] -> GWH#22_108553#6000#CZ | B92: =VLOOKUP(EB[[#This Row],[product]],KS_DB[[product]:[KS]],5,FALSE) -> electricity | C92: =VLOOKUP(EB[[#This Row],[product]],KS_DB[[product]:[KS]],6,FALSE) -> electricity | D92: =VLOOKUP(EB[[#This Row],[product]],Carriers[],4,FALSE) -> 1 | E92: =VLOOKUP(EB[[#This Row],[indic_nrg]],Indicators[],4,FALSE) -> 2310 | F92: =IFERROR(VLOOKUP(EB[[#This Row],[Source_carrier]],KS_DB[[product]:[KS]],6,FALSE),0) -> solid | G92: GWH | H92: 22_108553 | I92: 6000 | J92: CZ | K92: Gross electricity generation Autoproducer electricity only - Peat | L92: Gigawatt-hour | M92: Electrical energy | N92: Czech Republic | O92: 0 | P92: 0 | Q92: 0 | R92: 0 | S92: 0 | T92: 0 | U92: 0 | V92: 0 | W92: 0 | X92: 0 | Y92: 0 | Z92: 0 | AA92: 0 | AB92: 0 | AC92: 0 | AD92: 0 | AE92: 0 | AF92: 0 | AG92: 0 | AH92: 0 | AI92: 0 | AJ92: 0 | AK92: 0 | AL92: 0 | AM92: 0 | AN92: 0
A93: =EB[[#This Row],[unit]] & "#" & EB[[#This Row],[indic_nrg]] & "#" & EB[[#This Row],[product]] & "#" & EB[[#This Row],[geo]] -> GWH#22_108554#6000#CZ | B93: =VLOOKUP(EB[[#This Row],[product]],KS_DB[[product]:[KS]],5,FALSE) -> electricity | C93: =VLOOKUP(EB[[#This Row],[product]],KS_DB[[product]:[KS]],6,FALSE) -> electricity | D93: =VLOOKUP(EB[[#This Row],[product]],Carriers[],4,FALSE) -> 1 | E93: =VLOOKUP(EB[[#This Row],[indic_nrg]],Indicators[],4,FALSE) -> 2310 | F93: =IFERROR(VLOOKUP(EB[[#This Row],[Source_carrier]],KS_DB[[product]:[KS]],6,FALSE),0) -> solid | G93: GWH | H93: 22_108554 | I93: 6000 | J93: CZ | K93: Gross electricity generation Autoproducer CHP plants - Peat | L93: Gigawatt-hour | M93: Electrical energy | N93: Czech Republic | O93: 0 | P93: 0 | Q93: 0 | R93: 0 | S93: 0 | T93: 0 | U93: 0 | V93: 0 | W93: 0 | X93: 0 | Y93: 0 | Z93: 0 | AA93: 0 | AB93: 0 | AC93: 0 | AD93: 0 | AE93: 0 | AF93: 0 | AG93: 0 | AH93: 0 | AI93: 0 | AJ93: 0 | AK93: 0 | AL93: 0 | AM93: 0 | AN93: 0
A94: =EB[[#This Row],[unit]] & "#" & EB[[#This Row],[indic_nrg]] & "#" & EB[[#This Row],[product]] & "#" & EB[[#This Row],[geo]] -> GWH#22_108561#6000#CZ | B94: =VLOOKUP(EB[[#This Row],[product]],KS_DB[[product]:[KS]],5,FALSE) -> electricity | C94: =VLOOKUP(EB[[#This Row],[product]],KS_DB[[product]:[KS]],6,FALSE) -> electricity | D94: =VLOOKUP(EB[[#This Row],[product]],Carriers[],4,FALSE) -> 1 | E94: =VLOOKUP(EB[[#This Row],[indic_nrg]],Indicators[],4,FALSE) -> 2112 | F94: =IFERROR(VLOOKUP(EB[[#This Row],[Source_carrier]],KS_DB[[product]:[KS]],6,FALSE),0) -> solid | G94: GWH | H94: 22_108561 | I94: 6000 | J94: CZ | K94: Gross electricity generation Main activity electricity only - Patent Fuel | L94: Gigawatt-hour | M94: Electrical energy | N94: Czech Republic | O94: 0 | P94: 0 | Q94: 0 | R94: 0 | S94: 0 | T94: 0 | U94: 0 | V94: 0 | W94: 0 | X94: 0 | Y94: 0 | Z94: 0 | AA94: 0 | AB94: 0 | AC94: 0 | AD94: 0 | AE94: 0 | AF94: 0 | AG94: 0 | AH94: 0 | AI94: 0 | AJ94: 0 | AK94: 0 | AL94: 0 | AM94: 0 | AN94: 0
A95: =EB[[#This Row],[unit]] & "#" & EB[[#This Row],[indic_nrg]] & "#" & EB[[#This Row],[product]] & "#" & EB[[#This Row],[geo]] -> GWH#22_108562#6000#CZ | B95: =VLOOKUP(EB[[#This Row],[product]],KS_DB[[product]:[KS]],5,FALSE) -> electricity | C95: =VLOOKUP(EB[[#This Row],[product]],KS_DB[[product]:[KS]],6,FALSE) -> electricity | D95: =VLOOKUP(EB[[#This Row],[product]],Carriers[],4,FALSE) -> 1 | E95: =VLOOKUP(EB[[#This Row],[indic_nrg]],Indicators[],4,FALSE) -> 2112 | F95: =IFERROR(VLOOKUP(EB[[#This Row],[Source_carrier]],KS_DB[[product]:[KS]],6,FALSE),0) -> solid | G95: GWH | H95: 22_108562 | I95: 6000 | J95: CZ | K95: Gross electricity generation Main activity CHP plants - Patent Fuel | L95: Gigawatt-hour | M95: Electrical energy | N95: Czech Republic | O95: 0 | P95: 0 | Q95: 0 | R95: 0 | S95: 0 | T95: 0 | U95: 0 | V95: 0 | W95: 0 | X95: 0 | Y95: 0 | Z95: 0 | AA95: 0 | AB95: 0 | AC95: 0 | AD95: 0 | AE95: 0 | AF95: 0 | AG95: 0 | AH95: 0 | AI95: 0 | AJ95: 0 | AK95: 0 | AL95: 0 | AM95: 0 | AN95: 0
A96: =EB[[#This Row],[unit]] & "#" & EB[[#This Row],[indic_nrg]] & "#" & EB[[#This Row],[product]] & "#" & EB[[#This Row],[geo]] -> GWH#22_108563#6000#CZ | B96: =VLOOKUP(EB[[#This Row],[product]],KS_DB[[product]:[KS]],5,FALSE) -> electricity | C96: =VLOOKUP(EB[[#This Row],[product]],KS_DB[[product]:[KS]],6,FALSE) -> electricity | D96: =VLOOKUP(EB[[#This Row],[product]],Carriers[],4,FALSE) -> 1 | E96: =VLOOKUP(EB[[#This Row],[indic_nrg]],Indicators[],4,FALSE) -> 2112 | F96: =IFERROR(VLOOKUP(EB[[#This Row],[Source_carrier]],KS_DB[[product]:[KS]],6,FALSE),0) -> solid | G96: GWH | H96: 22_108563 | I96: 6000 | J96: CZ | K96: Gross electricity generation Autoproducer electricity only - Patent Fuel | L96: Gigawatt-hour | M96: Electrical energy | N96: Czech Republic | O96: 0 | P96: 0 | Q96: 0 | R96: 0 | S96: 0 | T96: 0 | U96: 0 | V96: 0 | W96: 0 | X96: 0 | Y96: 0 | Z96: 0 | AA96: 0 | AB96: 0 | AC96: 0 | AD96: 0 | AE96: 0 | AF96: 0 | AG96: 0 | AH96: 0 | AI96: 0 | AJ96: 0 | AK96: 0 | AL96: 0 | AM96: 0 | AN96: 0
A97: =EB[[#This Row],[unit]] & "#" & EB[[#This Row],[indic_nrg]] & "#" & EB[[#This Row],[product]] & "#" & EB[[#This Row],[geo]] -> GWH#22_108564#6000#CZ | B97: =VLOOKUP(EB[[#This Row],[product]],KS_DB[[product]:[KS]],5,FALSE) -> electricity | C97: =VLOOKUP(EB[[#This Row],[product]],KS_DB[[product]:[KS]],6,FALSE) -> electricity | D97: =VLOOKUP(EB[[#This Row],[product]],Carriers[],4,FALSE) -> 1 | E97: =VLOOKUP(EB[[#This Row],[indic_nrg]],Indicators[],4,FALSE) -> 2112 | F97: =IFERROR(VLOOKUP(EB[[#This Row],[Source_carrier]],KS_DB[[product]:[KS]],6,FALSE),0) -> solid | G97: GWH | H97: 22_108564 | I97: 6000 | J97: CZ | K97: Gross electricity generation Autoproducer CHP plants - Patent Fuel | L97: Gigawatt-hour | M97: Electrical energy | N97: Czech Republic | O97: 0 | P97: 0 | Q97: 0 | R97: 0 | S97: 0 | T97: 0 | U97: 0 | V97: 0 | W97: 0 | X97: 0 | Y97: 0 | Z97: 0 | AA97: 0 | AB97: 0 | AC97: 0 | AD97: 0 | AE97: 0 | AF97: 0 | AG97: 0 | AH97: 0 | AI97: 0 | AJ97: 0 | AK97: 0 | AL97: 0 | AM97: 0 | AN97: 0
A98: =EB[[#This Row],[unit]] & "#" & EB[[#This Row],[indic_nrg]] & "#" & EB[[#This Row],[product]] & "#" & EB[[#This Row],[geo]] -> GWH#22_108571#6000#CZ | B98: =VLOOKUP(EB[[#This Row],[product]],KS_DB[[product]:[KS]],5,FALSE) -> electricity | C98: =VLOOKUP(EB[[#This Row],[product]],KS_DB[[product]:[KS]],6,FALSE) -> electricity | D98: =VLOOKUP(EB[[#This Row],[product]],Carriers[],4,FALSE) -> 1 | E98: =VLOOKUP(EB[[#This Row],[indic_nrg]],Indicators[],4,FALSE) -> 2121 | F98: =IFERROR(VLOOKUP(EB[[#This Row],[Source_carrier]],KS_DB[[product]:[KS]],6,FALSE),0) -> solid | G98: GWH | H98: 22_108571 | I98: 6000 | J98: CZ | K98: Gross electricity generation Main activity electricity only - Coke Oven Coke | L98: Gigawatt-hour | M98: Electrical energy | N98: Czech Republic | O98: 0 | P98: 0 | Q98: 0 | R98: 0 | S98: 0 | T98: 0 | U98: 0 | V98: 0 | W98: 0 | X98: 0 | Y98: 0 | Z98: 0 | AA98: 0 | AB98: 0 | AC98: 0 | AD98: 0 | AE98: 0 | AF98: 0 | AG98: 0 | AH98: 0 | AI98: 0 | AJ98: 0 | AK98: 0 | AL98: 0 | AM98: 0 | AN98: 0
A99: =EB[[#This Row],[unit]] & "#" & EB[[#This Row],[indic_nrg]] & "#" & EB[[#This Row],[product]] & "#" & EB[[#This Row],[geo]] -> GWH#22_108572#6000#CZ | B99: =VLOOKUP(EB[[#This Row],[product]],KS_DB[[product]:[KS]],5,FALSE) -> electricity | C99: =VLOOKUP(EB[[#This Row],[product]],KS_DB[[product]:[KS]],6,FALSE) -> electricity | D99: =VLOOKUP(EB[[#This Row],[product]],Carriers[],4,FALSE) -> 1 | E99: =VLOOKUP(EB[[#This Row],[indic_nrg]],Indicators[],4,FALSE) -> 2121 | F99: =IFERROR(VLOOKUP(EB[[#This Row],[Source_carrier]],KS_DB[[product]:[KS]],6,FALSE),0) -> solid | G99: GWH | H99: 22_108572 | I99: 6000 | J99: CZ | K99: Gross electricity generation Main activity CHP plants - Coke Oven Coke | L99: Gigawatt-hour | M99: Electrical energy | N99: Czech Republic | O99: 0 | P99: 0 | Q99: 0 | R99: 0 | S99: 0 | T99: 0 | U99: 0 | V99: 0 | W99: 0 | X99: 0 | Y99: 0 | Z99: 0 | AA99: 0 | AB99: 0 | AC99: 0 | AD99: 0 | AE99: 0 | AF99: 0 | AG99: 0 | AH99: 0 | AI99: 0 | AJ99: 0 | AK99: 0 | AL99: 0 | AM99: 0 | AN99: 0
A100: =EB[[#This Row],[unit]] & "#" & EB[[#This Row],[indic_nrg]] & "#" & EB[[#This Row],[product]] & "#" & EB[[#This Row],[geo]] -> GWH#22_108573#6000#CZ | B100: =VLOOKUP(EB[[#This Row],[product]],KS_DB[[product]:[KS]],5,FALSE) -> electricity | C100: =VLOOKUP(EB[[#This Row],[product]],KS_DB[[product]:[KS]],6,FALSE) -> electricity | D100: =VLOOKUP(EB[[#This Row],[product]],Carriers[],4,FALSE) -> 1 | E100: =VLOOKUP(EB[[#This Row],[indic_nrg]],Indicators[],4,FALSE) -> 2121 | F100: =IFERROR(VLOOKUP(EB[[#This Row],[Source_carrier]],KS_DB[[product]:[KS]],6,FALSE),0) -> solid | G100: GWH | H100: 22_108573 | I100: 6000 | J100: CZ | K100: Gross electricity generation Autoproducer electricity only - Coke Oven Coke | L100: Gigawatt-hour | M100: Electrical energy | N100: Czech Republic | O100: 0 | P100: 0 | Q100: 0 | R100: 0 | S100: 0 | T100: 0 | U100: 0 | V100: 0 | W100: 0 | X100: 0 | Y100: 0 | Z100: 0 | AA100: 0 | AB100: 0 | AC100: 0 | AD100: 0 | AE100: 0 | AF100: 0 | AG100: 0 | AH100: 0 | AI100: 0 | AJ100: 0 | AK100: 0 | AL100: 0 | AM100: 0 | AN100: 0
A101: =EB[[#This Row],[unit]] & "#" & EB[[#This Row],[indic_nrg]] & "#" & EB[[#This Row],[product]] & "#" & EB[[#This Row],[geo]] -> GWH#22_108574#6000#CZ | B101: =VLOOKUP(EB[[#This Row],[product]],KS_DB[[product]:[KS]],5,FALSE) -> electricity | C101: =VLOOKUP(EB[[#This Row],[product]],KS_DB[[product]:[KS]],6,FALSE) -> electricity | D101: =VLOOKUP(EB[[#This Row],[product]],Carriers[],4,FALSE) -> 1 | E101: =VLOOKUP(EB[[#This Row],[indic_nrg]],Indicators[],4,FALSE) -> 2121 | F101: =IFERROR(VLOOKUP(EB[[#This Row],[Source_carrier]],KS_DB[[product]:[KS]],6,FALSE),0) -> solid | G101: GWH | H101: 22_108574 | I101: 6000 | J101: CZ | K101: Gross electricity generation Autoproducer CHP plants - Coke Oven Coke | L101: Gigawatt-hour | M101: Electrical energy | N101: Czech Republic | O101: 0 | P101: 0 | Q101: 0 | R101: 0 | S101: 0 | T101: 0 | U101: 0 | V101: 0 | W101: 0 | X101: 0 | Y101: 0 | Z101: 0 | AA101: 0 | AB101: 0 | AC101: 0 | AD101: 0 | AE101: 0 | AF101: 0 | AG101: 0 | AH101: 12 | AI101: 0 | AJ101: 0 | AK101: 0 | AL101: 0 | AM101: 0 | AN101: 0
A102: =EB[[#This Row],[unit]] & "#" & EB[[#This Row],[indic_nrg]] & "#" & EB[[#This Row],[product]] & "#" & EB[[#This Row],[geo]] -> GWH#22_108581#6000#CZ | B102: =VLOOKUP(EB[[#This Row],[product]],KS_DB[[product]:[KS]],5,FALSE) -> electricity | C102: =VLOOKUP(EB[[#This Row],[product]],KS_DB[[product]:[KS]],6,FALSE) -> electricity | D102: =VLOOKUP(EB[[#This Row],[product]],Carriers[],4,FALSE) -> 1 | E102: =VLOOKUP(EB[[#This Row],[indic_nrg]],Indicators[],4,FALSE) -> 2122 | F102: =IFERROR(VLOOKUP(EB[[#This Row],[Source_carrier]],KS_DB[[product]:[KS]],6,FALSE),0) -> solid | G102: GWH | H102: 22_108581 | I102: 6000 | J102: CZ | K102: Gross electricity generation Main activity electricity only - Gas Coke | L102: Gigawatt-hour | M102: Electrical energy | N102: Czech Republic | O102: 0 | P102: 0 | Q102: 0 | R102: 0 | S102: 0 | T102: 0 | U102: 0 | V102: 0 | W102: 0 | X102: 0 | Y102: 0 | Z102: 0 | AA102: 0 | AB102: 0 | AC102: 0 | AD102: 0 | AE102: 0 | AF102: 0 | AG102: 0 | AH102: 0 | AI102: 0 | AJ102: 0 | AK102: 0 | AL102: 0 | AM102: 0 | AN102: 0
A103: =EB[[#This Row],[unit]] & "#" & EB[[#This Row],[indic_nrg]] & "#" & EB[[#This Row],[product]] & "#" & EB[[#This Row],[geo]] -> GWH#22_108582#6000#CZ | B103: =VLOOKUP(EB[[#This Row],[product]],KS_DB[[product]:[KS]],5,FALSE) -> electricity | C103: =VLOOKUP(EB[[#This Row],[product]],KS_DB[[product]:[KS]],6,FALSE) -> electricity | D103: =VLOOKUP(EB[[#This Row],[product]],Carriers[],4,FALSE) -> 1 | E103: =VLOOKUP(EB[[#This Row],[indic_nrg]],Indicators[],4,FALSE) -> 2122 | F103: =IFERROR(VLOOKUP(EB[[#This Row],[Source_carrier]],KS_DB[[product]:[KS]],6,FALSE),0) -> solid | G103: GWH | H103: 22_108582 | I103: 6000 | J103: CZ | K103: Gross electricity generation Main activity CHP plants - Gas Coke | L103: Gigawatt-hour | M103: Electrical energy | N103: Czech Republic | O103: 0 | P103: 0 | Q103: 0 | R103: 0 | S103: 0 | T103: 0 | U103: 0 | V103: 0 | W103: 0 | X103: 0 | Y103: 0 | Z103: 0 | AA103: 0 | AB103: 0 | AC103: 0 | AD103: 0 | AE103: 0 | AF103: 0 | AG103: 0 | AH103: 0 | AI103: 0 | AJ103: 0 | AK103: 0 | AL103: 0 | AM103: 0 | AN103: 0
A104: =EB[[#This Row],[unit]] & "#" & EB[[#This Row],[indic_nrg]] & "#" & EB[[#This Row],[product]] & "#" & EB[[#This Row],[geo]] -> GWH#22_108583#6000#CZ | B104: =VLOOKUP(EB[[#This Row],[product]],KS_DB[[product]:[KS]],5,FALSE) -> electricity | C104: =VLOOKUP(EB[[#This Row],[product]],KS_DB[[product]:[KS]],6,FALSE) -> electricity | D104: =VLOOKUP(EB[[#This Row],[product]],Carriers[],4,FALSE) -> 1 | E104: =VLOOKUP(EB[[#This Row],[indic_nrg]],Indicators[],4,FALSE) -> 2122 | F104: =IFERROR(VLOOKUP(EB[[#This Row],[Source_carrier]],KS_DB[[product]:[KS]],6,FALSE),0) -> solid | G104: GWH | H104: 22_108583 | I104: 6000 | J104: CZ | K104: Gross electricity generation Autoproducer electricity only - Gas Coke | L104: Gigawatt-hour | M104: Electrical energy | N104: Czech Republic | O104: 0 | P104: 0 | Q104: 0 | R104: 0 | S104: 0 | T104: 0 | U104: 0 | V104: 0 | W104: 0 | X104: 0 | Y104: 0 | Z104: 0 | AA104: 0 | AB104: 0 | AC104: 0 | AD104: 0 | AE104: 0 | AF104: 0 | AG104: 0 | AH104: 0 | AI104: 0 | AJ104: 0 | AK104: 0 | AL104: 0 | AM104: 0 | AN104: 0
A105: =EB[[#This Row],[unit]] & "#" & EB[[#This Row],[indic_nrg]] & "#" & EB[[#This Row],[product]] & "#" & EB[[#This Row],[geo]] -> GWH#22_108584#6000#CZ | B105: =VLOOKUP(EB[[#This Row],[product]],KS_DB[[product]:[KS]],5,FALSE) -> electricity | C105: =VLOOKUP(EB[[#This Row],[product]],KS_DB[[product]:[KS]],6,FALSE) -> electricity | D105: =VLOOKUP(EB[[#This Row],[product]],Carriers[],4,FALSE) -> 1 | E105: =VLOOKUP(EB[[#This Row],[indic_nrg]],Indicators[],4,FALSE) -> 2122 | F105: =IFERROR(VLOOKUP(EB[[#This Row],[Source_carrier]],KS_DB[[product]:[KS]],6,FALSE),0) -> solid | G105: GWH | H105: 22_108584 | I105: 6000 | J105: CZ | K105: Gross electricity generation Autoproducer CHP plants - Gas Coke | L105: Gigawatt-hour | M105: Electrical energy | N105: Czech Republic | O105: 0 | P105: 0 | Q105: 0 | R105: 0 | S105: 0 | T105: 0 | U105: 0 | V105: 0 | W105: 0 | X105: 0 | Y105: 0 | Z105: 0 | AA105: 0 | AB105: 0 | AC105: 0 | AD105: 0 | AE105: 0 | AF105: 0 | AG105: 0 | AH105: 0 | AI105: 0 | AJ105: 0 | AK105: 0 | AL105: 0 | AM105: 0 | AN105: 0
A106: =EB[[#This Row],[unit]] & "#" & EB[[#This Row],[indic_nrg]] & "#" & EB[[#This Row],[product]] & "#" & EB[[#This Row],[geo]] -> GWH#22_108591#6000#CZ | B106: =VLOOKUP(EB[[#This Row],[product]],KS_DB[[product]:[KS]],5,FALSE) -> electricity | C106: =VLOOKUP(EB[[#This Row],[product]],KS_DB[[product]:[KS]],6,FALSE) -> electricity | D106: =VLOOKUP(EB[[#This Row],[product]],Carriers[],4,FALSE) -> 1 | E106: =VLOOKUP(EB[[#This Row],[indic_nrg]],Indicators[],4,FALSE) -> 2130 | F106: =IFERROR(VLOOKUP(EB[[#This Row],[Source_carrier]],KS_DB[[product]:[KS]],6,FALSE),0) -> solid | G106: GWH | H106: 22_108591 | I106: 6000 | J106: CZ | K106: Gross electricity generation Main activity electricity only - Coal Tar | L106: Gigawatt-hour | M106: Electrical energy | N106: Czech Republic | O106: 0 | P106: 0 | Q106: 0 | R106: 0 | S106: 0 | T106: 0 | U106: 0 | V106: 0 | W106: 0 | X106: 0 | Y106: 0 | Z106: 0 | AA106: 0 | AB106: 0 | AC106: 0 | AD106: 0 | AE106: 0 | AF106: 0 | AG106: 0 | AH106: 0 | AI106: 0 | AJ106: 0 | AK106: 0 | AL106: 0 | AM106: 0 | AN106: 0
A107: =EB[[#This Row],[unit]] & "#" & EB[[#This Row],[indic_nrg]] & "#" & EB[[#This Row],[product]] & "#" & EB[[#This Row],[geo]] -> GWH#22_108592#6000#CZ | B107: =VLOOKUP(EB[[#This Row],[product]],KS_DB[[product]:[KS]],5,FALSE) -> electricity | C107: =VLOOKUP(EB[[#This Row],[product]],KS_DB[[product]:[KS]],6,FALSE) -> electricity | D107: =VLOOKUP(EB[[#This Row],[product]],Carriers[],4,FALSE) -> 1 | E107: =VLOOKUP(EB[[#This Row],[indic_nrg]],Indicators[],4,FALSE) -> 2130 | F107: =IFERROR(VLOOKUP(EB[[#This Row],[Source_carrier]],KS_DB[[product]:[KS]],6,FALSE),0) -> solid | G107: GWH | H107: 22_108592 | I107: 6000 | J107: CZ | K107: Gross electricity generation Main activity CHP plants - Coal Tar | L107: Gigawatt-hour | M107: Electrical energy | N107: Czech Republic | O107: 0 | P107: 0 | Q107: 0 | R107: 0 | S107: 0 | T107: 0 | U107: 0 | V107: 0 | W107: 0 | X107: 0 | Y107: 0 | Z107: 0 | AA107: 64 | AB107: 63 | AC107: 52 | AD107: 58 | AE107: 29 | AF107: 28 | AG107: 6 | AH107: 0 | AI107: 3 | AJ107: 0 | AK107: 0 | AL107: 0 | AM107: 0 | AN107: 0
A108: =EB[[#This Row],[unit]] & "#" & EB[[#This Row],[indic_nrg]] & "#" & EB[[#This Row],[product]] & "#" & EB[[#This Row],[geo]] -> GWH#22_108593#6000#CZ | B108: =VLOOKUP(EB[[#This Row],[product]],KS_DB[[product]:[KS]],5,FALSE) -> electricity | C108: =VLOOKUP(EB[[#This Row],[product]],KS_DB[[product]:[KS]],6,FALSE) -> electricity | D108: =VLOOKUP(EB[[#This Row],[product]],Carriers[],4,FALSE) -> 1 | E108: =VLOOKUP(EB[[#This Row],[indic_nrg]],Indicators[],4,FALSE) -> 2130 | F108: =IFERROR(VLOOKUP(EB[[#This Row],[Source_carrier]],KS_DB[[product]:[KS]],6,FALSE),0) -> solid | G108: GWH | H108: 22_108593 | I108: 6000 | J108: CZ | K108: Gross electricity generation Autoproducer electricity only - Coal Tar | L108: Gigawatt-hour | M108: Electrical energy | N108: Czech Republic | O108: 0 | P108: 0 | Q108: 0 | R108: 0 | S108: 0 | T108: 0 | U108: 0 | V108: 0 | W108: 0 | X108: 0 | Y108: 0 | Z108: 0 | AA108: 0 | AB108: 0 | AC108: 0 | AD108: 0 | AE108: 0 | AF108: 0 | AG108: 0 | AH108: 0 | AI108: 0 | AJ108: 0 | AK108: 0 | AL108: 0 | AM108: 0 | AN108: 0
A109: =EB[[#This Row],[unit]] & "#" & EB[[#This Row],[indic_nrg]] & "#" & EB[[#This Row],[product]] & "#" & EB[[#This Row],[geo]] -> GWH#22_108594#6000#CZ | B109: =VLOOKUP(EB[[#This Row],[product]],KS_DB[[product]:[KS]],5,FALSE) -> electricity | C109: =VLOOKUP(EB[[#This Row],[product]],KS_DB[[product]:[KS]],6,FALSE) -> electricity | D109: =VLOOKUP(EB[[#This Row],[product]],Carriers[],4,FALSE) -> 1 | E109: =VLOOKUP(EB[[#This Row],[indic_nrg]],Indicators[],4,FALSE) -> 2130 | F109: =IFERROR(VLOOKUP(EB[[#This Row],[Source_carrier]],KS_DB[[product]:[KS]],6,FALSE),0) -> solid | G109: GWH | H109: 22_108594 | I109: 6000 | J109: CZ | K109: Gross electricity generation Autoproducer CHP plants - Coal Tar | L109: Gigawatt-hour | M109: Electrical energy | N109: Czech Republic | O109: 0 | P109: 0 | Q109: 0 | R109: 0 | S109: 0 | T109: 0 | U109: 0 | V109: 0 | W109: 0 | X109: 0 | Y109: 0 | Z109: 0 | AA109: 6 | AB109: 6 | AC109: 5 | AD109: 6 | AE109: 2 | AF109: 0 | AG109: 0 | AH109: 0 | AI109: 5 | AJ109: 0 | AK109: 2 | AL109: 1 | AM109: 8 | AN109: 14
A110: =EB[[#This Row],[unit]] & "#" & EB[[#This Row],[indic_nrg]] & "#" & EB[[#This Row],[product]] & "#" & EB[[#This Row],[geo]] -> GWH#22_108601#6000#CZ | B110: =VLOOKUP(EB[[#This Row],[product]],KS_DB[[product]:[KS]],5,FALSE) -> electricity | C110: =VLOOKUP(EB[[#This Row],[product]],KS_DB[[product]:[KS]],6,FALSE) -> electricity | D110: =VLOOKUP(EB[[#This Row],[product]],Carriers[],4,FALSE) -> 1 | E110: =VLOOKUP(EB[[#This Row],[indic_nrg]],Indicators[],4,FALSE) -> 2230 | F110: =IFERROR(VLOOKUP(EB[[#This Row],[Source_carrier]],KS_DB[[product]:[KS]],6,FALSE),0) -> solid | G110: GWH | H110: 22_108601 | I110: 6000 | J110: CZ | K110: Gross electricity generation Main activity electricity only - BKB | L110: Gigawatt-hour | M110: Electrical energy | N110: Czech Republic | O110: 0 | P110: 0 | Q110: 0 | R110: 0 | S110: 0 | T110: 0 | U110: 0 | V110: 0 | W110: 0 | X110: 0 | Y110: 0 | Z110: 0 | AA110: 0 | AB110: 0 | AC110: 0 | AD110: 0 | AE110: 0 | AF110: 0 | AG110: 0 | AH110: 0 | AI110: 0 | AJ110: 0 | AK110: 0 | AL110: 0 | AM110: 0 | AN110: 0
A111: =EB[[#This Row],[unit]] & "#" & EB[[#This Row],[indic_nrg]] & "#" & EB[[#This Row],[product]] & "#" & EB[[#This Row],[geo]] -> GWH#22_108602#6000#CZ | B111: =VLOOKUP(EB[[#This Row],[product]],KS_DB[[product]:[KS]],5,FALSE) -> electricity | C111: =VLOOKUP(EB[[#This Row],[product]],KS_DB[[product]:[KS]],6,FALSE) -> electricity | D111: =VLOOKUP(EB[[#This Row],[product]],Carriers[],4,FALSE) -> 1 | E111: =VLOOKUP(EB[[#This Row],[indic_nrg]],Indicators[],4,FALSE) -> 2230 | F111: =IFERROR(VLOOKUP(EB[[#This Row],[Source_carrier]],KS_DB[[product]:[KS]],6,FALSE),0) -> solid | G111: GWH | H111: 22_108602 | I111: 6000 | J111: CZ | K111: Gross electricity generation Main activity CHP plants - BKB | L111: Gigawatt-hour | M111: Electrical energy | N111: Czech Republic | O111: 0 | P111: 0 | Q111: 0 | R111: 0 | S111: 0 | T111: 0 | U111: 0 | V111: 0 | W111: 0 | X111: 0 | Y111: 0 | Z111: 0 | AA111: 0 | AB111: 0 | AC111: 0 | AD111: 0 | AE111: 0 | AF111: 0 | AG111: 0 | AH111: 0 | AI111: 0 | AJ111: 0 | AK111: 0 | AL111: 0 | AM111: 0 | AN111: 0
A112: =EB[[#This Row],[unit]] & "#" & EB[[#This Row],[indic_nrg]] & "#" & EB[[#This Row],[product]] & "#" & EB[[#This Row],[geo]] -> GWH#22_108603#6000#CZ | B112: =VLOOKUP(EB[[#This Row],[product]],KS_DB[[product]:[KS]],5,FALSE) -> electricity | C112: =VLOOKUP(EB[[#This Row],[product]],KS_DB[[product]:[KS]],6,FALSE) -> electricity | D112: =VLOOKUP(EB[[#This Row],[product]],Carriers[],4,FALSE) -> 1 | E112: =VLOOKUP(EB[[#This Row],[indic_nrg]],Indicators[],4,FALSE) -> 2230 | F112: =IFERROR(VLOOKUP(EB[[#This Row],[Source_carrier]],KS_DB[[product]:[KS]],6,FALSE),0) -> solid | G112: GWH | H112: 22_108603 | I112: 6000 | J112: CZ | K112: Gross electricity generation Autoproducer electricity only - BKB | L112: Gigawatt-hour | M112: Electrical energy | N112: Czech Republic | O112: 0 | P112: 0 | Q112: 0 | R112: 0 | S112: 0 | T112: 0 | U112: 0 | V112: 0 | W112: 0 | X112: 0 | Y112: 0 | Z112: 0 | AA112: 0 | AB112: 0 | AC112: 0 | AD112: 0 | AE112: 0 | AF112: 0 | AG112: 0 | AH112: 0 | AI112: 0 | AJ112: 0 | AK112: 0 | AL112: 0 | AM112: 0 | AN112: 0
A113: =EB[[#This Row],[unit]] & "#" & EB[[#This Row],[indic_nrg]] & "#" & EB[[#This Row],[product]] & "#" & EB[[#This Row],[geo]] -> GWH#22_108604#6000#CZ | B113: =VLOOKUP(EB[[#This Row],[product]],KS_DB[[product]:[KS]],5,FALSE) -> electricity | C113: =VLOOKUP(EB[[#This Row],[product]],KS_DB[[product]:[KS]],6,FALSE) -> electricity | D113: =VLOOKUP(EB[[#This Row],[product]],Carriers[],4,FALSE) -> 1 | E113: =VLOOKUP(EB[[#This Row],[indic_nrg]],Indicators[],4,FALSE) -> 2230 | F113: =IFERROR(VLOOKUP(EB[[#This Row],[Source_carrier]],KS_DB[[product]:[KS]],6,FALSE),0) -> solid | G113: GWH | H113: 22_108604 | I113: 6000 | J113: CZ | K113: Gross electricity generation Autoproducer CHP plants - BKB | L113: Gigawatt-hour | M113: Electrical energy | N113: Czech Republic | O113: 0 | P113: 0 | Q113: 0 | R113: 0 | S113: 0 | T113: 0 | U113: 0 | V113: 0 | W113: 0 | X113: 0 | Y113: 0 | Z113: 0 | AA113: 0 | AB113: 0 | AC113: 0 | AD113: 0 | AE113: 0 | AF113: 5 | AG113: 4 | AH113: 5 | AI113: 10 | AJ113: 0 | AK113: 0 | AL113: 0 | AM113: 0 | AN113: 0
A114: =EB[[#This Row],[unit]] & "#" & EB[[#This Row],[indic_nrg]] & "#" & EB[[#This Row],[product]] & "#" & EB[[#This Row],[geo]] -> GWH#22_108611#6000#CZ | B114: =VLOOKUP(EB[[#This Row],[product]],KS_DB[[product]:[KS]],5,FALSE) -> electricity | C114: =VLOOKUP(EB[[#This Row],[product]],KS_DB[[product]:[KS]],6,FALSE) -> electricity | D114: =VLOOKUP(EB[[#This Row],[product]],Carriers[],4,FALSE) -> 1 | E114: =VLOOKUP(EB[[#This Row],[indic_nrg]],Indicators[],4,FALSE) -> 4230 | F114: =IFERROR(VLOOKUP(EB[[#This Row],[Source_carrier]],KS_DB[[product]:[KS]],6,FALSE),0) -> gas | G114: GWH | H114: 22_108611 | I114: 6000 | J114: CZ | K114: Gross electricity generation Main activity electricity only - Gas Works Gas | L114: Gigawatt-hour | M114: Electrical energy | N114: Czech Republic | O114: 0 | P114: 0 | Q114: 0 | R114: 0 | S114: 0 | T114: 0 | U114: 0 | V114: 0 | W114: 0 | X114: 0 | Y114: 0 | Z114: 0 | AA114: 0 | AB114: 0 | AC114: 0 | AD114: 0 | AE114: 0 | AF114: 0 | AG114: 0 | AH114: 0 | AI114: 0 | AJ114: 0 | AK114: 0 | AL114: 0 | AM114: 0 | AN114: 0
A115: =EB[[#This Row],[unit]] & "#" & EB[[#This Row],[indic_nrg]] & "#" & EB[[#This Row],[product]] & "#" & EB[[#This Row],[geo]] -> GWH#22_108612#6000#CZ | B115: =VLOOKUP(EB[[#This Row],[product]],KS_DB[[product]:[KS]],5,FALSE) -> electricity | C115: =VLOOKUP(EB[[#This Row],[product]],KS_DB[[product]:[KS]],6,FALSE) -> electricity | D115: =VLOOKUP(EB[[#This Row],[product]],Carriers[],4,FALSE) -> 1 | E115: =VLOOKUP(EB[[#This Row],[indic_nrg]],Indicators[],4,FALSE) -> 4230 | F115: =IFERROR(VLOOKUP(EB[[#This Row],[Source_carrier]],KS_DB[[product]:[KS]],6,FALSE),0) -> gas | G115: GWH | H115: 22_108612 | I115: 6000 | J115: CZ | K115: Gross electricity generation Main activity CHP plants - Gas Works Gas | L115: Gigawatt-hour | M115: Electrical energy | N115: Czech Republic | O115: 5 | P115: 3 | Q115: 3 | R115: 1 | S115: 5 | T115: 5 | U115: 0 | V115: 0 | W115: 0 | X115: 0 | Y115: 0 | Z115: 0 | AA115: 0 | AB115: 0 | AC115: 0 | AD115: 0 | AE115: 0 | AF115: 0 | AG115: 0 | AH115: 0 | AI115: 0 | AJ115: 0 | AK115: 0 | AL115: 0 | AM115: 0 | AN115: 0
A116: =EB[[#This Row],[unit]] & "#" & EB[[#This Row],[indic_nrg]] & "#" & EB[[#This Row],[product]] & "#" & EB[[#This Row],[geo]] -> GWH#22_108613#6000#CZ | B116: =VLOOKUP(EB[[#This Row],[product]],KS_DB[[product]:[KS]],5,FALSE) -> electricity | C116: =VLOOKUP(EB[[#This Row],[product]],KS_DB[[product]:[KS]],6,FALSE) -> electricity | D116: =VLOOKUP(EB[[#This Row],[product]],Carriers[],4,FALSE) -> 1 | E116: =VLOOKUP(EB[[#This Row],[indic_nrg]],Indicators[],4,FALSE) -> 4230 | F116: =IFERROR(VLOOKUP(EB[[#This Row],[Source_carrier]],KS_DB[[product]:[KS]],6,FALSE),0) -> gas | G116: GWH | H116: 22_108613 | I116: 6000 | J116: CZ | K116: Gross electricity generation Autoproducer electricity only - Gas Works Gas | L116: Gigawatt-hour | M116: Electrical energy | N116: Czech Republic | O116: 0 | P116: 0 | Q116: 0 | R116: 0 | S116: 0 | T116: 0 | U116: 0 | V116: 0 | W116: 0 | X116: 0 | Y116: 0 | Z116: 0 | AA116: 0 | AB116: 0 | AC116: 0 | AD116: 0 | AE116: 0 | AF116: 0 | AG116: 0 | AH116: 0 | AI116: 0 | AJ116: 0 | AK116: 0 | AL116: 0 | AM116: 0 | AN116: 0
A117: =EB[[#This Row],[unit]] & "#" & EB[[#This Row],[indic_nrg]] & "#" & EB[[#This Row],[product]] & "#" & EB[[#This Row],[geo]] -> GWH#22_108614#6000#CZ | B117: =VLOOKUP(EB[[#This Row],[product]],KS_DB[[product]:[KS]],5,FALSE) -> electricity | C117: =VLOOKUP(EB[[#This Row],[product]],KS_DB[[product]:[KS]],6,FALSE) -> electricity | D117: =VLOOKUP(EB[[#This Row],[product]],Carriers[],4,FALSE) -> 1 | E117: =VLOOKUP(EB[[#This Row],[indic_nrg]],Indicators[],4,FALSE) -> 4230 | F117: =IFERROR(VLOOKUP(EB[[#This Row],[Source_carrier]],KS_DB[[product]:[KS]],6,FALSE),0) -> gas | G117: GWH | H117: 22_108614 | I117: 6000 | J117: CZ | K117: Gross electricity generation Autoproducer CHP plants - Gas Works Gas | L117: Gigawatt-hour | M117: Electrical energy | N117: Czech Republic | O117: 1 | P117: 1 | Q117: 1 | R117: 1 | S117: 2 | T117: 0 | U117: 978 | V117: 1421 | W117: 1545 | X117: 1498 | Y117: 1454 | Z117: 1578 | AA117: 1602 | AB117: 1659 | AC117: 1641 | AD117: 1899 | AE117: 1721 | AF117: 1805 | AG117: 2029 | AH117: 1956 | AI117: 2090 | AJ117: 2093 | AK117: 1947 | AL117: 1874 | AM117: 2000 | AN117: 1997
A118: =EB[[#This Row],[unit]] & "#" & EB[[#This Row],[indic_nrg]] & "#" & EB[[#This Row],[product]] & "#" & EB[[#This Row],[geo]] -> GWH#22_108621#6000#CZ | B118: =VLOOKUP(EB[[#This Row],[product]],KS_DB[[product]:[KS]],5,FALSE) -> electricity | C118: =VLOOKUP(EB[[#This Row],[product]],KS_DB[[product]:[KS]],6,FALSE) -> electricity | D118: =VLOOKUP(EB[[#This Row],[product]],Carriers[],4,FALSE) -> 1 | E118: =VLOOKUP(EB[[#This Row],[indic_nrg]],Indicators[],4,FALSE) -> 4210 | F118: =IFERROR(VLOOKUP(EB[[#This Row],[Source_carrier]],KS_DB[[product]:[KS]],6,FALSE),0) -> gas | G118: GWH | H118: 22_108621 | I118: 6000 | J118: CZ | K118: Gross electricity generation Main activity electricity only - Coke Oven Gas | L118: Gigawatt-hour | M118: Electrical energy | N118: Czech Republic | O118: 0 | P118: 0 | Q118: 0 | R118: 0 | S118: 0 | T118: 0 | U118: 0 | V118: 0 | W118: 0 | X118: 0 | Y118: 0 | Z118: 0 | AA118: 0 | AB118: 0 | AC118: 0 | AD118: 0 | AE118: 0 | AF118: 0 | AG118: 0 | AH118: 0 | AI118: 0 | AJ118: 0 | AK118: 0 | AL118: 0 | AM118: 0 | AN118: 0
A119: =EB[[#This Row],[unit]] & "#" & EB[[#This Row],[indic_nrg]] & "#" & EB[[#This Row],[product]] & "#" & EB[[#This Row],[geo]] -> GWH#22_108622#6000#CZ | B119: =VLOOKUP(EB[[#This Row],[product]],KS_DB[[product]:[KS]],5,FALSE) -> electricity | C119: =VLOOKUP(EB[[#This Row],[product]],KS_DB[[product]:[KS]],6,FALSE) -> electricity | D119: =VLOOKUP(EB[[#This Row],[product]],Carriers[],4,FALSE) -> 1 | E119: =VLOOKUP(EB[[#This Row],[indic_nrg]],Indicators[],4,FALSE) -> 4210 | F119: =IFERROR(VLOOKUP(EB[[#This Row],[Source_carrier]],KS_DB[[product]:[KS]],6,FALSE),0) -> gas | G119: GWH | H119: 22_108622 | I119: 6000 | J119: CZ | K119: Gross electricity generation Main activity CHP plants - Coke Oven Gas | L119: Gigawatt-hour | M119: Electrical energy | N119: Czech Republic | O119: 80 | P119: 81 | Q119: 87 | R119: 80 | S119: 80 | T119: 102 | U119: 125 | V119: 103 | W119: 115 | X119: 136 | Y119: 136 | Z119: 154 | AA119: 157 | AB119: 110 | AC119: 160 | AD119: 162 | AE119: 170 | AF119: 175 | AG119: 148 | AH119: 142 | AI119: 173 | AJ119: 271 | AK119: 231 | AL119: 235 | AM119: 260 | AN119: 215
A120: =EB[[#This Row],[unit]] & "#" & EB[[#This Row],[indic_nrg]] & "#" & EB[[#This Row],[product]] & "#" & EB[[#This Row],[geo]] -> GWH#22_108623#6000#CZ | B120: =VLOOKUP(EB[[#This Row],[product]],KS_DB[[product]:[KS]],5,FALSE) -> electricity | C120: =VLOOKUP(EB[[#This Row],[product]],KS_DB[[product]:[KS]],6,FALSE) -> electricity | D120: =VLOOKUP(EB[[#This Row],[product]],Carriers[],4,FALSE) -> 1 | E120: =VLOOKUP(EB[[#This Row],[indic_nrg]],Indicators[],4,FALSE) -> 4210 | F120: =IFERROR(VLOOKUP(EB[[#This Row],[Source_carrier]],KS_DB[[product]:[KS]],6,FALSE),0) -> gas | G120: GWH | H120: 22_108623 | I120: 6000 | J120: CZ | K120: Gross electricity generation Autoproducer electricity only - Coke Oven Gas | L120: Gigawatt-hour | M120: Electrical energy | N120: Czech Republic | O120: 0 | P120: 0 | Q120: 0 | R120: 0 | S120: 0 | T120: 0 | U120: 1 | V120: 0 | W120: 0 | X120: 0 | Y120: 0 | Z120: 0 | AA120: 0 | AB120: 0 | AC120: 0 | AD120: 0 | AE120: 0 | AF120: 0 | AG120: 0 | AH120: 0 | AI120: 0 | AJ120: 0 | AK120: 0 | AL120: 0 | AM120: 0 | AN120: 0
A121: =EB[[#This Row],[unit]] & "#" & EB[[#This Row],[indic_nrg]] & "#" & EB[[#This Row],[product]] & "#" & EB[[#This Row],[geo]] -> GWH#22_108624#6000#CZ | B121: =VLOOKUP(EB[[#This Row],[product]],KS_DB[[product]:[KS]],5,FALSE) -> electricity | C121: =VLOOKUP(EB[[#This Row],[product]],KS_DB[[product]:[KS]],6,FALSE) -> electricity | D121: =VLOOKUP(EB[[#This Row],[product]],Carriers[],4,FALSE) -> 1 | E121: =VLOOKUP(EB[[#This Row],[indic_nrg]],Indicators[],4,FALSE) -> 4210 | F121: =IFERROR(VLOOKUP(EB[[#This Row],[Source_carrier]],KS_DB[[product]:[KS]],6,FALSE),0) -> gas | G121: GWH | H121: 22_108624 | I121: 6000 | J121: CZ | K121: Gross electricity generation Autoproducer CHP plants - Coke Oven Gas | L121: Gigawatt-hour | M121: Electrical energy | N121: Czech Republic | O121: 185 | P121: 179 | Q121: 182 | R121: 104 | S121: 185 | T121: 136 | U121: 137 | V121: 161 | W121: 166 | X121: 105 | Y121: 185 | Z121: 163 | AA121: 176 | AB121: 163 | AC121: 110 | AD121: 169 | AE121: 145 | AF121: 125 | AG121: 135 | AH121: 120 | AI121: 21 | AJ121: 0 | AK121: 0 | AL121: 0 | AM121: 0 | AN121: 0
A122: =EB[[#This Row],[unit]] & "#" & EB[[#This Row],[indic_nrg]] & "#" & EB[[#This Row],[product]] & "#" & EB[[#This Row],[geo]] -> GWH#22_108631#6000#CZ | B122: =VLOOKUP(EB[[#This Row],[product]],KS_DB[[product]:[KS]],5,FALSE) -> electricity | C122: =VLOOKUP(EB[[#This Row],[product]],KS_DB[[product]:[KS]],6,FALSE) -> electricity | D122: =VLOOKUP(EB[[#This Row],[product]],Carriers[],4,FALSE) -> 1 | E122: =VLOOKUP(EB[[#This Row],[indic_nrg]],Indicators[],4,FALSE) -> 4220 | F122: =IFERROR(VLOOKUP(EB[[#This Row],[Source_carrier]],KS_DB[[product]:[KS]],6,FALSE),0) -> gas | G122: GWH | H122: 22_108631 | I122: 6000 | J122: CZ | K122: Gross electricity generation Main activity electricity only - Blast Furnace Gas | L122: Gigawatt-hour | M122: Electrical energy | N122: Czech Republic | O122: 0 | P122: 0 | Q122: 0 | R122: 0 | S122: 0 | T122: 0 | U122: 0 | V122: 0 | W122: 0 | X122: 0 | Y122: 0 | Z122: 0 | AA122: 0 | AB122: 0 | AC122: 0 | AD122: 0 | AE122: 0 | AF122: 0 | AG122: 0 | AH122: 0 | AI122: 0 | AJ122: 0 | AK122: 0 | AL122: 0 | AM122: 0 | AN122: 0
A123: =EB[[#This Row],[unit]] & "#" & EB[[#This Row],[indic_nrg]] & "#" & EB[[#This Row],[product]] & "#" & EB[[#This Row],[geo]] -> GWH#22_108632#6000#CZ | B123: =VLOOKUP(EB[[#This Row],[product]],KS_DB[[product]:[KS]],5,FALSE) -> electricity | C123: =VLOOKUP(EB[[#This Row],[product]],KS_DB[[product]:[KS]],6,FALSE) -> electricity | D123: =VLOOKUP(EB[[#This Row],[product]],Carriers[],4,FALSE) -> 1 | E123: =VLOOKUP(EB[[#This Row],[indic_nrg]],Indicators[],4,FALSE) -> 4220 | F123: =IFERROR(VLOOKUP(EB[[#This Row],[Source_carrier]],KS_DB[[product]:[KS]],6,FALSE),0) -> gas | G123: GWH | H123: 22_108632 | I123: 6000 | J123: CZ | K123: Gross electricity generation Main activity CHP plants - Blast Furnace Gas | L123: Gigawatt-hour | M123: Electrical energy | N123: Czech Republic | O123: 171 | P123: 180 | Q123: 185 | R123: 171 | S123: 141 | T123: 135 | U123: 137 | V123: 176 | W123: 220 | X123: 207 | Y123: 239 | Z123: 247 | AA123: 233 | AB123: 200 | AC123: 321 | AD123: 280 | AE123: 270 | AF123: 285 | AG123: 278 | AH123: 200 | AI123: 414 | AJ123: 411 | AK123: 350 | AL123: 420 | AM123: 444 | AN123: 403
A124: =EB[[#This Row],[unit]] & "#" & EB[[#This Row],[indic_nrg]] & "#" & EB[[#This Row],[product]] & "#" & EB[[#This Row],[geo]] -> GWH#22_108633#6000#CZ | B124: =VLOOKUP(EB[[#This Row],[product]],KS_DB[[product]:[KS]],5,FALSE) -> electricity | C124: =VLOOKUP(EB[[#This Row],[product]],KS_DB[[product]:[KS]],6,FALSE) -> electricity | D124: =VLOOKUP(EB[[#This Row],[product]],Carriers[],4,FALSE) -> 1 | E124: =VLOOKUP(EB[[#This Row],[indic_nrg]],Indicators[],4,FALSE) -> 4220 | F124: =IFERROR(VLOOKUP(EB[[#This Row],[Source_carrier]],KS_DB[[product]:[KS]],6,FALSE),0) -> gas | G124: GWH | H124: 22_108633 | I124: 6000 | J124: CZ | K124: Gross electricity generation Autoproducer electricity only - Blast Furnace Gas | L124: Gigawatt-hour | M124: Electrical energy | N124: Czech Republic | O124: 15 | P124: 9 | Q124: 10 | R124: 9 | S124: 0 | T124: 7 | U124: 7 | V124: 0 | W124: 0 | X124: 0 | Y124: 0 | Z124: 0 | AA124: 0 | AB124: 0 | AC124: 0 | AD124: 0 | AE124: 0 | AF124: 0 | AG124: 0 | AH124: 0 | AI124: 0 | AJ124: 0 | AK124: 0 | AL124: 0 | AM124: 0 | AN124: 0
